{"text_format":"3","workbook":"xlsx","n_sheets":8,"sheets":["PopUp","Array","MyUDF","HideUnload","Events","Regex","Filter","ExecTimes"],"not_rendered":{"images":3,"macros":1,"defined_names":13,"comments":1},"read":"whole","date_system":"1900"}

{"sheet":"PopUp","index":0,"n_rows":3,"n_cols":2,"rows_kept":3}
[]
["CheckBox1",true]
["TextBox1","Text2"]

{"sheet":"Array","index":1,"n_rows":7,"n_cols":2,"rows_kept":7}
[]
[null,"This sheet demonstrates difference in writing speeds between"]
[null,"a) to each individual cell of a range"]
[null,"b) filling an array first and then mass copy array to the worksheet range"]
[]
[null,"After clicking on the button step a) will be executed on cell range B12:EZ100. The letter \"W\" is written to each cell individually"]
[null,"Next the same range will be written with an array. The value A is written to an array individually and then mass copied to the range."]

{"sheet":"MyUDF","index":2,"n_rows":21,"n_cols":11,"rows_kept":21}
["Value1:","Value2:","MyUDF1:"]
[10,20,{"$f":"MyUDF1(TRUE,A2,B2)","v":30},"MYUDF1 on this line is volatile (first argument=TRUE). Cell is dependent on other cells. If these other cells change, Excel will always evaluate the formula"]
[30,40,{"$f":"MyUDF1(FALSE,A3,B3)","v":70},"MYUDF1 on this line is non-volatile (first argument=FALSE). Cell is dependent on other cells. If these other cells change, Excel will always evaluate the formula"]
[null,null,"MyUDF2:"]
[null,null,{"$f":"MyUDF2(TRUE)","v":45403.78869212963},"MYUDF2 on this line is volatile (argument=TRUE) and cell is not dependent on other cells. It is recalculated automatically by Excel"]
[null,null,{"$f":"MyUDF2(FALSE)","v":45402.61409722222},"MYUDF2 on this line is non-volatile (argument=FALSE) and cell is not dependent on other cells. It is not recalculated automatically. Recalculation can be forced with Ctrl-Alt-F9"]
[]
[null,null,"MyUDF3:","Element1","Element2","Element3","Element4","Element5","Element6",null,"MYUDF3 is non-volatile. But cell is dependent on other cells. If these other cells change, Excel will always evaluate the UDF formula"]
[null,null,"a,b,c,d",{"$f":"MyUDF3($C9,\",\",COLUMN(D9)-COLUMN($C9))","v":"a"},"b","c","d",{"$error":"#VALUE!"},{"$error":"#VALUE!"},null,"Changing the List in cell C9 will automatically update the cells in D9...I9"]
[null,null,"0;1;2;3;4",{"$f":"MyUDF3($C10,\";\",1)","v":"0"},{"$f":"MyUDF3($C10,\";\",2)","v":"1"},{"$f":"MyUDF3($C10,\";\",3)","v":"2"},{"$f":"MyUDF3($C10,\";\",4)","v":"3"},{"$f":"MyUDF3($C10,\";\",5)","v":"4"},{"$f":"MyUDF3($C10,\";\",6)","v":{"$error":"#VALUE!"}},null,"Changing the List in cell C10 will automatically update the cells in D10...I10"]
[]
[null,null,"MyUDF4:","Element1","Element2","Element3","Element4","Element5","Element6"]
[null,null,"e,f,g,h,i,k",{"$f":"MyUDF4(\"C13\",\",\")","v":"e"},"f","g","h","i","k",null,"MYUDF4 is non-volatile. Cell is not dependent on other cells. It is not recalculated automatically. Recalculation can be forced with Ctrl-Alt-F9"]
[null,null,"0;1;2;3;4;6",{"$f":"MyUDF4(\"C\"&ROW($C14),\";\")","v":"0"},"1","2","3","4","6",null,"MYUDF4 is non-volatile. Cell is dependent on other cells. If these other cells change, Excel will always evaluate the formula"]
[]
[null,null,"MyUDF5:","Element1","Element2","Element3","Element4","Element5","Element6",null,"MYUDF5 forced volatile. Excel will always evaluate the UDF formula"]
[null,null,"e,f,g,h,i,j",{"$f":"MyUDF5(\"C17\",\",\")","v":"e"},{"$f":"MyUDF5(\"C17\",\",\")","v":"f"},"g","h","i","j",null,"MYUDF5 forced volatile. Excel will always evaluate the UDF formula"]
[null,null,"0;1;2;3;4;5",{"$f":"MyUDF5(\"C\"&ROW($C18),\";\")","v":"0"},"1","2","3","4","5",null,"MYUDF5 forced volatile. Excel will always evaluate the UDF formula"]
[]
[null,null,"MyUDF6:","Element1","Element2","Element3","Element4","Element5","Element6"]
[null,null,"e,f,g,h,i,g",{"$f":"MyUDF6(C21,\",\")","v":"e"},"f","g","h","i","g",null,"MYUDF6, automatically spill into adjacent cells due to array result of function"]

{"sheet":"HideUnload","index":3,"n_rows":5,"n_cols":2,"rows_kept":5}
[]
[null,"This sheet demonstrates the difference between UNLOAD and HIDE of a form"]
[null,"If you HIDE a form then the entered/changed values and the window position is re-stored when opened again."]
[null,"If you UNLOAD a form then it gets initalized again to the values of the properties during design time. The window position is reset."]
[null,"The form property 'StartUpPosition' is set to 'Manual'. So that the user can move the form to another location and (re)open it at that location"]

{"sheet":"Events","index":4,"n_rows":0,"n_cols":0,"rows_kept":0}

{"sheet":"Regex","index":5,"n_rows":2776,"n_cols":13,"rows_kept":2776}
["<SearchText>","The","Ther","Singles\\\\The\\s.+\\s-\\s","Singles\\\\(The)\\s(.+)\\s-\\s","Singles\\\\$2, $1 - ",null,"https://docs.microsoft.com/en-us/dotnet/standard/base-types/regular-expression-language-quick-reference"]
["Singles\\PSY - Gangnam Style.mp3",{"$f":"RegexTest(B$1,$A2)","v":false},{"$f":"RegexCount(C$1,$A2)","v":0},{"$f":"RegexFind(D$1,$A2)","v":{"$error":"#N/A"}},{"$f":"RegexReplace(E$1,$A2,F$1)","v":"Singles\\PSY - Gangnam Style.mp3"},null,null,"Char matches:"]
["Singles\\Van Velzen - Too Good To Lose.mp3",{"$f":"RegexTest(B$1,$A3)","v":false},{"$f":"RegexCount(C$1,$A3)","v":0},{"$f":"RegexFind(D$1,$A3)","v":{"$error":"#N/A"}},{"$f":"RegexReplace(E$1,$A3,F$1)","v":"Singles\\Van Velzen - Too Good To Lose.mp3"},null,null,"Char:","Description:","Pattern:","Matches:"]
["Singles\\The Rolling Stones - Emotional Rescue.Mp3",{"$f":"RegexTest(B$1,$A4)","v":true},0,{"$f":"RegexFind(D$1,$A4)","v":"Singles\\The Rolling Stones - "},{"$f":"RegexReplace(E$1,$A4,F$1)","v":"Singles\\\\Rolling Stones, The - Emotional Rescue.Mp3"},null,null,"[group]","Matches any single character in character_group.","[ae]","a in \"gray\" \"a\", \"e\" in \"lane\""]
["Singles\\Black Slate - Amigo.mp3",false,0,{"$error":"#N/A"},{"$f":"RegexReplace(E$1,$A5,F$1)","v":"Singles\\Black Slate - Amigo.mp3"},null,null,"[^group]","Negation: Matches any single character that is not in character_group","[^aei]","r, \"g\", \"n\" in \"reign\""]
["Singles\\Patsy Cline - Crazy.mp3",false,0,{"$error":"#N/A"},"Singles\\Patsy Cline - Crazy.mp3",null,null,"[a-z]","Character range: Matches any single character in the range from first to last.","[A-Z]","A, \"B\" in \"AB123\""]
["Singles\\Justin Timberlake - Rock Your Body.mp3",false,0,{"$error":"#N/A"},"Singles\\Justin Timberlake - Rock Your Body.mp3",null,null,".","Wildcard: Matches any single character except \\n ","a.e ","ave in \"nave\" \"ate\" in \"water\""]
["Singles\\Ricchi & Poveri - Mamma Maria.mp3",false,0,{"$error":"#N/A"},"Singles\\Ricchi & Poveri - Mamma Maria.mp3",null,null,"\\w","Matches any word character.","\\w","I, \"D\", \"A\", \"1\", \"3\" in \"ID A1.3\""]
["Singles\\Gloria Estefan - Don't Wanna Lose You.mp3",false,0,{"$error":"#N/A"},"Singles\\Gloria Estefan - Don't Wanna Lose You.mp3",null,null,"\\W","Matches any non-word character.","\\W"," , \".\" in \"ID A1.3\""]
["Singles\\Lisa Stansfield - Been Around The World.mp3",{"$f":"RegexTest(B$1,$A10)","v":true},0,{"$error":"#N/A"},"Singles\\Lisa Stansfield - Been Around The World.mp3",null,null,"\\s","Matches any white-space character.","\\w\\s","D  in \"ID A1.3\""]
["Singles\\Ben E King - Stand By Me.mp3",false,0,{"$error":"#N/A"},"Singles\\Ben E King - Stand By Me.mp3",null,null,"\\S","Matches any non-white-space character.","\\s\\S"," _ in \"int __ctr\""]
["Singles\\The Beatles - The Ballad Of John And Yoko.mp3",true,0,"Singles\\The Beatles - ",{"$f":"RegexReplace(E$1,$A12,F$1)","v":"Singles\\\\Beatles, The - The Ballad Of John And Yoko.mp3"},null,null,"\\d","Matches any decimal digit.","\\d","4 in \"4 = IV\""]
["Singles\\Michael Jackson - You Are Not Alone.mp3",false,0,{"$error":"#N/A"},"Singles\\Michael Jackson - You Are Not Alone.mp3",null,null,"\\D","Matches any character other than a decimal digit.","\\D"," , \"=\", \" \", \"I\", \"V\" in \"4 = IV\""]
["Singles\\Bobbie Gentry - Ode To Billy Joe.mp3",false,0,{"$error":"#N/A"},"Singles\\Bobbie Gentry - Ode To Billy Joe.mp3",null,null,"Escapes:"]
["Singles\\Eddie Cochran - C'mon Everybody.mp3",false,0,{"$error":"#N/A"},"Singles\\Eddie Cochran - C'mon Everybody.mp3",null,null,"\\. ","To match a literal character"]
["Singles\\Barry White - Can't Get Enough Of Your Love Baby.mp3",false,0,{"$error":"#N/A"},"Singles\\Barry White - Can't Get Enough Of Your Love Baby.mp3",null,null,"\\\\"," To match a literal character \\"]
["Singles\\Gloria Estefan & The Miami Sound Machine - Falling In Love (Uh-Oh).mp3",true,0,{"$error":"#N/A"},"Singles\\Gloria Estefan & The Miami Sound Machine - Falling In Love (Uh-Oh).mp3",null,null,"\\$ ","To match a literal character $"]
["Singles\\Jackpot - Is Everybody Happy.mp3",false,0,{"$error":"#N/A"},"Singles\\Jackpot - Is Everybody Happy.mp3",null,null,"Anchors:"]
["Singles\\Barclay James Harvest - Ring Of Changes.mp3",false,0,{"$error":"#N/A"},"Singles\\Barclay James Harvest - Ring Of Changes.mp3",null,null,"^","By default, the match must start at the beginning of the string;","^\\d{3}","901 in \"901-333-\""]
["Singles\\Reunion - Life Is A Rock (But The Radio Rolled Me).mp3",true,0,{"$error":"#N/A"},"Singles\\Reunion - Life Is A Rock (But The Radio Rolled Me).mp3",null,null,"$","By default, the match must occur at the end of the string.","-\\d{3}$","-333 in \"-901-333\""]
["Singles\\Alexander Curly - Aggesus.mp3",false,0,{"$error":"#N/A"},"Singles\\Alexander Curly - Aggesus.mp3",null,null,"\\b","The match must occur on a boundary between a \\w (alphanumeric) and a \\W (nonalphanumeric) character.","\\b\\w+\\s\\w+\\b","them theme, \"them them\" in \"them theme them them\""]
["Singles\\Simply Red - Jericho.mp3",false,0,{"$error":"#N/A"},"Singles\\Simply Red - Jericho.mp3",null,null,"\\B","The match must not occur on a \\b boundary.","\\Bend\\w*\\b","ends, \"ender\" in \"end sends endure lender\""]
["Singles\\Anouk - Places To Go.mp3",false,0,{"$error":"#N/A"},"Singles\\Anouk - Places To Go.mp3",null,null,"Grouping:"]
["Singles\\John Denver - Calypso.mp3",false,0,{"$error":"#N/A"},"Singles\\John Denver - Calypso.mp3",null,null,"(subexpr)","Captures the matched subexpression and assigns it a one-based ordinal number.","(\\w)\\1","ee in \"deep\""]
["Singles\\Alice & Franco Battiato - I Treni De Tozeur.mp3",false,0,{"$error":"#N/A"},"Singles\\Alice & Franco Battiato - I Treni De Tozeur.mp3",null,null,"\\1","Backreference. Matches the value of a numbered subexpression.","(\\w)\\1","ee in \"seek\""]
["Singles\\Marvin Gaye - Sexual Healing.mp3",false,0,{"$error":"#N/A"},"Singles\\Marvin Gaye - Sexual Healing.mp3",null,null,"Quantifiers:"]
["Singles\\Dean Martin - That's Amore.mp3",false,0,{"$error":"#N/A"},"Singles\\Dean Martin - That's Amore.mp3",null,null,"*","Matches the previous element zero or more times.","\\d*\\.\\d",".0, \"19.9\", \"219.9\""]
["Singles\\Katy Perry - Roar.mp3",false,0,{"$error":"#N/A"},"Singles\\Katy Perry - Roar.mp3",null,null,"+","Matches the previous element one or more times.","be+","bee in \"been\", \"be\" in \"bent\""]
["Singles\\Doris Day - Whatever Will Be, Will Be (Que Sera, Sera).mp3",false,0,{"$error":"#N/A"},"Singles\\Doris Day - Whatever Will Be, Will Be (Que Sera, Sera).mp3",null,null,"?","Matches the previous element zero or one time.","rai?n","ran, \"rain\""]
["Singles\\Andrews Sisters - Bei Mir Bist Du Schön.mp3",false,0,{"$error":"#N/A"},"Singles\\Andrews Sisters - Bei Mir Bist Du Schön.mp3",null,null,"{n}","Matches the previous element exactly n times.",",\\d{3}",",043 in \"1,043.6\", \",876\", \",543\", and \",210\" in \"9,876,543,210\""]
["Singles\\Enigma - Sadeness.mp3",false,0,{"$error":"#N/A"},"Singles\\Enigma - Sadeness.mp3",null,null,"{n,}","Matches the previous element at least n times.","\\d{2,}","166, \"29\", \"1930\""]
["Singles\\Skylark - Wild Flower (Let Her Cry For She's A Lady).mp3",false,0,{"$error":"#N/A"},"Singles\\Skylark - Wild Flower (Let Her Cry For She's A Lady).mp3",null,null,"{n,m}","Matches the previous element at least n times, but no more than m times.","\\d{3,5}","166, \"17668\" \"19302\" in \"193024\""]
["Singles\\REO Speedwagon - Can't Fight This Feeling.mp3",false,0,{"$error":"#N/A"},"Singles\\REO Speedwagon - Can't Fight This Feeling.mp3",null,null,"*?","Matches the previous element zero or more times, but as few times as possible.","\\d*?\\.\\d",".0, \"19.9\", \"219.9\""]
["Singles\\Rogue - Fallen Angel.mp3",false,0,{"$error":"#N/A"},"Singles\\Rogue - Fallen Angel.mp3",null,null,"+?","Matches the previous element one or more times, but as few times as possible.","be+?","be in \"been\", \"be\" in \"bent\""]
["Singles\\Robbie Williams - Shame.mp3",false,0,{"$error":"#N/A"},"Singles\\Robbie Williams - Shame.mp3",null,null,"??","Matches the previous element zero or one time, but as few times as possible.","rai??n","ran, \"rain\""]
["Singles\\Kim Wilde - Kids In America.mp3",false,0,{"$error":"#N/A"},"Singles\\Kim Wilde - Kids In America.mp3",null,null,"{n}?","Matches the preceding element exactly n times.",",\\d{3}?",",043 in \"1,043.6\", \",876\", \",543\", and \",210\" in \"9,876,543,210\""]
["Singles\\Sandra Van Nieuwland - More.mp3",false,0,{"$error":"#N/A"},"Singles\\Sandra Van Nieuwland - More.mp3",null,null,"{n,}?","Matches the previous element at least n times, but as few times as possible.","\\d{2,}?","166, \"29\", \"1930\""]
["Singles\\Jonathan Jeremiah - Happiness.mp3",false,0,{"$error":"#N/A"},"Singles\\Jonathan Jeremiah - Happiness.mp3",null,null,"{n,m}?","Matches the previous element between n and m times, but as few times as possible.","\\d{3,5}?","166, \"17668\" \"193\", \"024\" in \"193024\""]
["Singles\\Norah Jones - Sunrise.mp3",false,0,{"$error":"#N/A"},"Singles\\Norah Jones - Sunrise.mp3",null,null,"Alternation:"]
["Singles\\Snoop Dogg & Wiz Khalifa ft Bruno Mars - Young Wild And Free.mp3",false,0,{"$error":"#N/A"},"Singles\\Snoop Dogg & Wiz Khalifa ft Bruno Mars - Young Wild And Free.mp3",null,null,"|","Matches any one element separated by the vertical bar (|) character.","th(e|is|at)","the, \"this\" in \"this is the day.\""]
["Singles\\Beyonce - Halo.mp3",false,0,{"$error":"#N/A"},"Singles\\Beyonce - Halo.mp3",null,null,"Substitutions:"]
["Singles\\Acda & De Munnik - Mis Ik Jou.mp3",false,0,{"$error":"#N/A"},"Singles\\Acda & De Munnik - Mis Ik Jou.mp3",null,null,"Char:","Description:","Pattern:","Replacement pattern:","Input String:","Result String:"]
["Singles\\MKTO - Thank You.mp3",false,0,{"$error":"#N/A"},"Singles\\MKTO - Thank You.mp3",null,null,"$n","Substitutes the substring matched by group number.","\\b(\\w+)(\\s)(\\w+)\\b","$3$2$1","one two","two one"]
["Singles\\Robbie Williams - Millennium.mp3",false,0,{"$error":"#N/A"},"Singles\\Robbie Williams - Millennium.mp3",null,null,"$$","Substitutes a literal \"$\".","\\b(\\d+)\\s?USD","$$$1","103 USD","$103"]
["Singles\\Simone White - The Beep Beep Song.mp3",true,{"$f":"RegexCount(C$1,$A45)","v":0},{"$error":"#N/A"},"Singles\\Simone White - The Beep Beep Song.mp3",null,null,"$&","Substitutes a copy of the whole match.","\\$?\\d*\\.?\\d+","**$&**","$1.30","**$1.30**"]
["Singles\\Wim Sonneveld - Zo Heerlijk Rustig.mp3",false,0,{"$error":"#N/A"},"Singles\\Wim Sonneveld - Zo Heerlijk Rustig.mp3",null,null,"$`","Substitutes all the text of the input string before the match.","B+","$`","AABBCC","AAAACC"]
["Singles\\Sheila & The Black Devotion - Singing In The Rain.mp3",true,0,{"$error":"#N/A"},"Singles\\Sheila & The Black Devotion - Singing In The Rain.mp3",null,null,"$'","Substitutes all the text of the input string after the match.","B+","$'","AABBCC","AACCCC"]
["Singles\\Adam Lambert - Whataya Want From Me.mp3",false,0,{"$error":"#N/A"},"Singles\\Adam Lambert - Whataya Want From Me.mp3",null,null,"$+","Substitutes the last group that was captured.","B+(C+)","$+","AABBCCDD","AACCDD"]
["Singles\\Madonna - Sorry.mp3",false,0,{"$error":"#N/A"},"Singles\\Madonna - Sorry.mp3",null,null,"$_","Substitutes the entire input string.","B+","$_","AABBCC","AAAABBCCCC"]
["Singles\\Mike Oldfield - Tubular Bells.mp3",false,0,{"$error":"#N/A"},"Singles\\Mike Oldfield - Tubular Bells.mp3"]
["Singles\\The Rolling Stones - (Get Your Kicks On) Route 66.mp3",true,0,"Singles\\The Rolling Stones - ","Singles\\\\Rolling Stones, The - (Get Your Kicks On) Route 66.mp3"]
["Singles\\Coldplay - Adventure Of A Lifetime.mp3",false,0,{"$error":"#N/A"},"Singles\\Coldplay - Adventure Of A Lifetime.mp3"]
["Singles\\Gary Glitter - I Didn't Know I Loved You (Till I Saw You Rock And Roll).mp3",false,0,{"$error":"#N/A"},"Singles\\Gary Glitter - I Didn't Know I Loved You (Till I Saw You Rock And Roll).mp3"]
["Singles\\Cilla Black - You're My World.mp3",false,0,{"$error":"#N/A"},"Singles\\Cilla Black - You're My World.mp3"]
["Singles\\White Plains - My Baby Loves Lovin'.mp3",false,0,{"$error":"#N/A"},"Singles\\White Plains - My Baby Loves Lovin'.mp3"]
["Singles\\Michael Jackson - She's Out Of My Life.mp3",false,0,{"$error":"#N/A"},"Singles\\Michael Jackson - She's Out Of My Life.mp3"]
["Singles\\Rihanna - Love On The Brain.mp3",true,0,{"$error":"#N/A"},"Singles\\Rihanna - Love On The Brain.mp3"]
["Singles\\Rudimental ft John Newman - Feel The Love.mp3",true,0,{"$error":"#N/A"},"Singles\\Rudimental ft John Newman - Feel The Love.mp3"]
["Singles\\Imagine Dragons - Demons.mp3",false,0,{"$error":"#N/A"},"Singles\\Imagine Dragons - Demons.mp3"]
["Singles\\Elvis Presley - Teddy Bear.mp3",false,0,{"$error":"#N/A"},"Singles\\Elvis Presley - Teddy Bear.mp3"]
["Singles\\Janet Jackson - Let's Wait A While.mp3",false,0,{"$error":"#N/A"},"Singles\\Janet Jackson - Let's Wait A While.mp3"]
["Singles\\REM - Drive.mp3",false,0,{"$error":"#N/A"},"Singles\\REM - Drive.mp3"]
["Singles\\Anouk - Wanna Little Something.mp3",false,0,{"$error":"#N/A"},"Singles\\Anouk - Wanna Little Something.mp3"]
["Singles\\Michael Jackson - Off The Wall.mp3",true,0,{"$error":"#N/A"},"Singles\\Michael Jackson - Off The Wall.mp3"]
["Singles\\Stevie Wonder - Master Blaster.mp3",false,0,{"$error":"#N/A"},"Singles\\Stevie Wonder - Master Blaster.mp3"]
["Singles\\Narada Michael Walden - Gimme, Gimme, Gimme.mp3",false,0,{"$error":"#N/A"},"Singles\\Narada Michael Walden - Gimme, Gimme, Gimme.mp3"]
["Singles\\Bob Dylan - Just Like A Woman.mp3",{"$f":"RegexTest(B$1,$A67)","v":false},{"$f":"RegexCount(C$1,$A67)","v":0},{"$f":"RegexFind(D$1,$A67)","v":{"$error":"#N/A"}},{"$f":"RegexReplace(E$1,$A67,F$1)","v":"Singles\\Bob Dylan - Just Like A Woman.mp3"}]
["Singles\\Alvaro Soler - La Cintura.mp3",false,0,{"$error":"#N/A"},"Singles\\Alvaro Soler - La Cintura.mp3"]
["Singles\\Michael Andrews & Gary Jules - Mad World.mp3",false,0,{"$error":"#N/A"},"Singles\\Michael Andrews & Gary Jules - Mad World.mp3"]
["Singles\\Status Quo - Mystery Song.mp3",false,0,{"$error":"#N/A"},"Singles\\Status Quo - Mystery Song.mp3"]
["Singles\\Donovan - Mellow Yellow.mp3",false,0,{"$error":"#N/A"},"Singles\\Donovan - Mellow Yellow.mp3"]
["Singles\\Bellini - Samba De Janeiro.mp3",false,0,{"$error":"#N/A"},"Singles\\Bellini - Samba De Janeiro.mp3"]
["Singles\\James Morrison - Please Don't Stop The Rain.mp3",true,0,{"$error":"#N/A"},"Singles\\James Morrison - Please Don't Stop The Rain.mp3"]
["Singles\\Bananarama - I Heard A Rumour.mp3",false,0,{"$error":"#N/A"},"Singles\\Bananarama - I Heard A Rumour.mp3"]
["Singles\\Anita Meyer - The One That You Love.mp3",true,0,{"$error":"#N/A"},"Singles\\Anita Meyer - The One That You Love.mp3"]
["Singles\\Mick Jagger - Let's Work.mp3",false,0,{"$error":"#N/A"},"Singles\\Mick Jagger - Let's Work.mp3"]
["Singles\\Amanda Marshall - Let It Rain.mp3",false,0,{"$error":"#N/A"},"Singles\\Amanda Marshall - Let It Rain.mp3"]
["Singles\\Michael Jackson - PYT (Pretty Young Thing).mp3",false,0,{"$error":"#N/A"},"Singles\\Michael Jackson - PYT (Pretty Young Thing).mp3"]
["Singles\\Fais - Make Me Do.mp3",false,0,{"$error":"#N/A"},"Singles\\Fais - Make Me Do.mp3"]
["Singles\\Dolly Dots - Love Me Just A Little Bit More.mp3",false,0,{"$error":"#N/A"},"Singles\\Dolly Dots - Love Me Just A Little Bit More.mp3"]
["Singles\\Miss Montreal - Say Heaven Say Hell.mp3",false,0,{"$error":"#N/A"},"Singles\\Miss Montreal - Say Heaven Say Hell.mp3"]
["Singles\\Dave Brubeck - Take Five.mp3",false,0,{"$error":"#N/A"},"Singles\\Dave Brubeck - Take Five.mp3"]
["Singles\\Sam Smith - How Do You Sleep.mp3",false,0,{"$error":"#N/A"},"Singles\\Sam Smith - How Do You Sleep.mp3"]
["Singles\\Andrea - I Am A Lover.mp3",false,0,{"$error":"#N/A"},"Singles\\Andrea - I Am A Lover.mp3"]
["Singles\\Bruce Springsteen - My Hometown.mp3",false,0,{"$error":"#N/A"},"Singles\\Bruce Springsteen - My Hometown.mp3"]
["Singles\\The Cardigans - My Favourite Game.mp3",true,0,"Singles\\The Cardigans - ","Singles\\\\Cardigans, The - My Favourite Game.mp3"]
["Singles\\Normaal - Oerend Hard.mp3",false,0,{"$error":"#N/A"},"Singles\\Normaal - Oerend Hard.mp3"]
["Singles\\1910 Fruitgum Company - Simple Simon Says.mp3",false,0,{"$error":"#N/A"},"Singles\\1910 Fruitgum Company - Simple Simon Says.mp3"]
["Singles\\Plastic People - Dancing And Drinking.mp3",false,0,{"$error":"#N/A"},"Singles\\Plastic People - Dancing And Drinking.mp3"]
["Singles\\Madonna - Rain.mp3",false,0,{"$error":"#N/A"},"Singles\\Madonna - Rain.mp3"]
["Singles\\Lisa Lois - Silhouette.mp3",false,0,{"$error":"#N/A"},"Singles\\Lisa Lois - Silhouette.mp3"]
["Singles\\Ariana Grande & The Weeknd - Love Me Harder.mp3",true,0,{"$error":"#N/A"},"Singles\\Ariana Grande & The Weeknd - Love Me Harder.mp3"]
["Singles\\Alicia Keys - Teenage Love Affair.mp3",false,0,{"$error":"#N/A"},"Singles\\Alicia Keys - Teenage Love Affair.mp3"]
["Singles\\Is Ook Schitterend - Voltooid Verleden Tijd.mp3",false,0,{"$error":"#N/A"},"Singles\\Is Ook Schitterend - Voltooid Verleden Tijd.mp3"]
["Singles\\Sir Henry & His Butlers - Camp.mp3",false,0,{"$error":"#N/A"},"Singles\\Sir Henry & His Butlers - Camp.mp3"]
["Singles\\Kelly Family - David's Song.mp3",false,0,{"$error":"#N/A"},"Singles\\Kelly Family - David's Song.mp3"]
["Singles\\Elvis Presley - Heartbreak Hotel.mp3",false,0,{"$error":"#N/A"},"Singles\\Elvis Presley - Heartbreak Hotel.mp3"]
["Singles\\Earth & Fire - Storm And Thunder.mp3",false,0,{"$error":"#N/A"},"Singles\\Earth & Fire - Storm And Thunder.mp3"]
["Singles\\Earth Wind & Fire - September.mp3",false,0,{"$error":"#N/A"},"Singles\\Earth Wind & Fire - September.mp3"]
["Singles\\Diana Ross - Its My Turn.mp3",false,0,{"$error":"#N/A"},"Singles\\Diana Ross - Its My Turn.mp3"]
["Singles\\Avicii ft Sandro Cavazza - Without You.mp3",false,0,{"$error":"#N/A"},"Singles\\Avicii ft Sandro Cavazza - Without You.mp3"]
["Singles\\XTC - Making Plans For Nigel.mp3",false,0,{"$error":"#N/A"},"Singles\\XTC - Making Plans For Nigel.mp3"]
["Singles\\Hot Chocolate - No Doubt About It.mp3",false,0,{"$error":"#N/A"},"Singles\\Hot Chocolate - No Doubt About It.mp3"]
["Singles\\Kitty Grant - Glad To Know You.mp3",false,0,{"$error":"#N/A"},"Singles\\Kitty Grant - Glad To Know You.mp3"]
["Singles\\Bachman Turner Overdrive - Roll On Down The Highway.mp3",true,0,{"$error":"#N/A"},"Singles\\Bachman Turner Overdrive - Roll On Down The Highway.mp3"]
["Singles\\Madonna - Hung Up.mp3",false,0,{"$error":"#N/A"},"Singles\\Madonna - Hung Up.mp3"]
["Singles\\Pet Shop Boys - Go West.mp3",false,0,{"$error":"#N/A"},"Singles\\Pet Shop Boys - Go West.mp3"]
["Singles\\Ink Spots & Ella Fitzgerald - Into Each Life Some Rain Must Fall.mp3",false,0,{"$error":"#N/A"},"Singles\\Ink Spots & Ella Fitzgerald - Into Each Life Some Rain Must Fall.mp3"]
["Singles\\Octopus - South Of The Border.mp3",true,0,{"$error":"#N/A"},"Singles\\Octopus - South Of The Border.mp3"]
["Singles\\A Balladeer - Swim With Sam.mp3",false,0,{"$error":"#N/A"},"Singles\\A Balladeer - Swim With Sam.mp3"]
["Singles\\Phil Collins - A Groovy Kind Of Love.mp3",false,0,{"$error":"#N/A"},"Singles\\Phil Collins - A Groovy Kind Of Love.mp3"]
["Singles\\David Cassidy - Daydreamer.mp3",false,0,{"$error":"#N/A"},"Singles\\David Cassidy - Daydreamer.mp3"]
["Singles\\David Soul - Don't Give Up On Us Baby.mp3",false,0,{"$error":"#N/A"},"Singles\\David Soul - Don't Give Up On Us Baby.mp3"]
["Singles\\One Direction - Best Song Ever.mp3",false,0,{"$error":"#N/A"},"Singles\\One Direction - Best Song Ever.mp3"]
["Singles\\Brotherhood Of Man - Save Your Kisses For Me.mp3",false,0,{"$error":"#N/A"},"Singles\\Brotherhood Of Man - Save Your Kisses For Me.mp3"]
["Singles\\Gavin DeGraw - Chariot.mp3",false,0,{"$error":"#N/A"},"Singles\\Gavin DeGraw - Chariot.mp3"]
["Singles\\Harold Melvin & The Blue Notes - Don't Leave Me This Way.mp3",true,0,{"$error":"#N/A"},"Singles\\Harold Melvin & The Blue Notes - Don't Leave Me This Way.mp3"]
["Singles\\Del Shannon - Hats Off To Larry.mp3",false,0,{"$error":"#N/A"},"Singles\\Del Shannon - Hats Off To Larry.mp3"]
["Singles\\Racoon - Oceaan.mp3",false,0,{"$error":"#N/A"},"Singles\\Racoon - Oceaan.mp3"]
["Singles\\Stephan Sulke - Lotte.mp3",false,0,{"$error":"#N/A"},"Singles\\Stephan Sulke - Lotte.mp3"]
["Singles\\The Beatles - Got To Get You Into My Life.mp3",true,0,"Singles\\The Beatles - ","Singles\\\\Beatles, The - Got To Get You Into My Life.mp3"]
["Singles\\Owl City - Vanilla Twilight.mp3",false,0,{"$error":"#N/A"},"Singles\\Owl City - Vanilla Twilight.mp3"]
["Singles\\Henry Mancini - Pink Panther Theme.mp3",true,0,{"$error":"#N/A"},"Singles\\Henry Mancini - Pink Panther Theme.mp3"]
["Singles\\Shirley Bassey - Diamonds Are Forever.mp3",false,0,{"$error":"#N/A"},"Singles\\Shirley Bassey - Diamonds Are Forever.mp3"]
["Singles\\Kensington - Streets.mp3",false,0,{"$error":"#N/A"},"Singles\\Kensington - Streets.mp3"]
["Singles\\Ava Max - So Am I.mp3",false,0,{"$error":"#N/A"},"Singles\\Ava Max - So Am I.mp3"]
["Singles\\Stevie Nicks - Rooms On Fire.mp3",false,0,{"$error":"#N/A"},"Singles\\Stevie Nicks - Rooms On Fire.mp3"]
["Singles\\Barbra Streisand & Barry Gibb - Guilty.mp3",false,0,{"$error":"#N/A"},"Singles\\Barbra Streisand & Barry Gibb - Guilty.mp3"]
["Singles\\Neil Diamond & Barbra Streisand - You Don't Bring Me Flowers.mp3",false,0,{"$error":"#N/A"},"Singles\\Neil Diamond & Barbra Streisand - You Don't Bring Me Flowers.mp3"]
["Singles\\Dorus - Twee Motten.mp3",false,0,{"$error":"#N/A"},"Singles\\Dorus - Twee Motten.mp3"]
["Singles\\Cornelis Vreeswijk - Veronica 538.mp3",{"$f":"RegexTest(B$1,$A131)","v":false},{"$f":"RegexCount(C$1,$A131)","v":0},{"$f":"RegexFind(D$1,$A131)","v":{"$error":"#N/A"}},{"$f":"RegexReplace(E$1,$A131,F$1)","v":"Singles\\Cornelis Vreeswijk - Veronica 538.mp3"}]
["Singles\\Fairport Convention - Si Tu Dois Partir.mp3",false,0,{"$error":"#N/A"},"Singles\\Fairport Convention - Si Tu Dois Partir.mp3"]
["Singles\\Whitney Houston - All The Man That I Need.mp3",true,0,{"$error":"#N/A"},"Singles\\Whitney Houston - All The Man That I Need.mp3"]
["Singles\\Chuck Berry - My Dingaling.mp3",false,0,{"$error":"#N/A"},"Singles\\Chuck Berry - My Dingaling.mp3"]
["Singles\\Meghan Trainor ft John Legend - Like I'm Gonna Lose You.mp3",false,0,{"$error":"#N/A"},"Singles\\Meghan Trainor ft John Legend - Like I'm Gonna Lose You.mp3"]
["Singles\\Het Goede Doel - Vriendschap.mp3",false,0,{"$error":"#N/A"},"Singles\\Het Goede Doel - Vriendschap.mp3"]
["Singles\\Aguaviva - Poetas Andaluces.mp3",false,0,{"$error":"#N/A"},"Singles\\Aguaviva - Poetas Andaluces.mp3"]
["Singles\\Alan Parsons Project - Lucifer.mp3",false,0,{"$error":"#N/A"},"Singles\\Alan Parsons Project - Lucifer.mp3"]
["Singles\\The Carpenters - Sing.mp3",true,0,"Singles\\The Carpenters - ","Singles\\\\Carpenters, The - Sing.mp3"]
["Singles\\Mr Mister - Kyrie.mp3",false,0,{"$error":"#N/A"},"Singles\\Mr Mister - Kyrie.mp3"]
["Singles\\Small Faces - Itchycoo Park.mp3",false,0,{"$error":"#N/A"},"Singles\\Small Faces - Itchycoo Park.mp3"]
["Singles\\Herb Alpert & The Tijuana Brass - Spanish Flea.mp3",true,0,{"$error":"#N/A"},"Singles\\Herb Alpert & The Tijuana Brass - Spanish Flea.mp3"]
["Singles\\The Gentrys - Keep On Dancing.mp3",true,0,"Singles\\The Gentrys - ","Singles\\\\Gentrys, The - Keep On Dancing.mp3"]
["Singles\\Barry White - You See The Trouble With Me.mp3",true,0,{"$error":"#N/A"},"Singles\\Barry White - You See The Trouble With Me.mp3"]
["Singles\\Jumping Jewels - Wheels.mp3",false,0,{"$error":"#N/A"},"Singles\\Jumping Jewels - Wheels.mp3"]
["Singles\\Supersister - Radio.mp3",false,0,{"$error":"#N/A"},"Singles\\Supersister - Radio.mp3"]
["Singles\\Rock Steady Crew - (Hey You) The Rock Steady Crew.mp3",true,0,{"$error":"#N/A"},"Singles\\Rock Steady Crew - (Hey You) The Rock Steady Crew.mp3"]
["Singles\\Lmfao - Sexy And I Know It.mp3",false,0,{"$error":"#N/A"},"Singles\\Lmfao - Sexy And I Know It.mp3"]
["Singles\\Ike & Tina Turner - Baby Get It On.mp3",false,0,{"$error":"#N/A"},"Singles\\Ike & Tina Turner - Baby Get It On.mp3"]
["Singles\\Novastar - Wrong.mp3",false,0,{"$error":"#N/A"},"Singles\\Novastar - Wrong.mp3"]
["Singles\\Gnash ft Olivia O'Brien - I Hate U, I Love U.mp3",false,0,{"$error":"#N/A"},"Singles\\Gnash ft Olivia O'Brien - I Hate U, I Love U.mp3"]
["Singles\\Peter André - Mysterious Girl.mp3",false,0,{"$error":"#N/A"},"Singles\\Peter André - Mysterious Girl.mp3"]
["Singles\\Glenn Medeiros - Long And Lasting Love.mp3",false,0,{"$error":"#N/A"},"Singles\\Glenn Medeiros - Long And Lasting Love.mp3"]
["Singles\\The Bee Gees - Spirits Having Flown.mp3",true,0,"Singles\\The Bee Gees - ","Singles\\\\Bee Gees, The - Spirits Having Flown.mp3"]
["Singles\\Maroon 5 - Animals.mp3",false,0,{"$error":"#N/A"},"Singles\\Maroon 5 - Animals.mp3"]
["Singles\\Pretenders - Message Of Love.mp3",false,0,{"$error":"#N/A"},"Singles\\Pretenders - Message Of Love.mp3"]
["Singles\\Pearl Jam - Black.mp3",false,0,{"$error":"#N/A"},"Singles\\Pearl Jam - Black.mp3"]
["Singles\\Justin Bieber - Sorry.mp3",false,0,{"$error":"#N/A"},"Singles\\Justin Bieber - Sorry.mp3"]
["Singles\\Ilse DeLange - Next To Me.mp3",false,0,{"$error":"#N/A"},"Singles\\Ilse DeLange - Next To Me.mp3"]
["Singles\\The Bee Gees - For Whom The Bell Tolls.mp3",true,0,"Singles\\The Bee Gees - ","Singles\\\\Bee Gees, The - For Whom The Bell Tolls.mp3"]
["Singles\\Barry Ryan - Kitsch.mp3",false,0,{"$error":"#N/A"},"Singles\\Barry Ryan - Kitsch.mp3"]
["Singles\\Colbie Caillat - Bubbly.mp3",false,0,{"$error":"#N/A"},"Singles\\Colbie Caillat - Bubbly.mp3"]
["Singles\\Alexis Jordan - Happiness.mp3",false,0,{"$error":"#N/A"},"Singles\\Alexis Jordan - Happiness.mp3"]
["Singles\\George Michael - You Have Been Loved.mp3",false,0,{"$error":"#N/A"},"Singles\\George Michael - You Have Been Loved.mp3"]
["Singles\\Olivia Newton-John - I Honestly Love You.mp3",false,0,{"$error":"#N/A"},"Singles\\Olivia Newton-John - I Honestly Love You.mp3"]
["Singles\\Crazy World Of Arthur Brown - Fire!.mp3",false,0,{"$error":"#N/A"},"Singles\\Crazy World Of Arthur Brown - Fire!.mp3"]
["Singles\\The Police - De Do Do Do De Da Da Da.mp3",true,0,"Singles\\The Police - ","Singles\\\\Police, The - De Do Do Do De Da Da Da.mp3"]
["Singles\\Mumford & Sons - The Cave.mp3",true,0,{"$error":"#N/A"},"Singles\\Mumford & Sons - The Cave.mp3"]
["Singles\\Pink - Please Don't Leave Me.mp3",false,0,{"$error":"#N/A"},"Singles\\Pink - Please Don't Leave Me.mp3"]
["Singles\\Lisa Stansfield - In All The Right Places.mp3",true,0,{"$error":"#N/A"},"Singles\\Lisa Stansfield - In All The Right Places.mp3"]
["Singles\\Peabo Bryson & Celine Dion - A Whole New World.mp3",false,0,{"$error":"#N/A"},"Singles\\Peabo Bryson & Celine Dion - A Whole New World.mp3"]
["Singles\\Whitney Houston - I'm Your Baby Tonight.mp3",false,0,{"$error":"#N/A"},"Singles\\Whitney Houston - I'm Your Baby Tonight.mp3"]
["Singles\\The Byrds - America's Great National Pastime.mp3",true,0,"Singles\\The Byrds - ","Singles\\\\Byrds, The - America's Great National Pastime.mp3"]
["Singles\\Elvis Presley - Unchained Melody.mp3",false,0,{"$error":"#N/A"},"Singles\\Elvis Presley - Unchained Melody.mp3"]
["Singles\\Sandy Coast - And Her Name Is Amy.mp3",false,0,{"$error":"#N/A"},"Singles\\Sandy Coast - And Her Name Is Amy.mp3"]
["Singles\\Pharrell Williams - Happy.mp3",false,0,{"$error":"#N/A"},"Singles\\Pharrell Williams - Happy.mp3"]
["Singles\\Wess & Dori Ghezzi - Era.mp3",false,0,{"$error":"#N/A"},"Singles\\Wess & Dori Ghezzi - Era.mp3"]
["Singles\\Ajr - Weak.mp3",false,0,{"$error":"#N/A"},"Singles\\Ajr - Weak.mp3"]
["Singles\\Paul McCartney & Wings - Maybe I'm Amazed.mp3",false,0,{"$error":"#N/A"},"Singles\\Paul McCartney & Wings - Maybe I'm Amazed.mp3"]
["Singles\\Sam & Dave - You Don't Know What You Mean To Me.mp3",false,0,{"$error":"#N/A"},"Singles\\Sam & Dave - You Don't Know What You Mean To Me.mp3"]
["Singles\\Blue Mink - Good Morning Freedom.mp3",false,0,{"$error":"#N/A"},"Singles\\Blue Mink - Good Morning Freedom.mp3"]
["Singles\\Rene Klijn - Mr Blue.mp3",false,0,{"$error":"#N/A"},"Singles\\Rene Klijn - Mr Blue.mp3"]
["Singles\\Calvin Harris ft Ellie Goulding - Outside.mp3",false,0,{"$error":"#N/A"},"Singles\\Calvin Harris ft Ellie Goulding - Outside.mp3"]
["Singles\\Shanice - I Love Your Smile.mp3",false,0,{"$error":"#N/A"},"Singles\\Shanice - I Love Your Smile.mp3"]
["Singles\\The Killers - Human.mp3",true,0,"Singles\\The Killers - ","Singles\\\\Killers, The - Human.mp3"]
["Singles\\Phil Collins - Sussudio.mp3",false,0,{"$error":"#N/A"},"Singles\\Phil Collins - Sussudio.mp3"]
["Singles\\Robbie Williams - Party Like A Russian.mp3",false,0,{"$error":"#N/A"},"Singles\\Robbie Williams - Party Like A Russian.mp3"]
["Singles\\Randy Crawford - One Hello.mp3",false,0,{"$error":"#N/A"},"Singles\\Randy Crawford - One Hello.mp3"]
["Singles\\Sugababes - Ugly.mp3",false,0,{"$error":"#N/A"},"Singles\\Sugababes - Ugly.mp3"]
["Singles\\Billy Joel - Honesty.mp3",false,0,{"$error":"#N/A"},"Singles\\Billy Joel - Honesty.mp3"]
["Singles\\Uriah Heep - Return To Fantasy.mp3",false,0,{"$error":"#N/A"},"Singles\\Uriah Heep - Return To Fantasy.mp3"]
["Singles\\Led Zeppelin - Whole Lotta Love.mp3",false,0,{"$error":"#N/A"},"Singles\\Led Zeppelin - Whole Lotta Love.mp3"]
["Singles\\Ace Of Base - Perfect World.mp3",false,0,{"$error":"#N/A"},"Singles\\Ace Of Base - Perfect World.mp3"]
["Singles\\OneRepublic - Good Life.mp3",false,0,{"$error":"#N/A"},"Singles\\OneRepublic - Good Life.mp3"]
["Singles\\Andy Williams - Love Story (Where Do I Begin).mp3",{"$f":"RegexTest(B$1,$A195)","v":false},{"$f":"RegexCount(C$1,$A195)","v":0},{"$f":"RegexFind(D$1,$A195)","v":{"$error":"#N/A"}},{"$f":"RegexReplace(E$1,$A195,F$1)","v":"Singles\\Andy Williams - Love Story (Where Do I Begin).mp3"}]
["Singles\\Manfred Mann - Ha Ha Said The Clown.mp3",true,0,{"$error":"#N/A"},"Singles\\Manfred Mann - Ha Ha Said The Clown.mp3"]
["Singles\\La Bouche - Be My Lover.mp3",false,0,{"$error":"#N/A"},"Singles\\La Bouche - Be My Lover.mp3"]
["Singles\\The Jackson 5 - I Want You Back.mp3",true,0,"Singles\\The Jackson 5 - ","Singles\\\\Jackson 5, The - I Want You Back.mp3"]
["Singles\\Double - The Captain Of Her Heart.mp3",true,0,{"$error":"#N/A"},"Singles\\Double - The Captain Of Her Heart.mp3"]
["Singles\\Elli Medeiros - A Bailar Calypso.mp3",false,0,{"$error":"#N/A"},"Singles\\Elli Medeiros - A Bailar Calypso.mp3"]
["Singles\\Afric Simone - Ramaya.mp3",false,0,{"$error":"#N/A"},"Singles\\Afric Simone - Ramaya.mp3"]
["Singles\\Cliff Richard - Dreaming.mp3",false,0,{"$error":"#N/A"},"Singles\\Cliff Richard - Dreaming.mp3"]
["Singles\\Hot Butter - Popcorn.mp3",false,0,{"$error":"#N/A"},"Singles\\Hot Butter - Popcorn.mp3"]
["Singles\\Manfred Mann - Sha La La.mp3",false,0,{"$error":"#N/A"},"Singles\\Manfred Mann - Sha La La.mp3"]
["Singles\\Vangelis - To The Unknown Man.mp3",true,0,{"$error":"#N/A"},"Singles\\Vangelis - To The Unknown Man.mp3"]
["Singles\\Blof - Donker Hart.mp3",false,0,{"$error":"#N/A"},"Singles\\Blof - Donker Hart.mp3"]
["Singles\\Jimmy Sommerville - To Love Somebody.mp3",false,0,{"$error":"#N/A"},"Singles\\Jimmy Sommerville - To Love Somebody.mp3"]
["Singles\\Kovacs - My Love.mp3",false,0,{"$error":"#N/A"},"Singles\\Kovacs - My Love.mp3"]
["Singles\\Golden Earring - Dong Dong Diki Digi Dong.mp3",false,0,{"$error":"#N/A"},"Singles\\Golden Earring - Dong Dong Diki Digi Dong.mp3"]
["Singles\\The Underdog Project - Summer Jam.mp3",true,0,"Singles\\The Underdog Project - ","Singles\\\\Underdog Project, The - Summer Jam.mp3"]
["Singles\\Celine Dion - The Power Of Love.mp3",true,0,{"$error":"#N/A"},"Singles\\Celine Dion - The Power Of Love.mp3"]
["Singles\\Clean Bandit ft Sean Paul And Anne Marie - Rockabye.mp3",false,0,{"$error":"#N/A"},"Singles\\Clean Bandit ft Sean Paul And Anne Marie - Rockabye.mp3"]
["Singles\\Marc Anthony - I  Need To Know.mp3",false,0,{"$error":"#N/A"},"Singles\\Marc Anthony - I  Need To Know.mp3"]
["Singles\\Queen - I Want To Break Free.mp3",false,0,{"$error":"#N/A"},"Singles\\Queen - I Want To Break Free.mp3"]
["Singles\\Kodaline - The One.mp3",true,0,{"$error":"#N/A"},"Singles\\Kodaline - The One.mp3"]
["Singles\\Spin Doctors - Two Princess.mp3",false,0,{"$error":"#N/A"},"Singles\\Spin Doctors - Two Princess.mp3"]
["Singles\\Rod Stewart - Oh! No, Not My Baby.mp3",false,0,{"$error":"#N/A"},"Singles\\Rod Stewart - Oh! No, Not My Baby.mp3"]
["Singles\\Waylon - Lose It.mp3",false,0,{"$error":"#N/A"},"Singles\\Waylon - Lose It.mp3"]
["Singles\\Miss Montreal - I Am Hunter.mp3",false,0,{"$error":"#N/A"},"Singles\\Miss Montreal - I Am Hunter.mp3"]
["Singles\\Michel Telo - Ai Se Eu Te Pego.mp3",false,0,{"$error":"#N/A"},"Singles\\Michel Telo - Ai Se Eu Te Pego.mp3"]
["Singles\\Luv' - Trojan Horse.mp3",false,0,{"$error":"#N/A"},"Singles\\Luv' - Trojan Horse.mp3"]
["Singles\\Alicia Keys - If I Ain't Got You.mp3",false,0,{"$error":"#N/A"},"Singles\\Alicia Keys - If I Ain't Got You.mp3"]
["Singles\\Andrea Bocelli & Sarah Brightman - Time To Say Goodbye.mp3",false,0,{"$error":"#N/A"},"Singles\\Andrea Bocelli & Sarah Brightman - Time To Say Goodbye.mp3"]
["Singles\\Beyonce & Jay Z - Crazy In Love.mp3",false,0,{"$error":"#N/A"},"Singles\\Beyonce & Jay Z - Crazy In Love.mp3"]
["Singles\\Calvin Harris ft John Newman - Blame.mp3",false,0,{"$error":"#N/A"},"Singles\\Calvin Harris ft John Newman - Blame.mp3"]
["Singles\\Otis Redding - Hard To Handle.mp3",false,0,{"$error":"#N/A"},"Singles\\Otis Redding - Hard To Handle.mp3"]
["Singles\\Dotan - Shadow Wind.mp3",false,0,{"$error":"#N/A"},"Singles\\Dotan - Shadow Wind.mp3"]
["Singles\\Zedd & Elley Duhé - Happy Now.mp3",false,0,{"$error":"#N/A"},"Singles\\Zedd & Elley Duhé - Happy Now.mp3"]
["Singles\\Gerard Joling - No More Boleros.mp3",false,0,{"$error":"#N/A"},"Singles\\Gerard Joling - No More Boleros.mp3"]
["Singles\\Art Of Noise - Love Beat.mp3",false,0,{"$error":"#N/A"},"Singles\\Art Of Noise - Love Beat.mp3"]
["Singles\\Sam Hunt - Leave The Night On.mp3",true,0,{"$error":"#N/A"},"Singles\\Sam Hunt - Leave The Night On.mp3"]
["Singles\\Kensington - War.mp3",false,0,{"$error":"#N/A"},"Singles\\Kensington - War.mp3"]
["Singles\\Rita Hovink - Laat Me Alleen.mp3",false,0,{"$error":"#N/A"},"Singles\\Rita Hovink - Laat Me Alleen.mp3"]
["Singles\\Lindisfarne - Run For Home.mp3",false,0,{"$error":"#N/A"},"Singles\\Lindisfarne - Run For Home.mp3"]
["Singles\\Kid Creole & The Coconuts - I'm A Wonderful Thing Baby.mp3",true,0,{"$error":"#N/A"},"Singles\\Kid Creole & The Coconuts - I'm A Wonderful Thing Baby.mp3"]
["Singles\\Intwine - Cruel Man.mp3",false,0,{"$error":"#N/A"},"Singles\\Intwine - Cruel Man.mp3"]
["Singles\\The Byrds - Set You Free This Time.mp3",true,0,"Singles\\The Byrds - ","Singles\\\\Byrds, The - Set You Free This Time.mp3"]
["Singles\\R Kelly - The World's Greatest.mp3",true,0,{"$error":"#N/A"},"Singles\\R Kelly - The World's Greatest.mp3"]
["Singles\\Swedish House Mafia ft John Martin - Don't You Worry Child.mp3",false,0,{"$error":"#N/A"},"Singles\\Swedish House Mafia ft John Martin - Don't You Worry Child.mp3"]
["Singles\\Iggy Pop - Real Wild Child.mp3",false,0,{"$error":"#N/A"},"Singles\\Iggy Pop - Real Wild Child.mp3"]
["Singles\\Yello - The Race.mp3",true,0,{"$error":"#N/A"},"Singles\\Yello - The Race.mp3"]
["Singles\\De Makkers - Zomerzon.mp3",false,0,{"$error":"#N/A"},"Singles\\De Makkers - Zomerzon.mp3"]
["Singles\\Guus Meeuwis & Vagant - Zo Ver Weg.mp3",false,0,{"$error":"#N/A"},"Singles\\Guus Meeuwis & Vagant - Zo Ver Weg.mp3"]
["Singles\\The Baseballs - Hey There Delilah.mp3",true,1,"Singles\\The Baseballs - ","Singles\\\\Baseballs, The - Hey There Delilah.mp3"]
["Singles\\Pink - Get The Party Started.mp3",true,0,{"$error":"#N/A"},"Singles\\Pink - Get The Party Started.mp3"]
["Singles\\Ellie Goulding - Still Falling For You.mp3",false,0,{"$error":"#N/A"},"Singles\\Ellie Goulding - Still Falling For You.mp3"]
["Singles\\Roberta Flack - The First Time Ever I Saw Your Face.mp3",true,0,{"$error":"#N/A"},"Singles\\Roberta Flack - The First Time Ever I Saw Your Face.mp3"]
["Singles\\Ultra Nate - Free.mp3",false,0,{"$error":"#N/A"},"Singles\\Ultra Nate - Free.mp3"]
["Singles\\Rob De Nijs - Malle Babbe.mp3",false,0,{"$error":"#N/A"},"Singles\\Rob De Nijs - Malle Babbe.mp3"]
["Singles\\Jody Watley - Real Love.mp3",false,0,{"$error":"#N/A"},"Singles\\Jody Watley - Real Love.mp3"]
["Singles\\Electric Light Orchestra - Big Wheels.mp3",false,0,{"$error":"#N/A"},"Singles\\Electric Light Orchestra - Big Wheels.mp3"]
["Singles\\Kate Bush - Cloudbusting.mp3",false,0,{"$error":"#N/A"},"Singles\\Kate Bush - Cloudbusting.mp3"]
["Singles\\David Sylvian & Ryuichi Sakamoto - Forbidden Colours.mp3",false,0,{"$error":"#N/A"},"Singles\\David Sylvian & Ryuichi Sakamoto - Forbidden Colours.mp3"]
["Singles\\Marco Borsato - De Bestemming.mp3",false,0,{"$error":"#N/A"},"Singles\\Marco Borsato - De Bestemming.mp3"]
["Singles\\Tenpole Tudor - Wunderbar.mp3",false,0,{"$error":"#N/A"},"Singles\\Tenpole Tudor - Wunderbar.mp3"]
["Singles\\Neil Diamond - Girl You'll Be A Woman Soon.mp3",false,0,{"$error":"#N/A"},"Singles\\Neil Diamond - Girl You'll Be A Woman Soon.mp3"]
["Singles\\LeAnn Rimes - Can't Fight The Moonlight.mp3",true,0,{"$error":"#N/A"},"Singles\\LeAnn Rimes - Can't Fight The Moonlight.mp3"]
["Singles\\Bob Seger & The Silver Bullet Band - Mainstreet.mp3",true,0,{"$error":"#N/A"},"Singles\\Bob Seger & The Silver Bullet Band - Mainstreet.mp3"]
["Singles\\Gary Shearston - I Get A Kick Out Of You.mp3",{"$f":"RegexTest(B$1,$A259)","v":false},{"$f":"RegexCount(C$1,$A259)","v":0},{"$f":"RegexFind(D$1,$A259)","v":{"$error":"#N/A"}},{"$f":"RegexReplace(E$1,$A259,F$1)","v":"Singles\\Gary Shearston - I Get A Kick Out Of You.mp3"}]
["Singles\\The Cats - Lea.mp3",true,0,"Singles\\The Cats - ","Singles\\\\Cats, The - Lea.mp3"]
["Singles\\Julian Perretta - Miracle.mp3",false,0,{"$error":"#N/A"},"Singles\\Julian Perretta - Miracle.mp3"]
["Singles\\Bastille - Good Grief.mp3",false,0,{"$error":"#N/A"},"Singles\\Bastille - Good Grief.mp3"]
["Singles\\Dave Davies - Death Of A Clown.mp3",false,0,{"$error":"#N/A"},"Singles\\Dave Davies - Death Of A Clown.mp3"]
["Singles\\Rod Stewart - You're In My Heart.mp3",false,0,{"$error":"#N/A"},"Singles\\Rod Stewart - You're In My Heart.mp3"]
["Singles\\Iron Butterfly - In A Gadda Da Vida.mp3",false,0,{"$error":"#N/A"},"Singles\\Iron Butterfly - In A Gadda Da Vida.mp3"]
["Singles\\Dave & Ansil Collins - Double Barrel.mp3",false,0,{"$error":"#N/A"},"Singles\\Dave & Ansil Collins - Double Barrel.mp3"]
["Singles\\Ed Sheeran - Castle On The Hill.mp3",true,0,{"$error":"#N/A"},"Singles\\Ed Sheeran - Castle On The Hill.mp3"]
["Singles\\Eminem ft Rihanna - The Monster.mp3",true,0,{"$error":"#N/A"},"Singles\\Eminem ft Rihanna - The Monster.mp3"]
["Singles\\Maxi Priest - Some Guys Have All The Luck.mp3",true,0,{"$error":"#N/A"},"Singles\\Maxi Priest - Some Guys Have All The Luck.mp3"]
["Singles\\Ray Stevens - Bridget The Midget.mp3",true,0,{"$error":"#N/A"},"Singles\\Ray Stevens - Bridget The Midget.mp3"]
["Singles\\Cliff Richard & The Shadows - Living Doll.mp3",true,0,{"$error":"#N/A"},"Singles\\Cliff Richard & The Shadows - Living Doll.mp3"]
["Singles\\Clannad - Theme From Harry's Game.mp3",true,0,{"$error":"#N/A"},"Singles\\Clannad - Theme From Harry's Game.mp3"]
["Singles\\Queen - Who Wants To Live Forever.mp3",false,0,{"$error":"#N/A"},"Singles\\Queen - Who Wants To Live Forever.mp3"]
["Singles\\The Shadows - 36-24-36.mp3",true,0,"Singles\\The Shadows - ","Singles\\\\Shadows, The - 36-24-36.mp3"]
["Singles\\Amy Winehouse - Back To Black.mp3",false,0,{"$error":"#N/A"},"Singles\\Amy Winehouse - Back To Black.mp3"]
["Singles\\The Bee Gees - Run To Me.mp3",true,0,"Singles\\The Bee Gees - ","Singles\\\\Bee Gees, The - Run To Me.mp3"]
["Singles\\Color Me Badd - I Wanna Sex You Up.mp3",false,0,{"$error":"#N/A"},"Singles\\Color Me Badd - I Wanna Sex You Up.mp3"]
["Singles\\Pink - What About Us.mp3",false,0,{"$error":"#N/A"},"Singles\\Pink - What About Us.mp3"]
["Singles\\The Rolling Stones - That's How Strong My Love Is.mp3",true,0,"Singles\\The Rolling Stones - ","Singles\\\\Rolling Stones, The - That's How Strong My Love Is.mp3"]
["Singles\\Edmundo Ross - London Is The Place For Me.mp3",true,0,{"$error":"#N/A"},"Singles\\Edmundo Ross - London Is The Place For Me.mp3"]
["Singles\\Ready For The World - Oh Sheila.mp3",true,0,{"$error":"#N/A"},"Singles\\Ready For The World - Oh Sheila.mp3"]
["Singles\\U2 - When Love Comes To Town.mp3",false,0,{"$error":"#N/A"},"Singles\\U2 - When Love Comes To Town.mp3"]
["Singles\\Bryan Adams - Here I Am.mp3",false,0,{"$error":"#N/A"},"Singles\\Bryan Adams - Here I Am.mp3"]
["Singles\\Queen - Radio Gaga.mp3",false,0,{"$error":"#N/A"},"Singles\\Queen - Radio Gaga.mp3"]
["Singles\\Roy Orbison - It's Over.mp3",false,0,{"$error":"#N/A"},"Singles\\Roy Orbison - It's Over.mp3"]
["Singles\\Luv' - Casanova.mp3",false,0,{"$error":"#N/A"},"Singles\\Luv' - Casanova.mp3"]
["Singles\\Lisa - Hallelujah.mp3",false,0,{"$error":"#N/A"},"Singles\\Lisa - Hallelujah.mp3"]
["Singles\\Nina Simone - Ain't Got No - I Got Life.mp3",false,0,{"$error":"#N/A"},"Singles\\Nina Simone - Ain't Got No - I Got Life.mp3"]
["Singles\\Abba - Gimme Gimme Gimme.mp3",false,0,{"$error":"#N/A"},"Singles\\Abba - Gimme Gimme Gimme.mp3"]
["Singles\\Cliff Richard - Devil Woman.mp3",false,0,{"$error":"#N/A"},"Singles\\Cliff Richard - Devil Woman.mp3"]
["Singles\\Jerry Lee Lewis - Chantilly Lace.mp3",false,0,{"$error":"#N/A"},"Singles\\Jerry Lee Lewis - Chantilly Lace.mp3"]
["Singles\\Billy Preston & Syreeta - With You I'm Born Again.mp3",false,0,{"$error":"#N/A"},"Singles\\Billy Preston & Syreeta - With You I'm Born Again.mp3"]
["Singles\\Kelly Family - I Can't Help Myself.mp3",false,0,{"$error":"#N/A"},"Singles\\Kelly Family - I Can't Help Myself.mp3"]
["Singles\\Elvis Costello - I Want You.mp3",false,0,{"$error":"#N/A"},"Singles\\Elvis Costello - I Want You.mp3"]
["Singles\\Elton John - Song For Guy.mp3",false,0,{"$error":"#N/A"},"Singles\\Elton John - Song For Guy.mp3"]
["Singles\\Pitbull ft Ke$ha - Timber.mp3",false,0,{"$error":"#N/A"},"Singles\\Pitbull ft Ke$ha - Timber.mp3"]
["Singles\\Chicago - Baby, What A Big Surprise.mp3",false,0,{"$error":"#N/A"},"Singles\\Chicago - Baby, What A Big Surprise.mp3"]
["Singles\\Kate Ryan - Ella Elle La.mp3",false,0,{"$error":"#N/A"},"Singles\\Kate Ryan - Ella Elle La.mp3"]
["Singles\\Meat Loaf - I'd Do Anything For Love (But I Won't Do That).mp3",false,0,{"$error":"#N/A"},"Singles\\Meat Loaf - I'd Do Anything For Love (But I Won't Do That).mp3"]
["Singles\\Charlie Puth ft Selena Gomez - We Don't Talk Anymore.mp3",false,0,{"$error":"#N/A"},"Singles\\Charlie Puth ft Selena Gomez - We Don't Talk Anymore.mp3"]
["Singles\\O-Town - All Or Nothing.mp3",false,0,{"$error":"#N/A"},"Singles\\O-Town - All Or Nothing.mp3"]
["Singles\\The Common Linnets - Calm After The Storm.mp3",true,0,"Singles\\The Common Linnets - ","Singles\\\\Common Linnets, The - Calm After The Storm.mp3"]
["Singles\\Jackpot - Ginny Ginny.mp3",false,0,{"$error":"#N/A"},"Singles\\Jackpot - Ginny Ginny.mp3"]
["Singles\\Angel - Winter Song.mp3",false,0,{"$error":"#N/A"},"Singles\\Angel - Winter Song.mp3"]
["Singles\\Felix Jaehn ft Jasmine Thompson - Ain't Nobody (Loves Me Better).mp3",false,0,{"$error":"#N/A"},"Singles\\Felix Jaehn ft Jasmine Thompson - Ain't Nobody (Loves Me Better).mp3"]
["Singles\\Simply Red - Holding Back The Years.mp3",true,0,{"$error":"#N/A"},"Singles\\Simply Red - Holding Back The Years.mp3"]
["Singles\\New Edition - Candy Girl.mp3",false,0,{"$error":"#N/A"},"Singles\\New Edition - Candy Girl.mp3"]
["Singles\\Frank Ashton & Mariska Van Kolck - Let Your Sun Shine.mp3",false,0,{"$error":"#N/A"},"Singles\\Frank Ashton & Mariska Van Kolck - Let Your Sun Shine.mp3"]
["Singles\\Shakatak - Night Birds.mp3",false,0,{"$error":"#N/A"},"Singles\\Shakatak - Night Birds.mp3"]
["Singles\\Guns N' Roses - Patience.mp3",false,0,{"$error":"#N/A"},"Singles\\Guns N' Roses - Patience.mp3"]
["Singles\\Madonna - Borderline.mp3",false,0,{"$error":"#N/A"},"Singles\\Madonna - Borderline.mp3"]
["Singles\\Kraantje Pappie  ft Joshua Nolet - Liefde In De Lucht.mp3",false,0,{"$error":"#N/A"},"Singles\\Kraantje Pappie  ft Joshua Nolet - Liefde In De Lucht.mp3"]
["Singles\\Taylor Swift - Shake It Off.mp3",false,0,{"$error":"#N/A"},"Singles\\Taylor Swift - Shake It Off.mp3"]
["Singles\\Racey - Runaround Sue.mp3",false,0,{"$error":"#N/A"},"Singles\\Racey - Runaround Sue.mp3"]
["Singles\\Santana - Oye Como Va.mp3",false,0,{"$error":"#N/A"},"Singles\\Santana - Oye Como Va.mp3"]
["Singles\\Barry White - What Am I Gonna Do With You.mp3",false,0,{"$error":"#N/A"},"Singles\\Barry White - What Am I Gonna Do With You.mp3"]
["Singles\\Carly Simon - It's Hard To Be Tender.mp3",false,0,{"$error":"#N/A"},"Singles\\Carly Simon - It's Hard To Be Tender.mp3"]
["Singles\\Buggles - Video Killed The Radio Star.mp3",true,0,{"$error":"#N/A"},"Singles\\Buggles - Video Killed The Radio Star.mp3"]
["Singles\\Diana Ross - When You Tell Me That You Love Me.mp3",false,0,{"$error":"#N/A"},"Singles\\Diana Ross - When You Tell Me That You Love Me.mp3"]
["Singles\\Pussycat - Mississippi.mp3",false,0,{"$error":"#N/A"},"Singles\\Pussycat - Mississippi.mp3"]
["Singles\\Justin Timberlake - Cry Me A River.mp3",false,0,{"$error":"#N/A"},"Singles\\Justin Timberlake - Cry Me A River.mp3"]
["Singles\\Bon Jovi - All About Lovin' You.mp3",false,0,{"$error":"#N/A"},"Singles\\Bon Jovi - All About Lovin' You.mp3"]
["Singles\\The Surfaris - Wipe Out.mp3",{"$f":"RegexTest(B$1,$A323)","v":true},{"$f":"RegexCount(C$1,$A323)","v":0},{"$f":"RegexFind(D$1,$A323)","v":"Singles\\The Surfaris - "},{"$f":"RegexReplace(E$1,$A323,F$1)","v":"Singles\\\\Surfaris, The - Wipe Out.mp3"}]
["Singles\\The Sweet - Teenage Rampage.mp3",true,0,"Singles\\The Sweet - ","Singles\\\\Sweet, The - Teenage Rampage.mp3"]
["Singles\\Marco Borsato - Zij.mp3",false,0,{"$error":"#N/A"},"Singles\\Marco Borsato - Zij.mp3"]
["Singles\\Peter Schilling - Major Tom (Völlig Losgelöst).mp3",false,0,{"$error":"#N/A"},"Singles\\Peter Schilling - Major Tom (Völlig Losgelöst).mp3"]
["Singles\\Jeroen Van Der Boom - Jij Bent Zo.mp3",false,0,{"$error":"#N/A"},"Singles\\Jeroen Van Der Boom - Jij Bent Zo.mp3"]
["Singles\\Nena & Kim Wilde - Anyplace, Anywhere, Anytime.mp3",false,0,{"$error":"#N/A"},"Singles\\Nena & Kim Wilde - Anyplace, Anywhere, Anytime.mp3"]
["Singles\\Elvis Presley & Junkie XL - A Little Less Conversation.mp3",false,0,{"$error":"#N/A"},"Singles\\Elvis Presley & Junkie XL - A Little Less Conversation.mp3"]
["Singles\\Unit Gloria - Clap Your Hands And Stamp Your Feet.mp3",false,0,{"$error":"#N/A"},"Singles\\Unit Gloria - Clap Your Hands And Stamp Your Feet.mp3"]
["Singles\\Adele - Make You Feel My Love.mp3",false,0,{"$error":"#N/A"},"Singles\\Adele - Make You Feel My Love.mp3"]
["Singles\\Paul McCartney & Stevie Wonder - Ebony And Ivory.mp3",false,0,{"$error":"#N/A"},"Singles\\Paul McCartney & Stevie Wonder - Ebony And Ivory.mp3"]
["Singles\\Leo Rodriguez - Bara Bara Bere Bere.mp3",false,0,{"$error":"#N/A"},"Singles\\Leo Rodriguez - Bara Bara Bere Bere.mp3"]
["Singles\\Ellie Goulding - Burn.mp3",false,0,{"$error":"#N/A"},"Singles\\Ellie Goulding - Burn.mp3"]
["Singles\\Doris Day - A Guy Is A Guy.mp3",false,0,{"$error":"#N/A"},"Singles\\Doris Day - A Guy Is A Guy.mp3"]
["Singles\\Eminem ft Rihanna - Love The Way You Lie.mp3",true,0,{"$error":"#N/A"},"Singles\\Eminem ft Rihanna - Love The Way You Lie.mp3"]
["Singles\\Nancy Sinatra & Dean Martin - Things.mp3",false,0,{"$error":"#N/A"},"Singles\\Nancy Sinatra & Dean Martin - Things.mp3"]
["Singles\\Tina Turner - When The Heartache Is Over.mp3",true,0,{"$error":"#N/A"},"Singles\\Tina Turner - When The Heartache Is Over.mp3"]
["Singles\\Herman Van Veen - Hilversum III.mp3",false,0,{"$error":"#N/A"},"Singles\\Herman Van Veen - Hilversum III.mp3"]
["Singles\\Dave Stewart & Colin Blunstone - What Becomes Of The Brokenhearted.mp3",true,0,{"$error":"#N/A"},"Singles\\Dave Stewart & Colin Blunstone - What Becomes Of The Brokenhearted.mp3"]
["Singles\\Lucille Starr - The French Song.mp3",true,0,{"$error":"#N/A"},"Singles\\Lucille Starr - The French Song.mp3"]
["Singles\\Genesis - Hold On My Heart.mp3",false,0,{"$error":"#N/A"},"Singles\\Genesis - Hold On My Heart.mp3"]
["Singles\\Billy Vaughn - Sail Along Silvery Moon.mp3",false,0,{"$error":"#N/A"},"Singles\\Billy Vaughn - Sail Along Silvery Moon.mp3"]
["Singles\\Jona Lewie - Come Away.mp3",false,0,{"$error":"#N/A"},"Singles\\Jona Lewie - Come Away.mp3"]
["Singles\\Andre Hazes - Eenzame Kerst.mp3",false,0,{"$error":"#N/A"},"Singles\\Andre Hazes - Eenzame Kerst.mp3"]
["Singles\\Rocky Sharpe & The Replays - Rama Lama Ding Dong.mp3",true,0,{"$error":"#N/A"},"Singles\\Rocky Sharpe & The Replays - Rama Lama Ding Dong.mp3"]
["Singles\\Adèle Bloemendaal - Zallemenut (Nog 'n Keertje Overdoen).mp3",false,0,{"$error":"#N/A"},"Singles\\Adèle Bloemendaal - Zallemenut (Nog 'n Keertje Overdoen).mp3"]
["Singles\\Aphrodite's Child - It's Five O'Clock.mp3",false,0,{"$error":"#N/A"},"Singles\\Aphrodite's Child - It's Five O'Clock.mp3"]
["Singles\\Gilbert O'Sullivan - Matrimony.mp3",false,0,{"$error":"#N/A"},"Singles\\Gilbert O'Sullivan - Matrimony.mp3"]
["Singles\\Coldplay - Magic.mp3",false,0,{"$error":"#N/A"},"Singles\\Coldplay - Magic.mp3"]
["Singles\\Lucas & Steve & Deepend - Long Way Home.mp3",false,0,{"$error":"#N/A"},"Singles\\Lucas & Steve & Deepend - Long Way Home.mp3"]
["Singles\\Stars On 45 - Andrews Sisters.mp3",false,0,{"$error":"#N/A"},"Singles\\Stars On 45 - Andrews Sisters.mp3"]
["Singles\\Shirley Zwerus - Heel Even.mp3",false,0,{"$error":"#N/A"},"Singles\\Shirley Zwerus - Heel Even.mp3"]
["Singles\\Davina Michelle - Skyward.mp3",false,0,{"$error":"#N/A"},"Singles\\Davina Michelle - Skyward.mp3"]
["Singles\\Wet Wet Wet - Angel Eyes.mp3",false,0,{"$error":"#N/A"},"Singles\\Wet Wet Wet - Angel Eyes.mp3"]
["Singles\\The Outlaws - There Goes Another Love Song.mp3",true,1,"Singles\\The Outlaws - ","Singles\\\\Outlaws, The - There Goes Another Love Song.mp3"]
["Singles\\Colbie Caillat - The Little Things.mp3",true,0,{"$error":"#N/A"},"Singles\\Colbie Caillat - The Little Things.mp3"]
["Singles\\Cranberries - Linger.mp3",false,0,{"$error":"#N/A"},"Singles\\Cranberries - Linger.mp3"]
["Singles\\Jenniffer Kae - Little White Lies.mp3",false,0,{"$error":"#N/A"},"Singles\\Jenniffer Kae - Little White Lies.mp3"]
["Singles\\Mika - Grace Kelly.mp3",false,0,{"$error":"#N/A"},"Singles\\Mika - Grace Kelly.mp3"]
["Singles\\Sammi Smith - Help Me Make It Through The Night.mp3",true,0,{"$error":"#N/A"},"Singles\\Sammi Smith - Help Me Make It Through The Night.mp3"]
["Singles\\Climax Blues Band - Gotta Have More Love.mp3",false,0,{"$error":"#N/A"},"Singles\\Climax Blues Band - Gotta Have More Love.mp3"]
["Singles\\Joe Cocker & Jennifer Warnes - Up Where We Belong.mp3",false,0,{"$error":"#N/A"},"Singles\\Joe Cocker & Jennifer Warnes - Up Where We Belong.mp3"]
["Singles\\Blue Ridge Rangers - Hearts Of Stone.mp3",false,0,{"$error":"#N/A"},"Singles\\Blue Ridge Rangers - Hearts Of Stone.mp3"]
["Singles\\Bob Marley - Iron Lion Zion.mp3",false,0,{"$error":"#N/A"},"Singles\\Bob Marley - Iron Lion Zion.mp3"]
["Singles\\Jewel - Intuition.mp3",false,0,{"$error":"#N/A"},"Singles\\Jewel - Intuition.mp3"]
["Singles\\Ottawan - D.I.S.C.O.mp3",false,0,{"$error":"#N/A"},"Singles\\Ottawan - D.I.S.C.O.mp3"]
["Singles\\Kygo & Imagine Dragons - Born To Be Yours.mp3",false,0,{"$error":"#N/A"},"Singles\\Kygo & Imagine Dragons - Born To Be Yours.mp3"]
["Singles\\Walk The Moon - Shut Up + Dance.mp3",true,0,{"$error":"#N/A"},"Singles\\Walk The Moon - Shut Up + Dance.mp3"]
["Singles\\John Newman - Come And Get It.mp3",false,0,{"$error":"#N/A"},"Singles\\John Newman - Come And Get It.mp3"]
["Singles\\ZZ & De Maskers - Ik Heb Genoeg Van Jou.mp3",false,0,{"$error":"#N/A"},"Singles\\ZZ & De Maskers - Ik Heb Genoeg Van Jou.mp3"]
["Singles\\Barry White - I'm Gonna Love You Just A Little More, Baby.mp3",false,0,{"$error":"#N/A"},"Singles\\Barry White - I'm Gonna Love You Just A Little More, Baby.mp3"]
["Singles\\Greenfield & Cook - Melody.mp3",false,0,{"$error":"#N/A"},"Singles\\Greenfield & Cook - Melody.mp3"]
["Singles\\David Bowie - Ashes To Ashes.mp3",false,0,{"$error":"#N/A"},"Singles\\David Bowie - Ashes To Ashes.mp3"]
["Singles\\Acda & De Munnik - Het Regent Zonnestralen.mp3",false,0,{"$error":"#N/A"},"Singles\\Acda & De Munnik - Het Regent Zonnestralen.mp3"]
["Singles\\The Rolling Stones - Little Red Rooster.mp3",true,0,"Singles\\The Rolling Stones - ","Singles\\\\Rolling Stones, The - Little Red Rooster.mp3"]
["Singles\\Ladysmith Black Mambazo - Swing Low Sweet Chariot.mp3",false,0,{"$error":"#N/A"},"Singles\\Ladysmith Black Mambazo - Swing Low Sweet Chariot.mp3"]
["Singles\\Andre Van Duin - Duudeljoo.mp3",false,0,{"$error":"#N/A"},"Singles\\Andre Van Duin - Duudeljoo.mp3"]
["Singles\\Brat - Chalk Dust (The Umpire Strikes Back).mp3",true,0,{"$error":"#N/A"},"Singles\\Brat - Chalk Dust (The Umpire Strikes Back).mp3"]
["Singles\\Mezzoforte - Garden Party.mp3",false,0,{"$error":"#N/A"},"Singles\\Mezzoforte - Garden Party.mp3"]
["Singles\\Christina Aguilera - Hurt.mp3",false,0,{"$error":"#N/A"},"Singles\\Christina Aguilera - Hurt.mp3"]
["Singles\\Doe Maar - Pa.mp3",false,0,{"$error":"#N/A"},"Singles\\Doe Maar - Pa.mp3"]
["Singles\\Freddy Breck - Rote Rosen.mp3",false,0,{"$error":"#N/A"},"Singles\\Freddy Breck - Rote Rosen.mp3"]
["Singles\\Sandra - Maria Magdalena.mp3",false,0,{"$error":"#N/A"},"Singles\\Sandra - Maria Magdalena.mp3"]
["Singles\\Alain Clark - Good Days.mp3",false,0,{"$error":"#N/A"},"Singles\\Alain Clark - Good Days.mp3"]
["Singles\\Carlos - Big Bisou.mp3",false,0,{"$error":"#N/A"},"Singles\\Carlos - Big Bisou.mp3"]
["Singles\\The Shadows - Foot Tapper.mp3",{"$f":"RegexTest(B$1,$A387)","v":true},{"$f":"RegexCount(C$1,$A387)","v":0},{"$f":"RegexFind(D$1,$A387)","v":"Singles\\The Shadows - "},{"$f":"RegexReplace(E$1,$A387,F$1)","v":"Singles\\\\Shadows, The - Foot Tapper.mp3"}]
["Singles\\Ed Sheeran - Happier.mp3",false,0,{"$error":"#N/A"},"Singles\\Ed Sheeran - Happier.mp3"]
["Singles\\Dean Martin - Everybody Loves Somebody.mp3",false,0,{"$error":"#N/A"},"Singles\\Dean Martin - Everybody Loves Somebody.mp3"]
["Singles\\Living In A Box - Blow The House Down.mp3",true,0,{"$error":"#N/A"},"Singles\\Living In A Box - Blow The House Down.mp3"]
["Singles\\Belle Perez - Dime.mp3",false,0,{"$error":"#N/A"},"Singles\\Belle Perez - Dime.mp3"]
["Singles\\Hind - Summer All Over Again.mp3",false,0,{"$error":"#N/A"},"Singles\\Hind - Summer All Over Again.mp3"]
["Singles\\Leen Jongewaard & Wim Sonneveld - In Een Rijtuigje.mp3",false,0,{"$error":"#N/A"},"Singles\\Leen Jongewaard & Wim Sonneveld - In Een Rijtuigje.mp3"]
["Singles\\Dimitri Vegas & Like Mike & David Guetta & Daddy Yankee & Afro Bro's & Natti Natasha - Instagram.mp3",false,0,{"$error":"#N/A"},"Singles\\Dimitri Vegas & Like Mike & David Guetta & Daddy Yankee & Afro Bro's & Natti Natasha - Instagram.mp3"]
["Singles\\Lene Lovich - Bird Song.mp3",false,0,{"$error":"#N/A"},"Singles\\Lene Lovich - Bird Song.mp3"]
["Singles\\Living In A Box - Living In A Box.mp3",false,0,{"$error":"#N/A"},"Singles\\Living In A Box - Living In A Box.mp3"]
["Singles\\Rare Earth - Get Ready.mp3",false,0,{"$error":"#N/A"},"Singles\\Rare Earth - Get Ready.mp3"]
["Singles\\Electric Light Orchestra - Steppin' Out.mp3",false,0,{"$error":"#N/A"},"Singles\\Electric Light Orchestra - Steppin' Out.mp3"]
["Singles\\Ray Charles - Georgia On My Mind.mp3",false,0,{"$error":"#N/A"},"Singles\\Ray Charles - Georgia On My Mind.mp3"]
["Singles\\The Christians - In My Hour Of Need.mp3",true,0,"Singles\\The Christians - ","Singles\\\\Christians, The - In My Hour Of Need.mp3"]
["Singles\\Britney Spears - Till The World Ends.mp3",true,0,{"$error":"#N/A"},"Singles\\Britney Spears - Till The World Ends.mp3"]
["Singles\\The Shadows - Atlantis.mp3",true,0,"Singles\\The Shadows - ","Singles\\\\Shadows, The - Atlantis.mp3"]
["Singles\\Asaf Avidan & The Mojos - Reckoning Song (One Day).mp3",true,0,{"$error":"#N/A"},"Singles\\Asaf Avidan & The Mojos - Reckoning Song (One Day).mp3"]
["Singles\\Shawn Mendes - If I Can’t Have You.mp3",false,0,{"$error":"#N/A"},"Singles\\Shawn Mendes - If I Can’t Have You.mp3"]
["Singles\\The Trammps - The Night The Lights Went Out In New York City.mp3",true,0,"Singles\\The Trammps - ","Singles\\\\Trammps, The - The Night The Lights Went Out In New York City.mp3"]
["Singles\\Peter Blanker - 't Is Moeilijk Bescheiden Te Blijven.mp3",false,0,{"$error":"#N/A"},"Singles\\Peter Blanker - 't Is Moeilijk Bescheiden Te Blijven.mp3"]
["Singles\\Leen Jongewaard & Hetty Blok - M'n Opa.mp3",false,0,{"$error":"#N/A"},"Singles\\Leen Jongewaard & Hetty Blok - M'n Opa.mp3"]
["Singles\\Genesis - Tell Me Why.mp3",false,0,{"$error":"#N/A"},"Singles\\Genesis - Tell Me Why.mp3"]
["Singles\\Rene Froger - Alles Kan Een Mens Gelukkig Maken.mp3",false,0,{"$error":"#N/A"},"Singles\\Rene Froger - Alles Kan Een Mens Gelukkig Maken.mp3"]
["Singles\\Minnie Riperton - Lovin' You.mp3",false,0,{"$error":"#N/A"},"Singles\\Minnie Riperton - Lovin' You.mp3"]
["Singles\\Maroon 5 ft Kendrick Lamar - Don't Wanna Know.mp3",false,0,{"$error":"#N/A"},"Singles\\Maroon 5 ft Kendrick Lamar - Don't Wanna Know.mp3"]
["Singles\\Alexander Curly - Guus Kom Naar Huus.mp3",false,0,{"$error":"#N/A"},"Singles\\Alexander Curly - Guus Kom Naar Huus.mp3"]
["Singles\\Maywood - Mother How Are You Today.mp3",false,0,{"$error":"#N/A"},"Singles\\Maywood - Mother How Are You Today.mp3"]
["Singles\\Bad Manners - Can Can.mp3",false,0,{"$error":"#N/A"},"Singles\\Bad Manners - Can Can.mp3"]
["Singles\\Osibisa - Sunshine Day.mp3",false,0,{"$error":"#N/A"},"Singles\\Osibisa - Sunshine Day.mp3"]
["Singles\\Ben Howard - Keep Your Head Up.mp3",false,0,{"$error":"#N/A"},"Singles\\Ben Howard - Keep Your Head Up.mp3"]
["Singles\\Armin Van Buuren ft Josh Cumbee - Sunny Days.mp3",false,0,{"$error":"#N/A"},"Singles\\Armin Van Buuren ft Josh Cumbee - Sunny Days.mp3"]
["Singles\\Snow Patrol - Chasing Cars.mp3",false,0,{"$error":"#N/A"},"Singles\\Snow Patrol - Chasing Cars.mp3"]
["Singles\\Celine Dion & The Bee Gees - Immortality.mp3",true,0,{"$error":"#N/A"},"Singles\\Celine Dion & The Bee Gees - Immortality.mp3"]
["Singles\\Phil Collins - Do You Remember.mp3",false,0,{"$error":"#N/A"},"Singles\\Phil Collins - Do You Remember.mp3"]
["Singles\\Jeremy Loops & Motheo Moleko - Down South.mp3",false,0,{"$error":"#N/A"},"Singles\\Jeremy Loops & Motheo Moleko - Down South.mp3"]
["Singles\\Johnny Otis - Williie And The Hand Jive.mp3",true,0,{"$error":"#N/A"},"Singles\\Johnny Otis - Williie And The Hand Jive.mp3"]
["Singles\\Showaddywaddy - Why Do Lovers Break Each Others Hearts.mp3",false,0,{"$error":"#N/A"},"Singles\\Showaddywaddy - Why Do Lovers Break Each Others Hearts.mp3"]
["Singles\\Elvis Presley - Gentle On My Mind.mp3",false,0,{"$error":"#N/A"},"Singles\\Elvis Presley - Gentle On My Mind.mp3"]
["Singles\\Donald Fagen - The Nightfly.mp3",true,0,{"$error":"#N/A"},"Singles\\Donald Fagen - The Nightfly.mp3"]
["Singles\\Michael Nesmith & The First National Band - Silver Moon.mp3",true,0,{"$error":"#N/A"},"Singles\\Michael Nesmith & The First National Band - Silver Moon.mp3"]
["Singles\\Peter Schaap - Adem Mijn Adem.mp3",false,0,{"$error":"#N/A"},"Singles\\Peter Schaap - Adem Mijn Adem.mp3"]
["Singles\\Michael Jackson - The Way You Make Me Feel.mp3",true,0,{"$error":"#N/A"},"Singles\\Michael Jackson - The Way You Make Me Feel.mp3"]
["Singles\\Mohombi - Bumpy Ride.mp3",false,0,{"$error":"#N/A"},"Singles\\Mohombi - Bumpy Ride.mp3"]
["Singles\\INXS - Never Tear Us Apart.mp3",false,0,{"$error":"#N/A"},"Singles\\INXS - Never Tear Us Apart.mp3"]
["Singles\\Alessia Cara - Scars To Your Beautiful.mp3",false,0,{"$error":"#N/A"},"Singles\\Alessia Cara - Scars To Your Beautiful.mp3"]
["Singles\\Bob Dylan - Like A Rolling Stone.mp3",false,0,{"$error":"#N/A"},"Singles\\Bob Dylan - Like A Rolling Stone.mp3"]
["Singles\\Avicii ft Aloe Blacc - SOS.mp3",false,0,{"$error":"#N/A"},"Singles\\Avicii ft Aloe Blacc - SOS.mp3"]
["Singles\\Champs - Tequila.mp3",false,0,{"$error":"#N/A"},"Singles\\Champs - Tequila.mp3"]
["Singles\\St Germain - Rose Rouge.mp3",false,0,{"$error":"#N/A"},"Singles\\St Germain - Rose Rouge.mp3"]
["Singles\\Tina Turner - Let's Stay Together.mp3",false,0,{"$error":"#N/A"},"Singles\\Tina Turner - Let's Stay Together.mp3"]
["Singles\\James Brown - Sex Machine.mp3",false,0,{"$error":"#N/A"},"Singles\\James Brown - Sex Machine.mp3"]
["Singles\\Van Velzen - Love Song.mp3",false,0,{"$error":"#N/A"},"Singles\\Van Velzen - Love Song.mp3"]
["Singles\\Level 42 - Tracie.mp3",false,0,{"$error":"#N/A"},"Singles\\Level 42 - Tracie.mp3"]
["Singles\\Electric Light Orchestra - Sweet Is The Night.mp3",true,0,{"$error":"#N/A"},"Singles\\Electric Light Orchestra - Sweet Is The Night.mp3"]
["Singles\\Surfers - Windsurfin'.mp3",false,0,{"$error":"#N/A"},"Singles\\Surfers - Windsurfin'.mp3"]
["Singles\\Steve Rowland & The Family Dogg - Rikers Island.mp3",true,0,{"$error":"#N/A"},"Singles\\Steve Rowland & The Family Dogg - Rikers Island.mp3"]
["Singles\\De La Soul - Me, Myself, And I.mp3",false,0,{"$error":"#N/A"},"Singles\\De La Soul - Me, Myself, And I.mp3"]
["Singles\\Duane Eddy - Rebel Rouser.mp3",false,0,{"$error":"#N/A"},"Singles\\Duane Eddy - Rebel Rouser.mp3"]
["Singles\\Raymond Van Het Groenewoud - Je Veux De L'Amour.mp3",false,0,{"$error":"#N/A"},"Singles\\Raymond Van Het Groenewoud - Je Veux De L'Amour.mp3"]
["Singles\\Robbie Williams - Go Gentle.mp3",false,0,{"$error":"#N/A"},"Singles\\Robbie Williams - Go Gentle.mp3"]
["Singles\\Percy Sledge - My Special Prayer.mp3",false,0,{"$error":"#N/A"},"Singles\\Percy Sledge - My Special Prayer.mp3"]
["Singles\\3t - Stuck On You.mp3",false,0,{"$error":"#N/A"},"Singles\\3t - Stuck On You.mp3"]
["Singles\\Debbie Harry - French Kissin' In The USA.mp3",true,0,{"$error":"#N/A"},"Singles\\Debbie Harry - French Kissin' In The USA.mp3"]
["Singles\\Brooke Fraser - Something In The Water.mp3",true,0,{"$error":"#N/A"},"Singles\\Brooke Fraser - Something In The Water.mp3"]
["Singles\\The Trammps - Disco Inferno.mp3",{"$f":"RegexTest(B$1,$A451)","v":true},{"$f":"RegexCount(C$1,$A451)","v":0},{"$f":"RegexFind(D$1,$A451)","v":"Singles\\The Trammps - "},{"$f":"RegexReplace(E$1,$A451,F$1)","v":"Singles\\\\Trammps, The - Disco Inferno.mp3"}]
["Singles\\John Lennon & Ringo Starr - It Don't Come Easy.mp3",false,0,{"$error":"#N/A"},"Singles\\John Lennon & Ringo Starr - It Don't Come Easy.mp3"]
["Singles\\Elvis Presley - Fools Rush In.mp3",false,0,{"$error":"#N/A"},"Singles\\Elvis Presley - Fools Rush In.mp3"]
["Singles\\Cliff Richard - Miss You Nights.mp3",false,0,{"$error":"#N/A"},"Singles\\Cliff Richard - Miss You Nights.mp3"]
["Singles\\Neil Diamond - Play Me.mp3",false,0,{"$error":"#N/A"},"Singles\\Neil Diamond - Play Me.mp3"]
["Singles\\Akon - Mr Lonely.mp3",false,0,{"$error":"#N/A"},"Singles\\Akon - Mr Lonely.mp3"]
["Singles\\Amanda Lear - Follow Me.mp3",false,0,{"$error":"#N/A"},"Singles\\Amanda Lear - Follow Me.mp3"]
["Singles\\The Doors - Waiting For The Sun.mp3",true,0,"Singles\\The Doors - ","Singles\\\\Doors, The - Waiting For The Sun.mp3"]
["Singles\\Julio Iglesias - Quiereme Mucho.mp3",false,0,{"$error":"#N/A"},"Singles\\Julio Iglesias - Quiereme Mucho.mp3"]
["Singles\\Dolly Parton - You Are.mp3",false,0,{"$error":"#N/A"},"Singles\\Dolly Parton - You Are.mp3"]
["Singles\\UB40 - Red Red Wine.mp3",false,0,{"$error":"#N/A"},"Singles\\UB40 - Red Red Wine.mp3"]
["Singles\\Status Quo - Pictures Of Matchstick Men.mp3",false,0,{"$error":"#N/A"},"Singles\\Status Quo - Pictures Of Matchstick Men.mp3"]
["Singles\\Elvis Presley - All Shook Up.mp3",false,0,{"$error":"#N/A"},"Singles\\Elvis Presley - All Shook Up.mp3"]
["Singles\\P!nk & Khalid - Hurts 2B Human.mp3",false,0,{"$error":"#N/A"},"Singles\\P!nk & Khalid - Hurts 2B Human.mp3"]
["Singles\\Backstreet Boys - Everybody.mp3",false,0,{"$error":"#N/A"},"Singles\\Backstreet Boys - Everybody.mp3"]
["Singles\\Tom Tom Club - Wordy Rappinghood.mp3",false,0,{"$error":"#N/A"},"Singles\\Tom Tom Club - Wordy Rappinghood.mp3"]
["Singles\\Keane - Sovereign Light Cafe.mp3",false,0,{"$error":"#N/A"},"Singles\\Keane - Sovereign Light Cafe.mp3"]
["Singles\\Adamo - Dolce Paola.mp3",false,0,{"$error":"#N/A"},"Singles\\Adamo - Dolce Paola.mp3"]
["Singles\\Robert Miles - Children.mp3",false,0,{"$error":"#N/A"},"Singles\\Robert Miles - Children.mp3"]
["Singles\\Elton John - Circle Of Life.mp3",false,0,{"$error":"#N/A"},"Singles\\Elton John - Circle Of Life.mp3"]
["Singles\\Mia - Tanz Der Molekuele.mp3",false,0,{"$error":"#N/A"},"Singles\\Mia - Tanz Der Molekuele.mp3"]
["Singles\\Duffy - Warwick Avenue.mp3",false,0,{"$error":"#N/A"},"Singles\\Duffy - Warwick Avenue.mp3"]
["Singles\\Oscar Harris - Try A Little Love.mp3",false,0,{"$error":"#N/A"},"Singles\\Oscar Harris - Try A Little Love.mp3"]
["Singles\\Clannad & Bono - In A Lifetime.mp3",false,0,{"$error":"#N/A"},"Singles\\Clannad & Bono - In A Lifetime.mp3"]
["Singles\\Ed Sheeran - Galway Girl.mp3",false,0,{"$error":"#N/A"},"Singles\\Ed Sheeran - Galway Girl.mp3"]
["Singles\\Boston - Amanda.mp3",false,0,{"$error":"#N/A"},"Singles\\Boston - Amanda.mp3"]
["Singles\\Kiesza - Hideaway.mp3",false,0,{"$error":"#N/A"},"Singles\\Kiesza - Hideaway.mp3"]
["Singles\\Demis Roussos - Forever And Ever.mp3",false,0,{"$error":"#N/A"},"Singles\\Demis Roussos - Forever And Ever.mp3"]
["Singles\\Ian Dury - Hit Me With Your Rhythm Stick.mp3",false,0,{"$error":"#N/A"},"Singles\\Ian Dury - Hit Me With Your Rhythm Stick.mp3"]
["Singles\\Johnny Hallyday - Pour Moi La Vie Va Commencer.mp3",false,0,{"$error":"#N/A"},"Singles\\Johnny Hallyday - Pour Moi La Vie Va Commencer.mp3"]
["Singles\\Shangri-Las - Remember (Walking In The Sand).mp3",true,0,{"$error":"#N/A"},"Singles\\Shangri-Las - Remember (Walking In The Sand).mp3"]
["Singles\\Cliff Richard - Power To All Our Friends.mp3",false,0,{"$error":"#N/A"},"Singles\\Cliff Richard - Power To All Our Friends.mp3"]
["Singles\\Patti LaBelle - Lady Marmalade.mp3",false,0,{"$error":"#N/A"},"Singles\\Patti LaBelle - Lady Marmalade.mp3"]
["Singles\\Clairy Browne - Love Song To The World.mp3",true,0,{"$error":"#N/A"},"Singles\\Clairy Browne - Love Song To The World.mp3"]
["Singles\\Izabella - Shame Shame Shame.mp3",false,0,{"$error":"#N/A"},"Singles\\Izabella - Shame Shame Shame.mp3"]
["Singles\\Yello & Shirley Bassey - The Rhythm Divine.mp3",true,0,{"$error":"#N/A"},"Singles\\Yello & Shirley Bassey - The Rhythm Divine.mp3"]
["Singles\\Lemming - Lucifera.mp3",false,0,{"$error":"#N/A"},"Singles\\Lemming - Lucifera.mp3"]
["Singles\\Gwen Stefani ft Akon - The Sweet Escape.mp3",true,0,{"$error":"#N/A"},"Singles\\Gwen Stefani ft Akon - The Sweet Escape.mp3"]
["Singles\\Al Bano & Romina Power - Felicita.mp3",false,0,{"$error":"#N/A"},"Singles\\Al Bano & Romina Power - Felicita.mp3"]
["Singles\\Raffaella Cara - A Far L'amore Comincia Tu.mp3",false,0,{"$error":"#N/A"},"Singles\\Raffaella Cara - A Far L'amore Comincia Tu.mp3"]
["Singles\\Guy Sebastian - Before I Go.mp3",false,0,{"$error":"#N/A"},"Singles\\Guy Sebastian - Before I Go.mp3"]
["Singles\\Katy Perry - Firework.mp3",false,0,{"$error":"#N/A"},"Singles\\Katy Perry - Firework.mp3"]
["Singles\\Roberto Jacketti & The Scooters - I Save The Day.mp3",true,0,{"$error":"#N/A"},"Singles\\Roberto Jacketti & The Scooters - I Save The Day.mp3"]
["Singles\\The Beach Boys - Bluebirds Over The Mountain.mp3",true,0,"Singles\\The Beach Boys - ","Singles\\\\Beach Boys, The - Bluebirds Over The Mountain.mp3"]
["Singles\\Elton John - Rocket Man.mp3",false,0,{"$error":"#N/A"},"Singles\\Elton John - Rocket Man.mp3"]
["Singles\\Ramses Shaffy & Liesbeth List - Shaffy Cantate.mp3",false,0,{"$error":"#N/A"},"Singles\\Ramses Shaffy & Liesbeth List - Shaffy Cantate.mp3"]
["Singles\\Barry Manilow - Mandy.mp3",false,0,{"$error":"#N/A"},"Singles\\Barry Manilow - Mandy.mp3"]
["Singles\\Niall Horan - Slow Hands.mp3",false,0,{"$error":"#N/A"},"Singles\\Niall Horan - Slow Hands.mp3"]
["Singles\\Gilla - Bend Me Shape Me.mp3",false,0,{"$error":"#N/A"},"Singles\\Gilla - Bend Me Shape Me.mp3"]
["Singles\\Big Mouth & Little Eve - What A Beautiful Day.mp3",false,0,{"$error":"#N/A"},"Singles\\Big Mouth & Little Eve - What A Beautiful Day.mp3"]
["Singles\\Robbie Williams - Heart And I.mp3",false,0,{"$error":"#N/A"},"Singles\\Robbie Williams - Heart And I.mp3"]
["Singles\\Colbie Caillat - Fallin' For You.mp3",false,0,{"$error":"#N/A"},"Singles\\Colbie Caillat - Fallin' For You.mp3"]
["Singles\\Adventures Of Stevie V - Dirty Cash (Money Talks).mp3",false,0,{"$error":"#N/A"},"Singles\\Adventures Of Stevie V - Dirty Cash (Money Talks).mp3"]
["Singles\\Cindy & Bert - Ich Komm' Bald Wieder.mp3",false,0,{"$error":"#N/A"},"Singles\\Cindy & Bert - Ich Komm' Bald Wieder.mp3"]
["Singles\\Shola Ama - You Might Need Somebody.mp3",false,0,{"$error":"#N/A"},"Singles\\Shola Ama - You Might Need Somebody.mp3"]
["Singles\\John Spencer - Lana.mp3",false,0,{"$error":"#N/A"},"Singles\\John Spencer - Lana.mp3"]
["Singles\\Frank Sinatra - Strangers In The Night.mp3",true,0,{"$error":"#N/A"},"Singles\\Frank Sinatra - Strangers In The Night.mp3"]
["Singles\\Royal Guardsmen - Snoopy vs The Red Baron.mp3",true,0,{"$error":"#N/A"},"Singles\\Royal Guardsmen - Snoopy vs The Red Baron.mp3"]
["Singles\\Taio Cruz - Troublemaker.mp3",false,0,{"$error":"#N/A"},"Singles\\Taio Cruz - Troublemaker.mp3"]
["Singles\\Isaac Hayes - Theme From Shaft.mp3",true,0,{"$error":"#N/A"},"Singles\\Isaac Hayes - Theme From Shaft.mp3"]
["Singles\\Buddy Holly - Because I Love You.mp3",false,0,{"$error":"#N/A"},"Singles\\Buddy Holly - Because I Love You.mp3"]
["Singles\\Falco - Rock Me Amadeus.mp3",false,0,{"$error":"#N/A"},"Singles\\Falco - Rock Me Amadeus.mp3"]
["Singles\\Rihanna - Man Down.mp3",false,0,{"$error":"#N/A"},"Singles\\Rihanna - Man Down.mp3"]
["Singles\\Alicia Keys - Girl On Fire.mp3",false,0,{"$error":"#N/A"},"Singles\\Alicia Keys - Girl On Fire.mp3"]
["Singles\\Jive Bunny & The Mastermixers - That Sounds Good To Me.mp3",{"$f":"RegexTest(B$1,$A515)","v":true},{"$f":"RegexCount(C$1,$A515)","v":0},{"$f":"RegexFind(D$1,$A515)","v":{"$error":"#N/A"}},{"$f":"RegexReplace(E$1,$A515,F$1)","v":"Singles\\Jive Bunny & The Mastermixers - That Sounds Good To Me.mp3"}]
["Singles\\Michel Polnareff - Ta Ta Ta.mp3",false,0,{"$error":"#N/A"},"Singles\\Michel Polnareff - Ta Ta Ta.mp3"]
["Singles\\Engelbert Humperdinck - Am I That Easy To Forget.mp3",false,0,{"$error":"#N/A"},"Singles\\Engelbert Humperdinck - Am I That Easy To Forget.mp3"]
["Singles\\The Pasadenas - Tribute (Right On).mp3",true,0,"Singles\\The Pasadenas - ","Singles\\\\Pasadenas, The - Tribute (Right On).mp3"]
["Singles\\Take That - The Flood.mp3",true,0,{"$error":"#N/A"},"Singles\\Take That - The Flood.mp3"]
["Singles\\Chicago - You're The Inspiration.mp3",true,0,{"$error":"#N/A"},"Singles\\Chicago - You're The Inspiration.mp3"]
["Singles\\Justin Bieber - Company.mp3",false,0,{"$error":"#N/A"},"Singles\\Justin Bieber - Company.mp3"]
["Singles\\Culture Club - Karma Chameleon.mp3",false,0,{"$error":"#N/A"},"Singles\\Culture Club - Karma Chameleon.mp3"]
["Singles\\James Bay - Let It Go.mp3",false,0,{"$error":"#N/A"},"Singles\\James Bay - Let It Go.mp3"]
["Singles\\Crystal Fighters - Plage.mp3",false,0,{"$error":"#N/A"},"Singles\\Crystal Fighters - Plage.mp3"]
["Singles\\Diana Ross & The Supremes - Love Child.mp3",true,0,{"$error":"#N/A"},"Singles\\Diana Ross & The Supremes - Love Child.mp3"]
["Singles\\Marco Borsato - Binnen.mp3",false,0,{"$error":"#N/A"},"Singles\\Marco Borsato - Binnen.mp3"]
["Singles\\Ike & Tina Turner - River Deep Mountain High.mp3",false,0,{"$error":"#N/A"},"Singles\\Ike & Tina Turner - River Deep Mountain High.mp3"]
["Singles\\David Essex - Rock On.mp3",false,0,{"$error":"#N/A"},"Singles\\David Essex - Rock On.mp3"]
["Singles\\The Beloves - Sweet Harmony.mp3",true,0,"Singles\\The Beloves - ","Singles\\\\Beloves, The - Sweet Harmony.mp3"]
["Singles\\Julee Cruise - Falling.mp3",false,0,{"$error":"#N/A"},"Singles\\Julee Cruise - Falling.mp3"]
["Singles\\Sandra & Andres - Als Het Om De Liefde Gaat.mp3",false,0,{"$error":"#N/A"},"Singles\\Sandra & Andres - Als Het Om De Liefde Gaat.mp3"]
["Singles\\Years & Years - Desire.mp3",false,0,{"$error":"#N/A"},"Singles\\Years & Years - Desire.mp3"]
["Singles\\Joe Cocker - A Little Help From My Friends.mp3",false,0,{"$error":"#N/A"},"Singles\\Joe Cocker - A Little Help From My Friends.mp3"]
["Singles\\Bobby Darin - Mack The Knife.mp3",true,0,{"$error":"#N/A"},"Singles\\Bobby Darin - Mack The Knife.mp3"]
["Singles\\Them - It's All Over Now, Baby Blue.mp3",true,0,{"$error":"#N/A"},"Singles\\Them - It's All Over Now, Baby Blue.mp3"]
["Singles\\Train ft Ashley Monroe - Bruises.mp3",false,0,{"$error":"#N/A"},"Singles\\Train ft Ashley Monroe - Bruises.mp3"]
["Singles\\Dawn Penn - You Don't Love Me (No, No, No).mp3",false,0,{"$error":"#N/A"},"Singles\\Dawn Penn - You Don't Love Me (No, No, No).mp3"]
["Singles\\Elvis Presley - You're The Devil In Disguise.mp3",true,0,{"$error":"#N/A"},"Singles\\Elvis Presley - You're The Devil In Disguise.mp3"]
["Singles\\O'G3NE - Magic.mp3",false,0,{"$error":"#N/A"},"Singles\\O'G3NE - Magic.mp3"]
["Singles\\Lauren Daigle - You Say.mp3",false,0,{"$error":"#N/A"},"Singles\\Lauren Daigle - You Say.mp3"]
["Singles\\MFSB & Three Degrees - TSOP (The Sound Of Philadelphia).mp3",true,0,{"$error":"#N/A"},"Singles\\MFSB & Three Degrees - TSOP (The Sound Of Philadelphia).mp3"]
["Singles\\Ilse DeLange - Miracle.mp3",false,0,{"$error":"#N/A"},"Singles\\Ilse DeLange - Miracle.mp3"]
["Singles\\Tavares - Whodunit.mp3",false,0,{"$error":"#N/A"},"Singles\\Tavares - Whodunit.mp3"]
["Singles\\Lutricia McNeal - My Side Of Town.mp3",false,0,{"$error":"#N/A"},"Singles\\Lutricia McNeal - My Side Of Town.mp3"]
["Singles\\John Legend - All Of Me.mp3",false,0,{"$error":"#N/A"},"Singles\\John Legend - All Of Me.mp3"]
["Singles\\Soulful Dynamics - Mademoiselle Ninette.mp3",false,0,{"$error":"#N/A"},"Singles\\Soulful Dynamics - Mademoiselle Ninette.mp3"]
["Singles\\Blof - Alles Is Liefde.mp3",false,0,{"$error":"#N/A"},"Singles\\Blof - Alles Is Liefde.mp3"]
["Singles\\Beyonce - Irreplaceable.mp3",false,0,{"$error":"#N/A"},"Singles\\Beyonce - Irreplaceable.mp3"]
["Singles\\Elvis Presley - Hound Dog.mp3",false,0,{"$error":"#N/A"},"Singles\\Elvis Presley - Hound Dog.mp3"]
["Singles\\Madonna - Crazy For You.mp3",false,0,{"$error":"#N/A"},"Singles\\Madonna - Crazy For You.mp3"]
["Singles\\Spinners - I'll Be Around.mp3",false,0,{"$error":"#N/A"},"Singles\\Spinners - I'll Be Around.mp3"]
["Singles\\The Script - Breakeven.mp3",true,0,"Singles\\The Script - ","Singles\\\\Script, The - Breakeven.mp3"]
["Singles\\Modern Romance - Everybody Salsa.mp3",false,0,{"$error":"#N/A"},"Singles\\Modern Romance - Everybody Salsa.mp3"]
["Singles\\Georges Moustaki - Le Meteque.mp3",false,0,{"$error":"#N/A"},"Singles\\Georges Moustaki - Le Meteque.mp3"]
["Singles\\Long John Baldry - (Walk Me Out In The) Morning Dew.mp3",true,0,{"$error":"#N/A"},"Singles\\Long John Baldry - (Walk Me Out In The) Morning Dew.mp3"]
["Singles\\Gilbert O'Sullivan - Underneath The Blanket Go.mp3",true,0,{"$error":"#N/A"},"Singles\\Gilbert O'Sullivan - Underneath The Blanket Go.mp3"]
["Singles\\Jamie Cullum - All At Sea.mp3",false,0,{"$error":"#N/A"},"Singles\\Jamie Cullum - All At Sea.mp3"]
["Singles\\Elvis Presley - Jailhouse Rock.mp3",false,0,{"$error":"#N/A"},"Singles\\Elvis Presley - Jailhouse Rock.mp3"]
["Singles\\ATC - All Around The World.mp3",true,0,{"$error":"#N/A"},"Singles\\ATC - All Around The World.mp3"]
["Singles\\Sister Sledge - All American Girls.mp3",false,0,{"$error":"#N/A"},"Singles\\Sister Sledge - All American Girls.mp3"]
["Singles\\Godley & Creme - Cry.mp3",false,0,{"$error":"#N/A"},"Singles\\Godley & Creme - Cry.mp3"]
["Singles\\Laura Pausini - Strani Amori.mp3",false,0,{"$error":"#N/A"},"Singles\\Laura Pausini - Strani Amori.mp3"]
["Singles\\The Bee Gees - You Should Be Dancing.mp3",true,0,"Singles\\The Bee Gees - ","Singles\\\\Bee Gees, The - You Should Be Dancing.mp3"]
["Singles\\David Bowie - Life On Mars.mp3",false,0,{"$error":"#N/A"},"Singles\\David Bowie - Life On Mars.mp3"]
["Singles\\The Peels - Juanita Banana.mp3",true,0,"Singles\\The Peels - ","Singles\\\\Peels, The - Juanita Banana.mp3"]
["Singles\\Eagles - The Last Resort.mp3",true,0,{"$error":"#N/A"},"Singles\\Eagles - The Last Resort.mp3"]
["Singles\\Blof - Zo Stil.mp3",false,0,{"$error":"#N/A"},"Singles\\Blof - Zo Stil.mp3"]
["Singles\\Anouk - Good God.mp3",false,0,{"$error":"#N/A"},"Singles\\Anouk - Good God.mp3"]
["Singles\\Van Morrison - Have I Told You Lately That I Love You.mp3",false,0,{"$error":"#N/A"},"Singles\\Van Morrison - Have I Told You Lately That I Love You.mp3"]
["Singles\\Electric Light Orchestra - It's Over.mp3",false,0,{"$error":"#N/A"},"Singles\\Electric Light Orchestra - It's Over.mp3"]
["Singles\\Shoes - Osaka.mp3",false,0,{"$error":"#N/A"},"Singles\\Shoes - Osaka.mp3"]
["Singles\\Chorale - Riu Riu.mp3",false,0,{"$error":"#N/A"},"Singles\\Chorale - Riu Riu.mp3"]
["Singles\\Culture Club - Move Away.mp3",false,0,{"$error":"#N/A"},"Singles\\Culture Club - Move Away.mp3"]
["Singles\\Donna Summer - She Works Hard For The Money.mp3",true,0,{"$error":"#N/A"},"Singles\\Donna Summer - She Works Hard For The Money.mp3"]
["Singles\\Spooky & Sue - You Talk Too Much.mp3",false,0,{"$error":"#N/A"},"Singles\\Spooky & Sue - You Talk Too Much.mp3"]
["Singles\\Keane - Bend And Break.mp3",false,0,{"$error":"#N/A"},"Singles\\Keane - Bend And Break.mp3"]
["Singles\\Basto! - Gregory's Theme.mp3",true,0,{"$error":"#N/A"},"Singles\\Basto! - Gregory's Theme.mp3"]
["Singles\\Marco Borsato - Ik Leef Niet Meer Voor Jou.mp3",false,0,{"$error":"#N/A"},"Singles\\Marco Borsato - Ik Leef Niet Meer Voor Jou.mp3"]
["Singles\\Frank Sinatra - I Get A Kick Out Of You.mp3",{"$f":"RegexTest(B$1,$A579)","v":false},{"$f":"RegexCount(C$1,$A579)","v":0},{"$f":"RegexFind(D$1,$A579)","v":{"$error":"#N/A"}},{"$f":"RegexReplace(E$1,$A579,F$1)","v":"Singles\\Frank Sinatra - I Get A Kick Out Of You.mp3"}]
["Singles\\Avicii - Addicted To You.mp3",false,0,{"$error":"#N/A"},"Singles\\Avicii - Addicted To You.mp3"]
["Singles\\Nickelback - Rockstar.mp3",false,0,{"$error":"#N/A"},"Singles\\Nickelback - Rockstar.mp3"]
["Singles\\James Bay - If You Ever Want To Be In Love.mp3",false,0,{"$error":"#N/A"},"Singles\\James Bay - If You Ever Want To Be In Love.mp3"]
["Singles\\Bruno Mars - It Will Rain.mp3",false,0,{"$error":"#N/A"},"Singles\\Bruno Mars - It Will Rain.mp3"]
["Singles\\Ashton , Gardner & Dyke - Resurrection Shuffle.mp3",false,0,{"$error":"#N/A"},"Singles\\Ashton , Gardner & Dyke - Resurrection Shuffle.mp3"]
["Singles\\Skunk Anansie - Hedonism.mp3",false,0,{"$error":"#N/A"},"Singles\\Skunk Anansie - Hedonism.mp3"]
["Singles\\John Parr - St Elmo's Fire (Man In Motion).mp3",false,0,{"$error":"#N/A"},"Singles\\John Parr - St Elmo's Fire (Man In Motion).mp3"]
["Singles\\The Motions - Wasted Words.mp3",true,0,"Singles\\The Motions - ","Singles\\\\Motions, The - Wasted Words.mp3"]
["Singles\\The Drifters - Save The Last Dance For Me.mp3",true,0,"Singles\\The Drifters - ","Singles\\\\Drifters, The - Save The Last Dance For Me.mp3"]
["Singles\\Bangles - Hazy Shade Of Winter.mp3",false,0,{"$error":"#N/A"},"Singles\\Bangles - Hazy Shade Of Winter.mp3"]
["Singles\\Pop Tops - Suzanne Suzanne.mp3",false,0,{"$error":"#N/A"},"Singles\\Pop Tops - Suzanne Suzanne.mp3"]
["Singles\\Blondie - Hanging On The Telephone.mp3",true,0,{"$error":"#N/A"},"Singles\\Blondie - Hanging On The Telephone.mp3"]
["Singles\\Honeycombs - That's The Way.mp3",true,0,{"$error":"#N/A"},"Singles\\Honeycombs - That's The Way.mp3"]
["Singles\\Madonna - The Power Of Goodbye.mp3",true,0,{"$error":"#N/A"},"Singles\\Madonna - The Power Of Goodbye.mp3"]
["Singles\\Anouk - Three Days In A Row.mp3",false,0,{"$error":"#N/A"},"Singles\\Anouk - Three Days In A Row.mp3"]
["Singles\\Rihanna - Diamonds.mp3",false,0,{"$error":"#N/A"},"Singles\\Rihanna - Diamonds.mp3"]
["Singles\\Kris Kross Amsterdam & Nielson - Ik Sta Jou Beter.mp3",false,0,{"$error":"#N/A"},"Singles\\Kris Kross Amsterdam & Nielson - Ik Sta Jou Beter.mp3"]
["Singles\\Fleetwood Mac - Man Of The World.mp3",true,0,{"$error":"#N/A"},"Singles\\Fleetwood Mac - Man Of The World.mp3"]
["Singles\\Randy Crawford - Almaz.mp3",false,0,{"$error":"#N/A"},"Singles\\Randy Crawford - Almaz.mp3"]
["Singles\\Vicky Leandros - Ich Hab' Die Liebe Gesehn.mp3",false,0,{"$error":"#N/A"},"Singles\\Vicky Leandros - Ich Hab' Die Liebe Gesehn.mp3"]
["Singles\\Frank Sinatra - Dancing Cheek To Cheek.mp3",false,0,{"$error":"#N/A"},"Singles\\Frank Sinatra - Dancing Cheek To Cheek.mp3"]
["Singles\\Benny Mardones - Into The Night (If I Could Fly, I'd Pick You Up).mp3",true,0,{"$error":"#N/A"},"Singles\\Benny Mardones - Into The Night (If I Could Fly, I'd Pick You Up).mp3"]
["Singles\\Deep Purple - Smoke On The Water.mp3",true,0,{"$error":"#N/A"},"Singles\\Deep Purple - Smoke On The Water.mp3"]
["Singles\\Maan - Ride It.mp3",false,0,{"$error":"#N/A"},"Singles\\Maan - Ride It.mp3"]
["Singles\\Breeze - Gypsy Woman.mp3",false,0,{"$error":"#N/A"},"Singles\\Breeze - Gypsy Woman.mp3"]
["Singles\\Mark Forster ft Sido - Au Revoir.mp3",false,0,{"$error":"#N/A"},"Singles\\Mark Forster ft Sido - Au Revoir.mp3"]
["Singles\\The Baseballs - Hard Not To Cry.mp3",true,0,"Singles\\The Baseballs - ","Singles\\\\Baseballs, The - Hard Not To Cry.mp3"]
["Singles\\Andrea Bocelli - Con Te Partiro.mp3",false,0,{"$error":"#N/A"},"Singles\\Andrea Bocelli - Con Te Partiro.mp3"]
["Singles\\James Morrison - Slave To The Music.mp3",true,0,{"$error":"#N/A"},"Singles\\James Morrison - Slave To The Music.mp3"]
["Singles\\Rainbows - Balla Balla.mp3",false,0,{"$error":"#N/A"},"Singles\\Rainbows - Balla Balla.mp3"]
["Singles\\The Beatles - In My Life.mp3",true,0,"Singles\\The Beatles - ","Singles\\\\Beatles, The - In My Life.mp3"]
["Singles\\Andy Kim - Be My Baby.mp3",false,0,{"$error":"#N/A"},"Singles\\Andy Kim - Be My Baby.mp3"]
["Singles\\Kaoma - Lambada.mp3",false,0,{"$error":"#N/A"},"Singles\\Kaoma - Lambada.mp3"]
["Singles\\Leapy Lee - Little Arrows.mp3",false,0,{"$error":"#N/A"},"Singles\\Leapy Lee - Little Arrows.mp3"]
["Singles\\Alan Parsons Project - Gemini.mp3",false,0,{"$error":"#N/A"},"Singles\\Alan Parsons Project - Gemini.mp3"]
["Singles\\Craig David - Rise And Fall.mp3",false,0,{"$error":"#N/A"},"Singles\\Craig David - Rise And Fall.mp3"]
["Singles\\Johnny Logan - Hold Me Now.mp3",false,0,{"$error":"#N/A"},"Singles\\Johnny Logan - Hold Me Now.mp3"]
["Singles\\Nino Ferrer - Agata.mp3",false,0,{"$error":"#N/A"},"Singles\\Nino Ferrer - Agata.mp3"]
["Singles\\Dario G - Carnaval De Paris.mp3",false,0,{"$error":"#N/A"},"Singles\\Dario G - Carnaval De Paris.mp3"]
["Singles\\Kate & Anna McGarrigle - Complainte Pour Ste. Catherine.mp3",false,0,{"$error":"#N/A"},"Singles\\Kate & Anna McGarrigle - Complainte Pour Ste. Catherine.mp3"]
["Singles\\Jose Feliciano - Che Sara.mp3",false,0,{"$error":"#N/A"},"Singles\\Jose Feliciano - Che Sara.mp3"]
["Singles\\The Beatles - Across The Universe.mp3",true,0,"Singles\\The Beatles - ","Singles\\\\Beatles, The - Across The Universe.mp3"]
["Singles\\Kylie Minogue & Jason Donovan - Especially For You.mp3",false,0,{"$error":"#N/A"},"Singles\\Kylie Minogue & Jason Donovan - Especially For You.mp3"]
["Singles\\Silk City & Dua Lipa ft Diplo & Mark Ronson - Electricity.mp3",false,0,{"$error":"#N/A"},"Singles\\Silk City & Dua Lipa ft Diplo & Mark Ronson - Electricity.mp3"]
["Singles\\Ginger Ninja - Sunshine.mp3",false,0,{"$error":"#N/A"},"Singles\\Ginger Ninja - Sunshine.mp3"]
["Singles\\The Beatles - Sgt Pepper's Lonely Hearts Club Band.mp3",true,0,"Singles\\The Beatles - ","Singles\\\\Beatles, The - Sgt Pepper's Lonely Hearts Club Band.mp3"]
["Singles\\Peppers - Pepper Box.mp3",false,0,{"$error":"#N/A"},"Singles\\Peppers - Pepper Box.mp3"]
["Singles\\Frank Boeijen Groep - Linda.mp3",false,0,{"$error":"#N/A"},"Singles\\Frank Boeijen Groep - Linda.mp3"]
["Singles\\Buggles - Lenny.mp3",false,0,{"$error":"#N/A"},"Singles\\Buggles - Lenny.mp3"]
["Singles\\Ricky Martin - She's All I Ever Had.mp3",false,0,{"$error":"#N/A"},"Singles\\Ricky Martin - She's All I Ever Had.mp3"]
["Singles\\Geier Sturzflug - Bruttosozialprodukt.mp3",false,0,{"$error":"#N/A"},"Singles\\Geier Sturzflug - Bruttosozialprodukt.mp3"]
["Singles\\Aerosmith - Crazy.mp3",false,0,{"$error":"#N/A"},"Singles\\Aerosmith - Crazy.mp3"]
["Singles\\Lukas Graham - 7 Years.mp3",false,0,{"$error":"#N/A"},"Singles\\Lukas Graham - 7 Years.mp3"]
["Singles\\George Michael - Faith.mp3",false,0,{"$error":"#N/A"},"Singles\\George Michael - Faith.mp3"]
["Singles\\Bananarama - Cruel Summer.mp3",false,0,{"$error":"#N/A"},"Singles\\Bananarama - Cruel Summer.mp3"]
["Singles\\Kool & The Gang - Joanna.mp3",true,0,{"$error":"#N/A"},"Singles\\Kool & The Gang - Joanna.mp3"]
["Singles\\Martin Garrix ft Khalid - Ocean.mp3",false,0,{"$error":"#N/A"},"Singles\\Martin Garrix ft Khalid - Ocean.mp3"]
["Singles\\Blof - Open Je Ogen.mp3",false,0,{"$error":"#N/A"},"Singles\\Blof - Open Je Ogen.mp3"]
["Singles\\The Tokens - The Lion Sleeps Tonight.mp3",true,0,"Singles\\The Tokens - ","Singles\\\\Tokens, The - The Lion Sleeps Tonight.mp3"]
["Singles\\Zara Larsson & MNEK - Never Forget You.mp3",false,0,{"$error":"#N/A"},"Singles\\Zara Larsson & MNEK - Never Forget You.mp3"]
["Singles\\Eric Burdon & The Animals - Ring Of Fire.mp3",true,0,{"$error":"#N/A"},"Singles\\Eric Burdon & The Animals - Ring Of Fire.mp3"]
["Singles\\The Charlie Daniels Band - Devil Went Down To Georgia.mp3",true,0,"Singles\\The Charlie Daniels Band - ","Singles\\\\Charlie Daniels Band, The - Devil Went Down To Georgia.mp3"]
["Singles\\Blancmange - Don't Tell Me.mp3",false,0,{"$error":"#N/A"},"Singles\\Blancmange - Don't Tell Me.mp3"]
["Singles\\All 4 One - I Swear.mp3",{"$f":"RegexTest(B$1,$A643)","v":false},{"$f":"RegexCount(C$1,$A643)","v":0},{"$f":"RegexFind(D$1,$A643)","v":{"$error":"#N/A"}},{"$f":"RegexReplace(E$1,$A643,F$1)","v":"Singles\\All 4 One - I Swear.mp3"}]
["Singles\\Simply Red - A New Flame.mp3",false,0,{"$error":"#N/A"},"Singles\\Simply Red - A New Flame.mp3"]
["Singles\\Love Affair - Everlasting Love.mp3",false,0,{"$error":"#N/A"},"Singles\\Love Affair - Everlasting Love.mp3"]
["Singles\\Marco Borsato & Sita - Lopen Op Het Water.mp3",false,0,{"$error":"#N/A"},"Singles\\Marco Borsato & Sita - Lopen Op Het Water.mp3"]
["Singles\\Roberto Jacketti & The Scooters - Love Cat.mp3",true,0,{"$error":"#N/A"},"Singles\\Roberto Jacketti & The Scooters - Love Cat.mp3"]
["Singles\\Cat Stevens - Banapple Gas.mp3",false,0,{"$error":"#N/A"},"Singles\\Cat Stevens - Banapple Gas.mp3"]
["Singles\\Manu Chao - Me Gustas Tu.mp3",false,0,{"$error":"#N/A"},"Singles\\Manu Chao - Me Gustas Tu.mp3"]
["Singles\\Alessandro Safina - Luna.mp3",false,0,{"$error":"#N/A"},"Singles\\Alessandro Safina - Luna.mp3"]
["Singles\\Tom Jones - She's A Lady.mp3",false,0,{"$error":"#N/A"},"Singles\\Tom Jones - She's A Lady.mp3"]
["Singles\\Herb Alpert & The Tijuana Brass - A Taste Of Honey.mp3",true,0,{"$error":"#N/A"},"Singles\\Herb Alpert & The Tijuana Brass - A Taste Of Honey.mp3"]
["Singles\\Doris D & The Pins - The Marvellous Marionettes.mp3",true,0,{"$error":"#N/A"},"Singles\\Doris D & The Pins - The Marvellous Marionettes.mp3"]
["Singles\\Bonzo Dog Doo-Dah Band - I'm The Urban Spaceman.mp3",true,0,{"$error":"#N/A"},"Singles\\Bonzo Dog Doo-Dah Band - I'm The Urban Spaceman.mp3"]
["Singles\\Jeroen Van Der Boom - Betekenis.mp3",false,0,{"$error":"#N/A"},"Singles\\Jeroen Van Der Boom - Betekenis.mp3"]
["Singles\\Basshunter - Now You're Gone.mp3",false,0,{"$error":"#N/A"},"Singles\\Basshunter - Now You're Gone.mp3"]
["Singles\\Daft Punk - One More Time.mp3",false,0,{"$error":"#N/A"},"Singles\\Daft Punk - One More Time.mp3"]
["Singles\\Cliff Richard - Constantly.mp3",false,0,{"$error":"#N/A"},"Singles\\Cliff Richard - Constantly.mp3"]
["Singles\\Johnny Wakelin - In Zaire.mp3",false,0,{"$error":"#N/A"},"Singles\\Johnny Wakelin - In Zaire.mp3"]
["Singles\\Otis Redding - Amen.mp3",false,0,{"$error":"#N/A"},"Singles\\Otis Redding - Amen.mp3"]
["Singles\\Hollenboer - Busje Komt Zo.MP3",false,0,{"$error":"#N/A"},"Singles\\Hollenboer - Busje Komt Zo.MP3"]
["Singles\\5 Seconds Of Summer - Youngblood.mp3",false,0,{"$error":"#N/A"},"Singles\\5 Seconds Of Summer - Youngblood.mp3"]
["Singles\\Cunningham - Norma Jean Wants To Be A Movie Star.mp3",false,0,{"$error":"#N/A"},"Singles\\Cunningham - Norma Jean Wants To Be A Movie Star.mp3"]
["Singles\\Ellie Goulding & Diplo & Swae Lee - Close To Me.mp3",false,0,{"$error":"#N/A"},"Singles\\Ellie Goulding & Diplo & Swae Lee - Close To Me.mp3"]
["Singles\\David Bowie - Blue Jean.mp3",false,0,{"$error":"#N/A"},"Singles\\David Bowie - Blue Jean.mp3"]
["Singles\\Frankie Laine - High Noon.mp3",false,0,{"$error":"#N/A"},"Singles\\Frankie Laine - High Noon.mp3"]
["Singles\\Kayak - Mammoth.mp3",false,0,{"$error":"#N/A"},"Singles\\Kayak - Mammoth.mp3"]
["Singles\\Andre Brasseur - Big Fat Spiritual.mp3",false,0,{"$error":"#N/A"},"Singles\\Andre Brasseur - Big Fat Spiritual.mp3"]
["Singles\\Rihanna - Only Girl (In The  World).mp3",true,0,{"$error":"#N/A"},"Singles\\Rihanna - Only Girl (In The  World).mp3"]
["Singles\\The Commodores - Goin' To The Bank.mp3",true,0,"Singles\\The Commodores - ","Singles\\\\Commodores, The - Goin' To The Bank.mp3"]
["Singles\\Lionel Richie - Love Will Conquer All.mp3",false,0,{"$error":"#N/A"},"Singles\\Lionel Richie - Love Will Conquer All.mp3"]
["Singles\\Gym Class Heroes ft Adam Levine - Stereo Hearts.mp3",false,0,{"$error":"#N/A"},"Singles\\Gym Class Heroes ft Adam Levine - Stereo Hearts.mp3"]
["Singles\\Elton John - Sacrifice.mp3",false,0,{"$error":"#N/A"},"Singles\\Elton John - Sacrifice.mp3"]
["Singles\\Neil Sedaka - Happy Birthday Sweet Sixteen.mp3",false,0,{"$error":"#N/A"},"Singles\\Neil Sedaka - Happy Birthday Sweet Sixteen.mp3"]
["Singles\\Acda & De Munnik - Als Het Vuur Gedoofd Is.mp3",false,0,{"$error":"#N/A"},"Singles\\Acda & De Munnik - Als Het Vuur Gedoofd Is.mp3"]
["Singles\\Johnny Hates Jazz - Heart Of Gold.mp3",false,0,{"$error":"#N/A"},"Singles\\Johnny Hates Jazz - Heart Of Gold.mp3"]
["Singles\\Duncan Laurence - Arcade.mp3",false,0,{"$error":"#N/A"},"Singles\\Duncan Laurence - Arcade.mp3"]
["Singles\\Santana - Black Magic Woman.mp3",false,0,{"$error":"#N/A"},"Singles\\Santana - Black Magic Woman.mp3"]
["Singles\\Tina Turner - Way Of The World.mp3",true,0,{"$error":"#N/A"},"Singles\\Tina Turner - Way Of The World.mp3"]
["Singles\\John Legend - Love Me Now.mp3",false,0,{"$error":"#N/A"},"Singles\\John Legend - Love Me Now.mp3"]
["Singles\\REO Speedwagon - Roll With The Changes.mp3",true,0,{"$error":"#N/A"},"Singles\\REO Speedwagon - Roll With The Changes.mp3"]
["Singles\\REO Speedwagon - Ridin' The Storm Out.mp3",true,0,{"$error":"#N/A"},"Singles\\REO Speedwagon - Ridin' The Storm Out.mp3"]
["Singles\\Meat Loaf - I'd Lie For You.mp3",false,0,{"$error":"#N/A"},"Singles\\Meat Loaf - I'd Lie For You.mp3"]
["Singles\\Meat Loaf - You Took The Words Right Out Of My Mouth (Hot Summer Night).mp3",true,0,{"$error":"#N/A"},"Singles\\Meat Loaf - You Took The Words Right Out Of My Mouth (Hot Summer Night).mp3"]
["Singles\\Steve Forbert - Goin' Down To Laurel.mp3",false,0,{"$error":"#N/A"},"Singles\\Steve Forbert - Goin' Down To Laurel.mp3"]
["Singles\\Snow Patrol - Shut Your Eyes.mp3",false,0,{"$error":"#N/A"},"Singles\\Snow Patrol - Shut Your Eyes.mp3"]
["Singles\\Matt Bianco - Just Can't Stand It.mp3",false,0,{"$error":"#N/A"},"Singles\\Matt Bianco - Just Can't Stand It.mp3"]
["Singles\\Timeflies - Once In A While.mp3",false,0,{"$error":"#N/A"},"Singles\\Timeflies - Once In A While.mp3"]
["Singles\\Faul And Wad Ad vs Pnau - Changes.mp3",false,0,{"$error":"#N/A"},"Singles\\Faul And Wad Ad vs Pnau - Changes.mp3"]
["Singles\\Lionel Richie - All Night Long.mp3",false,0,{"$error":"#N/A"},"Singles\\Lionel Richie - All Night Long.mp3"]
["Singles\\Roger Glover & Butterfly Ball - Love Is All.mp3",false,0,{"$error":"#N/A"},"Singles\\Roger Glover & Butterfly Ball - Love Is All.mp3"]
["Singles\\Paul & Paula - Hey Paula.mp3",false,0,{"$error":"#N/A"},"Singles\\Paul & Paula - Hey Paula.mp3"]
["Singles\\Nickelback - How You Remind Me.mp3",false,0,{"$error":"#N/A"},"Singles\\Nickelback - How You Remind Me.mp3"]
["Singles\\Penny Mclean - Lady Bump.mp3",false,0,{"$error":"#N/A"},"Singles\\Penny Mclean - Lady Bump.mp3"]
["Singles\\Lucille Starr - Colinda.mp3",false,0,{"$error":"#N/A"},"Singles\\Lucille Starr - Colinda.mp3"]
["Singles\\Vicky Leandros - Theo, Wir Fahr'n Nach Lodz.mp3",true,0,{"$error":"#N/A"},"Singles\\Vicky Leandros - Theo, Wir Fahr'n Nach Lodz.mp3"]
["Singles\\Lori Spee - How Many Times.mp3",false,0,{"$error":"#N/A"},"Singles\\Lori Spee - How Many Times.mp3"]
["Singles\\Malando - Ole Guapa.mp3",false,0,{"$error":"#N/A"},"Singles\\Malando - Ole Guapa.mp3"]
["Singles\\Zucchero & Cheb Mami - Cosi Celeste.mp3",false,0,{"$error":"#N/A"},"Singles\\Zucchero & Cheb Mami - Cosi Celeste.mp3"]
["Singles\\Twarres - Wêr Bisto.mp3",false,0,{"$error":"#N/A"},"Singles\\Twarres - Wêr Bisto.mp3"]
["Singles\\John Spencer - 'n Steelgitaar, Een Glaasje Wijn.mp3",false,0,{"$error":"#N/A"},"Singles\\John Spencer - 'n Steelgitaar, Een Glaasje Wijn.mp3"]
["Singles\\C&C Music Factory - Gonna Make You Sweat.mp3",false,0,{"$error":"#N/A"},"Singles\\C&C Music Factory - Gonna Make You Sweat.mp3"]
["Singles\\Frank Mills - Music Box Dancer.mp3",false,0,{"$error":"#N/A"},"Singles\\Frank Mills - Music Box Dancer.mp3"]
["Singles\\Randy Newman & Lyle Lovett - You've Got A Friend In Me.mp3",false,0,{"$error":"#N/A"},"Singles\\Randy Newman & Lyle Lovett - You've Got A Friend In Me.mp3"]
["Singles\\Adele - Hello.mp3",false,0,{"$error":"#N/A"},"Singles\\Adele - Hello.mp3"]
["Singles\\Madonna - La Isla Bonita.mp3",false,0,{"$error":"#N/A"},"Singles\\Madonna - La Isla Bonita.mp3"]
["Singles\\Bob Marley - Three Little Birds (Don't Worry Everythings Gonna Be Alright).mp3",{"$f":"RegexTest(B$1,$A707)","v":false},{"$f":"RegexCount(C$1,$A707)","v":0},{"$f":"RegexFind(D$1,$A707)","v":{"$error":"#N/A"}},{"$f":"RegexReplace(E$1,$A707,F$1)","v":"Singles\\Bob Marley - Three Little Birds (Don't Worry Everythings Gonna Be Alright).mp3"}]
["Singles\\Donna Summer - Hot Stuff.mp3",false,0,{"$error":"#N/A"},"Singles\\Donna Summer - Hot Stuff.mp3"]
["Singles\\Joe Dolce - Shaddup Your Face.mp3",false,0,{"$error":"#N/A"},"Singles\\Joe Dolce - Shaddup Your Face.mp3"]
["Singles\\Vangelis - Chariots Of Fire.mp3",false,0,{"$error":"#N/A"},"Singles\\Vangelis - Chariots Of Fire.mp3"]
["Singles\\Whistle - Just Buggin.mp3",false,0,{"$error":"#N/A"},"Singles\\Whistle - Just Buggin.mp3"]
["Singles\\Perry Como - It's Impossible.mp3",false,0,{"$error":"#N/A"},"Singles\\Perry Como - It's Impossible.mp3"]
["Singles\\Daft Punk ft Pharrell Williams - Get Lucky.mp3",false,0,{"$error":"#N/A"},"Singles\\Daft Punk ft Pharrell Williams - Get Lucky.mp3"]
["Singles\\Bino - Mama Leone.mp3",false,0,{"$error":"#N/A"},"Singles\\Bino - Mama Leone.mp3"]
["Singles\\Giant - I'll See You In My Dreams.mp3",false,0,{"$error":"#N/A"},"Singles\\Giant - I'll See You In My Dreams.mp3"]
["Singles\\Tony Orlando & Dawn - Tie A Yellow Ribbon Round The Ole Oak Tree.mp3",true,0,{"$error":"#N/A"},"Singles\\Tony Orlando & Dawn - Tie A Yellow Ribbon Round The Ole Oak Tree.mp3"]
["Singles\\White Soxx - Versailles.mp3",false,0,{"$error":"#N/A"},"Singles\\White Soxx - Versailles.mp3"]
["Singles\\Oh Sixteen Oh Seven - Het Leven Is Goed In M'n Brabantse Land.mp3",false,0,{"$error":"#N/A"},"Singles\\Oh Sixteen Oh Seven - Het Leven Is Goed In M'n Brabantse Land.mp3"]
["Singles\\Karin Kent - Dans Je De Hele Nacht Met Mij.mp3",false,0,{"$error":"#N/A"},"Singles\\Karin Kent - Dans Je De Hele Nacht Met Mij.mp3"]
["Singles\\Mika - Love Today.mp3",false,0,{"$error":"#N/A"},"Singles\\Mika - Love Today.mp3"]
["Singles\\Natalie Cole - Pink Cadillac.mp3",false,0,{"$error":"#N/A"},"Singles\\Natalie Cole - Pink Cadillac.mp3"]
["Singles\\Bobby Darin - Dream Lover.mp3",false,0,{"$error":"#N/A"},"Singles\\Bobby Darin - Dream Lover.mp3"]
["Singles\\Ernie K-Doe - Mother In Law.mp3",false,0,{"$error":"#N/A"},"Singles\\Ernie K-Doe - Mother In Law.mp3"]
["Singles\\Barclay James Harvest - Paraiso Dos Cavalos (Paradise Of The Horses).mp3",true,0,{"$error":"#N/A"},"Singles\\Barclay James Harvest - Paraiso Dos Cavalos (Paradise Of The Horses).mp3"]
["Singles\\Miss Montreal - Love You Now.mp3",false,0,{"$error":"#N/A"},"Singles\\Miss Montreal - Love You Now.mp3"]
["Singles\\The Buoys - Give Up Your Guns.mp3",true,0,"Singles\\The Buoys - ","Singles\\\\Buoys, The - Give Up Your Guns.mp3"]
["Singles\\The Kinks - You Really Got Me.mp3",true,0,"Singles\\The Kinks - ","Singles\\\\Kinks, The - You Really Got Me.mp3"]
["Singles\\Marco Borsato - Vrij Zijn.mp3",false,0,{"$error":"#N/A"},"Singles\\Marco Borsato - Vrij Zijn.mp3"]
["Singles\\Ladysmith Black Mambazo - Hey, Hey Beautiful Girl.mp3",false,0,{"$error":"#N/A"},"Singles\\Ladysmith Black Mambazo - Hey, Hey Beautiful Girl.mp3"]
["Singles\\Sister Sledge - He's The Greatest Dancer.mp3",true,0,{"$error":"#N/A"},"Singles\\Sister Sledge - He's The Greatest Dancer.mp3"]
["Singles\\REO Speedwagon - Take It On The Run.mp3",true,0,{"$error":"#N/A"},"Singles\\REO Speedwagon - Take It On The Run.mp3"]
["Singles\\Anastacia & Eros Ramazotti - I Belong To You.mp3",false,0,{"$error":"#N/A"},"Singles\\Anastacia & Eros Ramazotti - I Belong To You.mp3"]
["Singles\\Katy Perry - Wide Awake.mp3",false,0,{"$error":"#N/A"},"Singles\\Katy Perry - Wide Awake.mp3"]
["Singles\\Emeli Sande - Clown.mp3",false,0,{"$error":"#N/A"},"Singles\\Emeli Sande - Clown.mp3"]
["Singles\\Herb Alpert & Tijuna Brass - A Banda.mp3",false,0,{"$error":"#N/A"},"Singles\\Herb Alpert & Tijuna Brass - A Banda.mp3"]
["Singles\\Milky Chance - Stolen Dance.mp3",false,0,{"$error":"#N/A"},"Singles\\Milky Chance - Stolen Dance.mp3"]
["Singles\\Gary Glitter - Do You Wanna Touch Me (Oh Yeah).mp3",false,0,{"$error":"#N/A"},"Singles\\Gary Glitter - Do You Wanna Touch Me (Oh Yeah).mp3"]
["Singles\\Devo - Whip It.mp3",false,0,{"$error":"#N/A"},"Singles\\Devo - Whip It.mp3"]
["Singles\\Kiss - I Was Made For Loving You.mp3",false,0,{"$error":"#N/A"},"Singles\\Kiss - I Was Made For Loving You.mp3"]
["Singles\\The Lovin' Spoonful - Did You Ever Have To Make Up Your Mind.mp3",true,0,"Singles\\The Lovin' Spoonful - ","Singles\\\\Lovin' Spoonful, The - Did You Ever Have To Make Up Your Mind.mp3"]
["Singles\\Benny Neyman - 'k Zal Je Heb.mp3",false,0,{"$error":"#N/A"},"Singles\\Benny Neyman - 'k Zal Je Heb.mp3"]
["Singles\\Michael Jackson - Black Or White.mp3",false,0,{"$error":"#N/A"},"Singles\\Michael Jackson - Black Or White.mp3"]
["Singles\\Alan Sorrenti - Tu Sei L'unica Donna Per Me.mp3",false,0,{"$error":"#N/A"},"Singles\\Alan Sorrenti - Tu Sei L'unica Donna Per Me.mp3"]
["Singles\\Joe Dassin - Les Champs Elysées.mp3",false,0,{"$error":"#N/A"},"Singles\\Joe Dassin - Les Champs Elysées.mp3"]
["Singles\\Lionel Richie - Say You Say Me.mp3",false,0,{"$error":"#N/A"},"Singles\\Lionel Richie - Say You Say Me.mp3"]
["Singles\\Andrea Bocelli & Gerardina Trovato - Vivere.mp3",false,0,{"$error":"#N/A"},"Singles\\Andrea Bocelli & Gerardina Trovato - Vivere.mp3"]
["Singles\\Michel Sardou - Les Lacs Du Connemara.mp3",false,0,{"$error":"#N/A"},"Singles\\Michel Sardou - Les Lacs Du Connemara.mp3"]
["Singles\\R. Kelly ft Nas - Did You Ever Think.mp3",false,0,{"$error":"#N/A"},"Singles\\R. Kelly ft Nas - Did You Ever Think.mp3"]
["Singles\\Bruce Springsteen - Born To Run.mp3",false,0,{"$error":"#N/A"},"Singles\\Bruce Springsteen - Born To Run.mp3"]
["Singles\\Thomas Jack - Rivers.mp3",false,0,{"$error":"#N/A"},"Singles\\Thomas Jack - Rivers.mp3"]
["Singles\\Alyssa Reid ft Jump Smokers - Alone Again.mp3",false,0,{"$error":"#N/A"},"Singles\\Alyssa Reid ft Jump Smokers - Alone Again.mp3"]
["Singles\\Alanis Morissette - You Oughta Know.mp3",false,0,{"$error":"#N/A"},"Singles\\Alanis Morissette - You Oughta Know.mp3"]
["Singles\\Ike & Tina Turner - Proud Mary.mp3",false,0,{"$error":"#N/A"},"Singles\\Ike & Tina Turner - Proud Mary.mp3"]
["Singles\\Jason Mraz - I'm Yours.mp3",false,0,{"$error":"#N/A"},"Singles\\Jason Mraz - I'm Yours.mp3"]
["Singles\\Flo Rida ft Sia - Wild Ones.mp3",false,0,{"$error":"#N/A"},"Singles\\Flo Rida ft Sia - Wild Ones.mp3"]
["Singles\\Gene Vincent - Be Bop A Lula.mp3",false,0,{"$error":"#N/A"},"Singles\\Gene Vincent - Be Bop A Lula.mp3"]
["Singles\\Sam Feldt Lucas & Steve ft Wulf - Summer On You.mp3",false,0,{"$error":"#N/A"},"Singles\\Sam Feldt Lucas & Steve ft Wulf - Summer On You.mp3"]
["Singles\\Lionel Richie - Se La.mp3",false,0,{"$error":"#N/A"},"Singles\\Lionel Richie - Se La.mp3"]
["Singles\\Danny Williams - Dancing Easy.mp3",false,0,{"$error":"#N/A"},"Singles\\Danny Williams - Dancing Easy.mp3"]
["Singles\\Wiz Khalifa ft Charlie Puth - See You Again.mp3",false,0,{"$error":"#N/A"},"Singles\\Wiz Khalifa ft Charlie Puth - See You Again.mp3"]
["Singles\\Don Mclean - Vincent.mp3",false,0,{"$error":"#N/A"},"Singles\\Don Mclean - Vincent.mp3"]
["Singles\\Keane - Is It Any Wonder.mp3",false,0,{"$error":"#N/A"},"Singles\\Keane - Is It Any Wonder.mp3"]
["Singles\\The Common Linnets - We Don't Make The Wind Blow.mp3",true,0,"Singles\\The Common Linnets - ","Singles\\\\Common Linnets, The - We Don't Make The Wind Blow.mp3"]
["Singles\\The Rolling Stones - Wild Horses.mp3",true,0,"Singles\\The Rolling Stones - ","Singles\\\\Rolling Stones, The - Wild Horses.mp3"]
["Singles\\Marco Borsato - Afscheid Nemen Bestaat Niet.mp3",false,0,{"$error":"#N/A"},"Singles\\Marco Borsato - Afscheid Nemen Bestaat Niet.mp3"]
["Singles\\Charlie Puth - Attention.mp3",false,0,{"$error":"#N/A"},"Singles\\Charlie Puth - Attention.mp3"]
["Singles\\Herman's Hermits - Mrs Brown You've Got A Lovely Daughter.mp3",false,0,{"$error":"#N/A"},"Singles\\Herman's Hermits - Mrs Brown You've Got A Lovely Daughter.mp3"]
["Singles\\Mike & The Mechanics - St Elmo's Fire.mp3",true,0,{"$error":"#N/A"},"Singles\\Mike & The Mechanics - St Elmo's Fire.mp3"]
["Singles\\Ramones - Rock 'n Roll High School.mp3",false,0,{"$error":"#N/A"},"Singles\\Ramones - Rock 'n Roll High School.mp3"]
["Singles\\Paul Anka - Having My Baby.mp3",false,0,{"$error":"#N/A"},"Singles\\Paul Anka - Having My Baby.mp3"]
["Singles\\Janieck - Feel The Love.mp3",{"$f":"RegexTest(B$1,$A771)","v":true},{"$f":"RegexCount(C$1,$A771)","v":0},{"$f":"RegexFind(D$1,$A771)","v":{"$error":"#N/A"}},{"$f":"RegexReplace(E$1,$A771,F$1)","v":"Singles\\Janieck - Feel The Love.mp3"}]
["Singles\\Frank Sinatra - Love And Marriage.mp3",false,0,{"$error":"#N/A"},"Singles\\Frank Sinatra - Love And Marriage.mp3"]
["Singles\\Bette Midler - Wind Beneath My Wings.mp3",false,0,{"$error":"#N/A"},"Singles\\Bette Midler - Wind Beneath My Wings.mp3"]
["Singles\\Zapp & Roger - I Want To Be Your Man.mp3",false,0,{"$error":"#N/A"},"Singles\\Zapp & Roger - I Want To Be Your Man.mp3"]
["Singles\\Canned Heat - Goin' Up The Country.mp3",true,0,{"$error":"#N/A"},"Singles\\Canned Heat - Goin' Up The Country.mp3"]
["Singles\\The Supremes - Stop! In The Name Of Love.mp3",true,0,"Singles\\The Supremes - ","Singles\\\\Supremes, The - Stop! In The Name Of Love.mp3"]
["Singles\\UB40 - Sing Our Own Song.mp3",false,0,{"$error":"#N/A"},"Singles\\UB40 - Sing Our Own Song.mp3"]
["Singles\\Timbaland & Keri Hilson & D.o.e. - The Way I Are.mp3",true,0,{"$error":"#N/A"},"Singles\\Timbaland & Keri Hilson & D.o.e. - The Way I Are.mp3"]
["Singles\\Nicole McCloud - Don't You Want My Love.mp3",false,0,{"$error":"#N/A"},"Singles\\Nicole McCloud - Don't You Want My Love.mp3"]
["Singles\\The Rolling Stones - Heart Of Stone.mp3",true,0,"Singles\\The Rolling Stones - ","Singles\\\\Rolling Stones, The - Heart Of Stone.mp3"]
["Singles\\Ellie Goulding - Love Me Like You Do.mp3",false,0,{"$error":"#N/A"},"Singles\\Ellie Goulding - Love Me Like You Do.mp3"]
["Singles\\Robin McNamara - Lay A Little Lovin' On Me.mp3",false,0,{"$error":"#N/A"},"Singles\\Robin McNamara - Lay A Little Lovin' On Me.mp3"]
["Singles\\Nena - In Meinem Leben.mp3",false,0,{"$error":"#N/A"},"Singles\\Nena - In Meinem Leben.mp3"]
["Singles\\Dave - Du Cote De Chez Swann.mp3",false,0,{"$error":"#N/A"},"Singles\\Dave - Du Cote De Chez Swann.mp3"]
["Singles\\Tom Jones - Whats New Pussycat.mp3",false,0,{"$error":"#N/A"},"Singles\\Tom Jones - Whats New Pussycat.mp3"]
["Singles\\Marie Myriam - L'Oiseau Et L'Enfant.mp3",false,0,{"$error":"#N/A"},"Singles\\Marie Myriam - L'Oiseau Et L'Enfant.mp3"]
["Singles\\The 5th Dimension - Up, Up And Away (In My Beautiful Balloon).mp3",true,0,"Singles\\The 5th Dimension - ","Singles\\\\5th Dimension, The - Up, Up And Away (In My Beautiful Balloon).mp3"]
["Singles\\Gabrielle - Dreams.mp3",false,0,{"$error":"#N/A"},"Singles\\Gabrielle - Dreams.mp3"]
["Singles\\Labi Siffre - Listen To The Voices.mp3",true,0,{"$error":"#N/A"},"Singles\\Labi Siffre - Listen To The Voices.mp3"]
["Singles\\Alannah Myles - A Song Instead Of A Kiss.mp3",false,0,{"$error":"#N/A"},"Singles\\Alannah Myles - A Song Instead Of A Kiss.mp3"]
["Singles\\Fall Out Boy - Alone Together.mp3",false,0,{"$error":"#N/A"},"Singles\\Fall Out Boy - Alone Together.mp3"]
["Singles\\Harry Chapin - W.O.L.D. (I Am The Morning DJ).mp3",true,0,{"$error":"#N/A"},"Singles\\Harry Chapin - W.O.L.D. (I Am The Morning DJ).mp3"]
["Singles\\Eros Ramazzotti - Ma Che Bello Questo Amore.mp3",false,0,{"$error":"#N/A"},"Singles\\Eros Ramazzotti - Ma Che Bello Questo Amore.mp3"]
["Singles\\Beyonce ft Jay-Z - Crazy In Love.mp3",false,0,{"$error":"#N/A"},"Singles\\Beyonce ft Jay-Z - Crazy In Love.mp3"]
["Singles\\KC & The Sunshine Band - Queen Of Clubs.mp3",true,0,{"$error":"#N/A"},"Singles\\KC & The Sunshine Band - Queen Of Clubs.mp3"]
["Singles\\Chordettes - Lollipop.mp3",false,0,{"$error":"#N/A"},"Singles\\Chordettes - Lollipop.mp3"]
["Singles\\Yazz & The Plastic Population - Stand Up For Your Love Rights.mp3",true,0,{"$error":"#N/A"},"Singles\\Yazz & The Plastic Population - Stand Up For Your Love Rights.mp3"]
["Singles\\Gompie - Alice (Who The Fuck Is).mp3",true,0,{"$error":"#N/A"},"Singles\\Gompie - Alice (Who The Fuck Is).mp3"]
["Singles\\Johnny Hates Jazz - I Don't Want To Be A Hero.mp3",false,0,{"$error":"#N/A"},"Singles\\Johnny Hates Jazz - I Don't Want To Be A Hero.mp3"]
["Singles\\Bon Jovi - Living On A Prayer.mp3",false,0,{"$error":"#N/A"},"Singles\\Bon Jovi - Living On A Prayer.mp3"]
["Singles\\Brotherhood Of Man - Angelo.mp3",false,0,{"$error":"#N/A"},"Singles\\Brotherhood Of Man - Angelo.mp3"]
["Singles\\The Cats - One Way Wind.mp3",true,0,"Singles\\The Cats - ","Singles\\\\Cats, The - One Way Wind.mp3"]
["Singles\\Hans De Booij - Een Vrouw Zoals Jij.mp3",false,0,{"$error":"#N/A"},"Singles\\Hans De Booij - Een Vrouw Zoals Jij.mp3"]
["Singles\\Los Diablos - Un Rayo Del Sol.mp3",false,0,{"$error":"#N/A"},"Singles\\Los Diablos - Un Rayo Del Sol.mp3"]
["Singles\\Live - Run To The Water.mp3",true,0,{"$error":"#N/A"},"Singles\\Live - Run To The Water.mp3"]
["Singles\\Bonnie Tyler & Shakin' Stevens - It's A Rockin' Good Way.mp3",false,0,{"$error":"#N/A"},"Singles\\Bonnie Tyler & Shakin' Stevens - It's A Rockin' Good Way.mp3"]
["Singles\\O'Jays - I Love Music.mp3",false,0,{"$error":"#N/A"},"Singles\\O'Jays - I Love Music.mp3"]
["Singles\\Bon Jovi - You Give Love A Bad Name.mp3",false,0,{"$error":"#N/A"},"Singles\\Bon Jovi - You Give Love A Bad Name.mp3"]
["Singles\\Trijntje Oosterhuis - Vlieg Met Me Mee (Het Avontuur).mp3",false,0,{"$error":"#N/A"},"Singles\\Trijntje Oosterhuis - Vlieg Met Me Mee (Het Avontuur).mp3"]
["Singles\\Dimitri Van Toren - He, Kom Aan.mp3",false,0,{"$error":"#N/A"},"Singles\\Dimitri Van Toren - He, Kom Aan.mp3"]
["Singles\\Pretenders - 2000 Miles.mp3",false,0,{"$error":"#N/A"},"Singles\\Pretenders - 2000 Miles.mp3"]
["Singles\\Tom Petty - A Face In The Crowd.mp3",true,0,{"$error":"#N/A"},"Singles\\Tom Petty - A Face In The Crowd.mp3"]
["Singles\\Wrabel - 11 Blocks.mp3",false,0,{"$error":"#N/A"},"Singles\\Wrabel - 11 Blocks.mp3"]
["Singles\\The Ritchie Family - Best Disco In Town.mp3",true,0,"Singles\\The Ritchie Family - ","Singles\\\\Ritchie Family, The - Best Disco In Town.mp3"]
["Singles\\Wayne Fontana - Pamela Pamela.mp3",false,0,{"$error":"#N/A"},"Singles\\Wayne Fontana - Pamela Pamela.mp3"]
["Singles\\Basto! - Again And Again.mp3",false,0,{"$error":"#N/A"},"Singles\\Basto! - Again And Again.mp3"]
["Singles\\The Wanted - Chasing The Sun.mp3",true,0,"Singles\\The Wanted - ","Singles\\\\Wanted, The - Chasing The Sun.mp3"]
["Singles\\Cliff Richard - Maria No Mas.mp3",false,0,{"$error":"#N/A"},"Singles\\Cliff Richard - Maria No Mas.mp3"]
["Singles\\Bryan Adams - Everything I Do I Do It For You.mp3",false,0,{"$error":"#N/A"},"Singles\\Bryan Adams - Everything I Do I Do It For You.mp3"]
["Singles\\Sam Means - Yeah Yeah.mp3",false,0,{"$error":"#N/A"},"Singles\\Sam Means - Yeah Yeah.mp3"]
["Singles\\Bertus Staigerpaip - Rits.mp3",false,0,{"$error":"#N/A"},"Singles\\Bertus Staigerpaip - Rits.mp3"]
["Singles\\Fais - Know You Better.mp3",false,0,{"$error":"#N/A"},"Singles\\Fais - Know You Better.mp3"]
["Singles\\Miquel Brown - So Many Men So Little Time.mp3",false,0,{"$error":"#N/A"},"Singles\\Miquel Brown - So Many Men So Little Time.mp3"]
["Singles\\Pet Shop Boys - Heart.mp3",false,0,{"$error":"#N/A"},"Singles\\Pet Shop Boys - Heart.mp3"]
["Singles\\Helen Reddy - I Don't Know How To Love Him.mp3",false,0,{"$error":"#N/A"},"Singles\\Helen Reddy - I Don't Know How To Love Him.mp3"]
["Singles\\Erma Franklin - Piece Of My Heart.mp3",false,0,{"$error":"#N/A"},"Singles\\Erma Franklin - Piece Of My Heart.mp3"]
["Singles\\Massara - Margherita.mp3",false,0,{"$error":"#N/A"},"Singles\\Massara - Margherita.mp3"]
["Singles\\A-Ha - Cry Wolf.mp3",false,0,{"$error":"#N/A"},"Singles\\A-Ha - Cry Wolf.mp3"]
["Singles\\The Ventures - Hawaii Five-O.mp3",true,0,"Singles\\The Ventures - ","Singles\\\\Ventures, The - Hawaii Five-O.mp3"]
["Singles\\Bennet & Bee - Take It Or Leave It.mp3",false,0,{"$error":"#N/A"},"Singles\\Bennet & Bee - Take It Or Leave It.mp3"]
["Singles\\Jenny Arian & Frans Halsema - Vluchten Kan Niet Meer.mp3",false,0,{"$error":"#N/A"},"Singles\\Jenny Arian & Frans Halsema - Vluchten Kan Niet Meer.mp3"]
["Singles\\Philadelphia International All-Stars - Let's Clean Up The Ghetto.mp3",true,0,{"$error":"#N/A"},"Singles\\Philadelphia International All-Stars - Let's Clean Up The Ghetto.mp3"]
["Singles\\Phil Collins - Can't Stop Loving You.mp3",false,0,{"$error":"#N/A"},"Singles\\Phil Collins - Can't Stop Loving You.mp3"]
["Singles\\Lewis Capaldi - Someone You Loved.mp3",false,0,{"$error":"#N/A"},"Singles\\Lewis Capaldi - Someone You Loved.mp3"]
["Singles\\Adele - Skyfall.mp3",{"$f":"RegexTest(B$1,$A835)","v":false},{"$f":"RegexCount(C$1,$A835)","v":0},{"$f":"RegexFind(D$1,$A835)","v":{"$error":"#N/A"}},{"$f":"RegexReplace(E$1,$A835,F$1)","v":"Singles\\Adele - Skyfall.mp3"}]
["Singles\\Opus - Live Is Life.mp3",false,0,{"$error":"#N/A"},"Singles\\Opus - Live Is Life.mp3"]
["Singles\\Joe Jackson - (He's A) Shape In A Drape.mp3",false,0,{"$error":"#N/A"},"Singles\\Joe Jackson - (He's A) Shape In A Drape.mp3"]
["Singles\\The Walkers - There's No More Corn On The Brasos.mp3",true,1,"Singles\\The Walkers - ","Singles\\\\Walkers, The - There's No More Corn On The Brasos.mp3"]
["Singles\\First Choice - Dr Love.mp3",false,0,{"$error":"#N/A"},"Singles\\First Choice - Dr Love.mp3"]
["Singles\\Alain Clark - This Ain't Gonna Work.mp3",false,0,{"$error":"#N/A"},"Singles\\Alain Clark - This Ain't Gonna Work.mp3"]
["Singles\\Neil Diamond - Hello Again.mp3",false,0,{"$error":"#N/A"},"Singles\\Neil Diamond - Hello Again.mp3"]
["Singles\\James Blunt - Goodbye My Lover.mp3",false,0,{"$error":"#N/A"},"Singles\\James Blunt - Goodbye My Lover.mp3"]
["Singles\\The Bee Gees - I've Gotta Get A Message To You.mp3",true,0,"Singles\\The Bee Gees - ","Singles\\\\Bee Gees, The - I've Gotta Get A Message To You.mp3"]
["Singles\\The Police - Invisible Sun.mp3",true,0,"Singles\\The Police - ","Singles\\\\Police, The - Invisible Sun.mp3"]
["Singles\\Roy Orbison - She's A Mystery To Me.mp3",false,0,{"$error":"#N/A"},"Singles\\Roy Orbison - She's A Mystery To Me.mp3"]
["Singles\\Andreas Bourani - Auf Uns.mp3",false,0,{"$error":"#N/A"},"Singles\\Andreas Bourani - Auf Uns.mp3"]
["Singles\\The Flirtations - Someone Out There.mp3",true,1,"Singles\\The Flirtations - ","Singles\\\\Flirtations, The - Someone Out There.mp3"]
["Singles\\O'Jays - Love Train.mp3",false,0,{"$error":"#N/A"},"Singles\\O'Jays - Love Train.mp3"]
["Singles\\Golden Earring - Daddy Buy Me A Girl.mp3",false,0,{"$error":"#N/A"},"Singles\\Golden Earring - Daddy Buy Me A Girl.mp3"]
["Singles\\Golden Earring - Long Blond Animal.mp3",false,0,{"$error":"#N/A"},"Singles\\Golden Earring - Long Blond Animal.mp3"]
["Singles\\The Broads - Sing Sing Sing.mp3",true,0,"Singles\\The Broads - ","Singles\\\\Broads, The - Sing Sing Sing.mp3"]
["Singles\\The Beach Boys - Heroes And Villains.mp3",true,0,"Singles\\The Beach Boys - ","Singles\\\\Beach Boys, The - Heroes And Villains.mp3"]
["Singles\\Dua Lipa - Homesick.mp3",false,0,{"$error":"#N/A"},"Singles\\Dua Lipa - Homesick.mp3"]
["Singles\\Alan Price - Changes.mp3",false,0,{"$error":"#N/A"},"Singles\\Alan Price - Changes.mp3"]
["Singles\\Van Morrison - Moondance.mp3",false,0,{"$error":"#N/A"},"Singles\\Van Morrison - Moondance.mp3"]
["Singles\\Robbie Williams - She's Madonna.mp3",false,0,{"$error":"#N/A"},"Singles\\Robbie Williams - She's Madonna.mp3"]
["Singles\\Guus Meeuwis - Geef Mij Je Angst.mp3",false,0,{"$error":"#N/A"},"Singles\\Guus Meeuwis - Geef Mij Je Angst.mp3"]
["Singles\\Cocktail Trio - Kangoeroe Eiland.mp3",false,0,{"$error":"#N/A"},"Singles\\Cocktail Trio - Kangoeroe Eiland.mp3"]
["Singles\\Peter Koelewijn - Kom Van Dat Dak Af.mp3",false,0,{"$error":"#N/A"},"Singles\\Peter Koelewijn - Kom Van Dat Dak Af.mp3"]
["Singles\\Rod Stewart - Every Beat Of My Heart.mp3",false,0,{"$error":"#N/A"},"Singles\\Rod Stewart - Every Beat Of My Heart.mp3"]
["Singles\\Smash Mouth - All Star.mp3",false,0,{"$error":"#N/A"},"Singles\\Smash Mouth - All Star.mp3"]
["Singles\\Sophia George - Girlie Girlie.mp3",false,0,{"$error":"#N/A"},"Singles\\Sophia George - Girlie Girlie.mp3"]
["Singles\\Julio Iglesias & Willie Nelson - To All The Girls I've Loved Before.mp3",true,0,{"$error":"#N/A"},"Singles\\Julio Iglesias & Willie Nelson - To All The Girls I've Loved Before.mp3"]
["Singles\\Nick & Simon - Een Nieuwe Dag.mp3",false,0,{"$error":"#N/A"},"Singles\\Nick & Simon - Een Nieuwe Dag.mp3"]
["Singles\\The Jags - Back Of My Hand.mp3",true,0,"Singles\\The Jags - ","Singles\\\\Jags, The - Back Of My Hand.mp3"]
["Singles\\The Casuals - Jesamine.mp3",true,0,"Singles\\The Casuals - ","Singles\\\\Casuals, The - Jesamine.mp3"]
["Singles\\Hanson - Mmmbop.mp3",false,0,{"$error":"#N/A"},"Singles\\Hanson - Mmmbop.mp3"]
["Singles\\Righeira - Vamos A La Playa.mp3",false,0,{"$error":"#N/A"},"Singles\\Righeira - Vamos A La Playa.mp3"]
["Singles\\Bill Medley & Jennifer Warnes - I've Had The Time Of My Life.mp3",true,0,{"$error":"#N/A"},"Singles\\Bill Medley & Jennifer Warnes - I've Had The Time Of My Life.mp3"]
["Singles\\Jason Derulo - Want To Want Me.mp3",false,0,{"$error":"#N/A"},"Singles\\Jason Derulo - Want To Want Me.mp3"]
["Singles\\Milk & Honey - Hallelujah.mp3",false,0,{"$error":"#N/A"},"Singles\\Milk & Honey - Hallelujah.mp3"]
["Singles\\Thomas Dolby - She Blinded Me With Science.mp3",false,0,{"$error":"#N/A"},"Singles\\Thomas Dolby - She Blinded Me With Science.mp3"]
["Singles\\Anouk - I Don't Wanna Hurt.mp3",false,0,{"$error":"#N/A"},"Singles\\Anouk - I Don't Wanna Hurt.mp3"]
["Singles\\Hans De Booij - Annabel.mp3",false,0,{"$error":"#N/A"},"Singles\\Hans De Booij - Annabel.mp3"]
["Singles\\O-Zone - Dragostea Din Tei.mp3",false,0,{"$error":"#N/A"},"Singles\\O-Zone - Dragostea Din Tei.mp3"]
["Singles\\Van Halen - Running With The Devil.mp3",true,0,{"$error":"#N/A"},"Singles\\Van Halen - Running With The Devil.mp3"]
["Singles\\Tee Set - Linda Linda.mp3",false,0,{"$error":"#N/A"},"Singles\\Tee Set - Linda Linda.mp3"]
["Singles\\Elton John - Daniel.mp3",false,0,{"$error":"#N/A"},"Singles\\Elton John - Daniel.mp3"]
["Singles\\Radiohead - Creep.mp3",false,0,{"$error":"#N/A"},"Singles\\Radiohead - Creep.mp3"]
["Singles\\Yarbrough & Peoples - Heartbeats.mp3",false,0,{"$error":"#N/A"},"Singles\\Yarbrough & Peoples - Heartbeats.mp3"]
["Singles\\Phil Collins - Another Day In Paradise.mp3",false,0,{"$error":"#N/A"},"Singles\\Phil Collins - Another Day In Paradise.mp3"]
["Singles\\The Chordettes - Mr Sandman.mp3",true,0,"Singles\\The Chordettes - ","Singles\\\\Chordettes, The - Mr Sandman.mp3"]
["Singles\\Alejandro Sanz & Shakira - La Tortura.mp3",false,0,{"$error":"#N/A"},"Singles\\Alejandro Sanz & Shakira - La Tortura.mp3"]
["Singles\\Dobie Gray - Drift Away.mp3",false,0,{"$error":"#N/A"},"Singles\\Dobie Gray - Drift Away.mp3"]
["Singles\\Imagine Dragons - I Bet My Life.mp3",false,0,{"$error":"#N/A"},"Singles\\Imagine Dragons - I Bet My Life.mp3"]
["Singles\\Abba - Voulez Vous.mp3",false,0,{"$error":"#N/A"},"Singles\\Abba - Voulez Vous.mp3"]
["Singles\\Muenchener Freiheit - Tausendmal Du.mp3",false,0,{"$error":"#N/A"},"Singles\\Muenchener Freiheit - Tausendmal Du.mp3"]
["Singles\\Conny Vandenbos & Janis Ian - Don't Leave Tonight.mp3",false,0,{"$error":"#N/A"},"Singles\\Conny Vandenbos & Janis Ian - Don't Leave Tonight.mp3"]
["Singles\\Frizzle Sizzle - Alles Heeft Een Ritme.mp3",false,0,{"$error":"#N/A"},"Singles\\Frizzle Sizzle - Alles Heeft Een Ritme.mp3"]
["Singles\\Brothers Johnson - Stomp.mp3",false,0,{"$error":"#N/A"},"Singles\\Brothers Johnson - Stomp.mp3"]
["Singles\\Santana - Say It Again.mp3",false,0,{"$error":"#N/A"},"Singles\\Santana - Say It Again.mp3"]
["Singles\\Bryan Adams - I'm Ready.mp3",false,0,{"$error":"#N/A"},"Singles\\Bryan Adams - I'm Ready.mp3"]
["Singles\\The Bee Gees - New York Mining Disaster 1941.mp3",true,0,"Singles\\The Bee Gees - ","Singles\\\\Bee Gees, The - New York Mining Disaster 1941.mp3"]
["Singles\\Gavin James - The Book Of Love.mp3",true,0,{"$error":"#N/A"},"Singles\\Gavin James - The Book Of Love.mp3"]
["Singles\\Bob Dylan - Hurricane.mp3",false,0,{"$error":"#N/A"},"Singles\\Bob Dylan - Hurricane.mp3"]
["Singles\\Tiësto, Jonas Blue & Rita Ora - Ritual.mp3",false,0,{"$error":"#N/A"},"Singles\\Tiësto, Jonas Blue & Rita Ora - Ritual.mp3"]
["Singles\\Duane Eddy - Because They're Young.mp3",true,0,{"$error":"#N/A"},"Singles\\Duane Eddy - Because They're Young.mp3"]
["Singles\\Rosie Vela - Magic Smile.mp3",false,0,{"$error":"#N/A"},"Singles\\Rosie Vela - Magic Smile.mp3"]
["Singles\\Jermaine Jackson & Pia Zadorra - When The Rain Begins To Fall.mp3",{"$f":"RegexTest(B$1,$A899)","v":true},{"$f":"RegexCount(C$1,$A899)","v":0},{"$f":"RegexFind(D$1,$A899)","v":{"$error":"#N/A"}},{"$f":"RegexReplace(E$1,$A899,F$1)","v":"Singles\\Jermaine Jackson & Pia Zadorra - When The Rain Begins To Fall.mp3"}]
["Singles\\Everly Brothers - Love Is Strange.mp3",false,0,{"$error":"#N/A"},"Singles\\Everly Brothers - Love Is Strange.mp3"]
["Singles\\Kensington - Done With It.mp3",false,0,{"$error":"#N/A"},"Singles\\Kensington - Done With It.mp3"]
["Singles\\Joan Jett & The Blackhearts - I Hate Myself For Loving You.mp3",true,0,{"$error":"#N/A"},"Singles\\Joan Jett & The Blackhearts - I Hate Myself For Loving You.mp3"]
["Singles\\Alexis Jordan - Hush Hush.mp3",false,0,{"$error":"#N/A"},"Singles\\Alexis Jordan - Hush Hush.mp3"]
["Singles\\Diana Ross - Why Do Fools Fall In Love.mp3",false,0,{"$error":"#N/A"},"Singles\\Diana Ross - Why Do Fools Fall In Love.mp3"]
["Singles\\The Beatles - She's Leaving Home.mp3",true,0,"Singles\\The Beatles - ","Singles\\\\Beatles, The - She's Leaving Home.mp3"]
["Singles\\Wizzard - See My Baby Jive.mp3",false,0,{"$error":"#N/A"},"Singles\\Wizzard - See My Baby Jive.mp3"]
["Singles\\Alec Benjamin - Let Me Down Slowly.mp3",false,0,{"$error":"#N/A"},"Singles\\Alec Benjamin - Let Me Down Slowly.mp3"]
["Singles\\Marianne Rosenberg - Ich Bin Wie Du.mp3",false,0,{"$error":"#N/A"},"Singles\\Marianne Rosenberg - Ich Bin Wie Du.mp3"]
["Singles\\Freddy Quinn - Junge Komm Bald Wieder.mp3",false,0,{"$error":"#N/A"},"Singles\\Freddy Quinn - Junge Komm Bald Wieder.mp3"]
["Singles\\Deorro ft Elvis Crespo - Bailar.mp3",false,0,{"$error":"#N/A"},"Singles\\Deorro ft Elvis Crespo - Bailar.mp3"]
["Singles\\Simplistisch Verbond - Zoek Jezelf.mp3",false,0,{"$error":"#N/A"},"Singles\\Simplistisch Verbond - Zoek Jezelf.mp3"]
["Singles\\Tammy Wynette - Stand By Your Man.mp3",false,0,{"$error":"#N/A"},"Singles\\Tammy Wynette - Stand By Your Man.mp3"]
["Singles\\Lia Velasco - 5.05 PM.mp3",false,0,{"$error":"#N/A"},"Singles\\Lia Velasco - 5.05 PM.mp3"]
["Singles\\U2 - Mysterious Ways.mp3",false,0,{"$error":"#N/A"},"Singles\\U2 - Mysterious Ways.mp3"]
["Singles\\Jack Johnson - Sitting, Waiting, Wishing.mp3",false,0,{"$error":"#N/A"},"Singles\\Jack Johnson - Sitting, Waiting, Wishing.mp3"]
["Singles\\Mink DeVille - Mazurka.mp3",false,0,{"$error":"#N/A"},"Singles\\Mink DeVille - Mazurka.mp3"]
["Singles\\Justin Bieber - What Do You Mean.mp3",false,0,{"$error":"#N/A"},"Singles\\Justin Bieber - What Do You Mean.mp3"]
["Singles\\Rod Stewart - Baby Jane.mp3",false,0,{"$error":"#N/A"},"Singles\\Rod Stewart - Baby Jane.mp3"]
["Singles\\Mike & The Mechanics - Over My Shoulder.mp3",true,0,{"$error":"#N/A"},"Singles\\Mike & The Mechanics - Over My Shoulder.mp3"]
["Singles\\Nickelback - Photograph.mp3",false,0,{"$error":"#N/A"},"Singles\\Nickelback - Photograph.mp3"]
["Singles\\Sammy Davis Jr - The Candy Man.mp3",true,0,{"$error":"#N/A"},"Singles\\Sammy Davis Jr - The Candy Man.mp3"]
["Singles\\Celine Dion - Think Twice.mp3",false,0,{"$error":"#N/A"},"Singles\\Celine Dion - Think Twice.mp3"]
["Singles\\The Rolling Stones - Angie.mp3",true,0,"Singles\\The Rolling Stones - ","Singles\\\\Rolling Stones, The - Angie.mp3"]
["Singles\\Michael Jackson - Stranger In Moscow.mp3",false,0,{"$error":"#N/A"},"Singles\\Michael Jackson - Stranger In Moscow.mp3"]
["Singles\\A-Ha - The Living Daylights.mp3",true,0,{"$error":"#N/A"},"Singles\\A-Ha - The Living Daylights.mp3"]
["Singles\\Ilse DeLange - Blue Bittersweet.mp3",false,0,{"$error":"#N/A"},"Singles\\Ilse DeLange - Blue Bittersweet.mp3"]
["Singles\\Oliver Onions - Dune Buggy.mp3",false,0,{"$error":"#N/A"},"Singles\\Oliver Onions - Dune Buggy.mp3"]
["Singles\\Shakira ft Freshly Ground - Waka Waka (This Time For Africa).mp3",false,0,{"$error":"#N/A"},"Singles\\Shakira ft Freshly Ground - Waka Waka (This Time For Africa).mp3"]
["Singles\\Status Quo - Anniversary Waltz (Part1).mp3",false,0,{"$error":"#N/A"},"Singles\\Status Quo - Anniversary Waltz (Part1).mp3"]
["Singles\\Marianne Faithfull - The Ballad Of Lucy Jordan.mp3",true,0,{"$error":"#N/A"},"Singles\\Marianne Faithfull - The Ballad Of Lucy Jordan.mp3"]
["Singles\\Alain Barriere & Nicole Croisille - Tu T'en Vas.mp3",false,0,{"$error":"#N/A"},"Singles\\Alain Barriere & Nicole Croisille - Tu T'en Vas.mp3"]
["Singles\\Robert Long - Iedereen Doet Het.mp3",false,0,{"$error":"#N/A"},"Singles\\Robert Long - Iedereen Doet Het.mp3"]
["Singles\\Ed Sheeran - Photograph.mp3",false,0,{"$error":"#N/A"},"Singles\\Ed Sheeran - Photograph.mp3"]
["Singles\\The Script ft Will.I.Am - Hall Of Fame.mp3",true,0,"Singles\\The Script ft Will.I.Am - ","Singles\\\\Script ft Will.I.Am, The - Hall Of Fame.mp3"]
["Singles\\Shocking Blue - Send Me A Postcard.mp3",false,0,{"$error":"#N/A"},"Singles\\Shocking Blue - Send Me A Postcard.mp3"]
["Singles\\Kirsty Maccoll - A Guy Works Down The Chip Shop.mp3",true,0,{"$error":"#N/A"},"Singles\\Kirsty Maccoll - A Guy Works Down The Chip Shop.mp3"]
["Singles\\Pixie Lott - Mama Do.mp3",false,0,{"$error":"#N/A"},"Singles\\Pixie Lott - Mama Do.mp3"]
["Singles\\Cat Stevens - Father And Son.mp3",false,0,{"$error":"#N/A"},"Singles\\Cat Stevens - Father And Son.mp3"]
["Singles\\Georgie Fame - Sunny.mp3",false,0,{"$error":"#N/A"},"Singles\\Georgie Fame - Sunny.mp3"]
["Singles\\Bastille - Laura Palmer.mp3",false,0,{"$error":"#N/A"},"Singles\\Bastille - Laura Palmer.mp3"]
["Singles\\Neil Young - Harvest.mp3",false,0,{"$error":"#N/A"},"Singles\\Neil Young - Harvest.mp3"]
["Singles\\Patty & Shift - Wonderful.mp3",false,0,{"$error":"#N/A"},"Singles\\Patty & Shift - Wonderful.mp3"]
["Singles\\Kane - Damn Those Eyes.mp3",false,0,{"$error":"#N/A"},"Singles\\Kane - Damn Those Eyes.mp3"]
["Singles\\Whitney Houston - Love Will Save The Day.mp3",true,0,{"$error":"#N/A"},"Singles\\Whitney Houston - Love Will Save The Day.mp3"]
["Singles\\Garland Jeffreys - Wild In The Streets.mp3",true,0,{"$error":"#N/A"},"Singles\\Garland Jeffreys - Wild In The Streets.mp3"]
["Singles\\David Bowie & Tina Turner - Tonight.mp3",false,0,{"$error":"#N/A"},"Singles\\David Bowie & Tina Turner - Tonight.mp3"]
["Singles\\Spargo - One Night Affair.mp3",false,0,{"$error":"#N/A"},"Singles\\Spargo - One Night Affair.mp3"]
["Singles\\A Great Big World Ft Christina Aguillera - Say Something.mp3",false,0,{"$error":"#N/A"},"Singles\\A Great Big World Ft Christina Aguillera - Say Something.mp3"]
["Singles\\Pointer Sisters - Fire.mp3",false,0,{"$error":"#N/A"},"Singles\\Pointer Sisters - Fire.mp3"]
["Singles\\Johnny Mathis & Deniece Williams - Too Much, Too Little, Too Late.mp3",false,0,{"$error":"#N/A"},"Singles\\Johnny Mathis & Deniece Williams - Too Much, Too Little, Too Late.mp3"]
["Singles\\Tröckener Kecks - Met Hart En Ziel.mp3",false,0,{"$error":"#N/A"},"Singles\\Tröckener Kecks - Met Hart En Ziel.mp3"]
["Singles\\Pink - Family Portrait.mp3",false,0,{"$error":"#N/A"},"Singles\\Pink - Family Portrait.mp3"]
["Singles\\Barbra Streisand & The Bee Gees - Woman In Love.mp3",true,0,{"$error":"#N/A"},"Singles\\Barbra Streisand & The Bee Gees - Woman In Love.mp3"]
["Singles\\Phillip Phillips - Home.mp3",false,0,{"$error":"#N/A"},"Singles\\Phillip Phillips - Home.mp3"]
["Singles\\Flirtations - Nothing But A Heartache.mp3",false,0,{"$error":"#N/A"},"Singles\\Flirtations - Nothing But A Heartache.mp3"]
["Singles\\The Beatles - For No One.mp3",true,0,"Singles\\The Beatles - ","Singles\\\\Beatles, The - For No One.mp3"]
["Singles\\Enya - Orinoco Flow.mp3",false,0,{"$error":"#N/A"},"Singles\\Enya - Orinoco Flow.mp3"]
["Singles\\Doris Day - Sentimental Journey.mp3",false,0,{"$error":"#N/A"},"Singles\\Doris Day - Sentimental Journey.mp3"]
["Singles\\Andy Williams - Speak Softly Love.mp3",false,0,{"$error":"#N/A"},"Singles\\Andy Williams - Speak Softly Love.mp3"]
["Singles\\Celine Dion - Thats The Way It Is.mp3",true,0,{"$error":"#N/A"},"Singles\\Celine Dion - Thats The Way It Is.mp3"]
["Singles\\Sammy Johns - Chevy Van.mp3",false,0,{"$error":"#N/A"},"Singles\\Sammy Johns - Chevy Van.mp3"]
["Singles\\Prince - I Would Die 4 U (For You).mp3",false,0,{"$error":"#N/A"},"Singles\\Prince - I Would Die 4 U (For You).mp3"]
["Singles\\Imagine Dragons - Whatever It Takes.mp3",{"$f":"RegexTest(B$1,$A963)","v":false},{"$f":"RegexCount(C$1,$A963)","v":0},{"$f":"RegexFind(D$1,$A963)","v":{"$error":"#N/A"}},{"$f":"RegexReplace(E$1,$A963,F$1)","v":"Singles\\Imagine Dragons - Whatever It Takes.mp3"}]
["Singles\\Johnny Pearson - Sleepy Shores.mp3",false,0,{"$error":"#N/A"},"Singles\\Johnny Pearson - Sleepy Shores.mp3"]
["Singles\\Pet Shop Boys & Dusty Springfield - Nothing Has Been Proved.mp3",false,0,{"$error":"#N/A"},"Singles\\Pet Shop Boys & Dusty Springfield - Nothing Has Been Proved.mp3"]
["Singles\\Katy Perry - I Kissed A Girl.mp3",false,0,{"$error":"#N/A"},"Singles\\Katy Perry - I Kissed A Girl.mp3"]
["Singles\\James Ingram & Patti Austin - Baby Come To Me.mp3",false,0,{"$error":"#N/A"},"Singles\\James Ingram & Patti Austin - Baby Come To Me.mp3"]
["Singles\\Cliff Richard - Some People.mp3",false,0,{"$error":"#N/A"},"Singles\\Cliff Richard - Some People.mp3"]
["Singles\\Handsome Poets - Sky On Fire.mp3",false,0,{"$error":"#N/A"},"Singles\\Handsome Poets - Sky On Fire.mp3"]
["Singles\\Alexandra Stan - Mr Saxobeat.mp3",false,0,{"$error":"#N/A"},"Singles\\Alexandra Stan - Mr Saxobeat.mp3"]
["Singles\\Queen - Tie Your Mother Down.mp3",false,0,{"$error":"#N/A"},"Singles\\Queen - Tie Your Mother Down.mp3"]
["Singles\\Intwine - Happy.mp3",false,0,{"$error":"#N/A"},"Singles\\Intwine - Happy.mp3"]
["Singles\\Bobby Vinton - Blue Velvet.mp3",false,0,{"$error":"#N/A"},"Singles\\Bobby Vinton - Blue Velvet.mp3"]
["Singles\\Take That - Patience.mp3",false,0,{"$error":"#N/A"},"Singles\\Take That - Patience.mp3"]
["Singles\\Pilot - January.mp3",false,0,{"$error":"#N/A"},"Singles\\Pilot - January.mp3"]
["Singles\\Queen - Innuendo.mp3",false,0,{"$error":"#N/A"},"Singles\\Queen - Innuendo.mp3"]
["Singles\\Sam Cooke - You Send Me.mp3",false,0,{"$error":"#N/A"},"Singles\\Sam Cooke - You Send Me.mp3"]
["Singles\\Blondie - Atomic.mp3",false,0,{"$error":"#N/A"},"Singles\\Blondie - Atomic.mp3"]
["Singles\\Leona Lewis - A Moment Like This.mp3",false,0,{"$error":"#N/A"},"Singles\\Leona Lewis - A Moment Like This.mp3"]
["Singles\\Marmalade - Rainbow.mp3",false,0,{"$error":"#N/A"},"Singles\\Marmalade - Rainbow.mp3"]
["Singles\\Jacques Herb - Manuela.mp3",false,0,{"$error":"#N/A"},"Singles\\Jacques Herb - Manuela.mp3"]
["Singles\\Tina Turner - Private Dancer.mp3",false,0,{"$error":"#N/A"},"Singles\\Tina Turner - Private Dancer.mp3"]
["Singles\\Di-Rect - Young Ones.mp3",false,0,{"$error":"#N/A"},"Singles\\Di-Rect - Young Ones.mp3"]
["Singles\\Nicki Minaj - Starships.mp3",false,0,{"$error":"#N/A"},"Singles\\Nicki Minaj - Starships.mp3"]
["Singles\\Salt 'n' Pepa - Push It.mp3",false,0,{"$error":"#N/A"},"Singles\\Salt 'n' Pepa - Push It.mp3"]
["Singles\\Piet, Adèle & Leen - Als Je Mekaar Niet Meer Vertrouwen Kan.mp3",false,0,{"$error":"#N/A"},"Singles\\Piet, Adèle & Leen - Als Je Mekaar Niet Meer Vertrouwen Kan.mp3"]
["Singles\\Fifth Harmony ft Kid Ink - Worth It.mp3",false,0,{"$error":"#N/A"},"Singles\\Fifth Harmony ft Kid Ink - Worth It.mp3"]
["Singles\\Reel 2 Real ft The Mad Stuntman - I Like To Move It.mp3",true,0,{"$error":"#N/A"},"Singles\\Reel 2 Real ft The Mad Stuntman - I Like To Move It.mp3"]
["Singles\\Righeira - No Tengo Dinero.mp3",false,0,{"$error":"#N/A"},"Singles\\Righeira - No Tengo Dinero.mp3"]
["Singles\\Kenny Rogers - Lucille.mp3",false,0,{"$error":"#N/A"},"Singles\\Kenny Rogers - Lucille.mp3"]
["Singles\\Modern Talking - Cheri Cheri Lady.mp3",false,0,{"$error":"#N/A"},"Singles\\Modern Talking - Cheri Cheri Lady.mp3"]
["Singles\\Mike & The Mechanics - The Living Years.mp3",true,0,{"$error":"#N/A"},"Singles\\Mike & The Mechanics - The Living Years.mp3"]
["Singles\\Steely Dan - Bodhisattva.mp3",false,0,{"$error":"#N/A"},"Singles\\Steely Dan - Bodhisattva.mp3"]
["Singles\\J Geils Band - Centerfold.mp3",false,0,{"$error":"#N/A"},"Singles\\J Geils Band - Centerfold.mp3"]
["Singles\\10cc - Life Is A Minestrone.mp3",false,0,{"$error":"#N/A"},"Singles\\10cc - Life Is A Minestrone.mp3"]
["Singles\\The Yardbirds - Still I'm Sad.mp3",true,0,"Singles\\The Yardbirds - ","Singles\\\\Yardbirds, The - Still I'm Sad.mp3"]
["Singles\\Train - Angel In Blue Jeans.mp3",false,0,{"$error":"#N/A"},"Singles\\Train - Angel In Blue Jeans.mp3"]
["Singles\\Bobby Vinton - Roses Are Red (My Love).mp3",false,0,{"$error":"#N/A"},"Singles\\Bobby Vinton - Roses Are Red (My Love).mp3"]
["Singles\\Kate Bush - Wuthering Heights.mp3",false,0,{"$error":"#N/A"},"Singles\\Kate Bush - Wuthering Heights.mp3"]
["Singles\\John Mayer - Heartbreak Warfare.mp3",false,0,{"$error":"#N/A"},"Singles\\John Mayer - Heartbreak Warfare.mp3"]
["Singles\\Anouk - Modern World.mp3",false,0,{"$error":"#N/A"},"Singles\\Anouk - Modern World.mp3"]
["Singles\\Bingo Players - Cry (Just A Little).mp3",false,0,{"$error":"#N/A"},"Singles\\Bingo Players - Cry (Just A Little).mp3"]
["Singles\\Madcon ft Ray Dalton - Don't Worry.mp3",false,0,{"$error":"#N/A"},"Singles\\Madcon ft Ray Dalton - Don't Worry.mp3"]
["Singles\\George Baker Selection - Marie Jeanne.mp3",false,0,{"$error":"#N/A"},"Singles\\George Baker Selection - Marie Jeanne.mp3"]
["Singles\\Lady Gaga - Million Reasons.mp3",false,0,{"$error":"#N/A"},"Singles\\Lady Gaga - Million Reasons.mp3"]
["Singles\\Polle Eduard - Ik Wil Jou.mp3",false,0,{"$error":"#N/A"},"Singles\\Polle Eduard - Ik Wil Jou.mp3"]
["Singles\\Armin Van Buuren ft Mr Probz - Another You.mp3",false,0,{"$error":"#N/A"},"Singles\\Armin Van Buuren ft Mr Probz - Another You.mp3"]
["Singles\\Jan & Dean - Surf City.mp3",false,0,{"$error":"#N/A"},"Singles\\Jan & Dean - Surf City.mp3"]
["Singles\\The Wanted - Glad You Came.mp3",true,0,"Singles\\The Wanted - ","Singles\\\\Wanted, The - Glad You Came.mp3"]
["Singles\\Stereophonics - Have A Nice Day.mp3",false,0,{"$error":"#N/A"},"Singles\\Stereophonics - Have A Nice Day.mp3"]
["Singles\\Katie Melua - My Aphrodisiac Is You.mp3",false,0,{"$error":"#N/A"},"Singles\\Katie Melua - My Aphrodisiac Is You.mp3"]
["Singles\\Frida Boccara - Cent Mille Chansons.mp3",false,0,{"$error":"#N/A"},"Singles\\Frida Boccara - Cent Mille Chansons.mp3"]
["Singles\\The Script - Rain.mp3",true,0,"Singles\\The Script - ","Singles\\\\Script, The - Rain.mp3"]
["Singles\\M People - Moving On Up.mp3",false,0,{"$error":"#N/A"},"Singles\\M People - Moving On Up.mp3"]
["Singles\\Time Bandits - Endless Road.mp3",false,0,{"$error":"#N/A"},"Singles\\Time Bandits - Endless Road.mp3"]
["Singles\\Adam Lambert - Ghost Town.mp3",false,0,{"$error":"#N/A"},"Singles\\Adam Lambert - Ghost Town.mp3"]
["Singles\\The Rolling Stones - We Love You.mp3",true,0,"Singles\\The Rolling Stones - ","Singles\\\\Rolling Stones, The - We Love You.mp3"]
["Singles\\Alan Parsons Project - Time.mp3",false,0,{"$error":"#N/A"},"Singles\\Alan Parsons Project - Time.mp3"]
["Singles\\Rod Stewart & Tina Turner - It Takes Two.mp3",false,0,{"$error":"#N/A"},"Singles\\Rod Stewart & Tina Turner - It Takes Two.mp3"]
["Singles\\Raymond Van Het Groenewoud - Liefde Voor Muziek.mp3",false,0,{"$error":"#N/A"},"Singles\\Raymond Van Het Groenewoud - Liefde Voor Muziek.mp3"]
["Singles\\Bon Jovi - Wanted Dead Or Alive.mp3",false,0,{"$error":"#N/A"},"Singles\\Bon Jovi - Wanted Dead Or Alive.mp3"]
["Singles\\Miss Montreal & Paskal Jakobsen - Ik_Zoek Alleen Mezelf.mp3",false,0,{"$error":"#N/A"},"Singles\\Miss Montreal & Paskal Jakobsen - Ik_Zoek Alleen Mezelf.mp3"]
["Singles\\Tracy Chapman - Crossroads.mp3",false,0,{"$error":"#N/A"},"Singles\\Tracy Chapman - Crossroads.mp3"]
["Singles\\Normaal - Hoe-J 't Ok Doet.mp3",false,0,{"$error":"#N/A"},"Singles\\Normaal - Hoe-J 't Ok Doet.mp3"]
["Singles\\Lady GaGa - Alejandro.mp3",false,0,{"$error":"#N/A"},"Singles\\Lady GaGa - Alejandro.mp3"]
["Singles\\Abba - Super Trouper.mp3",false,0,{"$error":"#N/A"},"Singles\\Abba - Super Trouper.mp3"]
["Singles\\The Rolling Stones - Get Off My Cloud.mp3",{"$f":"RegexTest(B$1,$A1027)","v":true},{"$f":"RegexCount(C$1,$A1027)","v":0},{"$f":"RegexFind(D$1,$A1027)","v":"Singles\\The Rolling Stones - "},{"$f":"RegexReplace(E$1,$A1027,F$1)","v":"Singles\\\\Rolling Stones, The - Get Off My Cloud.mp3"}]
["Singles\\Dionne Warwick - I'll Never Love This Way Again.mp3",false,0,{"$error":"#N/A"},"Singles\\Dionne Warwick - I'll Never Love This Way Again.mp3"]
["Singles\\Jay Sean ft Sean Paul - Make My Love Go.mp3",false,0,{"$error":"#N/A"},"Singles\\Jay Sean ft Sean Paul - Make My Love Go.mp3"]
["Singles\\Jonas Blue ft William Singe - Mama.mp3",false,0,{"$error":"#N/A"},"Singles\\Jonas Blue ft William Singe - Mama.mp3"]
["Singles\\Pearl Jam - Alive.mp3",false,0,{"$error":"#N/A"},"Singles\\Pearl Jam - Alive.mp3"]
["Singles\\Selena Gomez & Marshmello - Wolves.mp3",false,0,{"$error":"#N/A"},"Singles\\Selena Gomez & Marshmello - Wolves.mp3"]
["Singles\\The Shadows - Guitar Tango.mp3",true,0,"Singles\\The Shadows - ","Singles\\\\Shadows, The - Guitar Tango.mp3"]
["Singles\\Mel & Kim - Showing Out (Get Fresh At The Weekend).mp3",true,0,{"$error":"#N/A"},"Singles\\Mel & Kim - Showing Out (Get Fresh At The Weekend).mp3"]
["Singles\\Guus Meeuwis - Ik Ook Van Jou.mp3",false,0,{"$error":"#N/A"},"Singles\\Guus Meeuwis - Ik Ook Van Jou.mp3"]
["Singles\\Charles Aznavour - For Me Formidable.mp3",false,0,{"$error":"#N/A"},"Singles\\Charles Aznavour - For Me Formidable.mp3"]
["Singles\\Mary Hopkin - Goodbye.mp3",false,0,{"$error":"#N/A"},"Singles\\Mary Hopkin - Goodbye.mp3"]
["Singles\\Bastille - Pompeii.mp3",false,0,{"$error":"#N/A"},"Singles\\Bastille - Pompeii.mp3"]
["Singles\\Helen Reddy - Delta Dawn.mp3",false,0,{"$error":"#N/A"},"Singles\\Helen Reddy - Delta Dawn.mp3"]
["Singles\\Kings Of Leon - Sex On Fire.mp3",false,0,{"$error":"#N/A"},"Singles\\Kings Of Leon - Sex On Fire.mp3"]
["Singles\\John Leyton - Johnny Remember Me.mp3",false,0,{"$error":"#N/A"},"Singles\\John Leyton - Johnny Remember Me.mp3"]
["Singles\\Don Henley - New York Minute.mp3",false,0,{"$error":"#N/A"},"Singles\\Don Henley - New York Minute.mp3"]
["Singles\\Paul Anka - Dance On Little Girl.mp3",false,0,{"$error":"#N/A"},"Singles\\Paul Anka - Dance On Little Girl.mp3"]
["Singles\\REM - Man On The Moon.mp3",true,0,{"$error":"#N/A"},"Singles\\REM - Man On The Moon.mp3"]
["Singles\\The Kinks - A Well Respected Man.mp3",true,0,"Singles\\The Kinks - ","Singles\\\\Kinks, The - A Well Respected Man.mp3"]
["Singles\\Peter Schreiber - Nooit Meer Verliefd.mp3",false,0,{"$error":"#N/A"},"Singles\\Peter Schreiber - Nooit Meer Verliefd.mp3"]
["Singles\\Buffoons - It's The End.mp3",true,0,{"$error":"#N/A"},"Singles\\Buffoons - It's The End.mp3"]
["Singles\\Shawn Mendes - There's Nothing Holdin' Me Back.mp3",true,1,{"$error":"#N/A"},"Singles\\Shawn Mendes - There's Nothing Holdin' Me Back.mp3"]
["Singles\\Bruno Mars - Just The Way You Are.mp3",true,0,{"$error":"#N/A"},"Singles\\Bruno Mars - Just The Way You Are.mp3"]
["Singles\\Fugees - Ready Or Not.mp3",false,0,{"$error":"#N/A"},"Singles\\Fugees - Ready Or Not.mp3"]
["Singles\\Jonas Blue ft JP Cooper - Perfect Strangers.mp3",false,0,{"$error":"#N/A"},"Singles\\Jonas Blue ft JP Cooper - Perfect Strangers.mp3"]
["Singles\\Abba - Waterloo.mp3",false,0,{"$error":"#N/A"},"Singles\\Abba - Waterloo.mp3"]
["Singles\\Rochelle ft Kalibwoy - Way Up.mp3",false,0,{"$error":"#N/A"},"Singles\\Rochelle ft Kalibwoy - Way Up.mp3"]
["Singles\\Barry Mann - Who Put The In The Bomp Bomp Bomp.mp3",true,0,{"$error":"#N/A"},"Singles\\Barry Mann - Who Put The In The Bomp Bomp Bomp.mp3"]
["Singles\\LL Cool J - I Need Love.mp3",false,0,{"$error":"#N/A"},"Singles\\LL Cool J - I Need Love.mp3"]
["Singles\\Bruce Springsteen - Hungry Heart.mp3",false,0,{"$error":"#N/A"},"Singles\\Bruce Springsteen - Hungry Heart.mp3"]
["Singles\\David Guetta ft Kelly Rowland - When Love Takes Over.mp3",false,0,{"$error":"#N/A"},"Singles\\David Guetta ft Kelly Rowland - When Love Takes Over.mp3"]
["Singles\\Lene Lovich - Lucky Number.mp3",false,0,{"$error":"#N/A"},"Singles\\Lene Lovich - Lucky Number.mp3"]
["Singles\\Jeff Beck - Hi-Ho Silver Lining.mp3",false,0,{"$error":"#N/A"},"Singles\\Jeff Beck - Hi-Ho Silver Lining.mp3"]
["Singles\\Pharrell Williams - Marilyn Monroe.mp3",false,0,{"$error":"#N/A"},"Singles\\Pharrell Williams - Marilyn Monroe.mp3"]
["Singles\\Creedence Clearwater Revival - Good Golly Miss Molly.mp3",false,0,{"$error":"#N/A"},"Singles\\Creedence Clearwater Revival - Good Golly Miss Molly.mp3"]
["Singles\\Alan Parsons Project - Mammagamma.mp3",false,0,{"$error":"#N/A"},"Singles\\Alan Parsons Project - Mammagamma.mp3"]
["Singles\\The Kinks - Waterloo Sunset.mp3",true,0,"Singles\\The Kinks - ","Singles\\\\Kinks, The - Waterloo Sunset.mp3"]
["Singles\\Kelly - Je Bent Niet Hip.mp3",false,0,{"$error":"#N/A"},"Singles\\Kelly - Je Bent Niet Hip.mp3"]
["Singles\\Sade - No Ordinary Love.mp3",false,0,{"$error":"#N/A"},"Singles\\Sade - No Ordinary Love.mp3"]
["Singles\\Stars On 45 - Stars On 45 (Medley).mp3",false,0,{"$error":"#N/A"},"Singles\\Stars On 45 - Stars On 45 (Medley).mp3"]
["Singles\\East 17 - Stay Another Day.mp3",false,0,{"$error":"#N/A"},"Singles\\East 17 - Stay Another Day.mp3"]
["Singles\\Jimmy Cliff - Wild World.mp3",false,0,{"$error":"#N/A"},"Singles\\Jimmy Cliff - Wild World.mp3"]
["Singles\\Raymond Froggatt - Callow La Vita.mp3",false,0,{"$error":"#N/A"},"Singles\\Raymond Froggatt - Callow La Vita.mp3"]
["Singles\\Tommy Roe - Dizzy.mp3",false,0,{"$error":"#N/A"},"Singles\\Tommy Roe - Dizzy.mp3"]
["Singles\\Sheppard - Coming Home.mp3",false,0,{"$error":"#N/A"},"Singles\\Sheppard - Coming Home.mp3"]
["Singles\\Lionel Richie - Penny Lover.mp3",false,0,{"$error":"#N/A"},"Singles\\Lionel Richie - Penny Lover.mp3"]
["Singles\\Average White Band - Pick Up The Pieces.mp3",true,0,{"$error":"#N/A"},"Singles\\Average White Band - Pick Up The Pieces.mp3"]
["Singles\\Naughty Boy ft Sam Smith - La La La.mp3",false,0,{"$error":"#N/A"},"Singles\\Naughty Boy ft Sam Smith - La La La.mp3"]
["Singles\\Peter Henn - Flip Flap.mp3",false,0,{"$error":"#N/A"},"Singles\\Peter Henn - Flip Flap.mp3"]
["Singles\\Duke Dumont - Ocean Drive.mp3",false,0,{"$error":"#N/A"},"Singles\\Duke Dumont - Ocean Drive.mp3"]
["Singles\\Michel Polnareff - La Poupee Qui Fait Non.mp3",false,0,{"$error":"#N/A"},"Singles\\Michel Polnareff - La Poupee Qui Fait Non.mp3"]
["Singles\\Stromae - Papaoutai.mp3",false,0,{"$error":"#N/A"},"Singles\\Stromae - Papaoutai.mp3"]
["Singles\\Spargo - You And Me.mp3",false,0,{"$error":"#N/A"},"Singles\\Spargo - You And Me.mp3"]
["Singles\\Doble RR (Trafassi) - Zullen We Maar Weer.mp3",false,0,{"$error":"#N/A"},"Singles\\Doble RR (Trafassi) - Zullen We Maar Weer.mp3"]
["Singles\\Tom Browne - Funkin' For Jamaica (N.Y.).mp3",false,0,{"$error":"#N/A"},"Singles\\Tom Browne - Funkin' For Jamaica (N.Y.).mp3"]
["Singles\\The Baseballs - Paparazzi.mp3",true,0,"Singles\\The Baseballs - ","Singles\\\\Baseballs, The - Paparazzi.mp3"]
["Singles\\Maarten Peters - White Horses In The Snow.mp3",true,0,{"$error":"#N/A"},"Singles\\Maarten Peters - White Horses In The Snow.mp3"]
["Singles\\Cheryl Cole - Fight For This Love.mp3",false,0,{"$error":"#N/A"},"Singles\\Cheryl Cole - Fight For This Love.mp3"]
["Singles\\Dermot Kennedy - Power Over Me.mp3",false,0,{"$error":"#N/A"},"Singles\\Dermot Kennedy - Power Over Me.mp3"]
["Singles\\Les Reed Orchestra - Man Of Action.mp3",false,0,{"$error":"#N/A"},"Singles\\Les Reed Orchestra - Man Of Action.mp3"]
["Singles\\Sheila & The Black Devotion - Spacer.mp3",true,0,{"$error":"#N/A"},"Singles\\Sheila & The Black Devotion - Spacer.mp3"]
["Singles\\Boudewijn De Groot - Welterusten, Mijnheer De President.mp3",false,0,{"$error":"#N/A"},"Singles\\Boudewijn De Groot - Welterusten, Mijnheer De President.mp3"]
["Singles\\Stacy Lattisaw - Jump To The Beat.mp3",true,0,{"$error":"#N/A"},"Singles\\Stacy Lattisaw - Jump To The Beat.mp3"]
["Singles\\Stef Bos - Pappa.mp3",false,0,{"$error":"#N/A"},"Singles\\Stef Bos - Pappa.mp3"]
["Singles\\Madonna - Don't Tell Me.mp3",{"$f":"RegexTest(B$1,$A1091)","v":false},{"$f":"RegexCount(C$1,$A1091)","v":0},{"$f":"RegexFind(D$1,$A1091)","v":{"$error":"#N/A"}},{"$f":"RegexReplace(E$1,$A1091,F$1)","v":"Singles\\Madonna - Don't Tell Me.mp3"}]
["Singles\\Demis Roussos & Nancy Boyd - Summerwine.mp3",false,0,{"$error":"#N/A"},"Singles\\Demis Roussos & Nancy Boyd - Summerwine.mp3"]
["Singles\\Merrymen - The Big Bamboo.mp3",true,0,{"$error":"#N/A"},"Singles\\Merrymen - The Big Bamboo.mp3"]
["Singles\\Massada - Dansa (Don't Quit Dancing).mp3",false,0,{"$error":"#N/A"},"Singles\\Massada - Dansa (Don't Quit Dancing).mp3"]
["Singles\\Michael Bolton - How Am I Supposed To Live Without You.mp3",false,0,{"$error":"#N/A"},"Singles\\Michael Bolton - How Am I Supposed To Live Without You.mp3"]
["Singles\\Robert Palmer & UB40 - I'll Be Your Baby Tonight.mp3",false,0,{"$error":"#N/A"},"Singles\\Robert Palmer & UB40 - I'll Be Your Baby Tonight.mp3"]
["Singles\\Hazell Dean - Searchin' (I Gotta Find A Man).mp3",false,0,{"$error":"#N/A"},"Singles\\Hazell Dean - Searchin' (I Gotta Find A Man).mp3"]
["Singles\\The Byrds - So You Want To Be A Rock 'n' Roll Star.mp3",true,0,"Singles\\The Byrds - ","Singles\\\\Byrds, The - So You Want To Be A Rock 'n' Roll Star.mp3"]
["Singles\\Sharon Brown - I Specialize In Love.mp3",false,0,{"$error":"#N/A"},"Singles\\Sharon Brown - I Specialize In Love.mp3"]
["Singles\\OneRepublic - Wherever I Go.mp3",false,0,{"$error":"#N/A"},"Singles\\OneRepublic - Wherever I Go.mp3"]
["Singles\\Guns N' Roses - Sweet Child O' Mine.mp3",false,0,{"$error":"#N/A"},"Singles\\Guns N' Roses - Sweet Child O' Mine.mp3"]
["Singles\\Sak Noel - Loca People.mp3",false,0,{"$error":"#N/A"},"Singles\\Sak Noel - Loca People.mp3"]
["Singles\\The Beatles - Magical Mystery Tour.mp3",true,0,"Singles\\The Beatles - ","Singles\\\\Beatles, The - Magical Mystery Tour.mp3"]
["Singles\\The Rolling Stones - Tell Me.mp3",true,0,"Singles\\The Rolling Stones - ","Singles\\\\Rolling Stones, The - Tell Me.mp3"]
["Singles\\The Beatles - Yellow Submarine.mp3",true,0,"Singles\\The Beatles - ","Singles\\\\Beatles, The - Yellow Submarine.mp3"]
["Singles\\Timi Yuro - You Are My Special Angel.mp3",false,0,{"$error":"#N/A"},"Singles\\Timi Yuro - You Are My Special Angel.mp3"]
["Singles\\Miss Montreal - Tututu.mp3",false,0,{"$error":"#N/A"},"Singles\\Miss Montreal - Tututu.mp3"]
["Singles\\Peter Gabriel & Kate Bush - Don't Give Up.mp3",false,0,{"$error":"#N/A"},"Singles\\Peter Gabriel & Kate Bush - Don't Give Up.mp3"]
["Singles\\Abba - Dancing Queen.mp3",false,0,{"$error":"#N/A"},"Singles\\Abba - Dancing Queen.mp3"]
["Singles\\Mouth & Macneal - Ik Zie Een Ster.mp3",false,0,{"$error":"#N/A"},"Singles\\Mouth & Macneal - Ik Zie Een Ster.mp3"]
["Singles\\Billie Eilish - Bad Guy.mp3",false,0,{"$error":"#N/A"},"Singles\\Billie Eilish - Bad Guy.mp3"]
["Singles\\Krystl - Bottles.mp3",false,0,{"$error":"#N/A"},"Singles\\Krystl - Bottles.mp3"]
["Singles\\Klein Orkest - De Leugenaar.mp3",false,0,{"$error":"#N/A"},"Singles\\Klein Orkest - De Leugenaar.mp3"]
["Singles\\The Broads - I Got Rhythm.mp3",true,0,"Singles\\The Broads - ","Singles\\\\Broads, The - I Got Rhythm.mp3"]
["Singles\\Marc Hamilton - Comme J'ai Toujours Envie D'aimer.mp3",false,0,{"$error":"#N/A"},"Singles\\Marc Hamilton - Comme J'ai Toujours Envie D'aimer.mp3"]
["Singles\\Everly Brothers - Claudette.mp3",false,0,{"$error":"#N/A"},"Singles\\Everly Brothers - Claudette.mp3"]
["Singles\\The Rembrandts - Ill Be There For You.mp3",true,1,"Singles\\The Rembrandts - ","Singles\\\\Rembrandts, The - Ill Be There For You.mp3"]
["Singles\\Take That & Lulu - Relight My Fire.mp3",false,0,{"$error":"#N/A"},"Singles\\Take That & Lulu - Relight My Fire.mp3"]
["Singles\\Genesis - Invisible Touch.mp3",false,0,{"$error":"#N/A"},"Singles\\Genesis - Invisible Touch.mp3"]
["Singles\\Kayak - Ruthless Queen.mp3",false,0,{"$error":"#N/A"},"Singles\\Kayak - Ruthless Queen.mp3"]
["Singles\\Gilbert O'Sullivan - Ooh Wakka Doo Wakka Day.mp3",false,0,{"$error":"#N/A"},"Singles\\Gilbert O'Sullivan - Ooh Wakka Doo Wakka Day.mp3"]
["Singles\\Lady Gaga & Bradley Cooper - Shallow.mp3",false,0,{"$error":"#N/A"},"Singles\\Lady Gaga & Bradley Cooper - Shallow.mp3"]
["Singles\\Randy Newman - Birmingham.mp3",false,0,{"$error":"#N/A"},"Singles\\Randy Newman - Birmingham.mp3"]
["Singles\\Mr Probz - Waves.mp3",false,0,{"$error":"#N/A"},"Singles\\Mr Probz - Waves.mp3"]
["Singles\\Frank Sinatra - I've Got You Under My Skin.mp3",false,0,{"$error":"#N/A"},"Singles\\Frank Sinatra - I've Got You Under My Skin.mp3"]
["Singles\\Amy MacDonald - Mr Rock & Roll.mp3",false,0,{"$error":"#N/A"},"Singles\\Amy MacDonald - Mr Rock & Roll.mp3"]
["Singles\\Katy Perry - Chained To The Rhythm.mp3",true,0,{"$error":"#N/A"},"Singles\\Katy Perry - Chained To The Rhythm.mp3"]
["Singles\\Soeur Sourire - Dominique.mp3",false,0,{"$error":"#N/A"},"Singles\\Soeur Sourire - Dominique.mp3"]
["Singles\\Freeez - I.O.U..mp3",false,0,{"$error":"#N/A"},"Singles\\Freeez - I.O.U..mp3"]
["Singles\\Liesbeth List - Brussel.mp3",false,0,{"$error":"#N/A"},"Singles\\Liesbeth List - Brussel.mp3"]
["Singles\\Jonas Brothers - Only Human.mp3",false,0,{"$error":"#N/A"},"Singles\\Jonas Brothers - Only Human.mp3"]
["Singles\\Loreen - Euphoria.mp3",false,0,{"$error":"#N/A"},"Singles\\Loreen - Euphoria.mp3"]
["Singles\\Jason Mraz - Have It All.mp3",false,0,{"$error":"#N/A"},"Singles\\Jason Mraz - Have It All.mp3"]
["Singles\\Kreuners - Ik Wil Je.mp3",false,0,{"$error":"#N/A"},"Singles\\Kreuners - Ik Wil Je.mp3"]
["Singles\\Bon Jovi - Keep The Faith.mp3",true,0,{"$error":"#N/A"},"Singles\\Bon Jovi - Keep The Faith.mp3"]
["Singles\\June Lodge - Someone Loves You Honey.mp3",false,0,{"$error":"#N/A"},"Singles\\June Lodge - Someone Loves You Honey.mp3"]
["Singles\\The Christians - Community Of Spirit.mp3",true,0,"Singles\\The Christians - ","Singles\\\\Christians, The - Community Of Spirit.mp3"]
["Singles\\Scaffold - Lily The Pink.mp3",true,0,{"$error":"#N/A"},"Singles\\Scaffold - Lily The Pink.mp3"]
["Singles\\Jimmy Frey - Yet I Know.mp3",false,0,{"$error":"#N/A"},"Singles\\Jimmy Frey - Yet I Know.mp3"]
["Singles\\Middle Of The Road - Bottoms Up.mp3",true,0,{"$error":"#N/A"},"Singles\\Middle Of The Road - Bottoms Up.mp3"]
["Singles\\Abba - Bang-A-Boomerang.mp3",false,0,{"$error":"#N/A"},"Singles\\Abba - Bang-A-Boomerang.mp3"]
["Singles\\Piet, Adèle & Leen - We Zijn Toch Op De Wereld.mp3",false,0,{"$error":"#N/A"},"Singles\\Piet, Adèle & Leen - We Zijn Toch Op De Wereld.mp3"]
["Singles\\Martin Solveig ft Dragonette - Hello.mp3",false,0,{"$error":"#N/A"},"Singles\\Martin Solveig ft Dragonette - Hello.mp3"]
["Singles\\Coldplay - Viva La Vida.mp3",false,0,{"$error":"#N/A"},"Singles\\Coldplay - Viva La Vida.mp3"]
["Singles\\Tee Set - Ma Belle Amie.mp3",false,0,{"$error":"#N/A"},"Singles\\Tee Set - Ma Belle Amie.mp3"]
["Singles\\Nova - Aurora.mp3",false,0,{"$error":"#N/A"},"Singles\\Nova - Aurora.mp3"]
["Singles\\Arthur Conley - Sweet Soul Music.mp3",false,0,{"$error":"#N/A"},"Singles\\Arthur Conley - Sweet Soul Music.mp3"]
["Singles\\Les Humphries Singers - Mexico.mp3",false,0,{"$error":"#N/A"},"Singles\\Les Humphries Singers - Mexico.mp3"]
["Singles\\The Beatles - Michelle.mp3",true,0,"Singles\\The Beatles - ","Singles\\\\Beatles, The - Michelle.mp3"]
["Singles\\Clean Bandit ft Louisa Johnson - Tears.mp3",false,0,{"$error":"#N/A"},"Singles\\Clean Bandit ft Louisa Johnson - Tears.mp3"]
["Singles\\Stray Cats - Rock This Town.mp3",false,0,{"$error":"#N/A"},"Singles\\Stray Cats - Rock This Town.mp3"]
["Singles\\The Beatles - Blackbird.mp3",true,0,"Singles\\The Beatles - ","Singles\\\\Beatles, The - Blackbird.mp3"]
["Singles\\Bobby McFerrin - Don't Worry Be Happy.mp3",false,0,{"$error":"#N/A"},"Singles\\Bobby McFerrin - Don't Worry Be Happy.mp3"]
["Singles\\Jackie Wilson - I Get The Sweetest Feeling.mp3",true,0,{"$error":"#N/A"},"Singles\\Jackie Wilson - I Get The Sweetest Feeling.mp3"]
["Singles\\Santana - Jingo.mp3",{"$f":"RegexTest(B$1,$A1155)","v":false},{"$f":"RegexCount(C$1,$A1155)","v":0},{"$f":"RegexFind(D$1,$A1155)","v":{"$error":"#N/A"}},{"$f":"RegexReplace(E$1,$A1155,F$1)","v":"Singles\\Santana - Jingo.mp3"}]
["Singles\\The Baseballs - Ghetto Superstar.mp3",true,0,"Singles\\The Baseballs - ","Singles\\\\Baseballs, The - Ghetto Superstar.mp3"]
["Singles\\The Velvet Underground - Sweet Jane.mp3",true,0,"Singles\\The Velvet Underground - ","Singles\\\\Velvet Underground, The - Sweet Jane.mp3"]
["Singles\\Plastic Ono Band - Give Peace A Chance.mp3",false,0,{"$error":"#N/A"},"Singles\\Plastic Ono Band - Give Peace A Chance.mp3"]
["Singles\\Mike Posner - I Took A Pill In Ibiza.mp3",false,0,{"$error":"#N/A"},"Singles\\Mike Posner - I Took A Pill In Ibiza.mp3"]
["Singles\\Bon Jovi - Bed Of Roses.mp3",false,0,{"$error":"#N/A"},"Singles\\Bon Jovi - Bed Of Roses.mp3"]
["Singles\\Edwyn Collins - A Girl Like You.mp3",false,0,{"$error":"#N/A"},"Singles\\Edwyn Collins - A Girl Like You.mp3"]
["Singles\\Cliff Richard & The Shadows - Please Don't Tease.mp3",true,0,{"$error":"#N/A"},"Singles\\Cliff Richard & The Shadows - Please Don't Tease.mp3"]
["Singles\\One Direction - Live While We're Young.mp3",false,0,{"$error":"#N/A"},"Singles\\One Direction - Live While We're Young.mp3"]
["Singles\\De Kast - Woorden Zonder Woorden.mp3",false,0,{"$error":"#N/A"},"Singles\\De Kast - Woorden Zonder Woorden.mp3"]
["Singles\\Meduza ft Goodboys - Piece Of Your Heart.mp3",false,0,{"$error":"#N/A"},"Singles\\Meduza ft Goodboys - Piece Of Your Heart.mp3"]
["Singles\\Al Martino - Spanish Eyes.mp3",false,0,{"$error":"#N/A"},"Singles\\Al Martino - Spanish Eyes.mp3"]
["Singles\\Anouk - Sacrifice.mp3",false,0,{"$error":"#N/A"},"Singles\\Anouk - Sacrifice.mp3"]
["Singles\\Jimmy Cliff - Many Rivers To Cross.mp3",false,0,{"$error":"#N/A"},"Singles\\Jimmy Cliff - Many Rivers To Cross.mp3"]
["Singles\\Brenda Lee - I'm Sorry.mp3",false,0,{"$error":"#N/A"},"Singles\\Brenda Lee - I'm Sorry.mp3"]
["Singles\\Kygo ft Justin Jesso - Stargazing.mp3",false,0,{"$error":"#N/A"},"Singles\\Kygo ft Justin Jesso - Stargazing.mp3"]
["Singles\\Frankie Miller - Darlin'.mp3",false,0,{"$error":"#N/A"},"Singles\\Frankie Miller - Darlin'.mp3"]
["Singles\\Niall Horan - This Town.mp3",false,0,{"$error":"#N/A"},"Singles\\Niall Horan - This Town.mp3"]
["Singles\\The Byrds - Turn Turn Turn.mp3",true,0,"Singles\\The Byrds - ","Singles\\\\Byrds, The - Turn Turn Turn.mp3"]
["Singles\\Rodney Franklin - The Groove.mp3",true,0,{"$error":"#N/A"},"Singles\\Rodney Franklin - The Groove.mp3"]
["Singles\\Left Side - (Like A) Locomotion.mp3",false,0,{"$error":"#N/A"},"Singles\\Left Side - (Like A) Locomotion.mp3"]
["Singles\\Luv' - Ooh, Yes I Do.mp3",false,0,{"$error":"#N/A"},"Singles\\Luv' - Ooh, Yes I Do.mp3"]
["Singles\\Jim Reeves - Adios Amigo.mp3",false,0,{"$error":"#N/A"},"Singles\\Jim Reeves - Adios Amigo.mp3"]
["Singles\\Backstreet Boys - Quit Playing Games.mp3",false,0,{"$error":"#N/A"},"Singles\\Backstreet Boys - Quit Playing Games.mp3"]
["Singles\\The Las - There She Goes.mp3",true,1,"Singles\\The Las - ","Singles\\\\Las, The - There She Goes.mp3"]
["Singles\\Frankie Avalon - Venus.mp3",false,0,{"$error":"#N/A"},"Singles\\Frankie Avalon - Venus.mp3"]
["Singles\\Danny Vera - Roller Coaster.mp3",false,0,{"$error":"#N/A"},"Singles\\Danny Vera - Roller Coaster.mp3"]
["Singles\\Robert Palmer - Riptide.mp3",false,0,{"$error":"#N/A"},"Singles\\Robert Palmer - Riptide.mp3"]
["Singles\\Lucas And Steve - Up Till Dawn (On The Move).mp3",true,0,{"$error":"#N/A"},"Singles\\Lucas And Steve - Up Till Dawn (On The Move).mp3"]
["Singles\\The Alan Price Set - The House That Jack Built.mp3",true,0,"Singles\\The Alan Price Set - ","Singles\\\\Alan Price Set, The - The House That Jack Built.mp3"]
["Singles\\Bert Kaempfert - Red Roses For A Blue Lady.mp3",false,0,{"$error":"#N/A"},"Singles\\Bert Kaempfert - Red Roses For A Blue Lady.mp3"]
["Singles\\Martin Garrix & Dua Lipa - Scared To Be Lonely.mp3",false,0,{"$error":"#N/A"},"Singles\\Martin Garrix & Dua Lipa - Scared To Be Lonely.mp3"]
["Singles\\Pink ft Lily Rose Cooper - True Love.mp3",false,0,{"$error":"#N/A"},"Singles\\Pink ft Lily Rose Cooper - True Love.mp3"]
["Singles\\Dusty Springfield - You Don't Own Me.mp3",false,0,{"$error":"#N/A"},"Singles\\Dusty Springfield - You Don't Own Me.mp3"]
["Singles\\The Style Council - Have You Ever Had It Blue.mp3",true,0,"Singles\\The Style Council - ","Singles\\\\Style Council, The - Have You Ever Had It Blue.mp3"]
["Singles\\Expose - When I Looked At Him.mp3",false,0,{"$error":"#N/A"},"Singles\\Expose - When I Looked At Him.mp3"]
["Singles\\Van Velzen - Sing Sing Sing.mp3",false,0,{"$error":"#N/A"},"Singles\\Van Velzen - Sing Sing Sing.mp3"]
["Singles\\Rene Froger - Calling Out Your Name.mp3",false,0,{"$error":"#N/A"},"Singles\\Rene Froger - Calling Out Your Name.mp3"]
["Singles\\Daryl Hall & John Oates - Out Of Touch.mp3",false,0,{"$error":"#N/A"},"Singles\\Daryl Hall & John Oates - Out Of Touch.mp3"]
["Singles\\Umberto Tozzi - Gente Di Mare.mp3",false,0,{"$error":"#N/A"},"Singles\\Umberto Tozzi - Gente Di Mare.mp3"]
["Singles\\Andrews Sisters - Don't Sit Under The Apple Tree.mp3",true,0,{"$error":"#N/A"},"Singles\\Andrews Sisters - Don't Sit Under The Apple Tree.mp3"]
["Singles\\Will Smith - Men In Black.mp3",false,0,{"$error":"#N/A"},"Singles\\Will Smith - Men In Black.mp3"]
["Singles\\Lifehouse - Hanging By A Moment.mp3",false,0,{"$error":"#N/A"},"Singles\\Lifehouse - Hanging By A Moment.mp3"]
["Singles\\Poco - Call It Love.mp3",false,0,{"$error":"#N/A"},"Singles\\Poco - Call It Love.mp3"]
["Singles\\Roxy Music - Angel Eyes.mp3",false,0,{"$error":"#N/A"},"Singles\\Roxy Music - Angel Eyes.mp3"]
["Singles\\Marco Borsato - De Speeltuin.mp3",false,0,{"$error":"#N/A"},"Singles\\Marco Borsato - De Speeltuin.mp3"]
["Singles\\Mika - Lollipop.mp3",false,0,{"$error":"#N/A"},"Singles\\Mika - Lollipop.mp3"]
["Singles\\Gene Kelly - Singing In The Rain.mp3",true,0,{"$error":"#N/A"},"Singles\\Gene Kelly - Singing In The Rain.mp3"]
["Singles\\Indeep - Last Night A DJ Saved My Life.mp3",false,0,{"$error":"#N/A"},"Singles\\Indeep - Last Night A DJ Saved My Life.mp3"]
["Singles\\Aneka - Japanese Boy.mp3",false,0,{"$error":"#N/A"},"Singles\\Aneka - Japanese Boy.mp3"]
["Singles\\Axwell & Ingrosso - Dreamer.mp3",false,0,{"$error":"#N/A"},"Singles\\Axwell & Ingrosso - Dreamer.mp3"]
["Singles\\George Baker Selection - Sing A Song Of Love.mp3",false,0,{"$error":"#N/A"},"Singles\\George Baker Selection - Sing A Song Of Love.mp3"]
["Singles\\Cyndi Lauper - True Colors.mp3",false,0,{"$error":"#N/A"},"Singles\\Cyndi Lauper - True Colors.mp3"]
["Singles\\Kool & The Gang - Straight Ahead.mp3",true,0,{"$error":"#N/A"},"Singles\\Kool & The Gang - Straight Ahead.mp3"]
["Singles\\Gavin DeGraw - Soldier.mp3",false,0,{"$error":"#N/A"},"Singles\\Gavin DeGraw - Soldier.mp3"]
["Singles\\Piet, Adèle & Leen - Het Zal Je Kind Maar Wezen.mp3",false,0,{"$error":"#N/A"},"Singles\\Piet, Adèle & Leen - Het Zal Je Kind Maar Wezen.mp3"]
["Singles\\Oasis - Wonderwall.mp3",false,0,{"$error":"#N/A"},"Singles\\Oasis - Wonderwall.mp3"]
["Singles\\Roger Whittaker - The Last Farewell.mp3",true,0,{"$error":"#N/A"},"Singles\\Roger Whittaker - The Last Farewell.mp3"]
["Singles\\Alphabeat - Boyfriend.mp3",false,0,{"$error":"#N/A"},"Singles\\Alphabeat - Boyfriend.mp3"]
["Singles\\Miss Montreal - One Last Drink.mp3",false,0,{"$error":"#N/A"},"Singles\\Miss Montreal - One Last Drink.mp3"]
["Singles\\Alanis Morissette - Head Over Feet.mp3",false,0,{"$error":"#N/A"},"Singles\\Alanis Morissette - Head Over Feet.mp3"]
["Singles\\Cornelis Vreeswijk - Misschien Wordt Het Morgen Beter.mp3",false,0,{"$error":"#N/A"},"Singles\\Cornelis Vreeswijk - Misschien Wordt Het Morgen Beter.mp3"]
["Singles\\Sailcat - Motorcycle Mama.mp3",false,0,{"$error":"#N/A"},"Singles\\Sailcat - Motorcycle Mama.mp3"]
["Singles\\Timex Social Club - Rumors.mp3",false,0,{"$error":"#N/A"},"Singles\\Timex Social Club - Rumors.mp3"]
["Singles\\Tambourine - High Under The Moon.mp3",{"$f":"RegexTest(B$1,$A1219)","v":true},{"$f":"RegexCount(C$1,$A1219)","v":0},{"$f":"RegexFind(D$1,$A1219)","v":{"$error":"#N/A"}},{"$f":"RegexReplace(E$1,$A1219,F$1)","v":"Singles\\Tambourine - High Under The Moon.mp3"}]
["Singles\\Dalida - J'áttendrai.mp3",false,0,{"$error":"#N/A"},"Singles\\Dalida - J'áttendrai.mp3"]
["Singles\\Debbie - Everybody Join Hands.mp3",false,0,{"$error":"#N/A"},"Singles\\Debbie - Everybody Join Hands.mp3"]
["Singles\\Lionel Richie - My Destiny.mp3",false,0,{"$error":"#N/A"},"Singles\\Lionel Richie - My Destiny.mp3"]
["Singles\\Tears For Fears & Oleta Adams - Woman In Chains.mp3",false,0,{"$error":"#N/A"},"Singles\\Tears For Fears & Oleta Adams - Woman In Chains.mp3"]
["Singles\\The Kinks - Celluloid Heroes.mp3",true,0,"Singles\\The Kinks - ","Singles\\\\Kinks, The - Celluloid Heroes.mp3"]
["Singles\\Joe Dassin - Ca Va Pas Changer Le Monde.mp3",false,0,{"$error":"#N/A"},"Singles\\Joe Dassin - Ca Va Pas Changer Le Monde.mp3"]
["Singles\\Bruno Mars - 24K Magic.mp3",false,0,{"$error":"#N/A"},"Singles\\Bruno Mars - 24K Magic.mp3"]
["Singles\\Pat Boone - Moody River.mp3",false,0,{"$error":"#N/A"},"Singles\\Pat Boone - Moody River.mp3"]
["Singles\\Jerry Lee Lewis - Great Balls Of Fire.mp3",false,0,{"$error":"#N/A"},"Singles\\Jerry Lee Lewis - Great Balls Of Fire.mp3"]
["Singles\\Gerard Cox - 't Is Weer Voorbij Die Mooie Zomer.mp3",false,0,{"$error":"#N/A"},"Singles\\Gerard Cox - 't Is Weer Voorbij Die Mooie Zomer.mp3"]
["Singles\\Alicia Keys - No One.mp3",false,0,{"$error":"#N/A"},"Singles\\Alicia Keys - No One.mp3"]
["Singles\\Edwin Starr - War (What Is It Good For).mp3",false,0,{"$error":"#N/A"},"Singles\\Edwin Starr - War (What Is It Good For).mp3"]
["Singles\\UB40 - Cherry Oh Baby.mp3",false,0,{"$error":"#N/A"},"Singles\\UB40 - Cherry Oh Baby.mp3"]
["Singles\\Culture Club - It's A Miracle.mp3",false,0,{"$error":"#N/A"},"Singles\\Culture Club - It's A Miracle.mp3"]
["Singles\\The Script - No Good In Goodbye.mp3",true,0,"Singles\\The Script - ","Singles\\\\Script, The - No Good In Goodbye.mp3"]
["Singles\\Ray Charles & Norah Jones - Here We Go Again.mp3",false,0,{"$error":"#N/A"},"Singles\\Ray Charles & Norah Jones - Here We Go Again.mp3"]
["Singles\\Gordon - Kon Ik Maar Even Bij Je Zijn.mp3",false,0,{"$error":"#N/A"},"Singles\\Gordon - Kon Ik Maar Even Bij Je Zijn.mp3"]
["Singles\\Midge Ure - If I Was.mp3",false,0,{"$error":"#N/A"},"Singles\\Midge Ure - If I Was.mp3"]
["Singles\\Aerosmith - Cryin.mp3",false,0,{"$error":"#N/A"},"Singles\\Aerosmith - Cryin.mp3"]
["Singles\\Chicago - Stay The Night.mp3",true,0,{"$error":"#N/A"},"Singles\\Chicago - Stay The Night.mp3"]
["Singles\\Bow Wow Wow - I Want Candy.mp3",false,0,{"$error":"#N/A"},"Singles\\Bow Wow Wow - I Want Candy.mp3"]
["Singles\\Tom & Dick - Bloody Mary.mp3",false,0,{"$error":"#N/A"},"Singles\\Tom & Dick - Bloody Mary.mp3"]
["Singles\\Neil Young - Old Man.mp3",false,0,{"$error":"#N/A"},"Singles\\Neil Young - Old Man.mp3"]
["Singles\\Cirque Du Soleil - Alegria.mp3",false,0,{"$error":"#N/A"},"Singles\\Cirque Du Soleil - Alegria.mp3"]
["Singles\\Shirley Bassey - This Is My Life.mp3",false,0,{"$error":"#N/A"},"Singles\\Shirley Bassey - This Is My Life.mp3"]
["Singles\\Nelly Furtado - Turn Out The Light.mp3",true,0,{"$error":"#N/A"},"Singles\\Nelly Furtado - Turn Out The Light.mp3"]
["Singles\\Axis - Ela Ela.mp3",false,0,{"$error":"#N/A"},"Singles\\Axis - Ela Ela.mp3"]
["Singles\\Brandy & Monica - The Boy Is Mine.mp3",true,0,{"$error":"#N/A"},"Singles\\Brandy & Monica - The Boy Is Mine.mp3"]
["Singles\\Marcels - Blue Moon.mp3",false,0,{"$error":"#N/A"},"Singles\\Marcels - Blue Moon.mp3"]
["Singles\\Cocktail Trio - Wie Heeft De Sleutel Van De Jukebox Gezien.mp3",false,0,{"$error":"#N/A"},"Singles\\Cocktail Trio - Wie Heeft De Sleutel Van De Jukebox Gezien.mp3"]
["Singles\\Pigbag - Papa's Got A Brand New Pigbag.mp3",false,0,{"$error":"#N/A"},"Singles\\Pigbag - Papa's Got A Brand New Pigbag.mp3"]
["Singles\\Blof & Nielson - Mannenharten.mp3",false,0,{"$error":"#N/A"},"Singles\\Blof & Nielson - Mannenharten.mp3"]
["Singles\\Alain Clark - Love Is Everywhere.mp3",false,0,{"$error":"#N/A"},"Singles\\Alain Clark - Love Is Everywhere.mp3"]
["Singles\\Status Quo - Rain.Mp3",false,0,{"$error":"#N/A"},"Singles\\Status Quo - Rain.Mp3"]
["Singles\\Abc - The Look Of Love.mp3",true,0,{"$error":"#N/A"},"Singles\\Abc - The Look Of Love.mp3"]
["Singles\\The Edgar Winter Group - Frankenstein.mp3",true,0,"Singles\\The Edgar Winter Group - ","Singles\\\\Edgar Winter Group, The - Frankenstein.mp3"]
["Singles\\Madonna - True Blue.mp3",false,0,{"$error":"#N/A"},"Singles\\Madonna - True Blue.mp3"]
["Singles\\Ava Max - Sweet But Psycho.mp3",false,0,{"$error":"#N/A"},"Singles\\Ava Max - Sweet But Psycho.mp3"]
["Singles\\Ruth Jacott Paul De Leeuw - Blijf Bij Mij.mp3",false,0,{"$error":"#N/A"},"Singles\\Ruth Jacott Paul De Leeuw - Blijf Bij Mij.mp3"]
["Singles\\Gavin DeGraw - Make A Move.mp3",false,0,{"$error":"#N/A"},"Singles\\Gavin DeGraw - Make A Move.mp3"]
["Singles\\Lady Antebellum - Just A Kiss.mp3",false,0,{"$error":"#N/A"},"Singles\\Lady Antebellum - Just A Kiss.mp3"]
["Singles\\Hank B Memphis - Oh Julie.mp3",false,0,{"$error":"#N/A"},"Singles\\Hank B Memphis - Oh Julie.mp3"]
["Singles\\Bruce Springsteen - I'm On Fire.mp3",false,0,{"$error":"#N/A"},"Singles\\Bruce Springsteen - I'm On Fire.mp3"]
["Singles\\Donna Summer - Bad Girls.mp3",false,0,{"$error":"#N/A"},"Singles\\Donna Summer - Bad Girls.mp3"]
["Singles\\Chuck Berry - (Get Your Kicks On) Route 66.mp3",false,0,{"$error":"#N/A"},"Singles\\Chuck Berry - (Get Your Kicks On) Route 66.mp3"]
["Singles\\Jurgen Marcus - Ein Festival Der Liebe.mp3",false,0,{"$error":"#N/A"},"Singles\\Jurgen Marcus - Ein Festival Der Liebe.mp3"]
["Singles\\The Wanted - Walks Like Rihanna.mp3",true,0,"Singles\\The Wanted - ","Singles\\\\Wanted, The - Walks Like Rihanna.mp3"]
["Singles\\Tove Lo ft Hippie Sabotage - Stay High.mp3",false,0,{"$error":"#N/A"},"Singles\\Tove Lo ft Hippie Sabotage - Stay High.mp3"]
["Singles\\Moody Blues - The Story In Your Eyes.mp3",true,0,{"$error":"#N/A"},"Singles\\Moody Blues - The Story In Your Eyes.mp3"]
["Singles\\James Blunt - Same Mistake.mp3",false,0,{"$error":"#N/A"},"Singles\\James Blunt - Same Mistake.mp3"]
["Singles\\Booker T & The MG's - Green Onions.mp3",true,0,{"$error":"#N/A"},"Singles\\Booker T & The MG's - Green Onions.mp3"]
["Singles\\Kurt Nilsen - She's So High.mp3",false,0,{"$error":"#N/A"},"Singles\\Kurt Nilsen - She's So High.mp3"]
["Singles\\Rod Stewart - Waltzing Mathilda.mp3",false,0,{"$error":"#N/A"},"Singles\\Rod Stewart - Waltzing Mathilda.mp3"]
["Singles\\Elaine Paige & Barbara Dickson - I Know Him So Well.mp3",false,0,{"$error":"#N/A"},"Singles\\Elaine Paige & Barbara Dickson - I Know Him So Well.mp3"]
["Singles\\Starley - Call On Me.mp3",false,0,{"$error":"#N/A"},"Singles\\Starley - Call On Me.mp3"]
["Singles\\Sia  ft Kendrick Lamar - The Greatest.mp3",true,0,{"$error":"#N/A"},"Singles\\Sia  ft Kendrick Lamar - The Greatest.mp3"]
["Singles\\Waylon - Happy Song.mp3",false,0,{"$error":"#N/A"},"Singles\\Waylon - Happy Song.mp3"]
["Singles\\Snelle - Reünie.mp3",false,0,{"$error":"#N/A"},"Singles\\Snelle - Reünie.mp3"]
["Singles\\Sting - When We Dance.mp3",false,0,{"$error":"#N/A"},"Singles\\Sting - When We Dance.mp3"]
["Singles\\Traffic - Paper Sun.mp3",false,0,{"$error":"#N/A"},"Singles\\Traffic - Paper Sun.mp3"]
["Singles\\Amanda Marshall - Beautiful Goodbye.mp3",false,0,{"$error":"#N/A"},"Singles\\Amanda Marshall - Beautiful Goodbye.mp3"]
["Singles\\Enrique Iglesias - Subeme La Radio.mp3",false,0,{"$error":"#N/A"},"Singles\\Enrique Iglesias - Subeme La Radio.mp3"]
["Singles\\Simple Minds - Belfast Child.mp3",false,0,{"$error":"#N/A"},"Singles\\Simple Minds - Belfast Child.mp3"]
["Singles\\Sting - Fields Of Gold.mp3",{"$f":"RegexTest(B$1,$A1283)","v":false},{"$f":"RegexCount(C$1,$A1283)","v":0},{"$f":"RegexFind(D$1,$A1283)","v":{"$error":"#N/A"}},{"$f":"RegexReplace(E$1,$A1283,F$1)","v":"Singles\\Sting - Fields Of Gold.mp3"}]
["Singles\\Adele - Rolling In The Deep.mp3",true,0,{"$error":"#N/A"},"Singles\\Adele - Rolling In The Deep.mp3"]
["Singles\\Lenny Kravitz - Fly Away.mp3",false,0,{"$error":"#N/A"},"Singles\\Lenny Kravitz - Fly Away.mp3"]
["Singles\\Katie Melua - Spider's Web.mp3",false,0,{"$error":"#N/A"},"Singles\\Katie Melua - Spider's Web.mp3"]
["Singles\\Westlife - Bop Bop Baby.mp3",false,0,{"$error":"#N/A"},"Singles\\Westlife - Bop Bop Baby.mp3"]
["Singles\\Skunk Anansie - Weak.mp3",false,0,{"$error":"#N/A"},"Singles\\Skunk Anansie - Weak.mp3"]
["Singles\\Sugababes - Push The Button.mp3",true,0,{"$error":"#N/A"},"Singles\\Sugababes - Push The Button.mp3"]
["Singles\\RedOne ft Enrique Iiglesias & R City & Serayah & Shaggy - Don't You Need Somebody.mp3",false,0,{"$error":"#N/A"},"Singles\\RedOne ft Enrique Iiglesias & R City & Serayah & Shaggy - Don't You Need Somebody.mp3"]
["Singles\\Klangkarussell - Sonnentanz.mp3",false,0,{"$error":"#N/A"},"Singles\\Klangkarussell - Sonnentanz.mp3"]
["Singles\\Madonna - Miles Away.mp3",false,0,{"$error":"#N/A"},"Singles\\Madonna - Miles Away.mp3"]
["Singles\\The Beatles - I Feel Fine.mp3",true,0,"Singles\\The Beatles - ","Singles\\\\Beatles, The - I Feel Fine.mp3"]
["Singles\\Bryan Adams - Summer Of 69.mp3",false,0,{"$error":"#N/A"},"Singles\\Bryan Adams - Summer Of 69.mp3"]
["Singles\\Peter Koelewijn - Je Wordt Ouder Papa.mp3",false,0,{"$error":"#N/A"},"Singles\\Peter Koelewijn - Je Wordt Ouder Papa.mp3"]
["Singles\\Les Poppys - Isabelle Je t'aime.mp3",false,0,{"$error":"#N/A"},"Singles\\Les Poppys - Isabelle Je t'aime.mp3"]
["Singles\\Chaplin Band - Il Veliero.mp3",false,0,{"$error":"#N/A"},"Singles\\Chaplin Band - Il Veliero.mp3"]
["Singles\\George Baker Selection - Baby Blue.mp3",false,0,{"$error":"#N/A"},"Singles\\George Baker Selection - Baby Blue.mp3"]
["Singles\\Alan Walker Ft Aura & Tomine Harket - Darkside.mp3",false,0,{"$error":"#N/A"},"Singles\\Alan Walker Ft Aura & Tomine Harket - Darkside.mp3"]
["Singles\\The Beatles - All You Need Is Love.mp3",true,0,"Singles\\The Beatles - ","Singles\\\\Beatles, The - All You Need Is Love.mp3"]
["Singles\\M.A.S.H. - Suicide Is Painless.mp3",false,0,{"$error":"#N/A"},"Singles\\M.A.S.H. - Suicide Is Painless.mp3"]
["Singles\\Pino D'Angio - Ma Quale Idea.mp3",false,0,{"$error":"#N/A"},"Singles\\Pino D'Angio - Ma Quale Idea.mp3"]
["Singles\\Klingande - Jubel.mp3",false,0,{"$error":"#N/A"},"Singles\\Klingande - Jubel.mp3"]
["Singles\\The Move - I Can Hear The Grass Grow.mp3",true,0,"Singles\\The Move - ","Singles\\\\Move, The - I Can Hear The Grass Grow.mp3"]
["Singles\\Jonathan King - Everyone's Gone To The Moon.mp3",true,0,{"$error":"#N/A"},"Singles\\Jonathan King - Everyone's Gone To The Moon.mp3"]
["Singles\\The Chainsmokers ft Daya - Don't Let Me Down.mp3",true,0,"Singles\\The Chainsmokers ft Daya - ","Singles\\\\Chainsmokers ft Daya, The - Don't Let Me Down.mp3"]
["Singles\\Bryan Adams - Can't Stop This Thing We Started.mp3",false,0,{"$error":"#N/A"},"Singles\\Bryan Adams - Can't Stop This Thing We Started.mp3"]
["Singles\\Steve Miller Band - Macho City.mp3",false,0,{"$error":"#N/A"},"Singles\\Steve Miller Band - Macho City.mp3"]
["Singles\\Alicia Keys - Empire State Of Mind.mp3",false,0,{"$error":"#N/A"},"Singles\\Alicia Keys - Empire State Of Mind.mp3"]
["Singles\\Roberta Flack &  Peabo Bryson - Tonight I Celebrate My Love.mp3",false,0,{"$error":"#N/A"},"Singles\\Roberta Flack &  Peabo Bryson - Tonight I Celebrate My Love.mp3"]
["Singles\\Diggy Dex ft Eva De Roovere - Slaap Lekker (Fantastig Toch).mp3",false,0,{"$error":"#N/A"},"Singles\\Diggy Dex ft Eva De Roovere - Slaap Lekker (Fantastig Toch).mp3"]
["Singles\\Macklemore & Ryan Lewis ft Ray Dalton - Can't Hold Us.mp3",false,0,{"$error":"#N/A"},"Singles\\Macklemore & Ryan Lewis ft Ray Dalton - Can't Hold Us.mp3"]
["Singles\\Gene Pitney - 24 Hours From Tulsa.mp3",false,0,{"$error":"#N/A"},"Singles\\Gene Pitney - 24 Hours From Tulsa.mp3"]
["Singles\\Crazy Town - Butterfly.mp3",false,0,{"$error":"#N/A"},"Singles\\Crazy Town - Butterfly.mp3"]
["Singles\\Alain Clark - Blow Me Away.mp3",false,0,{"$error":"#N/A"},"Singles\\Alain Clark - Blow Me Away.mp3"]
["Singles\\Lieutenant Pigeon - Mouldy Old Dough.mp3",false,0,{"$error":"#N/A"},"Singles\\Lieutenant Pigeon - Mouldy Old Dough.mp3"]
["Singles\\The Bee Gees - Massachusetts.mp3",true,0,"Singles\\The Bee Gees - ","Singles\\\\Bee Gees, The - Massachusetts.mp3"]
["Singles\\Elvis Presley - Moody Blue.mp3",false,0,{"$error":"#N/A"},"Singles\\Elvis Presley - Moody Blue.mp3"]
["Singles\\The Script - If You Could See Me Now.mp3",true,0,"Singles\\The Script - ","Singles\\\\Script, The - If You Could See Me Now.mp3"]
["Singles\\The New Seekers - Never Ending Song Of Love.mp3",true,0,"Singles\\The New Seekers - ","Singles\\\\New Seekers, The - Never Ending Song Of Love.mp3"]
["Singles\\U2 - Walk On.mp3",false,0,{"$error":"#N/A"},"Singles\\U2 - Walk On.mp3"]
["Singles\\The Calling - Wherever You Will Go.mp3",true,0,"Singles\\The Calling - ","Singles\\\\Calling, The - Wherever You Will Go.mp3"]
["Singles\\Ilse DeLange - Winter Of Love.mp3",false,0,{"$error":"#N/A"},"Singles\\Ilse DeLange - Winter Of Love.mp3"]
["Singles\\Edith Piaf - Milord.mp3",false,0,{"$error":"#N/A"},"Singles\\Edith Piaf - Milord.mp3"]
["Singles\\Pink Floyd - Arnold Layne.mp3",false,0,{"$error":"#N/A"},"Singles\\Pink Floyd - Arnold Layne.mp3"]
["Singles\\Meat Loaf - Two Out Of Three Ain't Bad.mp3",false,0,{"$error":"#N/A"},"Singles\\Meat Loaf - Two Out Of Three Ain't Bad.mp3"]
["Singles\\Seal - Walk On By.mp3",false,0,{"$error":"#N/A"},"Singles\\Seal - Walk On By.mp3"]
["Singles\\10cc - Rubber Bullets.mp3",false,0,{"$error":"#N/A"},"Singles\\10cc - Rubber Bullets.mp3"]
["Singles\\Duffy - Stepping Stone.mp3",false,0,{"$error":"#N/A"},"Singles\\Duffy - Stepping Stone.mp3"]
["Singles\\Duran Duran - The Reflex.mp3",true,0,{"$error":"#N/A"},"Singles\\Duran Duran - The Reflex.mp3"]
["Singles\\The Jive Five - My True Story.mp3",true,0,"Singles\\The Jive Five - ","Singles\\\\Jive Five, The - My True Story.mp3"]
["Singles\\Whitney Houston - Saving All My Love For You.mp3",false,0,{"$error":"#N/A"},"Singles\\Whitney Houston - Saving All My Love For You.mp3"]
["Singles\\Jacques Brel - Ne Me Quitte Pas.mp3",false,0,{"$error":"#N/A"},"Singles\\Jacques Brel - Ne Me Quitte Pas.mp3"]
["Singles\\Jordin Sparks - Tattoo.mp3",false,0,{"$error":"#N/A"},"Singles\\Jordin Sparks - Tattoo.mp3"]
["Singles\\Fats Domino - There Goes My Heart Again.mp3",true,1,{"$error":"#N/A"},"Singles\\Fats Domino - There Goes My Heart Again.mp3"]
["Singles\\Martin Garrix ft Usher - Don't Look Down.mp3",false,0,{"$error":"#N/A"},"Singles\\Martin Garrix ft Usher - Don't Look Down.mp3"]
["Singles\\George Ezra - Shotgun.mp3",false,0,{"$error":"#N/A"},"Singles\\George Ezra - Shotgun.mp3"]
["Singles\\Afrojack Ft Wrabel - Ten Feet Tall.mp3",false,0,{"$error":"#N/A"},"Singles\\Afrojack Ft Wrabel - Ten Feet Tall.mp3"]
["Singles\\Little Richard - Good Golly Miss Molly.mp3",false,0,{"$error":"#N/A"},"Singles\\Little Richard - Good Golly Miss Molly.mp3"]
["Singles\\Steely Dan - Haitian Divorce.mp3",false,0,{"$error":"#N/A"},"Singles\\Steely Dan - Haitian Divorce.mp3"]
["Singles\\Chips - You Name It I'll Do It.mp3",false,0,{"$error":"#N/A"},"Singles\\Chips - You Name It I'll Do It.mp3"]
["Singles\\Anouk - I'm A Cliche.mp3",false,0,{"$error":"#N/A"},"Singles\\Anouk - I'm A Cliche.mp3"]
["Singles\\Coldplay - Clocks.mp3",false,0,{"$error":"#N/A"},"Singles\\Coldplay - Clocks.mp3"]
["Singles\\Baltimora - Tarzan Boy.mp3",false,0,{"$error":"#N/A"},"Singles\\Baltimora - Tarzan Boy.mp3"]
["Singles\\Bitty McLean - It Keeps Raining.mp3",false,0,{"$error":"#N/A"},"Singles\\Bitty McLean - It Keeps Raining.mp3"]
["Singles\\Lou Christie - Lightning Strikes.mp3",false,0,{"$error":"#N/A"},"Singles\\Lou Christie - Lightning Strikes.mp3"]
["Singles\\Suzi Quatro - Devil Gate Drive.mp3",{"$f":"RegexTest(B$1,$A1347)","v":false},{"$f":"RegexCount(C$1,$A1347)","v":0},{"$f":"RegexFind(D$1,$A1347)","v":{"$error":"#N/A"}},{"$f":"RegexReplace(E$1,$A1347,F$1)","v":"Singles\\Suzi Quatro - Devil Gate Drive.mp3"}]
["Singles\\Otto Knows ft Avicii - Back Where I Belong.mp3",false,0,{"$error":"#N/A"},"Singles\\Otto Knows ft Avicii - Back Where I Belong.mp3"]
["Singles\\Hank Locklin - Please Help Me I'm Falling.mp3",false,0,{"$error":"#N/A"},"Singles\\Hank Locklin - Please Help Me I'm Falling.mp3"]
["Singles\\Drs P - Knolraap En Lof Schorseneren En Prei.mp3",false,0,{"$error":"#N/A"},"Singles\\Drs P - Knolraap En Lof Schorseneren En Prei.mp3"]
["Singles\\Catherine Ferry - Un, Deux, Trois.mp3",false,0,{"$error":"#N/A"},"Singles\\Catherine Ferry - Un, Deux, Trois.mp3"]
["Singles\\Supertramp - Fool's Overture.mp3",false,0,{"$error":"#N/A"},"Singles\\Supertramp - Fool's Overture.mp3"]
["Singles\\Katy Perry ft Juicy J - Dark Horse.mp3",false,0,{"$error":"#N/A"},"Singles\\Katy Perry ft Juicy J - Dark Horse.mp3"]
["Singles\\Laura Jansen - Use Somebody.mp3",false,0,{"$error":"#N/A"},"Singles\\Laura Jansen - Use Somebody.mp3"]
["Singles\\Titanic - Sultana.mp3",false,0,{"$error":"#N/A"},"Singles\\Titanic - Sultana.mp3"]
["Singles\\Randy Crawford - You Might Need Somebody.mp3",false,0,{"$error":"#N/A"},"Singles\\Randy Crawford - You Might Need Somebody.mp3"]
["Singles\\Pink - Just Like A Pill.mp3",false,0,{"$error":"#N/A"},"Singles\\Pink - Just Like A Pill.mp3"]
["Singles\\The Five Americans - Western Union.mp3",true,0,"Singles\\The Five Americans - ","Singles\\\\Five Americans, The - Western Union.mp3"]
["Singles\\Katie Melua - If You Were A Sailboat.mp3",false,0,{"$error":"#N/A"},"Singles\\Katie Melua - If You Were A Sailboat.mp3"]
["Singles\\Avicii - Hey Brother.mp3",false,0,{"$error":"#N/A"},"Singles\\Avicii - Hey Brother.mp3"]
["Singles\\Hep Stars - Sunny Girl.mp3",false,0,{"$error":"#N/A"},"Singles\\Hep Stars - Sunny Girl.mp3"]
["Singles\\Nelly Furtado - Força.mp3",false,0,{"$error":"#N/A"},"Singles\\Nelly Furtado - Força.mp3"]
["Singles\\Bruno Mars - Moonshine.mp3",false,0,{"$error":"#N/A"},"Singles\\Bruno Mars - Moonshine.mp3"]
["Singles\\The Christians - One More Baby In Black.mp3",true,0,"Singles\\The Christians - ","Singles\\\\Christians, The - One More Baby In Black.mp3"]
["Singles\\Milli Vanilli - Baby Don't Forget My Number.mp3",false,0,{"$error":"#N/A"},"Singles\\Milli Vanilli - Baby Don't Forget My Number.mp3"]
["Singles\\De Dijk - Mag Het Licht Uit.mp3",false,0,{"$error":"#N/A"},"Singles\\De Dijk - Mag Het Licht Uit.mp3"]
["Singles\\O'Jays - Backstabbers.mp3",false,0,{"$error":"#N/A"},"Singles\\O'Jays - Backstabbers.mp3"]
["Singles\\Aerosmith - I Don't Wanna Miss A Thing.mp3",false,0,{"$error":"#N/A"},"Singles\\Aerosmith - I Don't Wanna Miss A Thing.mp3"]
["Singles\\Charles Aznavour - Yesterday When I Was Young.mp3",false,0,{"$error":"#N/A"},"Singles\\Charles Aznavour - Yesterday When I Was Young.mp3"]
["Singles\\Captain Sensible - Happy Talk.mp3",false,0,{"$error":"#N/A"},"Singles\\Captain Sensible - Happy Talk.mp3"]
["Singles\\Richard Marx - Right Here Waiting For You.mp3",false,0,{"$error":"#N/A"},"Singles\\Richard Marx - Right Here Waiting For You.mp3"]
["Singles\\Jonas Blue ft Jack & Jack - Rise.mp3",false,0,{"$error":"#N/A"},"Singles\\Jonas Blue ft Jack & Jack - Rise.mp3"]
["Singles\\Bruno Mars - The Lazy Song.mp3",true,0,{"$error":"#N/A"},"Singles\\Bruno Mars - The Lazy Song.mp3"]
["Singles\\Vicky Leandros - Apres Toi.mp3",false,0,{"$error":"#N/A"},"Singles\\Vicky Leandros - Apres Toi.mp3"]
["Singles\\Steely Dan - FM (No Static At All).mp3",false,0,{"$error":"#N/A"},"Singles\\Steely Dan - FM (No Static At All).mp3"]
["Singles\\Ilse DeLange - We're Alright.mp3",false,0,{"$error":"#N/A"},"Singles\\Ilse DeLange - We're Alright.mp3"]
["Singles\\Alvaro Soler - Sofia .mp3",false,0,{"$error":"#N/A"},"Singles\\Alvaro Soler - Sofia .mp3"]
["Singles\\Sue Thompson - Norman.mp3",false,0,{"$error":"#N/A"},"Singles\\Sue Thompson - Norman.mp3"]
["Singles\\Stan Ridgeway - Camouflage.mp3",false,0,{"$error":"#N/A"},"Singles\\Stan Ridgeway - Camouflage.mp3"]
["Singles\\Calvin Harris & Dua Lipa - One Kiss.mp3",false,0,{"$error":"#N/A"},"Singles\\Calvin Harris & Dua Lipa - One Kiss.mp3"]
["Singles\\Blof ft Counting Crows - Holiday In Spain.mp3",false,0,{"$error":"#N/A"},"Singles\\Blof ft Counting Crows - Holiday In Spain.mp3"]
["Singles\\Jason Mraz - The Freedom Song.mp3",true,0,{"$error":"#N/A"},"Singles\\Jason Mraz - The Freedom Song.mp3"]
["Singles\\Snow Patrol - Just Say Yes.mp3",false,0,{"$error":"#N/A"},"Singles\\Snow Patrol - Just Say Yes.mp3"]
["Singles\\Jaap Dekker Boogie Set - In Een Groen Groen Knollenland.mp3",false,0,{"$error":"#N/A"},"Singles\\Jaap Dekker Boogie Set - In Een Groen Groen Knollenland.mp3"]
["Singles\\The Asteroids Galaxy Tour - Suburban Space Invader.mp3",true,0,"Singles\\The Asteroids Galaxy Tour - ","Singles\\\\Asteroids Galaxy Tour, The - Suburban Space Invader.mp3"]
["Singles\\Herd - Paradise Lost.mp3",false,0,{"$error":"#N/A"},"Singles\\Herd - Paradise Lost.mp3"]
["Singles\\The Beach Boys - Help Me Rhonda.mp3",true,0,"Singles\\The Beach Boys - ","Singles\\\\Beach Boys, The - Help Me Rhonda.mp3"]
["Singles\\Backstreet Boys - Show Me The Meaning Of Being Lonely.mp3",true,0,{"$error":"#N/A"},"Singles\\Backstreet Boys - Show Me The Meaning Of Being Lonely.mp3"]
["Singles\\Barbara Dickson - My Heart Lies.mp3",false,0,{"$error":"#N/A"},"Singles\\Barbara Dickson - My Heart Lies.mp3"]
["Singles\\US 3 - Cantaloop.mp3",false,0,{"$error":"#N/A"},"Singles\\US 3 - Cantaloop.mp3"]
["Singles\\Kenny Rogers - Lady.mp3",false,0,{"$error":"#N/A"},"Singles\\Kenny Rogers - Lady.mp3"]
["Singles\\Neil Diamond - Let Me Take You In My Arms Again.mp3",false,0,{"$error":"#N/A"},"Singles\\Neil Diamond - Let Me Take You In My Arms Again.mp3"]
["Singles\\Ian Carey ft Michelle Shellers - Keep On Rising.mp3",false,0,{"$error":"#N/A"},"Singles\\Ian Carey ft Michelle Shellers - Keep On Rising.mp3"]
["Singles\\Clean Bandit ft Zara Larsson - Symphony.mp3",false,0,{"$error":"#N/A"},"Singles\\Clean Bandit ft Zara Larsson - Symphony.mp3"]
["Singles\\Andre Van Duin (Hein De Gokker) - Bingo (Ringo).mp3",false,0,{"$error":"#N/A"},"Singles\\Andre Van Duin (Hein De Gokker) - Bingo (Ringo).mp3"]
["Singles\\Ace Of Base - Beautiful Morning.mp3",false,0,{"$error":"#N/A"},"Singles\\Ace Of Base - Beautiful Morning.mp3"]
["Singles\\Toendra's - Ik Wil Weer Naar Huis.mp3",false,0,{"$error":"#N/A"},"Singles\\Toendra's - Ik Wil Weer Naar Huis.mp3"]
["Singles\\Michael Jackson - Remember The Time.mp3",true,0,{"$error":"#N/A"},"Singles\\Michael Jackson - Remember The Time.mp3"]
["Singles\\Yves Larock - Rise Up.mp3",false,0,{"$error":"#N/A"},"Singles\\Yves Larock - Rise Up.mp3"]
["Singles\\The Beatles - Getting Better.mp3",true,0,"Singles\\The Beatles - ","Singles\\\\Beatles, The - Getting Better.mp3"]
["Singles\\Elvis Presley - Wooden Heart.mp3",false,0,{"$error":"#N/A"},"Singles\\Elvis Presley - Wooden Heart.mp3"]
["Singles\\The Smiths - Girlfriend In A Coma.mp3",true,0,"Singles\\The Smiths - ","Singles\\\\Smiths, The - Girlfriend In A Coma.mp3"]
["Singles\\Jason Donovan - Too Many Broken Hearts.mp3",false,0,{"$error":"#N/A"},"Singles\\Jason Donovan - Too Many Broken Hearts.mp3"]
["Singles\\Paul Weller - You Do Something To Me.mp3",false,0,{"$error":"#N/A"},"Singles\\Paul Weller - You Do Something To Me.mp3"]
["Singles\\Jules De Corte - Hallo Koning Onbenul.mp3",false,0,{"$error":"#N/A"},"Singles\\Jules De Corte - Hallo Koning Onbenul.mp3"]
["Singles\\Mick Jagger - Just Another Night.mp3",false,0,{"$error":"#N/A"},"Singles\\Mick Jagger - Just Another Night.mp3"]
["Singles\\The Classics - My Lady Of Spain.mp3",true,0,"Singles\\The Classics - ","Singles\\\\Classics, The - My Lady Of Spain.mp3"]
["Singles\\Kenny Loggins - Footloose.mp3",false,0,{"$error":"#N/A"},"Singles\\Kenny Loggins - Footloose.mp3"]
["Singles\\Ohio Express - Chewy Chewy.mp3",false,0,{"$error":"#N/A"},"Singles\\Ohio Express - Chewy Chewy.mp3"]
["Singles\\Total Touch - I'll Say Goodbye.mp3",false,0,{"$error":"#N/A"},"Singles\\Total Touch - I'll Say Goodbye.mp3"]
["Singles\\Pearl Jam - Yellow Ledbetter.mp3",{"$f":"RegexTest(B$1,$A1411)","v":false},{"$f":"RegexCount(C$1,$A1411)","v":0},{"$f":"RegexFind(D$1,$A1411)","v":{"$error":"#N/A"}},{"$f":"RegexReplace(E$1,$A1411,F$1)","v":"Singles\\Pearl Jam - Yellow Ledbetter.mp3"}]
["Singles\\Rob 'n' Raz ft Leila K - Got To Get.mp3",false,0,{"$error":"#N/A"},"Singles\\Rob 'n' Raz ft Leila K - Got To Get.mp3"]
["Singles\\MC Hammer - Have You Seen Her.mp3",false,0,{"$error":"#N/A"},"Singles\\MC Hammer - Have You Seen Her.mp3"]
["Singles\\Inner Circle - Bad Boys.mp3",false,0,{"$error":"#N/A"},"Singles\\Inner Circle - Bad Boys.mp3"]
["Singles\\The Beatles - From Me To You.mp3",true,0,"Singles\\The Beatles - ","Singles\\\\Beatles, The - From Me To You.mp3"]
["Singles\\Miss Montreal - Heavy Heart.mp3",false,0,{"$error":"#N/A"},"Singles\\Miss Montreal - Heavy Heart.mp3"]
["Singles\\Simple Plan ft Natasha Bedingfield - Jet Lag.mp3",false,0,{"$error":"#N/A"},"Singles\\Simple Plan ft Natasha Bedingfield - Jet Lag.mp3"]
["Singles\\Toto - Mushanga.mp3",false,0,{"$error":"#N/A"},"Singles\\Toto - Mushanga.mp3"]
["Singles\\Lenny Kravitz - Again.mp3",false,0,{"$error":"#N/A"},"Singles\\Lenny Kravitz - Again.mp3"]
["Singles\\Whitesnake - Is This Love.mp3",false,0,{"$error":"#N/A"},"Singles\\Whitesnake - Is This Love.mp3"]
["Singles\\David Bowie - China Girl.mp3",false,0,{"$error":"#N/A"},"Singles\\David Bowie - China Girl.mp3"]
["Singles\\Jim Reeves - I Love You Because.mp3",false,0,{"$error":"#N/A"},"Singles\\Jim Reeves - I Love You Because.mp3"]
["Singles\\Anne Marie David - Tu Te Reconnaitras.mp3",false,0,{"$error":"#N/A"},"Singles\\Anne Marie David - Tu Te Reconnaitras.mp3"]
["Singles\\Severine - Un Banc Un Arbre Une Rue.mp3",false,0,{"$error":"#N/A"},"Singles\\Severine - Un Banc Un Arbre Une Rue.mp3"]
["Singles\\Paul McCartney - My Brave Face.mp3",false,0,{"$error":"#N/A"},"Singles\\Paul McCartney - My Brave Face.mp3"]
["Singles\\Simon & Garfunkel - Scarborough Fair.mp3",false,0,{"$error":"#N/A"},"Singles\\Simon & Garfunkel - Scarborough Fair.mp3"]
["Singles\\Neneh Cherry - Manchild.mp3",false,0,{"$error":"#N/A"},"Singles\\Neneh Cherry - Manchild.mp3"]
["Singles\\Edward Maya & Vika Jigulina - Stereo Love.mp3",false,0,{"$error":"#N/A"},"Singles\\Edward Maya & Vika Jigulina - Stereo Love.mp3"]
["Singles\\The Blow Monkeys - You Don't Own Me.mp3",true,0,"Singles\\The Blow Monkeys - ","Singles\\\\Blow Monkeys, The - You Don't Own Me.mp3"]
["Singles\\Don Mclean - Dreidel.mp3",false,0,{"$error":"#N/A"},"Singles\\Don Mclean - Dreidel.mp3"]
["Singles\\Kensington - Fiji.mp3",false,0,{"$error":"#N/A"},"Singles\\Kensington - Fiji.mp3"]
["Singles\\Lily Allen - 22.mp3",false,0,{"$error":"#N/A"},"Singles\\Lily Allen - 22.mp3"]
["Singles\\Roxette - How Do You Do!.mp3",false,0,{"$error":"#N/A"},"Singles\\Roxette - How Do You Do!.mp3"]
["Singles\\The Angels - My Boyfriend's Back.mp3",true,0,"Singles\\The Angels - ","Singles\\\\Angels, The - My Boyfriend's Back.mp3"]
["Singles\\The Magician ft Years And Years - Sunlight.mp3",true,0,"Singles\\The Magician ft Years And Years - ","Singles\\\\Magician ft Years And Years, The - Sunlight.mp3"]
["Singles\\The Marbles - The Walls Fell Down.mp3",true,0,"Singles\\The Marbles - ","Singles\\\\Marbles, The - The Walls Fell Down.mp3"]
["Singles\\Adele - When We Were Young.mp3",false,0,{"$error":"#N/A"},"Singles\\Adele - When We Were Young.mp3"]
["Singles\\Paco - Amor De Mis Amores.mp3",false,0,{"$error":"#N/A"},"Singles\\Paco - Amor De Mis Amores.mp3"]
["Singles\\Van Halen - Jump.mp3",false,0,{"$error":"#N/A"},"Singles\\Van Halen - Jump.mp3"]
["Singles\\Andre Hazes - Een Beetje Verliefd.mp3",false,0,{"$error":"#N/A"},"Singles\\Andre Hazes - Een Beetje Verliefd.mp3"]
["Singles\\Avicii - The Nights.mp3",true,0,{"$error":"#N/A"},"Singles\\Avicii - The Nights.mp3"]
["Singles\\Dr Alban - Sing Hallelujah.mp3",false,0,{"$error":"#N/A"},"Singles\\Dr Alban - Sing Hallelujah.mp3"]
["Singles\\Mika - Relax (Take It Easy).mp3",false,0,{"$error":"#N/A"},"Singles\\Mika - Relax (Take It Easy).mp3"]
["Singles\\Jordin Sparks ft Chris Brown - No Air.mp3",false,0,{"$error":"#N/A"},"Singles\\Jordin Sparks ft Chris Brown - No Air.mp3"]
["Singles\\Kane - Love Over Healing.mp3",false,0,{"$error":"#N/A"},"Singles\\Kane - Love Over Healing.mp3"]
["Singles\\Travie Mccoy ft Bruno Mars - Billionaire.mp3",false,0,{"$error":"#N/A"},"Singles\\Travie Mccoy ft Bruno Mars - Billionaire.mp3"]
["Singles\\Donovan - Universal Soldier.mp3",false,0,{"$error":"#N/A"},"Singles\\Donovan - Universal Soldier.mp3"]
["Singles\\War - Why Can't We Be Friends.mp3",false,0,{"$error":"#N/A"},"Singles\\War - Why Can't We Be Friends.mp3"]
["Singles\\Urban Heroes - Not Another World War.mp3",false,0,{"$error":"#N/A"},"Singles\\Urban Heroes - Not Another World War.mp3"]
["Singles\\Charles Aznavour - Dance In The Old Fashioned Way.mp3",true,0,{"$error":"#N/A"},"Singles\\Charles Aznavour - Dance In The Old Fashioned Way.mp3"]
["Singles\\Neet Oet Lottum - Hald Mich 's Vas.mp3",false,0,{"$error":"#N/A"},"Singles\\Neet Oet Lottum - Hald Mich 's Vas.mp3"]
["Singles\\Aerosmith - Dream On.mp3",false,0,{"$error":"#N/A"},"Singles\\Aerosmith - Dream On.mp3"]
["Singles\\Sigala - Easy Love.mp3",false,0,{"$error":"#N/A"},"Singles\\Sigala - Easy Love.mp3"]
["Singles\\Pink - Just Like Fire.mp3",false,0,{"$error":"#N/A"},"Singles\\Pink - Just Like Fire.mp3"]
["Singles\\The Rolling Stones - Jumping Jack Flash.mp3",true,0,"Singles\\The Rolling Stones - ","Singles\\\\Rolling Stones, The - Jumping Jack Flash.mp3"]
["Singles\\Peter Orloff - Ein Maedchen Fuer Immer.mp3",false,0,{"$error":"#N/A"},"Singles\\Peter Orloff - Ein Maedchen Fuer Immer.mp3"]
["Singles\\U2 - Sunday Bloody Sunday.mp3",false,0,{"$error":"#N/A"},"Singles\\U2 - Sunday Bloody Sunday.mp3"]
["Singles\\Ritmo Dynamic - Calinda.mp3",false,0,{"$error":"#N/A"},"Singles\\Ritmo Dynamic - Calinda.mp3"]
["Singles\\Monie Love ft True Image - It's A Shame (My Sister).mp3",false,0,{"$error":"#N/A"},"Singles\\Monie Love ft True Image - It's A Shame (My Sister).mp3"]
["Singles\\Pink - Today's The Day.mp3",true,0,{"$error":"#N/A"},"Singles\\Pink - Today's The Day.mp3"]
["Singles\\John Lennon - Imagine.mp3",false,0,{"$error":"#N/A"},"Singles\\John Lennon - Imagine.mp3"]
["Singles\\The Cats - Marian.mp3",true,0,"Singles\\The Cats - ","Singles\\\\Cats, The - Marian.mp3"]
["Singles\\Taio Cruz - Dynamite.mp3",false,0,{"$error":"#N/A"},"Singles\\Taio Cruz - Dynamite.mp3"]
["Singles\\Vitesse - Rosalyn.mp3",false,0,{"$error":"#N/A"},"Singles\\Vitesse - Rosalyn.mp3"]
["Singles\\Rihanna & Kanye West & Paul McCartney - FourFiveSeconds.mp3",false,0,{"$error":"#N/A"},"Singles\\Rihanna & Kanye West & Paul McCartney - FourFiveSeconds.mp3"]
["Singles\\Radiohead - Karma Police.mp3",false,0,{"$error":"#N/A"},"Singles\\Radiohead - Karma Police.mp3"]
["Singles\\The Kinks - Mr. Pleasant.mp3",true,0,"Singles\\The Kinks - ","Singles\\\\Kinks, The - Mr. Pleasant.mp3"]
["Singles\\Wim Sonneveld - Het Dorp.mp3",false,0,{"$error":"#N/A"},"Singles\\Wim Sonneveld - Het Dorp.mp3"]
["Singles\\Taylor Swift - Blank Space.mp3",false,0,{"$error":"#N/A"},"Singles\\Taylor Swift - Blank Space.mp3"]
["Singles\\Eurythmics - Sex Crime 1984.mp3",false,0,{"$error":"#N/A"},"Singles\\Eurythmics - Sex Crime 1984.mp3"]
["Singles\\Walking On Cars - Speeding Cars.mp3",false,0,{"$error":"#N/A"},"Singles\\Walking On Cars - Speeding Cars.mp3"]
["Singles\\Exile - Heart And Soul.mp3",false,0,{"$error":"#N/A"},"Singles\\Exile - Heart And Soul.mp3"]
["Singles\\Rita Coolidge - All Time High.mp3",false,0,{"$error":"#N/A"},"Singles\\Rita Coolidge - All Time High.mp3"]
["Singles\\Nelly Furtado - In Gods Hands.mp3",false,0,{"$error":"#N/A"},"Singles\\Nelly Furtado - In Gods Hands.mp3"]
["Singles\\Holland - Magic Mary.mp3",{"$f":"RegexTest(B$1,$A1475)","v":false},{"$f":"RegexCount(C$1,$A1475)","v":0},{"$f":"RegexFind(D$1,$A1475)","v":{"$error":"#N/A"}},{"$f":"RegexReplace(E$1,$A1475,F$1)","v":"Singles\\Holland - Magic Mary.mp3"}]
["Singles\\Boney M - Baby Do You Wanna Bump.mp3",false,0,{"$error":"#N/A"},"Singles\\Boney M - Baby Do You Wanna Bump.mp3"]
["Singles\\Dire Straits - Calling Elvis.mp3",false,0,{"$error":"#N/A"},"Singles\\Dire Straits - Calling Elvis.mp3"]
["Singles\\Lukas Graham - You're Not There.mp3",true,1,{"$error":"#N/A"},"Singles\\Lukas Graham - You're Not There.mp3"]
["Singles\\Tom Jones - Detroit City.mp3",false,0,{"$error":"#N/A"},"Singles\\Tom Jones - Detroit City.mp3"]
["Singles\\Chris Barber's Jazzband - Ice Cream.mp3",false,0,{"$error":"#N/A"},"Singles\\Chris Barber's Jazzband - Ice Cream.mp3"]
["Singles\\Frank Duval - Angel Of Mine.mp3",false,0,{"$error":"#N/A"},"Singles\\Frank Duval - Angel Of Mine.mp3"]
["Singles\\Prince - Raspberry Beret.mp3",false,0,{"$error":"#N/A"},"Singles\\Prince - Raspberry Beret.mp3"]
["Singles\\Rita Ora - Let You Love Me.mp3",false,0,{"$error":"#N/A"},"Singles\\Rita Ora - Let You Love Me.mp3"]
["Singles\\Rubettes - I Can Do It.mp3",false,0,{"$error":"#N/A"},"Singles\\Rubettes - I Can Do It.mp3"]
["Singles\\Ed Sheeran - I See Fire.mp3",false,0,{"$error":"#N/A"},"Singles\\Ed Sheeran - I See Fire.mp3"]
["Singles\\Mr Bloe - Groovin' With Mr Bloe.mp3",false,0,{"$error":"#N/A"},"Singles\\Mr Bloe - Groovin' With Mr Bloe.mp3"]
["Singles\\Milow - You And Me (In My Pocket).mp3",false,0,{"$error":"#N/A"},"Singles\\Milow - You And Me (In My Pocket).mp3"]
["Singles\\Toni Braxton - Another Sad Love Song.mp3",false,0,{"$error":"#N/A"},"Singles\\Toni Braxton - Another Sad Love Song.mp3"]
["Singles\\Bruce Springsteen - Human Touch.mp3",false,0,{"$error":"#N/A"},"Singles\\Bruce Springsteen - Human Touch.mp3"]
["Singles\\Lois Lane - Amsterdamned.mp3",false,0,{"$error":"#N/A"},"Singles\\Lois Lane - Amsterdamned.mp3"]
["Singles\\OneRepublic - I Lived.mp3",false,0,{"$error":"#N/A"},"Singles\\OneRepublic - I Lived.mp3"]
["Singles\\Mica Paris - My One Temptation.mp3",false,0,{"$error":"#N/A"},"Singles\\Mica Paris - My One Temptation.mp3"]
["Singles\\Whitney Houston - I Wanna Dance With Somebody.mp3",false,0,{"$error":"#N/A"},"Singles\\Whitney Houston - I Wanna Dance With Somebody.mp3"]
["Singles\\Queen - These Are The Days Of Our Lives.mp3",true,0,{"$error":"#N/A"},"Singles\\Queen - These Are The Days Of Our Lives.mp3"]
["Singles\\Nelly Furtado - Powerless (Say What You Want).mp3",false,0,{"$error":"#N/A"},"Singles\\Nelly Furtado - Powerless (Say What You Want).mp3"]
["Singles\\Pink - Sober.mp3",false,0,{"$error":"#N/A"},"Singles\\Pink - Sober.mp3"]
["Singles\\Anne Murray - Snowbird.mp3",false,0,{"$error":"#N/A"},"Singles\\Anne Murray - Snowbird.mp3"]
["Singles\\Mark Ronson ft Bruno Mars - Uptown Funk!.mp3",false,0,{"$error":"#N/A"},"Singles\\Mark Ronson ft Bruno Mars - Uptown Funk!.mp3"]
["Singles\\Doe Maar - Een Nacht Alleen.mp3",false,0,{"$error":"#N/A"},"Singles\\Doe Maar - Een Nacht Alleen.mp3"]
["Singles\\Teddy Pendergrass & Whitney Houston - Hold Me.mp3",false,0,{"$error":"#N/A"},"Singles\\Teddy Pendergrass & Whitney Houston - Hold Me.mp3"]
["Singles\\Michael Jackson - Rock With You.mp3",false,0,{"$error":"#N/A"},"Singles\\Michael Jackson - Rock With You.mp3"]
["Singles\\Rob De Nijs - Ritme Van De Regen.mp3",false,0,{"$error":"#N/A"},"Singles\\Rob De Nijs - Ritme Van De Regen.mp3"]
["Singles\\Chris Brown & Benny Benassi - Beautiful People.mp3",false,0,{"$error":"#N/A"},"Singles\\Chris Brown & Benny Benassi - Beautiful People.mp3"]
["Singles\\Art Of Noise - Peter Gunn.mp3",false,0,{"$error":"#N/A"},"Singles\\Art Of Noise - Peter Gunn.mp3"]
["Singles\\Rod Stewart - Tonight I'm Yours.mp3",false,0,{"$error":"#N/A"},"Singles\\Rod Stewart - Tonight I'm Yours.mp3"]
["Singles\\Hot Blood - Soul Dracula.mp3",false,0,{"$error":"#N/A"},"Singles\\Hot Blood - Soul Dracula.mp3"]
["Singles\\Duffy - Serious.mp3",false,0,{"$error":"#N/A"},"Singles\\Duffy - Serious.mp3"]
["Singles\\Alive And Kicking - Tighter & Tighter.mp3",false,0,{"$error":"#N/A"},"Singles\\Alive And Kicking - Tighter & Tighter.mp3"]
["Singles\\The Lovin' Spoonful - Do You Believe In Magic.mp3",true,0,"Singles\\The Lovin' Spoonful - ","Singles\\\\Lovin' Spoonful, The - Do You Believe In Magic.mp3"]
["Singles\\Richie Valens - Come On Let's Go.mp3",false,0,{"$error":"#N/A"},"Singles\\Richie Valens - Come On Let's Go.mp3"]
["Singles\\Fifth Harmony ft Ty Dolla $ign - Work From Home.mp3",false,0,{"$error":"#N/A"},"Singles\\Fifth Harmony ft Ty Dolla $ign - Work From Home.mp3"]
["Singles\\Mike Oldfield - In Dulci Jubilo.mp3",false,0,{"$error":"#N/A"},"Singles\\Mike Oldfield - In Dulci Jubilo.mp3"]
["Singles\\Peter Cetera - Glory Of Love.mp3",false,0,{"$error":"#N/A"},"Singles\\Peter Cetera - Glory Of Love.mp3"]
["Singles\\Dr Alban - It's My Life.mp3",false,0,{"$error":"#N/A"},"Singles\\Dr Alban - It's My Life.mp3"]
["Singles\\Mr Walkie Talkie - Be My Boogie Woogie Baby.mp3",false,0,{"$error":"#N/A"},"Singles\\Mr Walkie Talkie - Be My Boogie Woogie Baby.mp3"]
["Singles\\Pink Floyd - Astronomy Domine.mp3",false,0,{"$error":"#N/A"},"Singles\\Pink Floyd - Astronomy Domine.mp3"]
["Singles\\Monsoon - Ever So Lonely.mp3",false,0,{"$error":"#N/A"},"Singles\\Monsoon - Ever So Lonely.mp3"]
["Singles\\Bobby Brown - My Prerogative.mp3",false,0,{"$error":"#N/A"},"Singles\\Bobby Brown - My Prerogative.mp3"]
["Singles\\Coldplay - Up And Up.mp3",false,0,{"$error":"#N/A"},"Singles\\Coldplay - Up And Up.mp3"]
["Singles\\Brian Hyland - Itsy Bitsy Teeny Weeny Yellow Polka Dot Bikini.mp3",false,0,{"$error":"#N/A"},"Singles\\Brian Hyland - Itsy Bitsy Teeny Weeny Yellow Polka Dot Bikini.mp3"]
["Singles\\Dave Berry - Now.mp3",false,0,{"$error":"#N/A"},"Singles\\Dave Berry - Now.mp3"]
["Singles\\Waylon - Wicked Way.mp3",false,0,{"$error":"#N/A"},"Singles\\Waylon - Wicked Way.mp3"]
["Singles\\Santana & Rob Thomas - Smooth.mp3",false,0,{"$error":"#N/A"},"Singles\\Santana & Rob Thomas - Smooth.mp3"]
["Singles\\Avicii - Levels.mp3",false,0,{"$error":"#N/A"},"Singles\\Avicii - Levels.mp3"]
["Singles\\Spice Girls - Mama.mp3",false,0,{"$error":"#N/A"},"Singles\\Spice Girls - Mama.mp3"]
["Singles\\Stromae - Tous Les Memes.mp3",false,0,{"$error":"#N/A"},"Singles\\Stromae - Tous Les Memes.mp3"]
["Singles\\Mariah Carey - Hero.mp3",false,0,{"$error":"#N/A"},"Singles\\Mariah Carey - Hero.mp3"]
["Singles\\The Zombies - Tell Her No.mp3",true,0,"Singles\\The Zombies - ","Singles\\\\Zombies, The - Tell Her No.mp3"]
["Singles\\Lodewijck Van Avezaath - Verrek, Zeg Kerel Ben Jij 't.mp3",false,0,{"$error":"#N/A"},"Singles\\Lodewijck Van Avezaath - Verrek, Zeg Kerel Ben Jij 't.mp3"]
["Singles\\David Guetta & Sia - Flames.mp3",false,0,{"$error":"#N/A"},"Singles\\David Guetta & Sia - Flames.mp3"]
["Singles\\Procol Harum - Grand Hotel.mp3",false,0,{"$error":"#N/A"},"Singles\\Procol Harum - Grand Hotel.mp3"]
["Singles\\Shary-An - Read My Book.mp3",false,0,{"$error":"#N/A"},"Singles\\Shary-An - Read My Book.mp3"]
["Singles\\Three Degrees - Take Good Care Of Yourself.mp3",false,0,{"$error":"#N/A"},"Singles\\Three Degrees - Take Good Care Of Yourself.mp3"]
["Singles\\Jan Rot - Counting Sheep.mp3",false,0,{"$error":"#N/A"},"Singles\\Jan Rot - Counting Sheep.mp3"]
["Singles\\Mick Jagger & Peter Tosh - Walk And Don't Look Back.mp3",false,0,{"$error":"#N/A"},"Singles\\Mick Jagger & Peter Tosh - Walk And Don't Look Back.mp3"]
["Singles\\Pearl Jam - Off He Goes.mp3",false,0,{"$error":"#N/A"},"Singles\\Pearl Jam - Off He Goes.mp3"]
["Singles\\Spice Girls - Stop.mp3",false,0,{"$error":"#N/A"},"Singles\\Spice Girls - Stop.mp3"]
["Singles\\Miley Cyrus - Wrecking Ball.mp3",false,0,{"$error":"#N/A"},"Singles\\Miley Cyrus - Wrecking Ball.mp3"]
["Singles\\Republica - Ready To Go.mp3",{"$f":"RegexTest(B$1,$A1539)","v":false},{"$f":"RegexCount(C$1,$A1539)","v":0},{"$f":"RegexFind(D$1,$A1539)","v":{"$error":"#N/A"}},{"$f":"RegexReplace(E$1,$A1539,F$1)","v":"Singles\\Republica - Ready To Go.mp3"}]
["Singles\\Jack Jersey - Papa Was A Poor Man.mp3",false,0,{"$error":"#N/A"},"Singles\\Jack Jersey - Papa Was A Poor Man.mp3"]
["Singles\\Princess - Say I'm Your Number One.mp3",false,0,{"$error":"#N/A"},"Singles\\Princess - Say I'm Your Number One.mp3"]
["Singles\\Keith West - Excerpt From A Teenage Opera.mp3",false,0,{"$error":"#N/A"},"Singles\\Keith West - Excerpt From A Teenage Opera.mp3"]
["Singles\\Kelly Clarkson - Piece By Piece.mp3",false,0,{"$error":"#N/A"},"Singles\\Kelly Clarkson - Piece By Piece.mp3"]
["Singles\\Lisa Lois - Promises Promises.mp3",false,0,{"$error":"#N/A"},"Singles\\Lisa Lois - Promises Promises.mp3"]
["Singles\\Pat Boone - Love Letters In The Sand.mp3",true,0,{"$error":"#N/A"},"Singles\\Pat Boone - Love Letters In The Sand.mp3"]
["Singles\\Chef'Special - Try Again.mp3",false,0,{"$error":"#N/A"},"Singles\\Chef'Special - Try Again.mp3"]
["Singles\\Rudimental & Macklemore & Jess Glynne - These Days.mp3",true,0,{"$error":"#N/A"},"Singles\\Rudimental & Macklemore & Jess Glynne - These Days.mp3"]
["Singles\\Drake - Hold On, We're Going Home.mp3",false,0,{"$error":"#N/A"},"Singles\\Drake - Hold On, We're Going Home.mp3"]
["Singles\\T-Spoon - Mercedes Benz.mp3",false,0,{"$error":"#N/A"},"Singles\\T-Spoon - Mercedes Benz.mp3"]
["Singles\\Spargo - Head Up To The Sky.mp3",true,0,{"$error":"#N/A"},"Singles\\Spargo - Head Up To The Sky.mp3"]
["Singles\\Marmalade - I See The Rain.mp3",true,0,{"$error":"#N/A"},"Singles\\Marmalade - I See The Rain.mp3"]
["Singles\\Nielson - Beauty & De Brain.mp3",false,0,{"$error":"#N/A"},"Singles\\Nielson - Beauty & De Brain.mp3"]
["Singles\\Elvis Presley - Kiss Me Quick.mp3",false,0,{"$error":"#N/A"},"Singles\\Elvis Presley - Kiss Me Quick.mp3"]
["Singles\\The Beatles - Strawberry Fields Forever.mp3",true,0,"Singles\\The Beatles - ","Singles\\\\Beatles, The - Strawberry Fields Forever.mp3"]
["Singles\\Starship - We Built This City.mp3",false,0,{"$error":"#N/A"},"Singles\\Starship - We Built This City.mp3"]
["Singles\\Motels - Total Control.mp3",false,0,{"$error":"#N/A"},"Singles\\Motels - Total Control.mp3"]
["Singles\\Pointer Sisters - Jump (For My Love).mp3",false,0,{"$error":"#N/A"},"Singles\\Pointer Sisters - Jump (For My Love).mp3"]
["Singles\\Andre Van Duin - Wonderkind.mp3",false,0,{"$error":"#N/A"},"Singles\\Andre Van Duin - Wonderkind.mp3"]
["Singles\\Andy Grammer - Keep Your Head Up.mp3",false,0,{"$error":"#N/A"},"Singles\\Andy Grammer - Keep Your Head Up.mp3"]
["Singles\\Charles Aznavour - She.mp3",false,0,{"$error":"#N/A"},"Singles\\Charles Aznavour - She.mp3"]
["Singles\\Mr Probz - Nothing Really Matters.mp3",false,0,{"$error":"#N/A"},"Singles\\Mr Probz - Nothing Really Matters.mp3"]
["Singles\\Dean Lewis - Be Alright.mp3",false,0,{"$error":"#N/A"},"Singles\\Dean Lewis - Be Alright.mp3"]
["Singles\\Dave Berry - Mama.mp3",false,0,{"$error":"#N/A"},"Singles\\Dave Berry - Mama.mp3"]
["Singles\\Harry Belafonte - Cocoanut Woman.mp3",false,0,{"$error":"#N/A"},"Singles\\Harry Belafonte - Cocoanut Woman.mp3"]
["Singles\\Kool & The Gang - Big Fun.mp3",true,0,{"$error":"#N/A"},"Singles\\Kool & The Gang - Big Fun.mp3"]
["Singles\\Warren Zevon - Mr Bad Example.mp3",false,0,{"$error":"#N/A"},"Singles\\Warren Zevon - Mr Bad Example.mp3"]
["Singles\\The Doors - Touch Me.mp3",true,0,"Singles\\The Doors - ","Singles\\\\Doors, The - Touch Me.mp3"]
["Singles\\Mai Tai - What Goes On.mp3",false,0,{"$error":"#N/A"},"Singles\\Mai Tai - What Goes On.mp3"]
["Singles\\O'Jays - For The Love Of The Money.mp3",true,0,{"$error":"#N/A"},"Singles\\O'Jays - For The Love Of The Money.mp3"]
["Singles\\Status Quo - In The Army Now.mp3",true,0,{"$error":"#N/A"},"Singles\\Status Quo - In The Army Now.mp3"]
["Singles\\Gloria Estefan - Get On Your Feet.mp3",false,0,{"$error":"#N/A"},"Singles\\Gloria Estefan - Get On Your Feet.mp3"]
["Singles\\David Cassidy - Sunshine.mp3",false,0,{"$error":"#N/A"},"Singles\\David Cassidy - Sunshine.mp3"]
["Singles\\Jaki Graham - Set Me Free.mp3",false,0,{"$error":"#N/A"},"Singles\\Jaki Graham - Set Me Free.mp3"]
["Singles\\Bread - Make It With You.mp3",false,0,{"$error":"#N/A"},"Singles\\Bread - Make It With You.mp3"]
["Singles\\Electric Light Orchestra - Last Train To London.mp3",false,0,{"$error":"#N/A"},"Singles\\Electric Light Orchestra - Last Train To London.mp3"]
["Singles\\Herb Alpert & The Tijuana Brass - Tijuana Taxi.mp3",true,0,{"$error":"#N/A"},"Singles\\Herb Alpert & The Tijuana Brass - Tijuana Taxi.mp3"]
["Singles\\Fish & Sam Brown - Just Good Friends.mp3",false,0,{"$error":"#N/A"},"Singles\\Fish & Sam Brown - Just Good Friends.mp3"]
["Singles\\Andy Williams - Somewhere, My Love.mp3",false,0,{"$error":"#N/A"},"Singles\\Andy Williams - Somewhere, My Love.mp3"]
["Singles\\Pat Boone - Speedy Gonzales.mp3",false,0,{"$error":"#N/A"},"Singles\\Pat Boone - Speedy Gonzales.mp3"]
["Singles\\Sweet Sixteen - Peter.mp3",false,0,{"$error":"#N/A"},"Singles\\Sweet Sixteen - Peter.mp3"]
["Singles\\Milow - Howling At The Moon.mp3",true,0,{"$error":"#N/A"},"Singles\\Milow - Howling At The Moon.mp3"]
["Singles\\Demis Roussos - My Reason.mp3",false,0,{"$error":"#N/A"},"Singles\\Demis Roussos - My Reason.mp3"]
["Singles\\Bon Jovi - It's My Life.mp3",false,0,{"$error":"#N/A"},"Singles\\Bon Jovi - It's My Life.mp3"]
["Singles\\Amsterdam - Lucy, Lucy.mp3",false,0,{"$error":"#N/A"},"Singles\\Amsterdam - Lucy, Lucy.mp3"]
["Singles\\Alexander O'neal & Cherrelle - Never Knew Love Like This.mp3",false,0,{"$error":"#N/A"},"Singles\\Alexander O'neal & Cherrelle - Never Knew Love Like This.mp3"]
["Singles\\REO Speedwagon - Don't Let Him Go.mp3",false,0,{"$error":"#N/A"},"Singles\\REO Speedwagon - Don't Let Him Go.mp3"]
["Singles\\Cliff Richard & The Shadows - Summer Holiday.mp3",true,0,{"$error":"#N/A"},"Singles\\Cliff Richard & The Shadows - Summer Holiday.mp3"]
["Singles\\Eddy Grant - My Turn To Love You.mp3",false,0,{"$error":"#N/A"},"Singles\\Eddy Grant - My Turn To Love You.mp3"]
["Singles\\Neil Diamond - September Morn.mp3",false,0,{"$error":"#N/A"},"Singles\\Neil Diamond - September Morn.mp3"]
["Singles\\Yannis Markopoulos - Who Pays The Ferryman.mp3",true,0,{"$error":"#N/A"},"Singles\\Yannis Markopoulos - Who Pays The Ferryman.mp3"]
["Singles\\Foreigner - I Don't Want To Live Without You.mp3",false,0,{"$error":"#N/A"},"Singles\\Foreigner - I Don't Want To Live Without You.mp3"]
["Singles\\Helen Connell & Dean Martin - How Do You Like Your Eggs In The Morning.mp3",true,0,{"$error":"#N/A"},"Singles\\Helen Connell & Dean Martin - How Do You Like Your Eggs In The Morning.mp3"]
["Singles\\Jan Hammer - Crocket's Theme (Miami Vice).mp3",true,0,{"$error":"#N/A"},"Singles\\Jan Hammer - Crocket's Theme (Miami Vice).mp3"]
["Singles\\Harry Belafonte - Jamaica Farewell.mp3",false,0,{"$error":"#N/A"},"Singles\\Harry Belafonte - Jamaica Farewell.mp3"]
["Singles\\Anna Kendrick - Cups.mp3",false,0,{"$error":"#N/A"},"Singles\\Anna Kendrick - Cups.mp3"]
["Singles\\John Fred  & His Playboy Band - Judy In Disguise.mp3",false,0,{"$error":"#N/A"},"Singles\\John Fred  & His Playboy Band - Judy In Disguise.mp3"]
["Singles\\Rihanna & Jay Z - Umbrella.mp3",false,0,{"$error":"#N/A"},"Singles\\Rihanna & Jay Z - Umbrella.mp3"]
["Singles\\Albert West - It Keeps Right On Hurtin.mp3",false,0,{"$error":"#N/A"},"Singles\\Albert West - It Keeps Right On Hurtin.mp3"]
["Singles\\Drupi - Vado Via.mp3",false,0,{"$error":"#N/A"},"Singles\\Drupi - Vado Via.mp3"]
["Singles\\Vance Joy - Riptide.mp3",false,0,{"$error":"#N/A"},"Singles\\Vance Joy - Riptide.mp3"]
["Singles\\Cincotti Peter - Goodbye Philadelphia.mp3",false,0,{"$error":"#N/A"},"Singles\\Cincotti Peter - Goodbye Philadelphia.mp3"]
["Singles\\The Coasters - Yakety Yak.mp3",true,0,"Singles\\The Coasters - ","Singles\\\\Coasters, The - Yakety Yak.mp3"]
["Singles\\Diana Ross & The Supremes - Someday We'll Be Together.mp3",{"$f":"RegexTest(B$1,$A1603)","v":true},{"$f":"RegexCount(C$1,$A1603)","v":0},{"$f":"RegexFind(D$1,$A1603)","v":{"$error":"#N/A"}},{"$f":"RegexReplace(E$1,$A1603,F$1)","v":"Singles\\Diana Ross & The Supremes - Someday We'll Be Together.mp3"}]
["Singles\\Elton John - Can You Feel The Love Tonight.mp3",true,0,{"$error":"#N/A"},"Singles\\Elton John - Can You Feel The Love Tonight.mp3"]
["Singles\\Di-Rect - This Is Who We Are.mp3",false,0,{"$error":"#N/A"},"Singles\\Di-Rect - This Is Who We Are.mp3"]
["Singles\\Blof - Omarm.mp3",false,0,{"$error":"#N/A"},"Singles\\Blof - Omarm.mp3"]
["Singles\\Robbie Williams - Advertising Space.mp3",false,0,{"$error":"#N/A"},"Singles\\Robbie Williams - Advertising Space.mp3"]
["Singles\\CJ Lewis - Everything Is Alright (Uptight).mp3",false,0,{"$error":"#N/A"},"Singles\\CJ Lewis - Everything Is Alright (Uptight).mp3"]
["Singles\\Pointer Sisters - He's So Shy.mp3",false,0,{"$error":"#N/A"},"Singles\\Pointer Sisters - He's So Shy.mp3"]
["Singles\\Cymarron - Rings.mp3",false,0,{"$error":"#N/A"},"Singles\\Cymarron - Rings.mp3"]
["Singles\\BB King - Ain't Nobody Home.mp3",false,0,{"$error":"#N/A"},"Singles\\BB King - Ain't Nobody Home.mp3"]
["Singles\\Milli Vanilli - Girl You Know Its True.mp3",false,0,{"$error":"#N/A"},"Singles\\Milli Vanilli - Girl You Know Its True.mp3"]
["Singles\\Fleetwood Mac - Albatross.mp3",false,0,{"$error":"#N/A"},"Singles\\Fleetwood Mac - Albatross.mp3"]
["Singles\\Celia Cruz & Buena Vista Social Club - Guantanamera.mp3",false,0,{"$error":"#N/A"},"Singles\\Celia Cruz & Buena Vista Social Club - Guantanamera.mp3"]
["Singles\\Eva Cassidy - Songbird.mp3",false,0,{"$error":"#N/A"},"Singles\\Eva Cassidy - Songbird.mp3"]
["Singles\\Stevie Wonder - A Place In The Sun.mp3",true,0,{"$error":"#N/A"},"Singles\\Stevie Wonder - A Place In The Sun.mp3"]
["Singles\\Dionne Warwick - Heartbreaker.mp3",false,0,{"$error":"#N/A"},"Singles\\Dionne Warwick - Heartbreaker.mp3"]
["Singles\\Andre Van Duin & Ramses Shaffy - Doorgaan.mp3",false,0,{"$error":"#N/A"},"Singles\\Andre Van Duin & Ramses Shaffy - Doorgaan.mp3"]
["Singles\\Acda & De Munnik - Schoolplein.mp3",false,0,{"$error":"#N/A"},"Singles\\Acda & De Munnik - Schoolplein.mp3"]
["Singles\\Maroon 5 - She Will Be Loved.mp3",false,0,{"$error":"#N/A"},"Singles\\Maroon 5 - She Will Be Loved.mp3"]
["Singles\\Peter Maffay - Du (Bist Alles).mp3",false,0,{"$error":"#N/A"},"Singles\\Peter Maffay - Du (Bist Alles).mp3"]
["Singles\\Anne-Marie - Ciao Adios.mp3",false,0,{"$error":"#N/A"},"Singles\\Anne-Marie - Ciao Adios.mp3"]
["Singles\\Katy Perry - The One That Got Away.mp3",true,0,{"$error":"#N/A"},"Singles\\Katy Perry - The One That Got Away.mp3"]
["Singles\\Kraftwerk - Autobahn.mp3",false,0,{"$error":"#N/A"},"Singles\\Kraftwerk - Autobahn.mp3"]
["Singles\\First Class - Beach Baby.mp3",false,0,{"$error":"#N/A"},"Singles\\First Class - Beach Baby.mp3"]
["Singles\\Matt Simons - We Can Do Better.mp3",false,0,{"$error":"#N/A"},"Singles\\Matt Simons - We Can Do Better.mp3"]
["Singles\\Klaatu - Calling Occupants Of Interplanetary Craft.mp3",false,0,{"$error":"#N/A"},"Singles\\Klaatu - Calling Occupants Of Interplanetary Craft.mp3"]
["Singles\\Paula Abdul - Rush Rush.mp3",false,0,{"$error":"#N/A"},"Singles\\Paula Abdul - Rush Rush.mp3"]
["Singles\\Klein Orkest - Koos Werkeloos.mp3",false,0,{"$error":"#N/A"},"Singles\\Klein Orkest - Koos Werkeloos.mp3"]
["Singles\\Smokey Robinson - Being With You.mp3",false,0,{"$error":"#N/A"},"Singles\\Smokey Robinson - Being With You.mp3"]
["Singles\\John Denver - Thank God I'm A Country Boy.mp3",false,0,{"$error":"#N/A"},"Singles\\John Denver - Thank God I'm A Country Boy.mp3"]
["Singles\\Survivor - Burning Heart.mp3",false,0,{"$error":"#N/A"},"Singles\\Survivor - Burning Heart.mp3"]
["Singles\\Grapefruit - Deep Water.mp3",false,0,{"$error":"#N/A"},"Singles\\Grapefruit - Deep Water.mp3"]
["Singles\\TLC - Waterfalls.mp3",false,0,{"$error":"#N/A"},"Singles\\TLC - Waterfalls.mp3"]
["Singles\\Jackson Browne - Doctor My Eyes.mp3",false,0,{"$error":"#N/A"},"Singles\\Jackson Browne - Doctor My Eyes.mp3"]
["Singles\\The Carpenters - Only Yesterday.mp3",true,0,"Singles\\The Carpenters - ","Singles\\\\Carpenters, The - Only Yesterday.mp3"]
["Singles\\Dionne Warwick &  Gladys Knight & Stevie Wonder & Elton John - That's What Friends Are For.mp3",false,0,{"$error":"#N/A"},"Singles\\Dionne Warwick &  Gladys Knight & Stevie Wonder & Elton John - That's What Friends Are For.mp3"]
["Singles\\Paul McCartney & Wings - Hi Hi Hi.mp3",false,0,{"$error":"#N/A"},"Singles\\Paul McCartney & Wings - Hi Hi Hi.mp3"]
["Singles\\Allman Brothers Band - Ramblin' Man.mp3",false,0,{"$error":"#N/A"},"Singles\\Allman Brothers Band - Ramblin' Man.mp3"]
["Singles\\Abba - Mamma Mia.mp3",false,0,{"$error":"#N/A"},"Singles\\Abba - Mamma Mia.mp3"]
["Singles\\Paul De Leeuw - Ik Wil Niet Dat Je Liegt.mp3",false,0,{"$error":"#N/A"},"Singles\\Paul De Leeuw - Ik Wil Niet Dat Je Liegt.mp3"]
["Singles\\Suzi Quatro - 48 Crash.mp3",false,0,{"$error":"#N/A"},"Singles\\Suzi Quatro - 48 Crash.mp3"]
["Singles\\Limahl - Never Ending Story.mp3",false,0,{"$error":"#N/A"},"Singles\\Limahl - Never Ending Story.mp3"]
["Singles\\Fleetwood Mac - Seven Wonders.mp3",false,0,{"$error":"#N/A"},"Singles\\Fleetwood Mac - Seven Wonders.mp3"]
["Singles\\Peter Tetteroo - Red Red Wine.mp3",false,0,{"$error":"#N/A"},"Singles\\Peter Tetteroo - Red Red Wine.mp3"]
["Singles\\The Kinks - All Day And All Of The Night.mp3",true,0,"Singles\\The Kinks - ","Singles\\\\Kinks, The - All Day And All Of The Night.mp3"]
["Singles\\Pat Benetar - We Belong.mp3",false,0,{"$error":"#N/A"},"Singles\\Pat Benetar - We Belong.mp3"]
["Singles\\Razorlight - America.mp3",false,0,{"$error":"#N/A"},"Singles\\Razorlight - America.mp3"]
["Singles\\Adele - Water Under The Bridge.mp3",true,0,{"$error":"#N/A"},"Singles\\Adele - Water Under The Bridge.mp3"]
["Singles\\Zager & Evans - In The Year 2525.mp3",true,0,{"$error":"#N/A"},"Singles\\Zager & Evans - In The Year 2525.mp3"]
["Singles\\Avicii - Heaven.mp3",false,0,{"$error":"#N/A"},"Singles\\Avicii - Heaven.mp3"]
["Singles\\The Baseballs - California Gurls.mp3",true,0,"Singles\\The Baseballs - ","Singles\\\\Baseballs, The - California Gurls.mp3"]
["Singles\\David Gates - Goodbye Girl.mp3",false,0,{"$error":"#N/A"},"Singles\\David Gates - Goodbye Girl.mp3"]
["Singles\\The Beach Boys - Surfin' USA.mp3",true,0,"Singles\\The Beach Boys - ","Singles\\\\Beach Boys, The - Surfin' USA.mp3"]
["Singles\\Mumford & Sons - Lover Of The Light.mp3",true,0,{"$error":"#N/A"},"Singles\\Mumford & Sons - Lover Of The Light.mp3"]
["Singles\\Alice Cooper - School's Out.mp3",false,0,{"$error":"#N/A"},"Singles\\Alice Cooper - School's Out.mp3"]
["Singles\\Nick & Simon - Het Masker.mp3",false,0,{"$error":"#N/A"},"Singles\\Nick & Simon - Het Masker.mp3"]
["Singles\\Ilse DeLange - Hurricane.mp3",false,0,{"$error":"#N/A"},"Singles\\Ilse DeLange - Hurricane.mp3"]
["Singles\\Westlife - Queen Of My Heart.mp3",false,0,{"$error":"#N/A"},"Singles\\Westlife - Queen Of My Heart.mp3"]
["Singles\\Gruppo Sportivo - Rock & Roll.mp3",false,0,{"$error":"#N/A"},"Singles\\Gruppo Sportivo - Rock & Roll.mp3"]
["Singles\\Patricia Paay - Je Bent Niet Hip.mp3",false,0,{"$error":"#N/A"},"Singles\\Patricia Paay - Je Bent Niet Hip.mp3"]
["Singles\\Carla Thomas & Otis Redding - Tramp.mp3",false,0,{"$error":"#N/A"},"Singles\\Carla Thomas & Otis Redding - Tramp.mp3"]
["Singles\\Gerard Cox & Frans Halsema - 1948.mp3",false,0,{"$error":"#N/A"},"Singles\\Gerard Cox & Frans Halsema - 1948.mp3"]
["Singles\\Mariah Carey - Vision Of Love.mp3",false,0,{"$error":"#N/A"},"Singles\\Mariah Carey - Vision Of Love.mp3"]
["Singles\\Michael Jackson & Justin Timberlake - Love Never Felt So Good.mp3",false,0,{"$error":"#N/A"},"Singles\\Michael Jackson & Justin Timberlake - Love Never Felt So Good.mp3"]
["Singles\\Vanessa Williams - Save The Best For Last.mp3",true,0,{"$error":"#N/A"},"Singles\\Vanessa Williams - Save The Best For Last.mp3"]
["Singles\\The Pasadenas - Riding On A Train.mp3",{"$f":"RegexTest(B$1,$A1667)","v":true},{"$f":"RegexCount(C$1,$A1667)","v":0},{"$f":"RegexFind(D$1,$A1667)","v":"Singles\\The Pasadenas - "},{"$f":"RegexReplace(E$1,$A1667,F$1)","v":"Singles\\\\Pasadenas, The - Riding On A Train.mp3"}]
["Singles\\Four Tops - Walk Away Renee.mp3",false,0,{"$error":"#N/A"},"Singles\\Four Tops - Walk Away Renee.mp3"]
["Singles\\Robbie Williams - Rock DJ.mp3",false,0,{"$error":"#N/A"},"Singles\\Robbie Williams - Rock DJ.mp3"]
["Singles\\Freddy Breck - Uberall Auf Der Welt.mp3",false,0,{"$error":"#N/A"},"Singles\\Freddy Breck - Uberall Auf Der Welt.mp3"]
["Singles\\Outlandish - Aicha.mp3",false,0,{"$error":"#N/A"},"Singles\\Outlandish - Aicha.mp3"]
["Singles\\Far East Movement ft Cover Drive - Turn Up The Love.mp3",true,0,{"$error":"#N/A"},"Singles\\Far East Movement ft Cover Drive - Turn Up The Love.mp3"]
["Singles\\Nick & Simon - Herwinnen.mp3",false,0,{"$error":"#N/A"},"Singles\\Nick & Simon - Herwinnen.mp3"]
["Singles\\Bing Crosby & Grace Kelly - True Love.mp3",false,0,{"$error":"#N/A"},"Singles\\Bing Crosby & Grace Kelly - True Love.mp3"]
["Singles\\Climie Fisher - Love Changes (Everything).mp3",false,0,{"$error":"#N/A"},"Singles\\Climie Fisher - Love Changes (Everything).mp3"]
["Singles\\The Osmonds - Crazy Horses.mp3",true,0,"Singles\\The Osmonds - ","Singles\\\\Osmonds, The - Crazy Horses.mp3"]
["Singles\\The Beatles - Nowhere Man.mp3",true,0,"Singles\\The Beatles - ","Singles\\\\Beatles, The - Nowhere Man.mp3"]
["Singles\\Boney M - Painter Man.mp3",false,0,{"$error":"#N/A"},"Singles\\Boney M - Painter Man.mp3"]
["Singles\\Frank Sinatra - New York, New York.mp3",false,0,{"$error":"#N/A"},"Singles\\Frank Sinatra - New York, New York.mp3"]
["Singles\\New Kids On The Block - Tonight.mp3",true,0,{"$error":"#N/A"},"Singles\\New Kids On The Block - Tonight.mp3"]
["Singles\\The Beatles - Lady Madonna.mp3",true,0,"Singles\\The Beatles - ","Singles\\\\Beatles, The - Lady Madonna.mp3"]
["Singles\\Lowland Trio - Mijn Naam Is Haas.mp3",false,0,{"$error":"#N/A"},"Singles\\Lowland Trio - Mijn Naam Is Haas.mp3"]
["Singles\\Lindisfarne - Lady Eleanor.mp3",false,0,{"$error":"#N/A"},"Singles\\Lindisfarne - Lady Eleanor.mp3"]
["Singles\\Esmee Denters - Outta Here.mp3",false,0,{"$error":"#N/A"},"Singles\\Esmee Denters - Outta Here.mp3"]
["Singles\\Vicky Brown - Stay With Me Till The Morning.mp3",true,0,{"$error":"#N/A"},"Singles\\Vicky Brown - Stay With Me Till The Morning.mp3"]
["Singles\\Lou Rawls & Diana Reeves - Fine Brown Frame.mp3",false,0,{"$error":"#N/A"},"Singles\\Lou Rawls & Diana Reeves - Fine Brown Frame.mp3"]
["Singles\\Luis Fonsi ft Daddy Yankee - Despacito.mp3",false,0,{"$error":"#N/A"},"Singles\\Luis Fonsi ft Daddy Yankee - Despacito.mp3"]
["Singles\\Lionel Richie - Running With The Night.mp3",true,0,{"$error":"#N/A"},"Singles\\Lionel Richie - Running With The Night.mp3"]
["Singles\\Yes - Roundabout.mp3",false,0,{"$error":"#N/A"},"Singles\\Yes - Roundabout.mp3"]
["Singles\\Smokey Robinson & The Miracles - The Tracks Of My Tears.mp3",true,0,{"$error":"#N/A"},"Singles\\Smokey Robinson & The Miracles - The Tracks Of My Tears.mp3"]
["Singles\\Juan Luis Guerra - Burbujas De Amor.mp3",false,0,{"$error":"#N/A"},"Singles\\Juan Luis Guerra - Burbujas De Amor.mp3"]
["Singles\\Tina Turner - I Don't Wanna Lose You.mp3",false,0,{"$error":"#N/A"},"Singles\\Tina Turner - I Don't Wanna Lose You.mp3"]
["Singles\\Colbie Caillat - Realize.mp3",false,0,{"$error":"#N/A"},"Singles\\Colbie Caillat - Realize.mp3"]
["Singles\\Imany - Don't Be So Shy.mp3",false,0,{"$error":"#N/A"},"Singles\\Imany - Don't Be So Shy.mp3"]
["Singles\\Mr Probz - Till You're Loved.mp3",false,0,{"$error":"#N/A"},"Singles\\Mr Probz - Till You're Loved.mp3"]
["Singles\\Cliff Richard - Congratulations.mp3",false,0,{"$error":"#N/A"},"Singles\\Cliff Richard - Congratulations.mp3"]
["Singles\\Rednex - Cotton Eye Joe.mp3",false,0,{"$error":"#N/A"},"Singles\\Rednex - Cotton Eye Joe.mp3"]
["Singles\\The Baseballs - Candy Shop.mp3",true,0,"Singles\\The Baseballs - ","Singles\\\\Baseballs, The - Candy Shop.mp3"]
["Singles\\Shirley Bassey - Goldfinger.mp3",false,0,{"$error":"#N/A"},"Singles\\Shirley Bassey - Goldfinger.mp3"]
["Singles\\Blof - Hier.mp3",false,0,{"$error":"#N/A"},"Singles\\Blof - Hier.mp3"]
["Singles\\Bontjie Stars - Ma-Di-Wo-Do.mp3",false,0,{"$error":"#N/A"},"Singles\\Bontjie Stars - Ma-Di-Wo-Do.mp3"]
["Singles\\Michael Jackson - Ben.mp3",false,0,{"$error":"#N/A"},"Singles\\Michael Jackson - Ben.mp3"]
["Singles\\Massada - Arumbai.mp3",false,0,{"$error":"#N/A"},"Singles\\Massada - Arumbai.mp3"]
["Singles\\Lutricia McNeal - Stranded.mp3",false,0,{"$error":"#N/A"},"Singles\\Lutricia McNeal - Stranded.mp3"]
["Singles\\Showaddywaddy - I Wonder Why.mp3",false,0,{"$error":"#N/A"},"Singles\\Showaddywaddy - I Wonder Why.mp3"]
["Singles\\Icona Pop - I Love It.mp3",false,0,{"$error":"#N/A"},"Singles\\Icona Pop - I Love It.mp3"]
["Singles\\Rachel Platten - Fight Song.mp3",false,0,{"$error":"#N/A"},"Singles\\Rachel Platten - Fight Song.mp3"]
["Singles\\The Isley Brothers - Behind A Painted Smile.mp3",true,0,"Singles\\The Isley Brothers - ","Singles\\\\Isley Brothers, The - Behind A Painted Smile.mp3"]
["Singles\\Urban Heroes - Habadaba Riwikidi.mp3",false,0,{"$error":"#N/A"},"Singles\\Urban Heroes - Habadaba Riwikidi.mp3"]
["Singles\\Casey Jones & The Governors - Don't Ha Ha.mp3",true,0,{"$error":"#N/A"},"Singles\\Casey Jones & The Governors - Don't Ha Ha.mp3"]
["Singles\\Inner Circle - Rock With You.mp3",false,0,{"$error":"#N/A"},"Singles\\Inner Circle - Rock With You.mp3"]
["Singles\\Peter Schilling - Major Tom.mp3",false,0,{"$error":"#N/A"},"Singles\\Peter Schilling - Major Tom.mp3"]
["Singles\\Pink - Blow Me (One Last Kiss).mp3",false,0,{"$error":"#N/A"},"Singles\\Pink - Blow Me (One Last Kiss).mp3"]
["Singles\\Dimitri Van Toren - Jij Bent De Mooiste.mp3",false,0,{"$error":"#N/A"},"Singles\\Dimitri Van Toren - Jij Bent De Mooiste.mp3"]
["Singles\\Rihanna - Take A Bow.mp3",false,0,{"$error":"#N/A"},"Singles\\Rihanna - Take A Bow.mp3"]
["Singles\\Simple Minds - Biko.mp3",false,0,{"$error":"#N/A"},"Singles\\Simple Minds - Biko.mp3"]
["Singles\\Boney M - Daddy Cool.mp3",false,0,{"$error":"#N/A"},"Singles\\Boney M - Daddy Cool.mp3"]
["Singles\\The Bee Gees - He's A Liar.mp3",true,0,"Singles\\The Bee Gees - ","Singles\\\\Bee Gees, The - He's A Liar.mp3"]
["Singles\\Eiffel 65 - Blue (Da Ba Dee).mp3",false,0,{"$error":"#N/A"},"Singles\\Eiffel 65 - Blue (Da Ba Dee).mp3"]
["Singles\\Take That - How Deep Is Your Love.mp3",false,0,{"$error":"#N/A"},"Singles\\Take That - How Deep Is Your Love.mp3"]
["Singles\\Rob De Nijs - Alles Wat Ademt.mp3",false,0,{"$error":"#N/A"},"Singles\\Rob De Nijs - Alles Wat Ademt.mp3"]
["Singles\\Zara Larsson - Lush Life.mp3",false,0,{"$error":"#N/A"},"Singles\\Zara Larsson - Lush Life.mp3"]
["Singles\\Abba - Chiquitita.mp3",false,0,{"$error":"#N/A"},"Singles\\Abba - Chiquitita.mp3"]
["Singles\\Martin Garrix & Bebe Rexha - In The Name Of Love.mp3",true,0,{"$error":"#N/A"},"Singles\\Martin Garrix & Bebe Rexha - In The Name Of Love.mp3"]
["Singles\\U2 - Pride (In The Name Of Love).mp3",true,0,{"$error":"#N/A"},"Singles\\U2 - Pride (In The Name Of Love).mp3"]
["Singles\\Marco Borsato & Do - Voorbij.mp3",false,0,{"$error":"#N/A"},"Singles\\Marco Borsato & Do - Voorbij.mp3"]
["Singles\\Cliff Richard - My Kinda Life.mp3",false,0,{"$error":"#N/A"},"Singles\\Cliff Richard - My Kinda Life.mp3"]
["Singles\\Justin Timberlake - Mirrors.mp3",false,0,{"$error":"#N/A"},"Singles\\Justin Timberlake - Mirrors.mp3"]
["Singles\\Scaffold - Thank You Very Much.mp3",false,0,{"$error":"#N/A"},"Singles\\Scaffold - Thank You Very Much.mp3"]
["Singles\\Concrete Blonde - Someday.mp3",false,0,{"$error":"#N/A"},"Singles\\Concrete Blonde - Someday.mp3"]
["Singles\\Lost Frequencies ft Sandro Cavazza - Beautiful Life.mp3",{"$f":"RegexTest(B$1,$A1731)","v":false},{"$f":"RegexCount(C$1,$A1731)","v":0},{"$f":"RegexFind(D$1,$A1731)","v":{"$error":"#N/A"}},{"$f":"RegexReplace(E$1,$A1731,F$1)","v":"Singles\\Lost Frequencies ft Sandro Cavazza - Beautiful Life.mp3"}]
["Singles\\Ray Parker Jr - Ghostbusters.mp3",false,0,{"$error":"#N/A"},"Singles\\Ray Parker Jr - Ghostbusters.mp3"]
["Singles\\Cat Stevens - Matthew And Son.mp3",false,0,{"$error":"#N/A"},"Singles\\Cat Stevens - Matthew And Son.mp3"]
["Singles\\Stevie Wonder - I Was Made To Love Her.mp3",false,0,{"$error":"#N/A"},"Singles\\Stevie Wonder - I Was Made To Love Her.mp3"]
["Singles\\Garland Jeffreys - The Contortionist.mp3",true,0,{"$error":"#N/A"},"Singles\\Garland Jeffreys - The Contortionist.mp3"]
["Singles\\PJ Proby - Somewhere.mp3",false,0,{"$error":"#N/A"},"Singles\\PJ Proby - Somewhere.mp3"]
["Singles\\Green Day - Good Riddance.mp3",false,0,{"$error":"#N/A"},"Singles\\Green Day - Good Riddance.mp3"]
["Singles\\The Baseballs - I Don't Feel Like Dancin'.mp3",true,0,"Singles\\The Baseballs - ","Singles\\\\Baseballs, The - I Don't Feel Like Dancin'.mp3"]
["Singles\\BJ Thomas - I Just Can't Help Believing.mp3",false,0,{"$error":"#N/A"},"Singles\\BJ Thomas - I Just Can't Help Believing.mp3"]
["Singles\\Marlene Dietrich - Lili Marlene.mp3",false,0,{"$error":"#N/A"},"Singles\\Marlene Dietrich - Lili Marlene.mp3"]
["Singles\\The Cats - Where Have I Been Wrong.mp3",true,0,"Singles\\The Cats - ","Singles\\\\Cats, The - Where Have I Been Wrong.mp3"]
["Singles\\Waylon - The Escapist.mp3",true,0,{"$error":"#N/A"},"Singles\\Waylon - The Escapist.mp3"]
["Singles\\Depeche Mode - Enjoy The Silence.mp3",true,0,{"$error":"#N/A"},"Singles\\Depeche Mode - Enjoy The Silence.mp3"]
["Singles\\Bob Dylan - The Times They Are A Changin'.mp3",true,0,{"$error":"#N/A"},"Singles\\Bob Dylan - The Times They Are A Changin'.mp3"]
["Singles\\Perry Como - And I Love You So.mp3",false,0,{"$error":"#N/A"},"Singles\\Perry Como - And I Love You So.mp3"]
["Singles\\Frans Halsema - Voor Haar.mp3",false,0,{"$error":"#N/A"},"Singles\\Frans Halsema - Voor Haar.mp3"]
["Singles\\Pharrell Williams - Freedom.mp3",false,0,{"$error":"#N/A"},"Singles\\Pharrell Williams - Freedom.mp3"]
["Singles\\Bolland & Bolland - Ooh La La.mp3",false,0,{"$error":"#N/A"},"Singles\\Bolland & Bolland - Ooh La La.mp3"]
["Singles\\Bob Dylan - Lay Lady Lay.mp3",false,0,{"$error":"#N/A"},"Singles\\Bob Dylan - Lay Lady Lay.mp3"]
["Singles\\Beck - The New Pollution.mp3",true,0,{"$error":"#N/A"},"Singles\\Beck - The New Pollution.mp3"]
["Singles\\Tina Turner - What's Love Got To Do With It.mp3",false,0,{"$error":"#N/A"},"Singles\\Tina Turner - What's Love Got To Do With It.mp3"]
["Singles\\Fun. - Carry On.mp3",false,0,{"$error":"#N/A"},"Singles\\Fun. - Carry On.mp3"]
["Singles\\Pussycat Dolls - I Don't Need A Man.mp3",false,0,{"$error":"#N/A"},"Singles\\Pussycat Dolls - I Don't Need A Man.mp3"]
["Singles\\Grace Slick - Seasons.mp3",false,0,{"$error":"#N/A"},"Singles\\Grace Slick - Seasons.mp3"]
["Singles\\Phil Collins - You'll Be In My Heart.mp3",false,0,{"$error":"#N/A"},"Singles\\Phil Collins - You'll Be In My Heart.mp3"]
["Singles\\Dalida - Gigi L'amoroso.mp3",false,0,{"$error":"#N/A"},"Singles\\Dalida - Gigi L'amoroso.mp3"]
["Singles\\Peter & Gordon - To Know You Is To Love You.mp3",false,0,{"$error":"#N/A"},"Singles\\Peter & Gordon - To Know You Is To Love You.mp3"]
["Singles\\Hollywood Beyond - Whats The Colour Of Money.mp3",true,0,{"$error":"#N/A"},"Singles\\Hollywood Beyond - Whats The Colour Of Money.mp3"]
["Singles\\Buffoons - Tomorrow Is Another Day.mp3",false,0,{"$error":"#N/A"},"Singles\\Buffoons - Tomorrow Is Another Day.mp3"]
["Singles\\Abba - Fernando.mp3",false,0,{"$error":"#N/A"},"Singles\\Abba - Fernando.mp3"]
["Singles\\David Bowie - Absolute Beginners.mp3",false,0,{"$error":"#N/A"},"Singles\\David Bowie - Absolute Beginners.mp3"]
["Singles\\Sting - They Dance Alone (Cueca Solo).mp3",true,0,{"$error":"#N/A"},"Singles\\Sting - They Dance Alone (Cueca Solo).mp3"]
["Singles\\John Miles - Music.mp3",false,0,{"$error":"#N/A"},"Singles\\John Miles - Music.mp3"]
["Singles\\Rod McKuen - Soldiers Who Want To Be Heroes.mp3",false,0,{"$error":"#N/A"},"Singles\\Rod McKuen - Soldiers Who Want To Be Heroes.mp3"]
["Singles\\Santana - Samba Pa Ti.mp3",false,0,{"$error":"#N/A"},"Singles\\Santana - Samba Pa Ti.mp3"]
["Singles\\Alan Parsons Project - La Sagrada Familia.mp3",false,0,{"$error":"#N/A"},"Singles\\Alan Parsons Project - La Sagrada Familia.mp3"]
["Singles\\Georgie Fame - The Ballad Of Bonnie And Clyde.mp3",true,0,{"$error":"#N/A"},"Singles\\Georgie Fame - The Ballad Of Bonnie And Clyde.mp3"]
["Singles\\Eric Clapton - Let It Grow.mp3",false,0,{"$error":"#N/A"},"Singles\\Eric Clapton - Let It Grow.mp3"]
["Singles\\The Swinging Soul Machine - Spooky's Day Off.mp3",true,0,"Singles\\The Swinging Soul Machine - ","Singles\\\\Swinging Soul Machine, The - Spooky's Day Off.mp3"]
["Singles\\Resonance - OK Chicago.mp3",false,0,{"$error":"#N/A"},"Singles\\Resonance - OK Chicago.mp3"]
["Singles\\T-Rex - Hot Love.mp3",false,0,{"$error":"#N/A"},"Singles\\T-Rex - Hot Love.mp3"]
["Singles\\Crowded House - Chocolate Cake.mp3",false,0,{"$error":"#N/A"},"Singles\\Crowded House - Chocolate Cake.mp3"]
["Singles\\Eagles - Take It Easy.mp3",false,0,{"$error":"#N/A"},"Singles\\Eagles - Take It Easy.mp3"]
["Singles\\Sam & Dave - Hold On, I'm Coming.mp3",false,0,{"$error":"#N/A"},"Singles\\Sam & Dave - Hold On, I'm Coming.mp3"]
["Singles\\Whistling Jack Smith - I Was Kaiser Bill's Batman.mp3",false,0,{"$error":"#N/A"},"Singles\\Whistling Jack Smith - I Was Kaiser Bill's Batman.mp3"]
["Singles\\Katie Melua - The Closest Thing To Crazy.mp3",true,0,{"$error":"#N/A"},"Singles\\Katie Melua - The Closest Thing To Crazy.mp3"]
["Singles\\Keane - Higher Than The Sun.mp3",true,0,{"$error":"#N/A"},"Singles\\Keane - Higher Than The Sun.mp3"]
["Singles\\The Rolling Stones - Harlem Shuffle.mp3",true,0,"Singles\\The Rolling Stones - ","Singles\\\\Rolling Stones, The - Harlem Shuffle.mp3"]
["Singles\\Sia - Clap Your Hands.mp3",false,0,{"$error":"#N/A"},"Singles\\Sia - Clap Your Hands.mp3"]
["Singles\\Alesso Ft Tove Lo - Heroes (We Could Be).mp3",false,0,{"$error":"#N/A"},"Singles\\Alesso Ft Tove Lo - Heroes (We Could Be).mp3"]
["Singles\\Chuck Mangione - Feels So Good.mp3",false,0,{"$error":"#N/A"},"Singles\\Chuck Mangione - Feels So Good.mp3"]
["Singles\\John Mayer - Shadow Days.mp3",false,0,{"$error":"#N/A"},"Singles\\John Mayer - Shadow Days.mp3"]
["Singles\\Tom Walker - Leave A Light On.mp3",false,0,{"$error":"#N/A"},"Singles\\Tom Walker - Leave A Light On.mp3"]
["Singles\\Afrojack - The Spark.mp3",true,0,{"$error":"#N/A"},"Singles\\Afrojack - The Spark.mp3"]
["Singles\\Carl Douglas - Kung Fu Fighting.mp3",false,0,{"$error":"#N/A"},"Singles\\Carl Douglas - Kung Fu Fighting.mp3"]
["Singles\\Drs P - Dodenrit.mp3",false,0,{"$error":"#N/A"},"Singles\\Drs P - Dodenrit.mp3"]
["Singles\\The Rolling Stones - She's A Rainbow.mp3",true,0,"Singles\\The Rolling Stones - ","Singles\\\\Rolling Stones, The - She's A Rainbow.mp3"]
["Singles\\Level 42 - Love Games.mp3",false,0,{"$error":"#N/A"},"Singles\\Level 42 - Love Games.mp3"]
["Singles\\The Nice - America.mp3",true,0,"Singles\\The Nice - ","Singles\\\\Nice, The - America.mp3"]
["Singles\\Mood Mosaic - A Touch Of Velvet.mp3",false,0,{"$error":"#N/A"},"Singles\\Mood Mosaic - A Touch Of Velvet.mp3"]
["Singles\\Rose Royce - RR Express.mp3",false,0,{"$error":"#N/A"},"Singles\\Rose Royce - RR Express.mp3"]
["Singles\\Bob Marley - Get Up Stand Up.mp3",false,0,{"$error":"#N/A"},"Singles\\Bob Marley - Get Up Stand Up.mp3"]
["Singles\\Samantha Sang ft The Bee Gees - Emotions.mp3",true,0,{"$error":"#N/A"},"Singles\\Samantha Sang ft The Bee Gees - Emotions.mp3"]
["Singles\\Shakatak - Easier Said Than Done.mp3",false,0,{"$error":"#N/A"},"Singles\\Shakatak - Easier Said Than Done.mp3"]
["Singles\\Jonas Blue ft Dakota - Fast Car.mp3",{"$f":"RegexTest(B$1,$A1795)","v":false},{"$f":"RegexCount(C$1,$A1795)","v":0},{"$f":"RegexFind(D$1,$A1795)","v":{"$error":"#N/A"}},{"$f":"RegexReplace(E$1,$A1795,F$1)","v":"Singles\\Jonas Blue ft Dakota - Fast Car.mp3"}]
["Singles\\Sting - Love Is The Seventh Wave.mp3",true,0,{"$error":"#N/A"},"Singles\\Sting - Love Is The Seventh Wave.mp3"]
["Singles\\Rory Block - Gypsie Boy.mp3",false,0,{"$error":"#N/A"},"Singles\\Rory Block - Gypsie Boy.mp3"]
["Singles\\Queen - Spread Your Wings.mp3",false,0,{"$error":"#N/A"},"Singles\\Queen - Spread Your Wings.mp3"]
["Singles\\Cat Stevens - I'm Gonna Get Me A Gun.mp3",false,0,{"$error":"#N/A"},"Singles\\Cat Stevens - I'm Gonna Get Me A Gun.mp3"]
["Singles\\Strawbs - Part Of The Union.mp3",true,0,{"$error":"#N/A"},"Singles\\Strawbs - Part Of The Union.mp3"]
["Singles\\XYP - Body To Body.mp3",false,0,{"$error":"#N/A"},"Singles\\XYP - Body To Body.mp3"]
["Singles\\James Blunt - Bonfire Heart.mp3",false,0,{"$error":"#N/A"},"Singles\\James Blunt - Bonfire Heart.mp3"]
["Singles\\Coldplay - Talk.mp3",false,0,{"$error":"#N/A"},"Singles\\Coldplay - Talk.mp3"]
["Singles\\Long Tall Ernie & The Shakers - Get Yourself Together.mp3",true,0,{"$error":"#N/A"},"Singles\\Long Tall Ernie & The Shakers - Get Yourself Together.mp3"]
["Singles\\Talk Talk - Life's What You Make It.mp3",false,0,{"$error":"#N/A"},"Singles\\Talk Talk - Life's What You Make It.mp3"]
["Singles\\Ariana Grande - Into You.mp3",false,0,{"$error":"#N/A"},"Singles\\Ariana Grande - Into You.mp3"]
["Singles\\Will Smith - Miami.mp3",false,0,{"$error":"#N/A"},"Singles\\Will Smith - Miami.mp3"]
["Singles\\Tom Jones - Green, Green Grass Of Home.mp3",false,0,{"$error":"#N/A"},"Singles\\Tom Jones - Green, Green Grass Of Home.mp3"]
["Singles\\Engelbert Humperdinck - Quando Quando Quando.mp3",false,0,{"$error":"#N/A"},"Singles\\Engelbert Humperdinck - Quando Quando Quando.mp3"]
["Singles\\Hotlegs - Neanderthal Man.mp3",false,0,{"$error":"#N/A"},"Singles\\Hotlegs - Neanderthal Man.mp3"]
["Singles\\T'Pau - Heart And Soul.mp3",false,0,{"$error":"#N/A"},"Singles\\T'Pau - Heart And Soul.mp3"]
["Singles\\Gary Glitter - I'm The Leader Of The Gang.mp3",true,0,{"$error":"#N/A"},"Singles\\Gary Glitter - I'm The Leader Of The Gang.mp3"]
["Singles\\Calvin Harris - Summer.mp3",false,0,{"$error":"#N/A"},"Singles\\Calvin Harris - Summer.mp3"]
["Singles\\Snow Patrol - Crack The Shutters.mp3",true,0,{"$error":"#N/A"},"Singles\\Snow Patrol - Crack The Shutters.mp3"]
["Singles\\Rod Stewart - Passion.mp3",false,0,{"$error":"#N/A"},"Singles\\Rod Stewart - Passion.mp3"]
["Singles\\The Beatles - While My Guitar Gently Weeps.mp3",true,0,"Singles\\The Beatles - ","Singles\\\\Beatles, The - While My Guitar Gently Weeps.mp3"]
["Singles\\Pearl Jam - Man Of The Hour.mp3",true,0,{"$error":"#N/A"},"Singles\\Pearl Jam - Man Of The Hour.mp3"]
["Singles\\Eagles - Life In The Fast Lane.mp3",true,0,{"$error":"#N/A"},"Singles\\Eagles - Life In The Fast Lane.mp3"]
["Singles\\Massive Attack - Unfinished Sympathy.mp3",false,0,{"$error":"#N/A"},"Singles\\Massive Attack - Unfinished Sympathy.mp3"]
["Singles\\Esther & Abi Ofarim - Cinderella Rockefella.mp3",false,0,{"$error":"#N/A"},"Singles\\Esther & Abi Ofarim - Cinderella Rockefella.mp3"]
["Singles\\Madonna - Papa Don't Preach.mp3",false,0,{"$error":"#N/A"},"Singles\\Madonna - Papa Don't Preach.mp3"]
["Singles\\Tones And I - Dance Monkey.mp3",false,0,{"$error":"#N/A"},"Singles\\Tones And I - Dance Monkey.mp3"]
["Singles\\Selena Gomez - Back 2 You.mp3",false,0,{"$error":"#N/A"},"Singles\\Selena Gomez - Back 2 You.mp3"]
["Singles\\Scissor Sisters - I Don't Feel Like Dancing.mp3",false,0,{"$error":"#N/A"},"Singles\\Scissor Sisters - I Don't Feel Like Dancing.mp3"]
["Singles\\Niels Geusebroek - Take Your Time Girl.mp3",false,0,{"$error":"#N/A"},"Singles\\Niels Geusebroek - Take Your Time Girl.mp3"]
["Singles\\Dan Hill & Vonda Shepherd - Can't We Try.mp3",false,0,{"$error":"#N/A"},"Singles\\Dan Hill & Vonda Shepherd - Can't We Try.mp3"]
["Singles\\Marco Borsato - Rood.mp3",false,0,{"$error":"#N/A"},"Singles\\Marco Borsato - Rood.mp3"]
["Singles\\Harpo - Moviestar.mp3",false,0,{"$error":"#N/A"},"Singles\\Harpo - Moviestar.mp3"]
["Singles\\Backstreet Boys - Incomplete.mp3",false,0,{"$error":"#N/A"},"Singles\\Backstreet Boys - Incomplete.mp3"]
["Singles\\Osibisa - The Coffee Song.mp3",true,0,{"$error":"#N/A"},"Singles\\Osibisa - The Coffee Song.mp3"]
["Singles\\Rene Froger - Just Say Hello.mp3",false,0,{"$error":"#N/A"},"Singles\\Rene Froger - Just Say Hello.mp3"]
["Singles\\Flo Rida - Whistle.mp3",false,0,{"$error":"#N/A"},"Singles\\Flo Rida - Whistle.mp3"]
["Singles\\Spandau Ballet - Chant No 1.Mp3",false,0,{"$error":"#N/A"},"Singles\\Spandau Ballet - Chant No 1.Mp3"]
["Singles\\Kate Bush - Babooshka.mp3",false,0,{"$error":"#N/A"},"Singles\\Kate Bush - Babooshka.mp3"]
["Singles\\Lenny Kravitz - Let Love Rule.mp3",false,0,{"$error":"#N/A"},"Singles\\Lenny Kravitz - Let Love Rule.mp3"]
["Singles\\Gloria Estefan - Here We Are.mp3",false,0,{"$error":"#N/A"},"Singles\\Gloria Estefan - Here We Are.mp3"]
["Singles\\The Rolling Stones - It's Only Rock And Roll.mp3",true,0,"Singles\\The Rolling Stones - ","Singles\\\\Rolling Stones, The - It's Only Rock And Roll.mp3"]
["Singles\\Ultimate Kaos - Casanova.mp3",false,0,{"$error":"#N/A"},"Singles\\Ultimate Kaos - Casanova.mp3"]
["Singles\\The Christians - Born Again.mp3",true,0,"Singles\\The Christians - ","Singles\\\\Christians, The - Born Again.mp3"]
["Singles\\Culture Beat - Mr Vain.mp3",false,0,{"$error":"#N/A"},"Singles\\Culture Beat - Mr Vain.mp3"]
["Singles\\Cher - Dark Lady.mp3",false,0,{"$error":"#N/A"},"Singles\\Cher - Dark Lady.mp3"]
["Singles\\The Beatles - Paperback Writer.mp3",true,0,"Singles\\The Beatles - ","Singles\\\\Beatles, The - Paperback Writer.mp3"]
["Singles\\Chris Hordijk - Won't You Stay.mp3",false,0,{"$error":"#N/A"},"Singles\\Chris Hordijk - Won't You Stay.mp3"]
["Singles\\Troye Sivan - Youth.mp3",false,0,{"$error":"#N/A"},"Singles\\Troye Sivan - Youth.mp3"]
["Singles\\Hello - Tell Him.mp3",false,0,{"$error":"#N/A"},"Singles\\Hello - Tell Him.mp3"]
["Singles\\Matt Simons - With You.mp3",false,0,{"$error":"#N/A"},"Singles\\Matt Simons - With You.mp3"]
["Singles\\Trafassi - Wasmasjien.mp3",false,0,{"$error":"#N/A"},"Singles\\Trafassi - Wasmasjien.mp3"]
["Singles\\Clouseau - Passie.mp3",false,0,{"$error":"#N/A"},"Singles\\Clouseau - Passie.mp3"]
["Singles\\Anouk - What Have You Done.mp3",false,0,{"$error":"#N/A"},"Singles\\Anouk - What Have You Done.mp3"]
["Singles\\John Travolta - Greased Lightning.mp3",false,0,{"$error":"#N/A"},"Singles\\John Travolta - Greased Lightning.mp3"]
["Singles\\Glitter Band - People Like You And People Like Me.mp3",false,0,{"$error":"#N/A"},"Singles\\Glitter Band - People Like You And People Like Me.mp3"]
["Singles\\UB40 - Can't Help Falling In Love.mp3",false,0,{"$error":"#N/A"},"Singles\\UB40 - Can't Help Falling In Love.mp3"]
["Singles\\Amalia Rodriguez - Uma Casa Portuguesa.mp3",false,0,{"$error":"#N/A"},"Singles\\Amalia Rodriguez - Uma Casa Portuguesa.mp3"]
["Singles\\De Kast - Hart Van Mijn Gevoel.mp3",false,0,{"$error":"#N/A"},"Singles\\De Kast - Hart Van Mijn Gevoel.mp3"]
["Singles\\Shawn Mendes & Camila Cabello - I Know What You Did Last Summer.mp3",false,0,{"$error":"#N/A"},"Singles\\Shawn Mendes & Camila Cabello - I Know What You Did Last Summer.mp3"]
["Singles\\London Beat - Failing In Love Again.mp3",false,0,{"$error":"#N/A"},"Singles\\London Beat - Failing In Love Again.mp3"]
["Singles\\Leo Sayer - Thunder In My Heart.mp3",false,0,{"$error":"#N/A"},"Singles\\Leo Sayer - Thunder In My Heart.mp3"]
["Singles\\Chef'Special - Amigo.mp3",false,0,{"$error":"#N/A"},"Singles\\Chef'Special - Amigo.mp3"]
["Singles\\Frankie Miller - Love Letters.mp3",{"$f":"RegexTest(B$1,$A1859)","v":false},{"$f":"RegexCount(C$1,$A1859)","v":0},{"$f":"RegexFind(D$1,$A1859)","v":{"$error":"#N/A"}},{"$f":"RegexReplace(E$1,$A1859,F$1)","v":"Singles\\Frankie Miller - Love Letters.mp3"}]
["Singles\\Gloria Estefan - I Can't Stay Away From You.mp3",false,0,{"$error":"#N/A"},"Singles\\Gloria Estefan - I Can't Stay Away From You.mp3"]
["Singles\\Venga Boys - We Like To Party.mp3",false,0,{"$error":"#N/A"},"Singles\\Venga Boys - We Like To Party.mp3"]
["Singles\\Tsjechov - Vanmorgen Vloog Ze Nog.mp3",false,0,{"$error":"#N/A"},"Singles\\Tsjechov - Vanmorgen Vloog Ze Nog.mp3"]
["Singles\\Pretty Things - Roadrunner.mp3",false,0,{"$error":"#N/A"},"Singles\\Pretty Things - Roadrunner.mp3"]
["Singles\\Reynolds Girls - I'd Rather Jack.mp3",false,0,{"$error":"#N/A"},"Singles\\Reynolds Girls - I'd Rather Jack.mp3"]
["Singles\\Lemming - Father John.mp3",false,0,{"$error":"#N/A"},"Singles\\Lemming - Father John.mp3"]
["Singles\\Robbie Williams - Tripping.mp3",false,0,{"$error":"#N/A"},"Singles\\Robbie Williams - Tripping.mp3"]
["Singles\\Joost Nuissl - Ik Ben Blij Dat Ik Je Niet Vergeten Ben.mp3",false,0,{"$error":"#N/A"},"Singles\\Joost Nuissl - Ik Ben Blij Dat Ik Je Niet Vergeten Ben.mp3"]
["Singles\\Genesis - In Too Deep.mp3",false,0,{"$error":"#N/A"},"Singles\\Genesis - In Too Deep.mp3"]
["Singles\\Sabrina - Boys.mp3",false,0,{"$error":"#N/A"},"Singles\\Sabrina - Boys.mp3"]
["Singles\\Ronan Keating - Lovin' Each Day.mp3",false,0,{"$error":"#N/A"},"Singles\\Ronan Keating - Lovin' Each Day.mp3"]
["Singles\\Gipsy Kings - Gypsy King Megamix.mp3",false,0,{"$error":"#N/A"},"Singles\\Gipsy Kings - Gypsy King Megamix.mp3"]
["Singles\\Three Dog Night - Joy To The World.mp3",true,0,{"$error":"#N/A"},"Singles\\Three Dog Night - Joy To The World.mp3"]
["Singles\\Bakermat - Vandaag.mp3",false,0,{"$error":"#N/A"},"Singles\\Bakermat - Vandaag.mp3"]
["Singles\\Noel Harrison - The Windmills Of Your Mind.mp3",true,0,{"$error":"#N/A"},"Singles\\Noel Harrison - The Windmills Of Your Mind.mp3"]
["Singles\\Tiesto - Red Lights.mp3",false,0,{"$error":"#N/A"},"Singles\\Tiesto - Red Lights.mp3"]
["Singles\\Usher - More.mp3",false,0,{"$error":"#N/A"},"Singles\\Usher - More.mp3"]
["Singles\\Lost Frequencies - Are You With Me.mp3",false,0,{"$error":"#N/A"},"Singles\\Lost Frequencies - Are You With Me.mp3"]
["Singles\\Peter Gabriel - Biko.mp3",false,0,{"$error":"#N/A"},"Singles\\Peter Gabriel - Biko.mp3"]
["Singles\\Keane ft K'Naan - Stop For A Minute.mp3",false,0,{"$error":"#N/A"},"Singles\\Keane ft K'Naan - Stop For A Minute.mp3"]
["Singles\\Gene Chandler - Duke Of Earl.mp3",false,0,{"$error":"#N/A"},"Singles\\Gene Chandler - Duke Of Earl.mp3"]
["Singles\\Gerry & The Pacemakers - Ferry Across The Mersey.mp3",true,0,{"$error":"#N/A"},"Singles\\Gerry & The Pacemakers - Ferry Across The Mersey.mp3"]
["Singles\\Tony Joe White - Good In Blues.mp3",false,0,{"$error":"#N/A"},"Singles\\Tony Joe White - Good In Blues.mp3"]
["Singles\\Bruce Hornsby & The Range - The Way It Is.mp3",true,0,{"$error":"#N/A"},"Singles\\Bruce Hornsby & The Range - The Way It Is.mp3"]
["Singles\\UB40 - Kingston Town.mp3",false,0,{"$error":"#N/A"},"Singles\\UB40 - Kingston Town.mp3"]
["Singles\\Imagine Dragons - On Top Of The World.mp3",true,0,{"$error":"#N/A"},"Singles\\Imagine Dragons - On Top Of The World.mp3"]
["Singles\\Viktor Lazlo - Breathless.mp3",false,0,{"$error":"#N/A"},"Singles\\Viktor Lazlo - Breathless.mp3"]
["Singles\\Monty Python - Always Look On The Bright Side Of Life.mp3",true,0,{"$error":"#N/A"},"Singles\\Monty Python - Always Look On The Bright Side Of Life.mp3"]
["Singles\\The Monkees - Daydream Believer.mp3",true,0,"Singles\\The Monkees - ","Singles\\\\Monkees, The - Daydream Believer.mp3"]
["Singles\\George Baker Selection - Morning Light.mp3",false,0,{"$error":"#N/A"},"Singles\\George Baker Selection - Morning Light.mp3"]
["Singles\\Sugababes - Round Round.mp3",false,0,{"$error":"#N/A"},"Singles\\Sugababes - Round Round.mp3"]
["Singles\\Prince Buster - Dance Cleopatra.mp3",false,0,{"$error":"#N/A"},"Singles\\Prince Buster - Dance Cleopatra.mp3"]
["Singles\\Doe Maar - Is Dit Alles.mp3",false,0,{"$error":"#N/A"},"Singles\\Doe Maar - Is Dit Alles.mp3"]
["Singles\\Major Lazer & DJ Snake - Lean On.mp3",false,0,{"$error":"#N/A"},"Singles\\Major Lazer & DJ Snake - Lean On.mp3"]
["Singles\\Marco Borsato - Emozioni.mp3",false,0,{"$error":"#N/A"},"Singles\\Marco Borsato - Emozioni.mp3"]
["Singles\\Coldplay - Paradise.mp3",false,0,{"$error":"#N/A"},"Singles\\Coldplay - Paradise.mp3"]
["Singles\\Dolly Dots - Hela-Di-Ladi-Lo.mp3",false,0,{"$error":"#N/A"},"Singles\\Dolly Dots - Hela-Di-Ladi-Lo.mp3"]
["Singles\\Cam - Burning House.mp3",false,0,{"$error":"#N/A"},"Singles\\Cam - Burning House.mp3"]
["Singles\\Queen - I Want It All.mp3",false,0,{"$error":"#N/A"},"Singles\\Queen - I Want It All.mp3"]
["Singles\\Prince - Kiss.mp3",false,0,{"$error":"#N/A"},"Singles\\Prince - Kiss.mp3"]
["Singles\\The Bee Gees - Don't Forget To Remember Me.mp3",true,0,"Singles\\The Bee Gees - ","Singles\\\\Bee Gees, The - Don't Forget To Remember Me.mp3"]
["Singles\\Stromae - Formidable.mp3",false,0,{"$error":"#N/A"},"Singles\\Stromae - Formidable.mp3"]
["Singles\\Celine Dion - Its All Coming Back To Me Now.mp3",false,0,{"$error":"#N/A"},"Singles\\Celine Dion - Its All Coming Back To Me Now.mp3"]
["Singles\\Gavin DeGraw - I Don't Want To Be.mp3",false,0,{"$error":"#N/A"},"Singles\\Gavin DeGraw - I Don't Want To Be.mp3"]
["Singles\\Aphrodite's Child - Rain And Tears.mp3",false,0,{"$error":"#N/A"},"Singles\\Aphrodite's Child - Rain And Tears.mp3"]
["Singles\\Brother Beyond - The Harder I Try.mp3",true,0,{"$error":"#N/A"},"Singles\\Brother Beyond - The Harder I Try.mp3"]
["Singles\\Gala - Freed From Desire.mp3",false,0,{"$error":"#N/A"},"Singles\\Gala - Freed From Desire.mp3"]
["Singles\\U2 - Ordinary Love.mp3",false,0,{"$error":"#N/A"},"Singles\\U2 - Ordinary Love.mp3"]
["Singles\\Diana Ross - I'm Coming Out.mp3",false,0,{"$error":"#N/A"},"Singles\\Diana Ross - I'm Coming Out.mp3"]
["Singles\\David Guetta ft Sam Martin - Dangerous.mp3",false,0,{"$error":"#N/A"},"Singles\\David Guetta ft Sam Martin - Dangerous.mp3"]
["Singles\\Tammy Wynette - D-I-V-O-R-C-E.mp3",false,0,{"$error":"#N/A"},"Singles\\Tammy Wynette - D-I-V-O-R-C-E.mp3"]
["Singles\\Janis Ian - Fly Too High.mp3",false,0,{"$error":"#N/A"},"Singles\\Janis Ian - Fly Too High.mp3"]
["Singles\\Laura Pausini - La Solitudine.mp3",false,0,{"$error":"#N/A"},"Singles\\Laura Pausini - La Solitudine.mp3"]
["Singles\\The Chi-Lites - Yes I'm Ready.mp3",true,0,"Singles\\The Chi-Lites - ","Singles\\\\Chi-Lites, The - Yes I'm Ready.mp3"]
["Singles\\Queen - You Don't Fool Me.mp3",false,0,{"$error":"#N/A"},"Singles\\Queen - You Don't Fool Me.mp3"]
["Singles\\Marco Borsato - Stop De Tijd.mp3",false,0,{"$error":"#N/A"},"Singles\\Marco Borsato - Stop De Tijd.mp3"]
["Singles\\Reinhard Mey - Gute Nacht Freunde.mp3",false,0,{"$error":"#N/A"},"Singles\\Reinhard Mey - Gute Nacht Freunde.mp3"]
["Singles\\James Blunt - 1973.mp3",false,0,{"$error":"#N/A"},"Singles\\James Blunt - 1973.mp3"]
["Singles\\The Heights - How Do You Talk To An Angel.mp3",true,0,"Singles\\The Heights - ","Singles\\\\Heights, The - How Do You Talk To An Angel.mp3"]
["Singles\\Mike Perry ft Shy Martin - The Ocean.mp3",true,0,{"$error":"#N/A"},"Singles\\Mike Perry ft Shy Martin - The Ocean.mp3"]
["Singles\\Marilyn - You Don't Love Me.mp3",false,0,{"$error":"#N/A"},"Singles\\Marilyn - You Don't Love Me.mp3"]
["Singles\\Big Country - Look Away.mp3",false,0,{"$error":"#N/A"},"Singles\\Big Country - Look Away.mp3"]
["Singles\\John Barry - Midnight Cowboy.mp3",false,0,{"$error":"#N/A"},"Singles\\John Barry - Midnight Cowboy.mp3"]
["Singles\\Dave Dee, Dozy, Beaky, Mick & Tich - Zabadak.mp3",{"$f":"RegexTest(B$1,$A1923)","v":false},{"$f":"RegexCount(C$1,$A1923)","v":0},{"$f":"RegexFind(D$1,$A1923)","v":{"$error":"#N/A"}},{"$f":"RegexReplace(E$1,$A1923,F$1)","v":"Singles\\Dave Dee, Dozy, Beaky, Mick & Tich - Zabadak.mp3"}]
["Singles\\Joe Buck - The Way You Take Time.mp3",true,0,{"$error":"#N/A"},"Singles\\Joe Buck - The Way You Take Time.mp3"]
["Singles\\Derek & The Dominos - Layla.mp3",true,0,{"$error":"#N/A"},"Singles\\Derek & The Dominos - Layla.mp3"]
["Singles\\Train - Drive By.mp3",false,0,{"$error":"#N/A"},"Singles\\Train - Drive By.mp3"]
["Singles\\Climax Blues Band - I Love You.mp3",false,0,{"$error":"#N/A"},"Singles\\Climax Blues Band - I Love You.mp3"]
["Singles\\Ellie Goulding - Something In The Way You Move.mp3",true,0,{"$error":"#N/A"},"Singles\\Ellie Goulding - Something In The Way You Move.mp3"]
["Singles\\The Beatles - I Saw Her Standing There.mp3",true,1,"Singles\\The Beatles - ","Singles\\\\Beatles, The - I Saw Her Standing There.mp3"]
["Singles\\Bananarama - Rough Justice.mp3",false,0,{"$error":"#N/A"},"Singles\\Bananarama - Rough Justice.mp3"]
["Singles\\The Verve - Bittersweet Symphony.mp3",true,0,"Singles\\The Verve - ","Singles\\\\Verve, The - Bittersweet Symphony.mp3"]
["Singles\\One Direction - History.mp3",false,0,{"$error":"#N/A"},"Singles\\One Direction - History.mp3"]
["Singles\\Inna - Hot.mp3",false,0,{"$error":"#N/A"},"Singles\\Inna - Hot.mp3"]
["Singles\\Seal - Love's Divine.mp3",false,0,{"$error":"#N/A"},"Singles\\Seal - Love's Divine.mp3"]
["Singles\\Calvin Harris ft Rihanna - This Is What You Came For.mp3",false,0,{"$error":"#N/A"},"Singles\\Calvin Harris ft Rihanna - This Is What You Came For.mp3"]
["Singles\\Herman's Hermits - There's A Kind Of Hush.mp3",true,1,{"$error":"#N/A"},"Singles\\Herman's Hermits - There's A Kind Of Hush.mp3"]
["Singles\\Lene Lovich - Say When.mp3",false,0,{"$error":"#N/A"},"Singles\\Lene Lovich - Say When.mp3"]
["Singles\\Modjo - Lady (Hear Me Tonight).mp3",false,0,{"$error":"#N/A"},"Singles\\Modjo - Lady (Hear Me Tonight).mp3"]
["Singles\\Squeeze - Cool For Cats.mp3",false,0,{"$error":"#N/A"},"Singles\\Squeeze - Cool For Cats.mp3"]
["Singles\\Quarterflash - Harden My Heart.mp3",false,0,{"$error":"#N/A"},"Singles\\Quarterflash - Harden My Heart.mp3"]
["Singles\\Emilia - Big Big World.mp3",false,0,{"$error":"#N/A"},"Singles\\Emilia - Big Big World.mp3"]
["Singles\\Hailee Steinfeld & Grey ft Zedd - Starving.mp3",false,0,{"$error":"#N/A"},"Singles\\Hailee Steinfeld & Grey ft Zedd - Starving.mp3"]
["Singles\\Diana Ross - Theme From Mahogany (Do You Know Where You're Going To).mp3",true,0,{"$error":"#N/A"},"Singles\\Diana Ross - Theme From Mahogany (Do You Know Where You're Going To).mp3"]
["Singles\\American Authors - Best Day Of My Life.mp3",false,0,{"$error":"#N/A"},"Singles\\American Authors - Best Day Of My Life.mp3"]
["Singles\\Yello - I Love You.mp3",false,0,{"$error":"#N/A"},"Singles\\Yello - I Love You.mp3"]
["Singles\\Eurythmics - Sisters Are Doing It For Themselves.mp3",true,0,{"$error":"#N/A"},"Singles\\Eurythmics - Sisters Are Doing It For Themselves.mp3"]
["Singles\\Jackie Wilson - Reet Petite.mp3",false,0,{"$error":"#N/A"},"Singles\\Jackie Wilson - Reet Petite.mp3"]
["Singles\\Del Shannon - Little Town Flirt.mp3",false,0,{"$error":"#N/A"},"Singles\\Del Shannon - Little Town Flirt.mp3"]
["Singles\\Glenn Miller & The Andrews Sisters - Chatanooga Choo Choo.mp3",true,0,{"$error":"#N/A"},"Singles\\Glenn Miller & The Andrews Sisters - Chatanooga Choo Choo.mp3"]
["Singles\\Gloria Estefan & The Miami Sound Machine - Conga.mp3",true,0,{"$error":"#N/A"},"Singles\\Gloria Estefan & The Miami Sound Machine - Conga.mp3"]
["Singles\\Dua Lipa - Hotter Than Hell.mp3",false,0,{"$error":"#N/A"},"Singles\\Dua Lipa - Hotter Than Hell.mp3"]
["Singles\\R Kelly - I Wish.mp3",false,0,{"$error":"#N/A"},"Singles\\R Kelly - I Wish.mp3"]
["Singles\\Tom Jones - I'm Coming Home.mp3",false,0,{"$error":"#N/A"},"Singles\\Tom Jones - I'm Coming Home.mp3"]
["Singles\\Four Tops - A Simple Game.mp3",false,0,{"$error":"#N/A"},"Singles\\Four Tops - A Simple Game.mp3"]
["Singles\\Nat King Cole & Natalie Cole - Unforgettable.mp3",false,0,{"$error":"#N/A"},"Singles\\Nat King Cole & Natalie Cole - Unforgettable.mp3"]
["Singles\\Ferre Grignard - Drunken Sailor.mp3",false,0,{"$error":"#N/A"},"Singles\\Ferre Grignard - Drunken Sailor.mp3"]
["Singles\\Tim Immers - Liever Dan Lief.mp3",false,0,{"$error":"#N/A"},"Singles\\Tim Immers - Liever Dan Lief.mp3"]
["Singles\\Sting - Moon Over Bourbon Street.mp3",false,0,{"$error":"#N/A"},"Singles\\Sting - Moon Over Bourbon Street.mp3"]
["Singles\\ZZ & De Maskers - La Comparsa.mp3",false,0,{"$error":"#N/A"},"Singles\\ZZ & De Maskers - La Comparsa.mp3"]
["Singles\\The Beatles - The Long And Winding Road.mp3",true,0,"Singles\\The Beatles - ","Singles\\\\Beatles, The - The Long And Winding Road.mp3"]
["Singles\\Elton John - Your Song.mp3",false,0,{"$error":"#N/A"},"Singles\\Elton John - Your Song.mp3"]
["Singles\\Theo & Marjan - He Schat, Weet Je Dat.mp3",true,0,{"$error":"#N/A"},"Singles\\Theo & Marjan - He Schat, Weet Je Dat.mp3"]
["Singles\\Milli Vanilli - Blame It On The Rain.mp3",true,0,{"$error":"#N/A"},"Singles\\Milli Vanilli - Blame It On The Rain.mp3"]
["Singles\\Ricchi & Poveri - M'Innamoro Di Te.mp3",false,0,{"$error":"#N/A"},"Singles\\Ricchi & Poveri - M'Innamoro Di Te.mp3"]
["Singles\\Time Bandits - Reach Out.mp3",false,0,{"$error":"#N/A"},"Singles\\Time Bandits - Reach Out.mp3"]
["Singles\\John Legend ft Estelle - No Other Love.mp3",false,0,{"$error":"#N/A"},"Singles\\John Legend ft Estelle - No Other Love.mp3"]
["Singles\\Alcazar - This Is The World We Live In.mp3",true,0,{"$error":"#N/A"},"Singles\\Alcazar - This Is The World We Live In.mp3"]
["Singles\\Kings Of Leon - Use Somebody.mp3",false,0,{"$error":"#N/A"},"Singles\\Kings Of Leon - Use Somebody.mp3"]
["Singles\\Total Touch - Touch Me There.mp3",true,1,{"$error":"#N/A"},"Singles\\Total Touch - Touch Me There.mp3"]
["Singles\\Billy Ocean - There'll Be Sad Songs (to Make You Cry).mp3",true,1,{"$error":"#N/A"},"Singles\\Billy Ocean - There'll Be Sad Songs (to Make You Cry).mp3"]
["Singles\\Birdy - People Help The People.mp3",true,0,{"$error":"#N/A"},"Singles\\Birdy - People Help The People.mp3"]
["Singles\\Engelbert Humperdinck - The Last Waltz.mp3",true,0,{"$error":"#N/A"},"Singles\\Engelbert Humperdinck - The Last Waltz.mp3"]
["Singles\\The Fray - How To Save A Life.mp3",true,0,"Singles\\The Fray - ","Singles\\\\Fray, The - How To Save A Life.mp3"]
["Singles\\Percy Faith - Crunchy Granola Suite.mp3",false,0,{"$error":"#N/A"},"Singles\\Percy Faith - Crunchy Granola Suite.mp3"]
["Singles\\Donna Summer - Lady Of The Night.mp3",true,0,{"$error":"#N/A"},"Singles\\Donna Summer - Lady Of The Night.mp3"]
["Singles\\David Guetta ft Zara Larsson - This One's For You.mp3",false,0,{"$error":"#N/A"},"Singles\\David Guetta ft Zara Larsson - This One's For You.mp3"]
["Singles\\Bad Company - Cant Get Enough Of Your Love.mp3",false,0,{"$error":"#N/A"},"Singles\\Bad Company - Cant Get Enough Of Your Love.mp3"]
["Singles\\Leen Jongewaard & André Van Den Heuvel - Op Een Mooie Pinksterdag.mp3",false,0,{"$error":"#N/A"},"Singles\\Leen Jongewaard & André Van Den Heuvel - Op Een Mooie Pinksterdag.mp3"]
["Singles\\Rod Stewart - Hot Legs.mp3",false,0,{"$error":"#N/A"},"Singles\\Rod Stewart - Hot Legs.mp3"]
["Singles\\Neon Trees - Animal.mp3",false,0,{"$error":"#N/A"},"Singles\\Neon Trees - Animal.mp3"]
["Singles\\Arne Jansen - Meisjes Met Rode Haren.mp3",false,0,{"$error":"#N/A"},"Singles\\Arne Jansen - Meisjes Met Rode Haren.mp3"]
["Singles\\Catapult - Teeny Bopperband.mp3",false,0,{"$error":"#N/A"},"Singles\\Catapult - Teeny Bopperband.mp3"]
["Singles\\Sergio Mendes & Brasil '66 - Mas Que Nada.mp3",false,0,{"$error":"#N/A"},"Singles\\Sergio Mendes & Brasil '66 - Mas Que Nada.mp3"]
["Singles\\The Beatles - Tell Me What You See.mp3",true,0,"Singles\\The Beatles - ","Singles\\\\Beatles, The - Tell Me What You See.mp3"]
["Singles\\The Hollies - Dear Eloise.mp3",true,0,"Singles\\The Hollies - ","Singles\\\\Hollies, The - Dear Eloise.mp3"]
["Singles\\Rose Royce - Love Don't Live Here Anymore.mp3",false,0,{"$error":"#N/A"},"Singles\\Rose Royce - Love Don't Live Here Anymore.mp3"]
["Singles\\John Mayer - In The Blood.mp3",{"$f":"RegexTest(B$1,$A1987)","v":true},{"$f":"RegexCount(C$1,$A1987)","v":0},{"$f":"RegexFind(D$1,$A1987)","v":{"$error":"#N/A"}},{"$f":"RegexReplace(E$1,$A1987,F$1)","v":"Singles\\John Mayer - In The Blood.mp3"}]
["Singles\\Davina Michelle - Duurt Te Lang.mp3",false,0,{"$error":"#N/A"},"Singles\\Davina Michelle - Duurt Te Lang.mp3"]
["Singles\\Johnny & The Hurricanes - Red River Rock.mp3",true,0,{"$error":"#N/A"},"Singles\\Johnny & The Hurricanes - Red River Rock.mp3"]
["Singles\\The Chainsmokers - Paris.mp3",true,0,"Singles\\The Chainsmokers - ","Singles\\\\Chainsmokers, The - Paris.mp3"]
["Singles\\Little Peggy March - I Will Follow Him.mp3",false,0,{"$error":"#N/A"},"Singles\\Little Peggy March - I Will Follow Him.mp3"]
["Singles\\Change - Change Of Heart.mp3",false,0,{"$error":"#N/A"},"Singles\\Change - Change Of Heart.mp3"]
["Singles\\Andrews Sisters - Rum And Coca Cola.mp3",false,0,{"$error":"#N/A"},"Singles\\Andrews Sisters - Rum And Coca Cola.mp3"]
["Singles\\Earth & Fire - Invitation.mp3",false,0,{"$error":"#N/A"},"Singles\\Earth & Fire - Invitation.mp3"]
["Singles\\Elvis Costello - Good Year For The Roses.mp3",true,0,{"$error":"#N/A"},"Singles\\Elvis Costello - Good Year For The Roses.mp3"]
["Singles\\Gordon Lightfoot - Wreck Of The Edmund Fitzgerald.mp3",true,0,{"$error":"#N/A"},"Singles\\Gordon Lightfoot - Wreck Of The Edmund Fitzgerald.mp3"]
["Singles\\Noah Kahan & Julia Michaels - Hurt Somebody.mp3",false,0,{"$error":"#N/A"},"Singles\\Noah Kahan & Julia Michaels - Hurt Somebody.mp3"]
["Singles\\Doe Maar - De Bom.mp3",false,0,{"$error":"#N/A"},"Singles\\Doe Maar - De Bom.mp3"]
["Singles\\De Poema's - Mijn Houten Hart.mp3",false,0,{"$error":"#N/A"},"Singles\\De Poema's - Mijn Houten Hart.mp3"]
["Singles\\John Lennon - (Just Like) Starting Over.mp3",false,0,{"$error":"#N/A"},"Singles\\John Lennon - (Just Like) Starting Over.mp3"]
["Singles\\Bata Illic - Michaela.mp3",false,0,{"$error":"#N/A"},"Singles\\Bata Illic - Michaela.mp3"]
["Singles\\Them - Here Comes The Night.mp3",true,0,{"$error":"#N/A"},"Singles\\Them - Here Comes The Night.mp3"]
["Singles\\Omi - Cheerleader.mp3",false,0,{"$error":"#N/A"},"Singles\\Omi - Cheerleader.mp3"]
["Singles\\UB40 - Homely Girl.mp3",false,0,{"$error":"#N/A"},"Singles\\UB40 - Homely Girl.mp3"]
["Singles\\Gers Pardoel - Ik Neem Je Mee.mp3",false,0,{"$error":"#N/A"},"Singles\\Gers Pardoel - Ik Neem Je Mee.mp3"]
["Singles\\Justin Bieber - Love Yourself.mp3",false,0,{"$error":"#N/A"},"Singles\\Justin Bieber - Love Yourself.mp3"]
["Singles\\UB40 - Food (For Thought).mp3",false,0,{"$error":"#N/A"},"Singles\\UB40 - Food (For Thought).mp3"]
["Singles\\Lou Rawls - You're Gonna Miss My Lovin.mp3",false,0,{"$error":"#N/A"},"Singles\\Lou Rawls - You're Gonna Miss My Lovin.mp3"]
["Singles\\Chris Barber's Jazzband - Petite Fleur.mp3",false,0,{"$error":"#N/A"},"Singles\\Chris Barber's Jazzband - Petite Fleur.mp3"]
["Singles\\The Beatles - I Should Have Known Better.mp3",true,0,"Singles\\The Beatles - ","Singles\\\\Beatles, The - I Should Have Known Better.mp3"]
["Singles\\The Ventures - Walk Don't Run.mp3",true,0,"Singles\\The Ventures - ","Singles\\\\Ventures, The - Walk Don't Run.mp3"]
["Singles\\Bolland & Bolland - Mexico I Can't Say Goodbye.mp3",false,0,{"$error":"#N/A"},"Singles\\Bolland & Bolland - Mexico I Can't Say Goodbye.mp3"]
["Singles\\Kids From Fame - Starmaker.mp3",false,0,{"$error":"#N/A"},"Singles\\Kids From Fame - Starmaker.mp3"]
["Singles\\Young Disciples - Apparently Nothin'.mp3",false,0,{"$error":"#N/A"},"Singles\\Young Disciples - Apparently Nothin'.mp3"]
["Singles\\Steely Dan - Dirty Work.mp3",false,0,{"$error":"#N/A"},"Singles\\Steely Dan - Dirty Work.mp3"]
["Singles\\Dave Dee, Dozy, Beaky, Mick & Tich - Don Juan.mp3",false,0,{"$error":"#N/A"},"Singles\\Dave Dee, Dozy, Beaky, Mick & Tich - Don Juan.mp3"]
["Singles\\Robin Schulz ft James Blunt - Ok.mp3",false,0,{"$error":"#N/A"},"Singles\\Robin Schulz ft James Blunt - Ok.mp3"]
["Singles\\The Drifters - Up On The Roof.mp3",true,0,"Singles\\The Drifters - ","Singles\\\\Drifters, The - Up On The Roof.mp3"]
["Singles\\The Kinks - Days.mp3",true,0,"Singles\\The Kinks - ","Singles\\\\Kinks, The - Days.mp3"]
["Singles\\Blof - Wat Zou Je Doen.mp3",false,0,{"$error":"#N/A"},"Singles\\Blof - Wat Zou Je Doen.mp3"]
["Singles\\Fun. - Some Nights.mp3",false,0,{"$error":"#N/A"},"Singles\\Fun. - Some Nights.mp3"]
["Singles\\Robbie Williams - Candy.mp3",false,0,{"$error":"#N/A"},"Singles\\Robbie Williams - Candy.mp3"]
["Singles\\Tony Dallara - Come Prima.mp3",false,0,{"$error":"#N/A"},"Singles\\Tony Dallara - Come Prima.mp3"]
["Singles\\Vanity Fair - Early In The Morning.mp3",true,0,{"$error":"#N/A"},"Singles\\Vanity Fair - Early In The Morning.mp3"]
["Singles\\The Tremeloes - Helule Helule.mp3",true,0,"Singles\\The Tremeloes - ","Singles\\\\Tremeloes, The - Helule Helule.mp3"]
["Singles\\Dan Fogelberg - Netherlands.mp3",false,0,{"$error":"#N/A"},"Singles\\Dan Fogelberg - Netherlands.mp3"]
["Singles\\Armin Van Buuren ft Kensington - Heading Up High.mp3",false,0,{"$error":"#N/A"},"Singles\\Armin Van Buuren ft Kensington - Heading Up High.mp3"]
["Singles\\New Radicals - You Get What You Give.mp3",false,0,{"$error":"#N/A"},"Singles\\New Radicals - You Get What You Give.mp3"]
["Singles\\Kelly Clarkson - Mr Know It All.mp3",false,0,{"$error":"#N/A"},"Singles\\Kelly Clarkson - Mr Know It All.mp3"]
["Singles\\The Supremes - I Hear A Symphony.mp3",true,0,"Singles\\The Supremes - ","Singles\\\\Supremes, The - I Hear A Symphony.mp3"]
["Singles\\Donny & Marie Osmond - I'm Leaving It All Up To You.mp3",false,0,{"$error":"#N/A"},"Singles\\Donny & Marie Osmond - I'm Leaving It All Up To You.mp3"]
["Singles\\Venga Boys - We're Going To Ibiza.mp3",false,0,{"$error":"#N/A"},"Singles\\Venga Boys - We're Going To Ibiza.mp3"]
["Singles\\Lou Rawls - See You When I Get There.mp3",true,1,{"$error":"#N/A"},"Singles\\Lou Rawls - See You When I Get There.mp3"]
["Singles\\Elvis Presley - Love Me Tender.mp3",false,0,{"$error":"#N/A"},"Singles\\Elvis Presley - Love Me Tender.mp3"]
["Singles\\War - Slippin' Into Darkness.mp3",false,0,{"$error":"#N/A"},"Singles\\War - Slippin' Into Darkness.mp3"]
["Singles\\Mitch Miller - March From The River Kwai.mp3",true,0,{"$error":"#N/A"},"Singles\\Mitch Miller - March From The River Kwai.mp3"]
["Singles\\Diana King - Shy Guy.mp3",false,0,{"$error":"#N/A"},"Singles\\Diana King - Shy Guy.mp3"]
["Singles\\Zedd ft Alessia Cara - Stay.mp3",false,0,{"$error":"#N/A"},"Singles\\Zedd ft Alessia Cara - Stay.mp3"]
["Singles\\Latin Quarter - Radio Africa.mp3",false,0,{"$error":"#N/A"},"Singles\\Latin Quarter - Radio Africa.mp3"]
["Singles\\Kelly Family - Fell In Love With An Alien.mp3",false,0,{"$error":"#N/A"},"Singles\\Kelly Family - Fell In Love With An Alien.mp3"]
["Singles\\BB King - The Thrill Is Gone.mp3",true,0,{"$error":"#N/A"},"Singles\\BB King - The Thrill Is Gone.mp3"]
["Singles\\Cliff Richard - The Day I Met Marie.mp3",true,0,{"$error":"#N/A"},"Singles\\Cliff Richard - The Day I Met Marie.mp3"]
["Singles\\Paul De Leeuw & Simone Kleinsma - Zonder Jou.mp3",false,0,{"$error":"#N/A"},"Singles\\Paul De Leeuw & Simone Kleinsma - Zonder Jou.mp3"]
["Singles\\Sigma - Nobody To Love.mp3",false,0,{"$error":"#N/A"},"Singles\\Sigma - Nobody To Love.mp3"]
["Singles\\Elton John - Nobody Wins.mp3",false,0,{"$error":"#N/A"},"Singles\\Elton John - Nobody Wins.mp3"]
["Singles\\Donna Summer - I Feel Love.mp3",false,0,{"$error":"#N/A"},"Singles\\Donna Summer - I Feel Love.mp3"]
["Singles\\Ray Price - You're Nobody 'til Somebody Loves You.mp3",false,0,{"$error":"#N/A"},"Singles\\Ray Price - You're Nobody 'til Somebody Loves You.mp3"]
["Singles\\Ramses Shaffy - Laat Me.mp3",false,0,{"$error":"#N/A"},"Singles\\Ramses Shaffy - Laat Me.mp3"]
["Singles\\Bucks Fizz - When We Were Young.mp3",false,0,{"$error":"#N/A"},"Singles\\Bucks Fizz - When We Were Young.mp3"]
["Singles\\Howard Jones - Life In One Day.mp3",false,0,{"$error":"#N/A"},"Singles\\Howard Jones - Life In One Day.mp3"]
["Singles\\The Beatles - Norwegian Wood (This Bird Has Flown).mp3",{"$f":"RegexTest(B$1,$A2051)","v":true},{"$f":"RegexCount(C$1,$A2051)","v":0},{"$f":"RegexFind(D$1,$A2051)","v":"Singles\\The Beatles - "},{"$f":"RegexReplace(E$1,$A2051,F$1)","v":"Singles\\\\Beatles, The - Norwegian Wood (This Bird Has Flown).mp3"}]
["Singles\\Gary Glitter - I Love You Love Me Love.mp3",false,0,{"$error":"#N/A"},"Singles\\Gary Glitter - I Love You Love Me Love.mp3"]
["Singles\\Wham - Wake Me Up Before You Go Go.mp3",false,0,{"$error":"#N/A"},"Singles\\Wham - Wake Me Up Before You Go Go.mp3"]
["Singles\\Gino Vannelli - Powerful People.mp3",false,0,{"$error":"#N/A"},"Singles\\Gino Vannelli - Powerful People.mp3"]
["Singles\\Roy Orbison - Ooby Dooby.mp3",false,0,{"$error":"#N/A"},"Singles\\Roy Orbison - Ooby Dooby.mp3"]
["Singles\\Wim Sonneveld - De Kat Van Ome Willem.mp3",false,0,{"$error":"#N/A"},"Singles\\Wim Sonneveld - De Kat Van Ome Willem.mp3"]
["Singles\\Bastille - Things We Lost In The Fire.mp3",true,0,{"$error":"#N/A"},"Singles\\Bastille - Things We Lost In The Fire.mp3"]
["Singles\\Judy Collins - Send In The Clowns.mp3",true,0,{"$error":"#N/A"},"Singles\\Judy Collins - Send In The Clowns.mp3"]
["Singles\\Earth Wind & Fire - Fantasy.mp3",false,0,{"$error":"#N/A"},"Singles\\Earth Wind & Fire - Fantasy.mp3"]
["Singles\\Maroon 5 - Sugar.mp3",false,0,{"$error":"#N/A"},"Singles\\Maroon 5 - Sugar.mp3"]
["Singles\\Kygo ft Kodaline - Raging.mp3",false,0,{"$error":"#N/A"},"Singles\\Kygo ft Kodaline - Raging.mp3"]
["Singles\\Jason Derulo - It Girl.mp3",false,0,{"$error":"#N/A"},"Singles\\Jason Derulo - It Girl.mp3"]
["Singles\\The Nits - J.O.S. Days.mp3",true,0,"Singles\\The Nits - ","Singles\\\\Nits, The - J.O.S. Days.mp3"]
["Singles\\Them - Baby Please Don't Go.mp3",true,0,{"$error":"#N/A"},"Singles\\Them - Baby Please Don't Go.mp3"]
["Singles\\Connie Francis - Stupid Cupid.mp3",false,0,{"$error":"#N/A"},"Singles\\Connie Francis - Stupid Cupid.mp3"]
["Singles\\Vanessa Williams - Colors Of The Wind.mp3",true,0,{"$error":"#N/A"},"Singles\\Vanessa Williams - Colors Of The Wind.mp3"]
["Singles\\Sergio Mendes & Brasil '66 - The Girl From Ipanema.mp3",true,0,{"$error":"#N/A"},"Singles\\Sergio Mendes & Brasil '66 - The Girl From Ipanema.mp3"]
["Singles\\Agnetha Faltskog - Wrap Your Arms Around Me.MP3",false,0,{"$error":"#N/A"},"Singles\\Agnetha Faltskog - Wrap Your Arms Around Me.MP3"]
["Singles\\Manau - La Tribu De Dana.mp3",false,0,{"$error":"#N/A"},"Singles\\Manau - La Tribu De Dana.mp3"]
["Singles\\Hip Hop Sugar Hill Gang - Rappers Delight.mp3",false,0,{"$error":"#N/A"},"Singles\\Hip Hop Sugar Hill Gang - Rappers Delight.mp3"]
["Singles\\Two Man Sound - Disco Samba.mp3",false,0,{"$error":"#N/A"},"Singles\\Two Man Sound - Disco Samba.mp3"]
["Singles\\Ariana Grande - Dangerous Woman.mp3",false,0,{"$error":"#N/A"},"Singles\\Ariana Grande - Dangerous Woman.mp3"]
["Singles\\Jackson Browne - Running On Empty.mp3",false,0,{"$error":"#N/A"},"Singles\\Jackson Browne - Running On Empty.mp3"]
["Singles\\Birdy - Wings.mp3",false,0,{"$error":"#N/A"},"Singles\\Birdy - Wings.mp3"]
["Singles\\Anastacia - I Can Feel You.mp3",false,0,{"$error":"#N/A"},"Singles\\Anastacia - I Can Feel You.mp3"]
["Singles\\Red Hot Chili Peppers - Dark Necessities.mp3",false,0,{"$error":"#N/A"},"Singles\\Red Hot Chili Peppers - Dark Necessities.mp3"]
["Singles\\Sly & The Family Stone - Dance To The Music.mp3",true,0,{"$error":"#N/A"},"Singles\\Sly & The Family Stone - Dance To The Music.mp3"]
["Singles\\OneRepublic - Secrets.mp3",false,0,{"$error":"#N/A"},"Singles\\OneRepublic - Secrets.mp3"]
["Singles\\Freddie & The Dreamers - You Were Made For Me.mp3",true,0,{"$error":"#N/A"},"Singles\\Freddie & The Dreamers - You Were Made For Me.mp3"]
["Singles\\Herman Van Veen - Toveren.mp3",false,0,{"$error":"#N/A"},"Singles\\Herman Van Veen - Toveren.mp3"]
["Singles\\Billy Idol - Hot In The City.mp3",true,0,{"$error":"#N/A"},"Singles\\Billy Idol - Hot In The City.mp3"]
["Singles\\Graham Parker & Rumour - (Hey Lord) Don't Ask Me Questions.mp3",false,0,{"$error":"#N/A"},"Singles\\Graham Parker & Rumour - (Hey Lord) Don't Ask Me Questions.mp3"]
["Singles\\Volumia! - Afscheid.mp3",false,0,{"$error":"#N/A"},"Singles\\Volumia! - Afscheid.mp3"]
["Singles\\Tiesto ft Bright Sparks - On My Way.mp3",false,0,{"$error":"#N/A"},"Singles\\Tiesto ft Bright Sparks - On My Way.mp3"]
["Singles\\Heart - Barracuda.mp3",false,0,{"$error":"#N/A"},"Singles\\Heart - Barracuda.mp3"]
["Singles\\Alle Farben ft Graham Candy - She Moves (Far Away).mp3",false,0,{"$error":"#N/A"},"Singles\\Alle Farben ft Graham Candy - She Moves (Far Away).mp3"]
["Singles\\Udo Jürgens - Zeig Mir Den Platz.mp3",false,0,{"$error":"#N/A"},"Singles\\Udo Jürgens - Zeig Mir Den Platz.mp3"]
["Singles\\Wind - Lass Die Sonne In Dein Herz.mp3",false,0,{"$error":"#N/A"},"Singles\\Wind - Lass Die Sonne In Dein Herz.mp3"]
["Singles\\Three Degrees - When Will I See You Again.mp3",false,0,{"$error":"#N/A"},"Singles\\Three Degrees - When Will I See You Again.mp3"]
["Singles\\The Beat - Hands Off...She's Mine.mp3",true,0,"Singles\\The Beat - ","Singles\\\\Beat, The - Hands Off...She's Mine.mp3"]
["Singles\\Enrique Iglesias - Can You Hear Me.mp3",false,0,{"$error":"#N/A"},"Singles\\Enrique Iglesias - Can You Hear Me.mp3"]
["Singles\\Dubliners - The Wild Rover.mp3",true,0,{"$error":"#N/A"},"Singles\\Dubliners - The Wild Rover.mp3"]
["Singles\\The Bee Gees - Words.mp3",true,0,"Singles\\The Bee Gees - ","Singles\\\\Bee Gees, The - Words.mp3"]
["Singles\\Right Said Fred - Daydream.mp3",false,0,{"$error":"#N/A"},"Singles\\Right Said Fred - Daydream.mp3"]
["Singles\\Del Shannon - Keep Searchin' (We'll Follow The Sun).mp3",true,0,{"$error":"#N/A"},"Singles\\Del Shannon - Keep Searchin' (We'll Follow The Sun).mp3"]
["Singles\\Westlife - My Love.mp3",false,0,{"$error":"#N/A"},"Singles\\Westlife - My Love.mp3"]
["Singles\\Bon Jovi - Always.mp3",false,0,{"$error":"#N/A"},"Singles\\Bon Jovi - Always.mp3"]
["Singles\\Pink Floyd - Grantchester Meadows.mp3",false,0,{"$error":"#N/A"},"Singles\\Pink Floyd - Grantchester Meadows.mp3"]
["Singles\\Earth & Fire - Song Of The Marching Children.mp3",true,0,{"$error":"#N/A"},"Singles\\Earth & Fire - Song Of The Marching Children.mp3"]
["Singles\\Jaki Graham - Breaking Away.mp3",false,0,{"$error":"#N/A"},"Singles\\Jaki Graham - Breaking Away.mp3"]
["Singles\\Adele - Turning Tables.mp3",false,0,{"$error":"#N/A"},"Singles\\Adele - Turning Tables.mp3"]
["Singles\\Guus Meeuwis & Vagant - Het Is Een Nacht (Levensecht).mp3",false,0,{"$error":"#N/A"},"Singles\\Guus Meeuwis & Vagant - Het Is Een Nacht (Levensecht).mp3"]
["Singles\\Europe - Carrie.mp3",false,0,{"$error":"#N/A"},"Singles\\Europe - Carrie.mp3"]
["Singles\\Michael Jackson - Beat It.mp3",false,0,{"$error":"#N/A"},"Singles\\Michael Jackson - Beat It.mp3"]
["Singles\\Chicago - Hard To Say I'm Sorry.mp3",false,0,{"$error":"#N/A"},"Singles\\Chicago - Hard To Say I'm Sorry.mp3"]
["Singles\\Los Fieras - En La Playa.mp3",false,0,{"$error":"#N/A"},"Singles\\Los Fieras - En La Playa.mp3"]
["Singles\\Coldplay - A Sky Full Of Stars.mp3",false,0,{"$error":"#N/A"},"Singles\\Coldplay - A Sky Full Of Stars.mp3"]
["Singles\\Moewe & Daniel Nitt - Lovers Friends.mp3",false,0,{"$error":"#N/A"},"Singles\\Moewe & Daniel Nitt - Lovers Friends.mp3"]
["Singles\\Mary Mary - Shackles (Praise You).mp3",false,0,{"$error":"#N/A"},"Singles\\Mary Mary - Shackles (Praise You).mp3"]
["Singles\\Bruce Springsteen - Born In The USA.mp3",true,0,{"$error":"#N/A"},"Singles\\Bruce Springsteen - Born In The USA.mp3"]
["Singles\\Harry Belafonte - Island In The Sun.mp3",true,0,{"$error":"#N/A"},"Singles\\Harry Belafonte - Island In The Sun.mp3"]
["Singles\\Sparks - Never Turn Your Back On Mother Earth.mp3",false,0,{"$error":"#N/A"},"Singles\\Sparks - Never Turn Your Back On Mother Earth.mp3"]
["Singles\\Ricky Martin - Un Dos Tres Maria.mp3",false,0,{"$error":"#N/A"},"Singles\\Ricky Martin - Un Dos Tres Maria.mp3"]
["Singles\\Ed Sheeran ft Khalid - Beautiful People.mp3",false,0,{"$error":"#N/A"},"Singles\\Ed Sheeran ft Khalid - Beautiful People.mp3"]
["Singles\\Corry Brokken - La Mamma.mp3",{"$f":"RegexTest(B$1,$A2115)","v":false},{"$f":"RegexCount(C$1,$A2115)","v":0},{"$f":"RegexFind(D$1,$A2115)","v":{"$error":"#N/A"}},{"$f":"RegexReplace(E$1,$A2115,F$1)","v":"Singles\\Corry Brokken - La Mamma.mp3"}]
["Singles\\Ginger Ale - The Flood.mp3",true,0,{"$error":"#N/A"},"Singles\\Ginger Ale - The Flood.mp3"]
["Singles\\U2 - The Unforgettable Fire.mp3",true,0,{"$error":"#N/A"},"Singles\\U2 - The Unforgettable Fire.mp3"]
["Singles\\Merrilee Rush - Angel Of The Morning.mp3",true,0,{"$error":"#N/A"},"Singles\\Merrilee Rush - Angel Of The Morning.mp3"]
["Singles\\Alan Parsons Project - Don't Answer Me.mp3",false,0,{"$error":"#N/A"},"Singles\\Alan Parsons Project - Don't Answer Me.mp3"]
["Singles\\Cream - Strange Brew.mp3",false,0,{"$error":"#N/A"},"Singles\\Cream - Strange Brew.mp3"]
["Singles\\Frank Boeijen Groep - De Verzoening.mp3",false,0,{"$error":"#N/A"},"Singles\\Frank Boeijen Groep - De Verzoening.mp3"]
["Singles\\Toto - Pamela.mp3",false,0,{"$error":"#N/A"},"Singles\\Toto - Pamela.mp3"]
["Singles\\Future World Orchestra - Roulette.mp3",false,0,{"$error":"#N/A"},"Singles\\Future World Orchestra - Roulette.mp3"]
["Singles\\Maywood - Give Me Back My Love.mp3",false,0,{"$error":"#N/A"},"Singles\\Maywood - Give Me Back My Love.mp3"]
["Singles\\Crosby, Stills, Nash & Young - Helpless.mp3",false,0,{"$error":"#N/A"},"Singles\\Crosby, Stills, Nash & Young - Helpless.mp3"]
["Singles\\Bonnie St Claire - I Won't Stand Between Them.mp3",true,0,{"$error":"#N/A"},"Singles\\Bonnie St Claire - I Won't Stand Between Them.mp3"]
["Singles\\Celine Dion - I'm Alive.mp3",false,0,{"$error":"#N/A"},"Singles\\Celine Dion - I'm Alive.mp3"]
["Singles\\Michael Buble - Haven't Met You Yet.mp3",false,0,{"$error":"#N/A"},"Singles\\Michael Buble - Haven't Met You Yet.mp3"]
["Singles\\Kylie Minogue - I Should Be So Lucky.mp3",false,0,{"$error":"#N/A"},"Singles\\Kylie Minogue - I Should Be So Lucky.mp3"]
["Singles\\Bananarama - Robert De Niro's Waiting.mp3",false,0,{"$error":"#N/A"},"Singles\\Bananarama - Robert De Niro's Waiting.mp3"]
["Singles\\Kungs ft Cookin On 3 Burners - This Girl.mp3",false,0,{"$error":"#N/A"},"Singles\\Kungs ft Cookin On 3 Burners - This Girl.mp3"]
["Singles\\Abc - Poison Arrow.mp3",false,0,{"$error":"#N/A"},"Singles\\Abc - Poison Arrow.mp3"]
["Singles\\Mans Zelmerlow - Heroes.mp3",false,0,{"$error":"#N/A"},"Singles\\Mans Zelmerlow - Heroes.mp3"]
["Singles\\Pet Shop Boys - Suburbia.mp3",false,0,{"$error":"#N/A"},"Singles\\Pet Shop Boys - Suburbia.mp3"]
["Singles\\Pat Boone - April Love.mp3",false,0,{"$error":"#N/A"},"Singles\\Pat Boone - April Love.mp3"]
["Singles\\VOF De Kunst - Dikkertje Dap.mp3",false,0,{"$error":"#N/A"},"Singles\\VOF De Kunst - Dikkertje Dap.mp3"]
["Singles\\A-Ha - Touchy!.mp3",false,0,{"$error":"#N/A"},"Singles\\A-Ha - Touchy!.mp3"]
["Singles\\Kings Of Leon - Wait For Me.mp3",false,0,{"$error":"#N/A"},"Singles\\Kings Of Leon - Wait For Me.mp3"]
["Singles\\Gladys Knight - Licence To Kill.mp3",false,0,{"$error":"#N/A"},"Singles\\Gladys Knight - Licence To Kill.mp3"]
["Singles\\Outsiders - Lying All The Time.mp3",true,0,{"$error":"#N/A"},"Singles\\Outsiders - Lying All The Time.mp3"]
["Singles\\Jim Capaldi - Something So Strong.mp3",false,0,{"$error":"#N/A"},"Singles\\Jim Capaldi - Something So Strong.mp3"]
["Singles\\Joan Baez - The Night They Drove Old Dixie Down.mp3",true,0,{"$error":"#N/A"},"Singles\\Joan Baez - The Night They Drove Old Dixie Down.mp3"]
["Singles\\Maggie MacNeal - Amsterdam.mp3",false,0,{"$error":"#N/A"},"Singles\\Maggie MacNeal - Amsterdam.mp3"]
["Singles\\The Voice Of Holland - One Thousand Voices.mp3",true,0,"Singles\\The Voice Of Holland - ","Singles\\\\Voice Of Holland, The - One Thousand Voices.mp3"]
["Singles\\Q65 - Ann.mp3",false,0,{"$error":"#N/A"},"Singles\\Q65 - Ann.mp3"]
["Singles\\Zucchero & Paul Young - Senza Una Donna.mp3",false,0,{"$error":"#N/A"},"Singles\\Zucchero & Paul Young - Senza Una Donna.mp3"]
["Singles\\Harold Faltermeyer - Axel F.mp3",false,0,{"$error":"#N/A"},"Singles\\Harold Faltermeyer - Axel F.mp3"]
["Singles\\Twenty One Pilots - Ride.mp3",false,0,{"$error":"#N/A"},"Singles\\Twenty One Pilots - Ride.mp3"]
["Singles\\Barry & Eileen - If You Go.mp3",false,0,{"$error":"#N/A"},"Singles\\Barry & Eileen - If You Go.mp3"]
["Singles\\Abba - I Have A Dream.mp3",false,0,{"$error":"#N/A"},"Singles\\Abba - I Have A Dream.mp3"]
["Singles\\Little Richard - Twins.mp3",false,0,{"$error":"#N/A"},"Singles\\Little Richard - Twins.mp3"]
["Singles\\Blof - Ze Is Er Niet.mp3",false,0,{"$error":"#N/A"},"Singles\\Blof - Ze Is Er Niet.mp3"]
["Singles\\Santana ft Wyclef Jean - Maria Maria.mp3",false,0,{"$error":"#N/A"},"Singles\\Santana ft Wyclef Jean - Maria Maria.mp3"]
["Singles\\Robbie Williams - Sexed Up.mp3",false,0,{"$error":"#N/A"},"Singles\\Robbie Williams - Sexed Up.mp3"]
["Singles\\The White Stripes - Seven Nation Army.mp3",true,0,"Singles\\The White Stripes - ","Singles\\\\White Stripes, The - Seven Nation Army.mp3"]
["Singles\\Demis Roussos - Schönes Mädchen Aus Arcadia.mp3",false,0,{"$error":"#N/A"},"Singles\\Demis Roussos - Schönes Mädchen Aus Arcadia.mp3"]
["Singles\\Julia Michaels - Issues.mp3",false,0,{"$error":"#N/A"},"Singles\\Julia Michaels - Issues.mp3"]
["Singles\\The Beatles - She Loves You.mp3",true,0,"Singles\\The Beatles - ","Singles\\\\Beatles, The - She Loves You.mp3"]
["Singles\\Pleps - 'k Wis Niet Dat Je Kwaad Werd.mp3",false,0,{"$error":"#N/A"},"Singles\\Pleps - 'k Wis Niet Dat Je Kwaad Werd.mp3"]
["Singles\\Bananarama - Really Saying Something.mp3",false,0,{"$error":"#N/A"},"Singles\\Bananarama - Really Saying Something.mp3"]
["Singles\\Shakira ft Wyclef Jean - Hips Don't Lie.mp3",false,0,{"$error":"#N/A"},"Singles\\Shakira ft Wyclef Jean - Hips Don't Lie.mp3"]
["Singles\\Maitre Gims - J'me Tire.mp3",false,0,{"$error":"#N/A"},"Singles\\Maitre Gims - J'me Tire.mp3"]
["Singles\\Splitsing - Wind En Zeilen.mp3",false,0,{"$error":"#N/A"},"Singles\\Splitsing - Wind En Zeilen.mp3"]
["Singles\\The Beach Boys - God Only Knows.mp3",true,0,"Singles\\The Beach Boys - ","Singles\\\\Beach Boys, The - God Only Knows.mp3"]
["Singles\\Ace Of Base - Living In Danger.mp3",false,0,{"$error":"#N/A"},"Singles\\Ace Of Base - Living In Danger.mp3"]
["Singles\\The Bee Gees - How Deep Is Your Love.mp3",true,0,"Singles\\The Bee Gees - ","Singles\\\\Bee Gees, The - How Deep Is Your Love.mp3"]
["Singles\\Oliver Onions - Sandokan.mp3",false,0,{"$error":"#N/A"},"Singles\\Oliver Onions - Sandokan.mp3"]
["Singles\\Safri Duo - Played A Live (The Bongo Song).mp3",true,0,{"$error":"#N/A"},"Singles\\Safri Duo - Played A Live (The Bongo Song).mp3"]
["Singles\\Fluitsma & Van Tijn - 15 Miljoen Mensen.mp3",false,0,{"$error":"#N/A"},"Singles\\Fluitsma & Van Tijn - 15 Miljoen Mensen.mp3"]
["Singles\\Tol Hansse - Achter De Rhodondendron.mp3",false,0,{"$error":"#N/A"},"Singles\\Tol Hansse - Achter De Rhodondendron.mp3"]
["Singles\\Dave A Stewart & Candy Dulfer - Lily Was Here.mp3",false,0,{"$error":"#N/A"},"Singles\\Dave A Stewart & Candy Dulfer - Lily Was Here.mp3"]
["Singles\\Donovan - Catch The Wind.mp3",true,0,{"$error":"#N/A"},"Singles\\Donovan - Catch The Wind.mp3"]
["Singles\\Pink Floyd - The Nile Song.mp3",true,0,{"$error":"#N/A"},"Singles\\Pink Floyd - The Nile Song.mp3"]
["Singles\\Neil Sedaka - Stupid Cupid.mp3",false,0,{"$error":"#N/A"},"Singles\\Neil Sedaka - Stupid Cupid.mp3"]
["Singles\\One Direction - Drag Me Down.mp3",false,0,{"$error":"#N/A"},"Singles\\One Direction - Drag Me Down.mp3"]
["Singles\\John Lennon - Whatever Gets You Through The Night.mp3",true,0,{"$error":"#N/A"},"Singles\\John Lennon - Whatever Gets You Through The Night.mp3"]
["Singles\\Jim Reeves - I Won't Forget You.mp3",false,0,{"$error":"#N/A"},"Singles\\Jim Reeves - I Won't Forget You.mp3"]
["Singles\\Katy Perry - Rise.mp3",false,0,{"$error":"#N/A"},"Singles\\Katy Perry - Rise.mp3"]
["Singles\\Steve Forbert - Romeo's Tune.mp3",{"$f":"RegexTest(B$1,$A2179)","v":false},{"$f":"RegexCount(C$1,$A2179)","v":0},{"$f":"RegexFind(D$1,$A2179)","v":{"$error":"#N/A"}},{"$f":"RegexReplace(E$1,$A2179,F$1)","v":"Singles\\Steve Forbert - Romeo's Tune.mp3"}]
["Singles\\Bananarama & Lananeeneenoonoo - Help.mp3",false,0,{"$error":"#N/A"},"Singles\\Bananarama & Lananeeneenoonoo - Help.mp3"]
["Singles\\Abba - The Winner Takes It All.mp3",true,0,{"$error":"#N/A"},"Singles\\Abba - The Winner Takes It All.mp3"]
["Singles\\The Beatles - Baby's In Black.mp3",true,0,"Singles\\The Beatles - ","Singles\\\\Beatles, The - Baby's In Black.mp3"]
["Singles\\Pink - Raise Your Glass.mp3",false,0,{"$error":"#N/A"},"Singles\\Pink - Raise Your Glass.mp3"]
["Singles\\Peaches & Herb - Reunited.mp3",false,0,{"$error":"#N/A"},"Singles\\Peaches & Herb - Reunited.mp3"]
["Singles\\Rob De Nijs - Mirella.mp3",false,0,{"$error":"#N/A"},"Singles\\Rob De Nijs - Mirella.mp3"]
["Singles\\Bob Carlisle - Butterfly Kisses.mp3",false,0,{"$error":"#N/A"},"Singles\\Bob Carlisle - Butterfly Kisses.mp3"]
["Singles\\The Rolling Stones - Undercover Of The Night.mp3",true,0,"Singles\\The Rolling Stones - ","Singles\\\\Rolling Stones, The - Undercover Of The Night.mp3"]
["Singles\\Peggy Lee - Hey Big Spender.mp3",false,0,{"$error":"#N/A"},"Singles\\Peggy Lee - Hey Big Spender.mp3"]
["Singles\\Klique - Stop Doggin' Me Around.mp3",false,0,{"$error":"#N/A"},"Singles\\Klique - Stop Doggin' Me Around.mp3"]
["Singles\\Smokie - Lay Back In The Arms Of Someone.mp3",true,0,{"$error":"#N/A"},"Singles\\Smokie - Lay Back In The Arms Of Someone.mp3"]
["Singles\\Vera Lynn - We'll Meet Again.mp3",false,0,{"$error":"#N/A"},"Singles\\Vera Lynn - We'll Meet Again.mp3"]
["Singles\\Sunclub - Fiesta De Los Tamborileros.mp3",false,0,{"$error":"#N/A"},"Singles\\Sunclub - Fiesta De Los Tamborileros.mp3"]
["Singles\\Marco Borsato & Lucie Silvas - Everytime I Think Of You.mp3",false,0,{"$error":"#N/A"},"Singles\\Marco Borsato & Lucie Silvas - Everytime I Think Of You.mp3"]
["Singles\\Edith Piaf - Non, Je Ne Regrette Rien.mp3",false,0,{"$error":"#N/A"},"Singles\\Edith Piaf - Non, Je Ne Regrette Rien.mp3"]
["Singles\\Ramses Shaffy - Wij Zullen Doorgaan.mp3",false,0,{"$error":"#N/A"},"Singles\\Ramses Shaffy - Wij Zullen Doorgaan.mp3"]
["Singles\\Cat Stevens - The First Cut Is The Deepest.mp3",true,0,{"$error":"#N/A"},"Singles\\Cat Stevens - The First Cut Is The Deepest.mp3"]
["Singles\\ZZ Top - Sharp Dressed Man.mp3",false,0,{"$error":"#N/A"},"Singles\\ZZ Top - Sharp Dressed Man.mp3"]
["Singles\\The Move - Flowers In The Rain.mp3",true,0,"Singles\\The Move - ","Singles\\\\Move, The - Flowers In The Rain.mp3"]
["Singles\\Era - The Mass.mp3",true,0,{"$error":"#N/A"},"Singles\\Era - The Mass.mp3"]
["Singles\\The Foundations - Build Me Up Buttercup.mp3",true,0,"Singles\\The Foundations - ","Singles\\\\Foundations, The - Build Me Up Buttercup.mp3"]
["Singles\\Medicine Head - Slip And Slide.mp3",false,0,{"$error":"#N/A"},"Singles\\Medicine Head - Slip And Slide.mp3"]
["Singles\\Joe Dassin - L'été Indien.mp3",false,0,{"$error":"#N/A"},"Singles\\Joe Dassin - L'été Indien.mp3"]
["Singles\\Passenger - Let Her Go.mp3",false,0,{"$error":"#N/A"},"Singles\\Passenger - Let Her Go.mp3"]
["Singles\\Bette Midler - From A Distance.mp3",false,0,{"$error":"#N/A"},"Singles\\Bette Midler - From A Distance.mp3"]
["Singles\\Armin van Buuren ft James Newman - Therapy.mp3",true,1,{"$error":"#N/A"},"Singles\\Armin van Buuren ft James Newman - Therapy.mp3"]
["Singles\\Wet Willie - Keep On Smilin'.mp3",false,0,{"$error":"#N/A"},"Singles\\Wet Willie - Keep On Smilin'.mp3"]
["Singles\\Gordon & Re-Play - Never Nooit Meer.mp3",false,0,{"$error":"#N/A"},"Singles\\Gordon & Re-Play - Never Nooit Meer.mp3"]
["Singles\\Jimmy The Hoover - Tantalise.mp3",true,0,{"$error":"#N/A"},"Singles\\Jimmy The Hoover - Tantalise.mp3"]
["Singles\\Henry Mancini - Moon River.mp3",false,0,{"$error":"#N/A"},"Singles\\Henry Mancini - Moon River.mp3"]
["Singles\\World Of Oz - King Croesus.mp3",false,0,{"$error":"#N/A"},"Singles\\World Of Oz - King Croesus.mp3"]
["Singles\\Will To Power - Baby I Love Your Way.mp3",false,0,{"$error":"#N/A"},"Singles\\Will To Power - Baby I Love Your Way.mp3"]
["Singles\\September - Cry For You.mp3",false,0,{"$error":"#N/A"},"Singles\\September - Cry For You.mp3"]
["Singles\\Galantis - Runaway (U & I).mp3",false,0,{"$error":"#N/A"},"Singles\\Galantis - Runaway (U & I).mp3"]
["Singles\\Status Quo - Hold You Back.Mp3",false,0,{"$error":"#N/A"},"Singles\\Status Quo - Hold You Back.Mp3"]
["Singles\\Anouk - R U Kiddin' Me.mp3",false,0,{"$error":"#N/A"},"Singles\\Anouk - R U Kiddin' Me.mp3"]
["Singles\\Tavares - Heaven Must Be Missing An Angel.mp3",false,0,{"$error":"#N/A"},"Singles\\Tavares - Heaven Must Be Missing An Angel.mp3"]
["Singles\\The Who - Pinball Wizard.mp3",true,0,"Singles\\The Who - ","Singles\\\\Who, The - Pinball Wizard.mp3"]
["Singles\\Diana Ross - Ain't No Mountain High Enough.mp3",false,0,{"$error":"#N/A"},"Singles\\Diana Ross - Ain't No Mountain High Enough.mp3"]
["Singles\\The Imperials - Who's Gonna Love Me.mp3",true,0,"Singles\\The Imperials - ","Singles\\\\Imperials, The - Who's Gonna Love Me.mp3"]
["Singles\\The Dell Vikings - Come Go With Me.mp3",true,0,"Singles\\The Dell Vikings - ","Singles\\\\Dell Vikings, The - Come Go With Me.mp3"]
["Singles\\The Christians - Man Don't Cry.mp3",true,0,"Singles\\The Christians - ","Singles\\\\Christians, The - Man Don't Cry.mp3"]
["Singles\\Steve Miller Band - Take The Money And Run.mp3",true,0,{"$error":"#N/A"},"Singles\\Steve Miller Band - Take The Money And Run.mp3"]
["Singles\\Jermaine Stewart - We Don't Have To Take Our Clothes Off.mp3",false,0,{"$error":"#N/A"},"Singles\\Jermaine Stewart - We Don't Have To Take Our Clothes Off.mp3"]
["Singles\\Sting - Fragile.mp3",false,0,{"$error":"#N/A"},"Singles\\Sting - Fragile.mp3"]
["Singles\\Madonna - Like A Virgin.mp3",false,0,{"$error":"#N/A"},"Singles\\Madonna - Like A Virgin.mp3"]
["Singles\\Humble Pie - Natural Born Bugie.mp3",false,0,{"$error":"#N/A"},"Singles\\Humble Pie - Natural Born Bugie.mp3"]
["Singles\\John Newman - Love Me Again.mp3",false,0,{"$error":"#N/A"},"Singles\\John Newman - Love Me Again.mp3"]
["Singles\\Wham - Bad Boys.mp3",false,0,{"$error":"#N/A"},"Singles\\Wham - Bad Boys.mp3"]
["Singles\\Barry White - Never Never Gonna Give You Up.mp3",false,0,{"$error":"#N/A"},"Singles\\Barry White - Never Never Gonna Give You Up.mp3"]
["Singles\\Clean Bandit ft Jess Glynne - Rather Be.mp3",false,0,{"$error":"#N/A"},"Singles\\Clean Bandit ft Jess Glynne - Rather Be.mp3"]
["Singles\\Peter Koelewijn - KL 204 (Als Ik God Was).mp3",false,0,{"$error":"#N/A"},"Singles\\Peter Koelewijn - KL 204 (Als Ik God Was).mp3"]
["Singles\\Moses - We Just.mp3",false,0,{"$error":"#N/A"},"Singles\\Moses - We Just.mp3"]
["Singles\\Manhattans - Hurt.mp3",false,0,{"$error":"#N/A"},"Singles\\Manhattans - Hurt.mp3"]
["Singles\\Dorus - Figaro Parodie.mp3",false,0,{"$error":"#N/A"},"Singles\\Dorus - Figaro Parodie.mp3"]
["Singles\\Wulf - Mind Made Up.mp3",false,0,{"$error":"#N/A"},"Singles\\Wulf - Mind Made Up.mp3"]
["Singles\\Pitbull ft Christina Aguilera - Feel This Moment.mp3",false,0,{"$error":"#N/A"},"Singles\\Pitbull ft Christina Aguilera - Feel This Moment.mp3"]
["Singles\\Marco Borsato - Waarom Nou Jij.mp3",false,0,{"$error":"#N/A"},"Singles\\Marco Borsato - Waarom Nou Jij.mp3"]
["Singles\\Tippa Irie - Hello Darling.mp3",false,0,{"$error":"#N/A"},"Singles\\Tippa Irie - Hello Darling.mp3"]
["Singles\\Bros - When Will I Be Famous.mp3",false,0,{"$error":"#N/A"},"Singles\\Bros - When Will I Be Famous.mp3"]
["Singles\\Bill Haley & Comets - R.O.C.K..mp3",false,0,{"$error":"#N/A"},"Singles\\Bill Haley & Comets - R.O.C.K..mp3"]
["Singles\\Van Dik Hout - Dromendief.mp3",false,0,{"$error":"#N/A"},"Singles\\Van Dik Hout - Dromendief.mp3"]
["Singles\\Chicago - 25 Or 6 To 4.mp3",false,0,{"$error":"#N/A"},"Singles\\Chicago - 25 Or 6 To 4.mp3"]
["Singles\\Noordkaap - Ik Hou Van U.mp3",{"$f":"RegexTest(B$1,$A2243)","v":false},{"$f":"RegexCount(C$1,$A2243)","v":0},{"$f":"RegexFind(D$1,$A2243)","v":{"$error":"#N/A"}},{"$f":"RegexReplace(E$1,$A2243,F$1)","v":"Singles\\Noordkaap - Ik Hou Van U.mp3"}]
["Singles\\Blondie - (I'm Always Touched By Your) Presence Dear.mp3",false,0,{"$error":"#N/A"},"Singles\\Blondie - (I'm Always Touched By Your) Presence Dear.mp3"]
["Singles\\Clairy Browne - Pool.mp3",false,0,{"$error":"#N/A"},"Singles\\Clairy Browne - Pool.mp3"]
["Singles\\Tal Bachman - She's So High.mp3",false,0,{"$error":"#N/A"},"Singles\\Tal Bachman - She's So High.mp3"]
["Singles\\James Lloyd - Keep On Smiling.mp3",false,0,{"$error":"#N/A"},"Singles\\James Lloyd - Keep On Smiling.mp3"]
["Singles\\Colin Blunstone - Andorra.mp3",false,0,{"$error":"#N/A"},"Singles\\Colin Blunstone - Andorra.mp3"]
["Singles\\Gerry & The Pacemakers - I Like It.mp3",true,0,{"$error":"#N/A"},"Singles\\Gerry & The Pacemakers - I Like It.mp3"]
["Singles\\Tears For Fears - Sowing The Seeds Of Love.mp3",true,0,{"$error":"#N/A"},"Singles\\Tears For Fears - Sowing The Seeds Of Love.mp3"]
["Singles\\Wally Tax - Bridges Are Burning.mp3",false,0,{"$error":"#N/A"},"Singles\\Wally Tax - Bridges Are Burning.mp3"]
["Singles\\Dotan - This Town.mp3",false,0,{"$error":"#N/A"},"Singles\\Dotan - This Town.mp3"]
["Singles\\Kygo & Selena Gomez - It Ain't Me.mp3",false,0,{"$error":"#N/A"},"Singles\\Kygo & Selena Gomez - It Ain't Me.mp3"]
["Singles\\Spice Girls - Viva Forever.mp3",false,0,{"$error":"#N/A"},"Singles\\Spice Girls - Viva Forever.mp3"]
["Singles\\Ke$ha - Take It Off.mp3",false,0,{"$error":"#N/A"},"Singles\\Ke$ha - Take It Off.mp3"]
["Singles\\Billy Joel - Leningrad.mp3",false,0,{"$error":"#N/A"},"Singles\\Billy Joel - Leningrad.mp3"]
["Singles\\Eurythmics - Right By Your Side.mp3",false,0,{"$error":"#N/A"},"Singles\\Eurythmics - Right By Your Side.mp3"]
["Singles\\Slade - The Bangin' Man.mp3",true,0,{"$error":"#N/A"},"Singles\\Slade - The Bangin' Man.mp3"]
["Singles\\Jamelia - Superstar.mp3",false,0,{"$error":"#N/A"},"Singles\\Jamelia - Superstar.mp3"]
["Singles\\Adele - Rumour Has It.mp3",false,0,{"$error":"#N/A"},"Singles\\Adele - Rumour Has It.mp3"]
["Singles\\Shoes - Don't You Cry For A Girl.mp3",false,0,{"$error":"#N/A"},"Singles\\Shoes - Don't You Cry For A Girl.mp3"]
["Singles\\The Blow Monkeys - It Doesn't Have To Be This Way.mp3",true,0,"Singles\\The Blow Monkeys - ","Singles\\\\Blow Monkeys, The - It Doesn't Have To Be This Way.mp3"]
["Singles\\The Beatles - Lucy In The Sky With Diamonds.mp3",true,0,"Singles\\The Beatles - ","Singles\\\\Beatles, The - Lucy In The Sky With Diamonds.mp3"]
["Singles\\Alice Cooper - No More Mr Nice Guy.mp3",false,0,{"$error":"#N/A"},"Singles\\Alice Cooper - No More Mr Nice Guy.mp3"]
["Singles\\Dorus - Bij De Marine.mp3",false,0,{"$error":"#N/A"},"Singles\\Dorus - Bij De Marine.mp3"]
["Singles\\Slade - Get Down And Get With It.mp3",false,0,{"$error":"#N/A"},"Singles\\Slade - Get Down And Get With It.mp3"]
["Singles\\The Shadows - Wonderful Land.mp3",true,0,"Singles\\The Shadows - ","Singles\\\\Shadows, The - Wonderful Land.mp3"]
["Singles\\Bruno Mars - Treasure.mp3",false,0,{"$error":"#N/A"},"Singles\\Bruno Mars - Treasure.mp3"]
["Singles\\Leen Jongewaard & Piet Romer - Vissen.mp3",false,0,{"$error":"#N/A"},"Singles\\Leen Jongewaard & Piet Romer - Vissen.mp3"]
["Singles\\Sammy Davis Jr - Baretta's Theme.mp3",true,0,{"$error":"#N/A"},"Singles\\Sammy Davis Jr - Baretta's Theme.mp3"]
["Singles\\Meduza & Becky Hill & Goodboys - Lose Control.mp3",false,0,{"$error":"#N/A"},"Singles\\Meduza & Becky Hill & Goodboys - Lose Control.mp3"]
["Singles\\De La Soul - Say No Go.mp3",false,0,{"$error":"#N/A"},"Singles\\De La Soul - Say No Go.mp3"]
["Singles\\Shawn Mendes - Treat You Better.mp3",false,0,{"$error":"#N/A"},"Singles\\Shawn Mendes - Treat You Better.mp3"]
["Singles\\Don Mclean - Crying.mp3",false,0,{"$error":"#N/A"},"Singles\\Don Mclean - Crying.mp3"]
["Singles\\Cliff Richard & The Shadows - Blue Turns To Grey.mp3",true,0,{"$error":"#N/A"},"Singles\\Cliff Richard & The Shadows - Blue Turns To Grey.mp3"]
["Singles\\Salix Alba - Marina.mp3",false,0,{"$error":"#N/A"},"Singles\\Salix Alba - Marina.mp3"]
["Singles\\James Taylor & JD Souther - Her Town Too.mp3",false,0,{"$error":"#N/A"},"Singles\\James Taylor & JD Souther - Her Town Too.mp3"]
["Singles\\Shuffles - Cha La La I Need You.mp3",false,0,{"$error":"#N/A"},"Singles\\Shuffles - Cha La La I Need You.mp3"]
["Singles\\The Stranglers - No Mercy.mp3",true,0,"Singles\\The Stranglers - ","Singles\\\\Stranglers, The - No Mercy.mp3"]
["Singles\\Julio Iglesias - Por Un Pocco De Tu Amor.mp3",false,0,{"$error":"#N/A"},"Singles\\Julio Iglesias - Por Un Pocco De Tu Amor.mp3"]
["Singles\\Tavares - More Than A Woman.mp3",false,0,{"$error":"#N/A"},"Singles\\Tavares - More Than A Woman.mp3"]
["Singles\\Showtek ft Leon Sherman - Listen To Your Momma.mp3",false,0,{"$error":"#N/A"},"Singles\\Showtek ft Leon Sherman - Listen To Your Momma.mp3"]
["Singles\\Yves Duteil - Prendre Un Enfant.mp3",false,0,{"$error":"#N/A"},"Singles\\Yves Duteil - Prendre Un Enfant.mp3"]
["Singles\\Charlie Puth ft Meghan Trainor - Marvin Gaye.mp3",false,0,{"$error":"#N/A"},"Singles\\Charlie Puth ft Meghan Trainor - Marvin Gaye.mp3"]
["Singles\\Krezip - I Apologize.mp3",false,0,{"$error":"#N/A"},"Singles\\Krezip - I Apologize.mp3"]
["Singles\\Long Tall Ernie & The Shakers - Do You Remember.mp3",true,0,{"$error":"#N/A"},"Singles\\Long Tall Ernie & The Shakers - Do You Remember.mp3"]
["Singles\\Marty Robbins - Devil Woman.mp3",false,0,{"$error":"#N/A"},"Singles\\Marty Robbins - Devil Woman.mp3"]
["Singles\\Lady GaGa - Eh, Eh (Nothing Else I Can Say).mp3",false,0,{"$error":"#N/A"},"Singles\\Lady GaGa - Eh, Eh (Nothing Else I Can Say).mp3"]
["Singles\\Usher ft Pitbull - DJ Got Us Fallin In Love.mp3",false,0,{"$error":"#N/A"},"Singles\\Usher ft Pitbull - DJ Got Us Fallin In Love.mp3"]
["Singles\\Louis Neefs - Margrietje.mp3",false,0,{"$error":"#N/A"},"Singles\\Louis Neefs - Margrietje.mp3"]
["Singles\\Simply Red - Home.mp3",false,0,{"$error":"#N/A"},"Singles\\Simply Red - Home.mp3"]
["Singles\\The Byrds - Eight Miles High.mp3",true,0,"Singles\\The Byrds - ","Singles\\\\Byrds, The - Eight Miles High.mp3"]
["Singles\\Danny & The Juniors - At The Hop.mp3",true,0,{"$error":"#N/A"},"Singles\\Danny & The Juniors - At The Hop.mp3"]
["Singles\\Willy William - Ego.mp3",false,0,{"$error":"#N/A"},"Singles\\Willy William - Ego.mp3"]
["Singles\\Alice Cooper - Hello Hurray.mp3",false,0,{"$error":"#N/A"},"Singles\\Alice Cooper - Hello Hurray.mp3"]
["Singles\\Taylor Swift - Out Of The Woods.mp3",true,0,{"$error":"#N/A"},"Singles\\Taylor Swift - Out Of The Woods.mp3"]
["Singles\\Rod Stewart - Some Guys Have All The Luck.mp3",true,0,{"$error":"#N/A"},"Singles\\Rod Stewart - Some Guys Have All The Luck.mp3"]
["Singles\\Nick & Simon - Kijk Omhoog.mp3",false,0,{"$error":"#N/A"},"Singles\\Nick & Simon - Kijk Omhoog.mp3"]
["Singles\\Madonna - Dress You Up (In My Love).mp3",false,0,{"$error":"#N/A"},"Singles\\Madonna - Dress You Up (In My Love).mp3"]
["Singles\\Bill Haley - Shake, Rattle And Roll.mp3",false,0,{"$error":"#N/A"},"Singles\\Bill Haley - Shake, Rattle And Roll.mp3"]
["Singles\\Tony & Los Santos - Trico Trico Tra.mp3",false,0,{"$error":"#N/A"},"Singles\\Tony & Los Santos - Trico Trico Tra.mp3"]
["Singles\\Jeff Wayne & Justin Hayward - The Eve Of The War.mp3",true,0,{"$error":"#N/A"},"Singles\\Jeff Wayne & Justin Hayward - The Eve Of The War.mp3"]
["Singles\\Ricky King - Verde.mp3",false,0,{"$error":"#N/A"},"Singles\\Ricky King - Verde.mp3"]
["Singles\\De Kast - In De Wolken.mp3",false,0,{"$error":"#N/A"},"Singles\\De Kast - In De Wolken.mp3"]
["Singles\\Roland Kaiser - Santa Maria.mp3",false,0,{"$error":"#N/A"},"Singles\\Roland Kaiser - Santa Maria.mp3"]
["Singles\\Axwell & Ingrosso - Sun Is Shining.mp3",false,0,{"$error":"#N/A"},"Singles\\Axwell & Ingrosso - Sun Is Shining.mp3"]
["Singles\\Dave Loggins - Please Come To Boston.mp3",{"$f":"RegexTest(B$1,$A2307)","v":false},{"$f":"RegexCount(C$1,$A2307)","v":0},{"$f":"RegexFind(D$1,$A2307)","v":{"$error":"#N/A"}},{"$f":"RegexReplace(E$1,$A2307,F$1)","v":"Singles\\Dave Loggins - Please Come To Boston.mp3"}]
["Singles\\Nick Cave & Kylie Minogue - Where The Wild Roses Grow.mp3",true,0,{"$error":"#N/A"},"Singles\\Nick Cave & Kylie Minogue - Where The Wild Roses Grow.mp3"]
["Singles\\The Police - Spirits In The Material World.mp3",true,0,"Singles\\The Police - ","Singles\\\\Police, The - Spirits In The Material World.mp3"]
["Singles\\Meck & Leo Sayers - Thunder In My Heart Again.mp3",false,0,{"$error":"#N/A"},"Singles\\Meck & Leo Sayers - Thunder In My Heart Again.mp3"]
["Singles\\Twice As Much - True Story.mp3",false,0,{"$error":"#N/A"},"Singles\\Twice As Much - True Story.mp3"]
["Singles\\Eddy Grant - Gimme Hope Joana.mp3",false,0,{"$error":"#N/A"},"Singles\\Eddy Grant - Gimme Hope Joana.mp3"]
["Singles\\Krezip - All My Life.mp3",false,0,{"$error":"#N/A"},"Singles\\Krezip - All My Life.mp3"]
["Singles\\The Diamonds - Little Darlin'.mp3",true,0,"Singles\\The Diamonds - ","Singles\\\\Diamonds, The - Little Darlin'.mp3"]
["Singles\\Talking Heads - The Lady Don't Mind.Mp3",true,0,{"$error":"#N/A"},"Singles\\Talking Heads - The Lady Don't Mind.Mp3"]
["Singles\\Lana Del Rey - Video Games.mp3",false,0,{"$error":"#N/A"},"Singles\\Lana Del Rey - Video Games.mp3"]
["Singles\\Meghan Trainor - All About That Bass.mp3",false,0,{"$error":"#N/A"},"Singles\\Meghan Trainor - All About That Bass.mp3"]
["Singles\\Christopher Cross - All Right.mp3",false,0,{"$error":"#N/A"},"Singles\\Christopher Cross - All Right.mp3"]
["Singles\\Alain Clark - Back In My World.mp3",false,0,{"$error":"#N/A"},"Singles\\Alain Clark - Back In My World.mp3"]
["Singles\\Enrique Iglesias - Tired Of Being Sorry.mp3",false,0,{"$error":"#N/A"},"Singles\\Enrique Iglesias - Tired Of Being Sorry.mp3"]
["Singles\\Kim Wilde - Four Letter Word.mp3",false,0,{"$error":"#N/A"},"Singles\\Kim Wilde - Four Letter Word.mp3"]
["Singles\\Andy Gibb - Love Is Thicker Than Water.mp3",false,0,{"$error":"#N/A"},"Singles\\Andy Gibb - Love Is Thicker Than Water.mp3"]
["Singles\\Kyu Sakamoto - Sukiyaki.mp3",false,0,{"$error":"#N/A"},"Singles\\Kyu Sakamoto - Sukiyaki.mp3"]
["Singles\\Roxy Music - Virginia Plain.mp3",false,0,{"$error":"#N/A"},"Singles\\Roxy Music - Virginia Plain.mp3"]
["Singles\\Cliff Richard & The Shadows - In The Country.mp3",true,0,{"$error":"#N/A"},"Singles\\Cliff Richard & The Shadows - In The Country.mp3"]
["Singles\\Becky G - Shower.mp3",false,0,{"$error":"#N/A"},"Singles\\Becky G - Shower.mp3"]
["Singles\\Double You - Please Don't Go.mp3",false,0,{"$error":"#N/A"},"Singles\\Double You - Please Don't Go.mp3"]
["Singles\\Kris Kross Amsterdam & Kraantje Pappie & Tabitha - Moment.mp3",false,0,{"$error":"#N/A"},"Singles\\Kris Kross Amsterdam & Kraantje Pappie & Tabitha - Moment.mp3"]
["Singles\\Drs P - De Veerpont (Heen En Weer).mp3",false,0,{"$error":"#N/A"},"Singles\\Drs P - De Veerpont (Heen En Weer).mp3"]
["Singles\\Ann Lee - 2 Times.mp3",false,0,{"$error":"#N/A"},"Singles\\Ann Lee - 2 Times.mp3"]
["Singles\\Ed Sheeran ft Beyonce - Perfect Duet.mp3",false,0,{"$error":"#N/A"},"Singles\\Ed Sheeran ft Beyonce - Perfect Duet.mp3"]
["Singles\\Pater Moeskroen - Roodkapje.mp3",false,0,{"$error":"#N/A"},"Singles\\Pater Moeskroen - Roodkapje.mp3"]
["Singles\\Miguel Rios - Song Of Joy.mp3",false,0,{"$error":"#N/A"},"Singles\\Miguel Rios - Song Of Joy.mp3"]
["Singles\\The Associates - Breakfast.mp3",true,0,"Singles\\The Associates - ","Singles\\\\Associates, The - Breakfast.mp3"]
["Singles\\Bryan Adams - Please Forgive Me.mp3",false,0,{"$error":"#N/A"},"Singles\\Bryan Adams - Please Forgive Me.mp3"]
["Singles\\Dave Dee, Dozy, Beaky, Mick & Tich - The Legend Of Xanadu.mp3",true,0,{"$error":"#N/A"},"Singles\\Dave Dee, Dozy, Beaky, Mick & Tich - The Legend Of Xanadu.mp3"]
["Singles\\Andre Hazes - Bloed, Zweet En Tranen.mp3",false,0,{"$error":"#N/A"},"Singles\\Andre Hazes - Bloed, Zweet En Tranen.mp3"]
["Singles\\Los Indios Tabajaras - Maria Elena.mp3",false,0,{"$error":"#N/A"},"Singles\\Los Indios Tabajaras - Maria Elena.mp3"]
["Singles\\Mike Batt - Lady Of The Dawn.mp3",true,0,{"$error":"#N/A"},"Singles\\Mike Batt - Lady Of The Dawn.mp3"]
["Singles\\Engelbert Humperdinck - A Man Without Love.mp3",false,0,{"$error":"#N/A"},"Singles\\Engelbert Humperdinck - A Man Without Love.mp3"]
["Singles\\Jason Derulo - Don't Wanna Go Home.mp3",false,0,{"$error":"#N/A"},"Singles\\Jason Derulo - Don't Wanna Go Home.mp3"]
["Singles\\Travie McCoy - We'll Be Alright.mp3",false,0,{"$error":"#N/A"},"Singles\\Travie McCoy - We'll Be Alright.mp3"]
["Singles\\Cliff Richard - Somewhere Over The Rainbow & What A Wonderful World.mp3",true,0,{"$error":"#N/A"},"Singles\\Cliff Richard - Somewhere Over The Rainbow & What A Wonderful World.mp3"]
["Singles\\Love Unlimited Orchestra - Love's Theme.mp3",true,0,{"$error":"#N/A"},"Singles\\Love Unlimited Orchestra - Love's Theme.mp3"]
["Singles\\Warren Zevon - Lawyers, Guns And Money.mp3",false,0,{"$error":"#N/A"},"Singles\\Warren Zevon - Lawyers, Guns And Money.mp3"]
["Singles\\Trio Hellenique - Sirtaki.mp3",false,0,{"$error":"#N/A"},"Singles\\Trio Hellenique - Sirtaki.mp3"]
["Singles\\Billy Joe Royal - Hush.mp3",false,0,{"$error":"#N/A"},"Singles\\Billy Joe Royal - Hush.mp3"]
["Singles\\Bay City Rollers - Bye Bye Baby.mp3",false,0,{"$error":"#N/A"},"Singles\\Bay City Rollers - Bye Bye Baby.mp3"]
["Singles\\Olly Murs ft Travie McCoy - Wrapped Up.mp3",false,0,{"$error":"#N/A"},"Singles\\Olly Murs ft Travie McCoy - Wrapped Up.mp3"]
["Singles\\Joe Cocker - N'oubliez Jamais.mp3",false,0,{"$error":"#N/A"},"Singles\\Joe Cocker - N'oubliez Jamais.mp3"]
["Singles\\The Spotnicks - The Entertainer.mp3",true,0,"Singles\\The Spotnicks - ","Singles\\\\Spotnicks, The - The Entertainer.mp3"]
["Singles\\Cliff Richard & The Shadows - Lucky Lips.mp3",true,0,{"$error":"#N/A"},"Singles\\Cliff Richard & The Shadows - Lucky Lips.mp3"]
["Singles\\Barbra Streisand & Don Johnson - Till I Loved You.mp3",false,0,{"$error":"#N/A"},"Singles\\Barbra Streisand & Don Johnson - Till I Loved You.mp3"]
["Singles\\YouNotUs & Janieck & Senex - Narcotic.mp3",false,0,{"$error":"#N/A"},"Singles\\YouNotUs & Janieck & Senex - Narcotic.mp3"]
["Singles\\Michael Buble - Hollywood.mp3",false,0,{"$error":"#N/A"},"Singles\\Michael Buble - Hollywood.mp3"]
["Singles\\Teach In - Upside Down.mp3",false,0,{"$error":"#N/A"},"Singles\\Teach In - Upside Down.mp3"]
["Singles\\The Proclaimers - Letter From America.mp3",true,0,"Singles\\The Proclaimers - ","Singles\\\\Proclaimers, The - Letter From America.mp3"]
["Singles\\Johnny Lion - Sophietje.mp3",false,0,{"$error":"#N/A"},"Singles\\Johnny Lion - Sophietje.mp3"]
["Singles\\The Beatles - Eight Days A Week.mp3",true,0,"Singles\\The Beatles - ","Singles\\\\Beatles, The - Eight Days A Week.mp3"]
["Singles\\U2 - New Years Day.mp3",false,0,{"$error":"#N/A"},"Singles\\U2 - New Years Day.mp3"]
["Singles\\Ricky Martin & Christina Aguilera - Nobody Wants To Be Lonely.mp3",false,0,{"$error":"#N/A"},"Singles\\Ricky Martin & Christina Aguilera - Nobody Wants To Be Lonely.mp3"]
["Singles\\Andre Van Duin - Bananenlied.mp3",false,0,{"$error":"#N/A"},"Singles\\Andre Van Duin - Bananenlied.mp3"]
["Singles\\Twenty One Pilots - Stressed Out.mp3",false,0,{"$error":"#N/A"},"Singles\\Twenty One Pilots - Stressed Out.mp3"]
["Singles\\Mixtures - The Pushbike Song.mp3",true,0,{"$error":"#N/A"},"Singles\\Mixtures - The Pushbike Song.mp3"]
["Singles\\KLF & Tammy Wynette - Justified And Ancient (All Bound For Mu Mu Land).mp3",false,0,{"$error":"#N/A"},"Singles\\KLF & Tammy Wynette - Justified And Ancient (All Bound For Mu Mu Land).mp3"]
["Singles\\Kygo ft Conrad - Firestone.mp3",false,0,{"$error":"#N/A"},"Singles\\Kygo ft Conrad - Firestone.mp3"]
["Singles\\Spandau Ballet - Through The Barricades.mp3",true,0,{"$error":"#N/A"},"Singles\\Spandau Ballet - Through The Barricades.mp3"]
["Singles\\Lou Rawls - Lady Love.mp3",false,0,{"$error":"#N/A"},"Singles\\Lou Rawls - Lady Love.mp3"]
["Singles\\Celine Dion - Because You Loved Me.mp3",false,0,{"$error":"#N/A"},"Singles\\Celine Dion - Because You Loved Me.mp3"]
["Singles\\Mel & Kim - Respectable.mp3",false,0,{"$error":"#N/A"},"Singles\\Mel & Kim - Respectable.mp3"]
["Singles\\UB40 - Breakfast In Bed.mp3",{"$f":"RegexTest(B$1,$A2371)","v":false},{"$f":"RegexCount(C$1,$A2371)","v":0},{"$f":"RegexFind(D$1,$A2371)","v":{"$error":"#N/A"}},{"$f":"RegexReplace(E$1,$A2371,F$1)","v":"Singles\\UB40 - Breakfast In Bed.mp3"}]
["Singles\\Volumia! - Blijf Bij Mij.mp3",false,0,{"$error":"#N/A"},"Singles\\Volumia! - Blijf Bij Mij.mp3"]
["Singles\\Albert Hammond & Albert West - Give A Little Love.mp3",false,0,{"$error":"#N/A"},"Singles\\Albert Hammond & Albert West - Give A Little Love.mp3"]
["Singles\\Phil Collins - Against All Odds.mp3",false,0,{"$error":"#N/A"},"Singles\\Phil Collins - Against All Odds.mp3"]
["Singles\\The Tornados - Telstar.mp3",true,0,"Singles\\The Tornados - ","Singles\\\\Tornados, The - Telstar.mp3"]
["Singles\\The Alan Price Set - I Put A Spell On You.mp3",true,0,"Singles\\The Alan Price Set - ","Singles\\\\Alan Price Set, The - I Put A Spell On You.mp3"]
["Singles\\Duck Sauce - Barbra Streisand.mp3",false,0,{"$error":"#N/A"},"Singles\\Duck Sauce - Barbra Streisand.mp3"]
["Singles\\OneRepublic - Counting Stars.mp3",false,0,{"$error":"#N/A"},"Singles\\OneRepublic - Counting Stars.mp3"]
["Singles\\Alanis Morissette - Hands Clean.mp3",false,0,{"$error":"#N/A"},"Singles\\Alanis Morissette - Hands Clean.mp3"]
["Singles\\Neil Diamond - Desirée.mp3",false,0,{"$error":"#N/A"},"Singles\\Neil Diamond - Desirée.mp3"]
["Singles\\JP Cooper - September Song.mp3",false,0,{"$error":"#N/A"},"Singles\\JP Cooper - September Song.mp3"]
["Singles\\Goldie - Making Up Again.mp3",false,0,{"$error":"#N/A"},"Singles\\Goldie - Making Up Again.mp3"]
["Singles\\Metallica - The Unforgiven.mp3",true,0,{"$error":"#N/A"},"Singles\\Metallica - The Unforgiven.mp3"]
["Singles\\Acda & De Munnik - Bij Haar Zijn.mp3",false,0,{"$error":"#N/A"},"Singles\\Acda & De Munnik - Bij Haar Zijn.mp3"]
["Singles\\Rihanna - California King Bed.mp3",false,0,{"$error":"#N/A"},"Singles\\Rihanna - California King Bed.mp3"]
["Singles\\Olivia Newton-John & ELO - Xanadu.mp3",false,0,{"$error":"#N/A"},"Singles\\Olivia Newton-John & ELO - Xanadu.mp3"]
["Singles\\Spagna - Easy Lady.mp3",false,0,{"$error":"#N/A"},"Singles\\Spagna - Easy Lady.mp3"]
["Singles\\Electric Light Orchestra - Birmingham Blues.mp3",false,0,{"$error":"#N/A"},"Singles\\Electric Light Orchestra - Birmingham Blues.mp3"]
["Singles\\De Butlers - De Chinees Doet Veel Meer Met Vlees.mp3",false,0,{"$error":"#N/A"},"Singles\\De Butlers - De Chinees Doet Veel Meer Met Vlees.mp3"]
["Singles\\China Crisis - Working With Fire And Steel.mp3",false,0,{"$error":"#N/A"},"Singles\\China Crisis - Working With Fire And Steel.mp3"]
["Singles\\Earth Wind & Fire - Lets Groove Tonight.mp3",false,0,{"$error":"#N/A"},"Singles\\Earth Wind & Fire - Lets Groove Tonight.mp3"]
["Singles\\Sue Saad & The Next - Young Girl.mp3",true,0,{"$error":"#N/A"},"Singles\\Sue Saad & The Next - Young Girl.mp3"]
["Singles\\Ray Charles - Crying Time.mp3",false,0,{"$error":"#N/A"},"Singles\\Ray Charles - Crying Time.mp3"]
["Singles\\Ashford & Simpson - Solid.mp3",false,0,{"$error":"#N/A"},"Singles\\Ashford & Simpson - Solid.mp3"]
["Singles\\Burt Bacharach & Elvis Costello - I'll Never Fall In Love Again.mp3",false,0,{"$error":"#N/A"},"Singles\\Burt Bacharach & Elvis Costello - I'll Never Fall In Love Again.mp3"]
["Singles\\The Byrds - Mr Spaceman.mp3",true,0,"Singles\\The Byrds - ","Singles\\\\Byrds, The - Mr Spaceman.mp3"]
["Singles\\Shorty Long - Here Comes The Judge.mp3",true,0,{"$error":"#N/A"},"Singles\\Shorty Long - Here Comes The Judge.mp3"]
["Singles\\Pitbull ft John Ryan - Fireball.mp3",false,0,{"$error":"#N/A"},"Singles\\Pitbull ft John Ryan - Fireball.mp3"]
["Singles\\Lady Antebellum - I Run To You.mp3",false,0,{"$error":"#N/A"},"Singles\\Lady Antebellum - I Run To You.mp3"]
["Singles\\Bertus Staigerpaip - Hou Je Kop.mp3",false,0,{"$error":"#N/A"},"Singles\\Bertus Staigerpaip - Hou Je Kop.mp3"]
["Singles\\Exile - I Wanna Kiss You All Over.mp3",false,0,{"$error":"#N/A"},"Singles\\Exile - I Wanna Kiss You All Over.mp3"]
["Singles\\John Lennon & Yoko Ono - Nobody Told Me.mp3",false,0,{"$error":"#N/A"},"Singles\\John Lennon & Yoko Ono - Nobody Told Me.mp3"]
["Singles\\Benny Neyman - Waarom Fluister Ik Je Naam Nog.mp3",false,0,{"$error":"#N/A"},"Singles\\Benny Neyman - Waarom Fluister Ik Je Naam Nog.mp3"]
["Singles\\Lionel Richie - Ballerina Girl.mp3",false,0,{"$error":"#N/A"},"Singles\\Lionel Richie - Ballerina Girl.mp3"]
["Singles\\Unit Gloria - The Last Seven Days.mp3",true,0,{"$error":"#N/A"},"Singles\\Unit Gloria - The Last Seven Days.mp3"]
["Singles\\Admiral Freebee - Always On The Run.mp3",true,0,{"$error":"#N/A"},"Singles\\Admiral Freebee - Always On The Run.mp3"]
["Singles\\Todd Rundgren - Hello Its Me.mp3",false,0,{"$error":"#N/A"},"Singles\\Todd Rundgren - Hello Its Me.mp3"]
["Singles\\The Newbeats - Everything's Alright.mp3",true,0,"Singles\\The Newbeats - ","Singles\\\\Newbeats, The - Everything's Alright.mp3"]
["Singles\\Frankie Goes To Hollywood - Two Tribes.mp3",false,0,{"$error":"#N/A"},"Singles\\Frankie Goes To Hollywood - Two Tribes.mp3"]
["Singles\\Simon & Garfunkel - Bridge Over Troubled Water.mp3",false,0,{"$error":"#N/A"},"Singles\\Simon & Garfunkel - Bridge Over Troubled Water.mp3"]
["Singles\\Acdc - Highway To Hell.mp3",false,0,{"$error":"#N/A"},"Singles\\Acdc - Highway To Hell.mp3"]
["Singles\\Ilse DeLange - Beautiful Distraction.mp3",false,0,{"$error":"#N/A"},"Singles\\Ilse DeLange - Beautiful Distraction.mp3"]
["Singles\\Celine Dion - Pour Que Tu M'aimes Encore.mp3",false,0,{"$error":"#N/A"},"Singles\\Celine Dion - Pour Que Tu M'aimes Encore.mp3"]
["Singles\\Owl City & Carly Rae Jepsen - Good Time.mp3",false,0,{"$error":"#N/A"},"Singles\\Owl City & Carly Rae Jepsen - Good Time.mp3"]
["Singles\\Marco Borsato - Margherita.mp3",false,0,{"$error":"#N/A"},"Singles\\Marco Borsato - Margherita.mp3"]
["Singles\\Jason Mraz - Hello You Beautiful Thing.mp3",false,0,{"$error":"#N/A"},"Singles\\Jason Mraz - Hello You Beautiful Thing.mp3"]
["Singles\\Swedish House Mafia - Save The World.mp3",true,0,{"$error":"#N/A"},"Singles\\Swedish House Mafia - Save The World.mp3"]
["Singles\\Saskia & Serge - Zomer In Zeeland.mp3",false,0,{"$error":"#N/A"},"Singles\\Saskia & Serge - Zomer In Zeeland.mp3"]
["Singles\\Eurythmics - Would I Lie To You.mp3",false,0,{"$error":"#N/A"},"Singles\\Eurythmics - Would I Lie To You.mp3"]
["Singles\\Jackie DeShannon - What The World Needs Now Is Love.mp3",true,0,{"$error":"#N/A"},"Singles\\Jackie DeShannon - What The World Needs Now Is Love.mp3"]
["Singles\\The Penguins - Earth Angel.mp3",true,0,"Singles\\The Penguins - ","Singles\\\\Penguins, The - Earth Angel.mp3"]
["Singles\\The Mama's & The Papa's - Dedicated To The One I Love.mp3",true,0,"Singles\\The Mama's & The Papa's - ","Singles\\\\Mama's & The Papa's, The - Dedicated To The One I Love.mp3"]
["Singles\\Freddie Aguilar - Anak.mp3",false,0,{"$error":"#N/A"},"Singles\\Freddie Aguilar - Anak.mp3"]
["Singles\\REM - Bang And Blame.mp3",false,0,{"$error":"#N/A"},"Singles\\REM - Bang And Blame.mp3"]
["Singles\\Galantis - No Money.mp3",false,0,{"$error":"#N/A"},"Singles\\Galantis - No Money.mp3"]
["Singles\\Kylie Minogue - Spinning Around.mp3",false,0,{"$error":"#N/A"},"Singles\\Kylie Minogue - Spinning Around.mp3"]
["Singles\\Tina Turner - We Don't Need Another Hero.mp3",false,0,{"$error":"#N/A"},"Singles\\Tina Turner - We Don't Need Another Hero.mp3"]
["Singles\\Irene Cara - Fame.mp3",false,0,{"$error":"#N/A"},"Singles\\Irene Cara - Fame.mp3"]
["Singles\\Sandra Van Nieuwland - Hunter.mp3",false,0,{"$error":"#N/A"},"Singles\\Sandra Van Nieuwland - Hunter.mp3"]
["Singles\\Agnes Carlsson - Release Me.mp3",false,0,{"$error":"#N/A"},"Singles\\Agnes Carlsson - Release Me.mp3"]
["Singles\\Kate Bush - Running Up That Hill.mp3",false,0,{"$error":"#N/A"},"Singles\\Kate Bush - Running Up That Hill.mp3"]
["Singles\\Boney M - Rasputin.mp3",false,0,{"$error":"#N/A"},"Singles\\Boney M - Rasputin.mp3"]
["Singles\\Racoon - Fun We Had.mp3",false,0,{"$error":"#N/A"},"Singles\\Racoon - Fun We Had.mp3"]
["Singles\\Guus Meeuwis - Tranen Gelachen.mp3",false,0,{"$error":"#N/A"},"Singles\\Guus Meeuwis - Tranen Gelachen.mp3"]
["Singles\\Abba - Under Attack.mp3",{"$f":"RegexTest(B$1,$A2435)","v":false},{"$f":"RegexCount(C$1,$A2435)","v":0},{"$f":"RegexFind(D$1,$A2435)","v":{"$error":"#N/A"}},{"$f":"RegexReplace(E$1,$A2435,F$1)","v":"Singles\\Abba - Under Attack.mp3"}]
["Singles\\Elvis Presley - In The Ghetto.mp3",true,0,{"$error":"#N/A"},"Singles\\Elvis Presley - In The Ghetto.mp3"]
["Singles\\Anouk - Wigger.mp3",false,0,{"$error":"#N/A"},"Singles\\Anouk - Wigger.mp3"]
["Singles\\Henry Gross - Shannon.mp3",false,0,{"$error":"#N/A"},"Singles\\Henry Gross - Shannon.mp3"]
["Singles\\Cliff Richard - Goodbye Sam, Hello Samantha.mp3",false,0,{"$error":"#N/A"},"Singles\\Cliff Richard - Goodbye Sam, Hello Samantha.mp3"]
["Singles\\Grace Jones - Victor Should Have Been A Jazz Musician.mp3",false,0,{"$error":"#N/A"},"Singles\\Grace Jones - Victor Should Have Been A Jazz Musician.mp3"]
["Singles\\Santana - Europa.mp3",false,0,{"$error":"#N/A"},"Singles\\Santana - Europa.mp3"]
["Singles\\Cocktail Trio - Leve De Man Die Het Bier Uitvond (Batje Vier).mp3",false,0,{"$error":"#N/A"},"Singles\\Cocktail Trio - Leve De Man Die Het Bier Uitvond (Batje Vier).mp3"]
["Singles\\Paul McCartney & Wings - Coming Up.mp3",false,0,{"$error":"#N/A"},"Singles\\Paul McCartney & Wings - Coming Up.mp3"]
["Singles\\Richie Valens - La Bamba.mp3",false,0,{"$error":"#N/A"},"Singles\\Richie Valens - La Bamba.mp3"]
["Singles\\Manfred Mann - Semi-Detached Suburban Mr James.mp3",false,0,{"$error":"#N/A"},"Singles\\Manfred Mann - Semi-Detached Suburban Mr James.mp3"]
["Singles\\Elvis Presley - Can't Help Falling In Love.mp3",false,0,{"$error":"#N/A"},"Singles\\Elvis Presley - Can't Help Falling In Love.mp3"]
["Singles\\Colin Blunstone - I Want Some More.mp3",false,0,{"$error":"#N/A"},"Singles\\Colin Blunstone - I Want Some More.mp3"]
["Singles\\Bonnie Tyler - It's A Heartache.mp3",false,0,{"$error":"#N/A"},"Singles\\Bonnie Tyler - It's A Heartache.mp3"]
["Singles\\The Yardbirds - For Your Love.mp3",true,0,"Singles\\The Yardbirds - ","Singles\\\\Yardbirds, The - For Your Love.mp3"]
["Singles\\Guus Meeuwis - Ik Wil Nog Niet Naar Huis.mp3",false,0,{"$error":"#N/A"},"Singles\\Guus Meeuwis - Ik Wil Nog Niet Naar Huis.mp3"]
["Singles\\Vinchenzo - Daily.mp3",false,0,{"$error":"#N/A"},"Singles\\Vinchenzo - Daily.mp3"]
["Singles\\Marshmello ft Chvrches - Here With Me.mp3",false,0,{"$error":"#N/A"},"Singles\\Marshmello ft Chvrches - Here With Me.mp3"]
["Singles\\Novastar - Because.mp3",false,0,{"$error":"#N/A"},"Singles\\Novastar - Because.mp3"]
["Singles\\Marc Anthony & Tina Arena - I Want To Spend My Lifetime Loving You.mp3",false,0,{"$error":"#N/A"},"Singles\\Marc Anthony & Tina Arena - I Want To Spend My Lifetime Loving You.mp3"]
["Singles\\Small Faces - All Or Nothing.mp3",false,0,{"$error":"#N/A"},"Singles\\Small Faces - All Or Nothing.mp3"]
["Singles\\Bangles - Eternal Flame.mp3",false,0,{"$error":"#N/A"},"Singles\\Bangles - Eternal Flame.mp3"]
["Singles\\Deee-Lite - Groove Is In The Heart.mp3",true,0,{"$error":"#N/A"},"Singles\\Deee-Lite - Groove Is In The Heart.mp3"]
["Singles\\Duran Duran - A View To A Kill.mp3",false,0,{"$error":"#N/A"},"Singles\\Duran Duran - A View To A Kill.mp3"]
["Singles\\James Morrison - Nothing Ever Hurt Like You .mp3",false,0,{"$error":"#N/A"},"Singles\\James Morrison - Nothing Ever Hurt Like You .mp3"]
["Singles\\The B-52's - Love Shack.mp3",true,0,"Singles\\The B-52's - ","Singles\\\\B-52's, The - Love Shack.mp3"]
["Singles\\Duran Duran - Notorious.mp3",false,0,{"$error":"#N/A"},"Singles\\Duran Duran - Notorious.mp3"]
["Singles\\Gibson Brothers - Cuba.mp3",false,0,{"$error":"#N/A"},"Singles\\Gibson Brothers - Cuba.mp3"]
["Singles\\Bolland & Bolland - The Last Apache.mp3",true,0,{"$error":"#N/A"},"Singles\\Bolland & Bolland - The Last Apache.mp3"]
["Singles\\Wulf - Switching Gears.mp3",false,0,{"$error":"#N/A"},"Singles\\Wulf - Switching Gears.mp3"]
["Singles\\Kim Wilde - Cambodia.mp3",false,0,{"$error":"#N/A"},"Singles\\Kim Wilde - Cambodia.mp3"]
["Singles\\Boney M - Gotta Go Home.mp3",false,0,{"$error":"#N/A"},"Singles\\Boney M - Gotta Go Home.mp3"]
["Singles\\Alexia - Uh La La La.mp3",false,0,{"$error":"#N/A"},"Singles\\Alexia - Uh La La La.mp3"]
["Singles\\Demi Lovato - Let It Go.mp3",false,0,{"$error":"#N/A"},"Singles\\Demi Lovato - Let It Go.mp3"]
["Singles\\Spider Murphy Gang - Skandal Im Sperrbezirk.mp3",false,0,{"$error":"#N/A"},"Singles\\Spider Murphy Gang - Skandal Im Sperrbezirk.mp3"]
["Singles\\Kim Carnes - Bon Voyage.mp3",false,0,{"$error":"#N/A"},"Singles\\Kim Carnes - Bon Voyage.mp3"]
["Singles\\Ronnie Tober - Iedere Avond.mp3",false,0,{"$error":"#N/A"},"Singles\\Ronnie Tober - Iedere Avond.mp3"]
["Singles\\John Mayer - Waiting On The World To Change.mp3",true,0,{"$error":"#N/A"},"Singles\\John Mayer - Waiting On The World To Change.mp3"]
["Singles\\Metallica - One.mp3",false,0,{"$error":"#N/A"},"Singles\\Metallica - One.mp3"]
["Singles\\Leo Sayer - Orchard Road.mp3",false,0,{"$error":"#N/A"},"Singles\\Leo Sayer - Orchard Road.mp3"]
["Singles\\Queen - '39.mp3",false,0,{"$error":"#N/A"},"Singles\\Queen - '39.mp3"]
["Singles\\Maroon 5 - Makes Me Wonder.mp3",false,0,{"$error":"#N/A"},"Singles\\Maroon 5 - Makes Me Wonder.mp3"]
["Singles\\Luv' - U O Me.mp3",false,0,{"$error":"#N/A"},"Singles\\Luv' - U O Me.mp3"]
["Singles\\Paul McCartney - We All Stand Together.mp3",false,0,{"$error":"#N/A"},"Singles\\Paul McCartney - We All Stand Together.mp3"]
["Singles\\Chesney Hawkes - The One And Only.mp3",true,0,{"$error":"#N/A"},"Singles\\Chesney Hawkes - The One And Only.mp3"]
["Singles\\Marc Anthony - You Sang To Me In Love.mp3",false,0,{"$error":"#N/A"},"Singles\\Marc Anthony - You Sang To Me In Love.mp3"]
["Singles\\Sam The Sham & The Pharaohs - Wooly Bully.mp3",true,0,{"$error":"#N/A"},"Singles\\Sam The Sham & The Pharaohs - Wooly Bully.mp3"]
["Singles\\The Rolling Stones - Like A Rolling Stone.mp3",true,0,"Singles\\The Rolling Stones - ","Singles\\\\Rolling Stones, The - Like A Rolling Stone.mp3"]
["Singles\\Wham - Club Tropicana.mp3",false,0,{"$error":"#N/A"},"Singles\\Wham - Club Tropicana.mp3"]
["Singles\\Andy Kim - Baby I Love You.mp3",false,0,{"$error":"#N/A"},"Singles\\Andy Kim - Baby I Love You.mp3"]
["Singles\\Highway - Kiddy Kiddy Kiss Me.mp3",false,0,{"$error":"#N/A"},"Singles\\Highway - Kiddy Kiddy Kiss Me.mp3"]
["Singles\\Elvis Presley - Blue Suede Shoes.mp3",false,0,{"$error":"#N/A"},"Singles\\Elvis Presley - Blue Suede Shoes.mp3"]
["Singles\\Pretenders - Talk Of The Town.mp3",true,0,{"$error":"#N/A"},"Singles\\Pretenders - Talk Of The Town.mp3"]
["Singles\\Kelly Clarkson - Because Of You.mp3",false,0,{"$error":"#N/A"},"Singles\\Kelly Clarkson - Because Of You.mp3"]
["Singles\\Martin Garrix ft Bonn - Home.mp3",false,0,{"$error":"#N/A"},"Singles\\Martin Garrix ft Bonn - Home.mp3"]
["Singles\\Racoon - Brother.mp3",false,0,{"$error":"#N/A"},"Singles\\Racoon - Brother.mp3"]
["Singles\\The Beach Boys - Fun, Fun, Fun.mp3",true,0,"Singles\\The Beach Boys - ","Singles\\\\Beach Boys, The - Fun, Fun, Fun.mp3"]
["Singles\\James Blunt - Stay The Night.mp3",true,0,{"$error":"#N/A"},"Singles\\James Blunt - Stay The Night.mp3"]
["Singles\\The Bee Gees - Night Fever.mp3",true,0,"Singles\\The Bee Gees - ","Singles\\\\Bee Gees, The - Night Fever.mp3"]
["Singles\\MC Hammer - Pray.mp3",false,0,{"$error":"#N/A"},"Singles\\MC Hammer - Pray.mp3"]
["Singles\\George Michael - Fast Love.mp3",false,0,{"$error":"#N/A"},"Singles\\George Michael - Fast Love.mp3"]
["Singles\\Maroon 5 - Daylight.mp3",false,0,{"$error":"#N/A"},"Singles\\Maroon 5 - Daylight.mp3"]
["Singles\\Scott Fitzgerald & Yvonne Keeley - If I Had Words.mp3",false,0,{"$error":"#N/A"},"Singles\\Scott Fitzgerald & Yvonne Keeley - If I Had Words.mp3"]
["Singles\\Wiz Stars - A Brand New Day.mp3",false,0,{"$error":"#N/A"},"Singles\\Wiz Stars - A Brand New Day.mp3"]
["Singles\\Madonna - Beautiful Stranger.mp3",{"$f":"RegexTest(B$1,$A2499)","v":false},{"$f":"RegexCount(C$1,$A2499)","v":0},{"$f":"RegexFind(D$1,$A2499)","v":{"$error":"#N/A"}},{"$f":"RegexReplace(E$1,$A2499,F$1)","v":"Singles\\Madonna - Beautiful Stranger.mp3"}]
["Singles\\Magna Carta - Airport Song.mp3",false,0,{"$error":"#N/A"},"Singles\\Magna Carta - Airport Song.mp3"]
["Singles\\Birdy - Skinny Love.mp3",false,0,{"$error":"#N/A"},"Singles\\Birdy - Skinny Love.mp3"]
["Singles\\Dan The Banjoman - Dan The Banjoman.mp3",true,0,{"$error":"#N/A"},"Singles\\Dan The Banjoman - Dan The Banjoman.mp3"]
["Singles\\Crowded House - Better Be Home Soon.mp3",false,0,{"$error":"#N/A"},"Singles\\Crowded House - Better Be Home Soon.mp3"]
["Singles\\Ray Peterson - Tell Laura I Love Her.mp3",false,0,{"$error":"#N/A"},"Singles\\Ray Peterson - Tell Laura I Love Her.mp3"]
["Singles\\The Beatles - Your Mother Should Know.mp3",true,0,"Singles\\The Beatles - ","Singles\\\\Beatles, The - Your Mother Should Know.mp3"]
["Singles\\Deep Purple - Woman From Tokyo.mp3",false,0,{"$error":"#N/A"},"Singles\\Deep Purple - Woman From Tokyo.mp3"]
["Singles\\Meghan Trainor - Lips Are Movin.mp3",false,0,{"$error":"#N/A"},"Singles\\Meghan Trainor - Lips Are Movin.mp3"]
["Singles\\Sister Sledge - We Are Family.mp3",false,0,{"$error":"#N/A"},"Singles\\Sister Sledge - We Are Family.mp3"]
["Singles\\Robbie Williams - Eternity.mp3",false,0,{"$error":"#N/A"},"Singles\\Robbie Williams - Eternity.mp3"]
["Singles\\The Coasters - Charlie Brown.mp3",true,0,"Singles\\The Coasters - ","Singles\\\\Coasters, The - Charlie Brown.mp3"]
["Singles\\The Rolling Stones - Waiting On A Friend.mp3",true,0,"Singles\\The Rolling Stones - ","Singles\\\\Rolling Stones, The - Waiting On A Friend.mp3"]
["Singles\\David Guetta ft Usher - Without You.mp3",false,0,{"$error":"#N/A"},"Singles\\David Guetta ft Usher - Without You.mp3"]
["Singles\\Bobby Vee - Rubber Ball.mp3",false,0,{"$error":"#N/A"},"Singles\\Bobby Vee - Rubber Ball.mp3"]
["Singles\\Leaf - New Song.mp3",false,0,{"$error":"#N/A"},"Singles\\Leaf - New Song.mp3"]
["Singles\\Julie Rogers - The Wedding.mp3",true,0,{"$error":"#N/A"},"Singles\\Julie Rogers - The Wedding.mp3"]
["Singles\\Bay City Rollers - Keep On Dancing.mp3",false,0,{"$error":"#N/A"},"Singles\\Bay City Rollers - Keep On Dancing.mp3"]
["Singles\\Yolanda Be Cool & DCup - We Speak No Americano.mp3",false,0,{"$error":"#N/A"},"Singles\\Yolanda Be Cool & DCup - We Speak No Americano.mp3"]
["Singles\\Paul Hardcastle - 19.mp3",false,0,{"$error":"#N/A"},"Singles\\Paul Hardcastle - 19.mp3"]
["Singles\\Vulcano - Een Beetje Van Dit.mp3",false,0,{"$error":"#N/A"},"Singles\\Vulcano - Een Beetje Van Dit.mp3"]
["Singles\\Joan Franka - You And Me.mp3",false,0,{"$error":"#N/A"},"Singles\\Joan Franka - You And Me.mp3"]
["Singles\\Eva Cassidy - Fields Of Gold.mp3",false,0,{"$error":"#N/A"},"Singles\\Eva Cassidy - Fields Of Gold.mp3"]
["Singles\\Thin Lizzy - Whiskey In The Jar.mp3",true,0,{"$error":"#N/A"},"Singles\\Thin Lizzy - Whiskey In The Jar.mp3"]
["Singles\\Trini Lopez - Adalita.mp3",false,0,{"$error":"#N/A"},"Singles\\Trini Lopez - Adalita.mp3"]
["Singles\\Caro Emerald - Back It Up.mp3",false,0,{"$error":"#N/A"},"Singles\\Caro Emerald - Back It Up.mp3"]
["Singles\\The Rolling Stones - Start Me Up.mp3",true,0,"Singles\\The Rolling Stones - ","Singles\\\\Rolling Stones, The - Start Me Up.mp3"]
["Singles\\Ellert - Love Lies.mp3",false,0,{"$error":"#N/A"},"Singles\\Ellert - Love Lies.mp3"]
["Singles\\Peter & Gordon - True Love Ways.mp3",false,0,{"$error":"#N/A"},"Singles\\Peter & Gordon - True Love Ways.mp3"]
["Singles\\Willy Deville - Hey Joe.mp3",false,0,{"$error":"#N/A"},"Singles\\Willy Deville - Hey Joe.mp3"]
["Singles\\Vicky Leandros - Comme Je Suis.mp3",false,0,{"$error":"#N/A"},"Singles\\Vicky Leandros - Comme Je Suis.mp3"]
["Singles\\Wilson Phillips - A Reason To Believe.mp3",false,0,{"$error":"#N/A"},"Singles\\Wilson Phillips - A Reason To Believe.mp3"]
["Singles\\Eagle Eye Cherry - Are You Still Having Fun.mp3",false,0,{"$error":"#N/A"},"Singles\\Eagle Eye Cherry - Are You Still Having Fun.mp3"]
["Singles\\Chris De Burgh - The Head And The Heart.mp3",true,0,{"$error":"#N/A"},"Singles\\Chris De Burgh - The Head And The Heart.mp3"]
["Singles\\Ramses Shaffy & Liesbeth List - Pastorale.mp3",false,0,{"$error":"#N/A"},"Singles\\Ramses Shaffy & Liesbeth List - Pastorale.mp3"]
["Singles\\Stealers Wheel - Everyone's Agreed That Everything Will Turn Out Fine.mp3",false,0,{"$error":"#N/A"},"Singles\\Stealers Wheel - Everyone's Agreed That Everything Will Turn Out Fine.mp3"]
["Singles\\Teach In - Dinge-Dong.mp3",false,0,{"$error":"#N/A"},"Singles\\Teach In - Dinge-Dong.mp3"]
["Singles\\Bellamy Brothers - Some Broken Hearts.mp3",false,0,{"$error":"#N/A"},"Singles\\Bellamy Brothers - Some Broken Hearts.mp3"]
["Singles\\Cuby & The Blizzards - Window Of My Eyes.mp3",true,0,{"$error":"#N/A"},"Singles\\Cuby & The Blizzards - Window Of My Eyes.mp3"]
["Singles\\Gusttavo Lima - Balada.mp3",false,0,{"$error":"#N/A"},"Singles\\Gusttavo Lima - Balada.mp3"]
["Singles\\The Shadows - Kon-tiki.mp3",true,0,"Singles\\The Shadows - ","Singles\\\\Shadows, The - Kon-tiki.mp3"]
["Singles\\Bruce Springsteen - Glory Days.mp3",false,0,{"$error":"#N/A"},"Singles\\Bruce Springsteen - Glory Days.mp3"]
["Singles\\Space Art - Onyx.mp3",false,0,{"$error":"#N/A"},"Singles\\Space Art - Onyx.mp3"]
["Singles\\Van Velzen - The Rush Of Life.mp3",true,0,{"$error":"#N/A"},"Singles\\Van Velzen - The Rush Of Life.mp3"]
["Singles\\Charlie Dore - Pilot Of The Airwaves.mp3",true,0,{"$error":"#N/A"},"Singles\\Charlie Dore - Pilot Of The Airwaves.mp3"]
["Singles\\Daddy Yankee & Snow - Con Calma.mp3",false,0,{"$error":"#N/A"},"Singles\\Daddy Yankee & Snow - Con Calma.mp3"]
["Singles\\Studio Killers - Ode To The Bouncer.mp3",true,0,{"$error":"#N/A"},"Singles\\Studio Killers - Ode To The Bouncer.mp3"]
["Singles\\G'Race - Dr. Rhythm.mp3",false,0,{"$error":"#N/A"},"Singles\\G'Race - Dr. Rhythm.mp3"]
["Singles\\Thembi - Take Me Back To The Old Transvaal.mp3",true,0,{"$error":"#N/A"},"Singles\\Thembi - Take Me Back To The Old Transvaal.mp3"]
["Singles\\Mahna MacKay - Mah Na Mah Na.mp3",false,0,{"$error":"#N/A"},"Singles\\Mahna MacKay - Mah Na Mah Na.mp3"]
["Singles\\Marc Anthony - When I Dream At Night.mp3",false,0,{"$error":"#N/A"},"Singles\\Marc Anthony - When I Dream At Night.mp3"]
["Singles\\WTF! - Da Bop.mp3",false,0,{"$error":"#N/A"},"Singles\\WTF! - Da Bop.mp3"]
["Singles\\Whispers - Its A Love Thing.mp3",false,0,{"$error":"#N/A"},"Singles\\Whispers - Its A Love Thing.mp3"]
["Singles\\Michael Jackson & Paul McCartney - The Girl Is Mine.mp3",true,0,{"$error":"#N/A"},"Singles\\Michael Jackson & Paul McCartney - The Girl Is Mine.mp3"]
["Singles\\Pratt & McClain - Happy Days.mp3",false,0,{"$error":"#N/A"},"Singles\\Pratt & McClain - Happy Days.mp3"]
["Singles\\Queen - Bicycle Race.mp3",false,0,{"$error":"#N/A"},"Singles\\Queen - Bicycle Race.mp3"]
["Singles\\Electric Light Orchestra - Wild West Hero.mp3",false,0,{"$error":"#N/A"},"Singles\\Electric Light Orchestra - Wild West Hero.mp3"]
["Singles\\Fleetwood Mac - Songbird.mp3",false,0,{"$error":"#N/A"},"Singles\\Fleetwood Mac - Songbird.mp3"]
["Singles\\Blof - Beter.mp3",false,0,{"$error":"#N/A"},"Singles\\Blof - Beter.mp3"]
["Singles\\Anouk - Run Away Together.mp3",false,0,{"$error":"#N/A"},"Singles\\Anouk - Run Away Together.mp3"]
["Singles\\Kenny Rogers & Dottie West - All I Ever Need Is You.mp3",false,0,{"$error":"#N/A"},"Singles\\Kenny Rogers & Dottie West - All I Ever Need Is You.mp3"]
["Singles\\The Smiths - Bigmouth Strikes Again.mp3",true,0,"Singles\\The Smiths - ","Singles\\\\Smiths, The - Bigmouth Strikes Again.mp3"]
["Singles\\Johnny Kendall & The Heralds - See See Rider.mp3",true,0,{"$error":"#N/A"},"Singles\\Johnny Kendall & The Heralds - See See Rider.mp3"]
["Singles\\Matt Simons - You Can Come Back Home.mp3",false,0,{"$error":"#N/A"},"Singles\\Matt Simons - You Can Come Back Home.mp3"]
["Singles\\Tavares - Don't Take Away The Music.mp3",{"$f":"RegexTest(B$1,$A2563)","v":true},{"$f":"RegexCount(C$1,$A2563)","v":0},{"$f":"RegexFind(D$1,$A2563)","v":{"$error":"#N/A"}},{"$f":"RegexReplace(E$1,$A2563,F$1)","v":"Singles\\Tavares - Don't Take Away The Music.mp3"}]
["Singles\\Pitbull ft Marc Anthony - Rain Over Me.mp3",false,0,{"$error":"#N/A"},"Singles\\Pitbull ft Marc Anthony - Rain Over Me.mp3"]
["Singles\\Roy Orbison - In Dreams.mp3",false,0,{"$error":"#N/A"},"Singles\\Roy Orbison - In Dreams.mp3"]
["Singles\\Lionel Richie - Angel.mp3",false,0,{"$error":"#N/A"},"Singles\\Lionel Richie - Angel.mp3"]
["Singles\\EG Daily - Say It Say It.mp3",false,0,{"$error":"#N/A"},"Singles\\EG Daily - Say It Say It.mp3"]
["Singles\\Ed Sheeran - The A Team.mp3",true,0,{"$error":"#N/A"},"Singles\\Ed Sheeran - The A Team.mp3"]
["Singles\\Avicii - Wake Me Up.mp3",false,0,{"$error":"#N/A"},"Singles\\Avicii - Wake Me Up.mp3"]
["Singles\\The Beat - Mirror In The Bathroom.mp3",true,0,"Singles\\The Beat - ","Singles\\\\Beat, The - Mirror In The Bathroom.mp3"]
["Singles\\Dolly Parton - I Will Always Love You.mp3",false,0,{"$error":"#N/A"},"Singles\\Dolly Parton - I Will Always Love You.mp3"]
["Singles\\Suzanne Vega - Luka.mp3",false,0,{"$error":"#N/A"},"Singles\\Suzanne Vega - Luka.mp3"]
["Singles\\Michael Schulte - You Let Me Walk Alone.mp3",false,0,{"$error":"#N/A"},"Singles\\Michael Schulte - You Let Me Walk Alone.mp3"]
["Singles\\London Grammar - Strong.mp3",false,0,{"$error":"#N/A"},"Singles\\London Grammar - Strong.mp3"]
["Singles\\Stevie Wonder - Lately.mp3",false,0,{"$error":"#N/A"},"Singles\\Stevie Wonder - Lately.mp3"]
["Singles\\Barry White - Let The Music Play.mp3",true,0,{"$error":"#N/A"},"Singles\\Barry White - Let The Music Play.mp3"]
["Singles\\Diggy Dex ft JW Roy - Treur Niet (Ode Aan Het Leven).mp3",false,0,{"$error":"#N/A"},"Singles\\Diggy Dex ft JW Roy - Treur Niet (Ode Aan Het Leven).mp3"]
["Singles\\The Walkers - Taboo.mp3",true,0,"Singles\\The Walkers - ","Singles\\\\Walkers, The - Taboo.mp3"]
["Singles\\Mark Ronson & Miley Cyrus - Nothing Breaks Like A Heart.mp3",false,0,{"$error":"#N/A"},"Singles\\Mark Ronson & Miley Cyrus - Nothing Breaks Like A Heart.mp3"]
["Singles\\Leaf - Oh No No No.mp3",false,0,{"$error":"#N/A"},"Singles\\Leaf - Oh No No No.mp3"]
["Singles\\The Troggs - I Can't Control Myself.mp3",true,0,"Singles\\The Troggs - ","Singles\\\\Troggs, The - I Can't Control Myself.mp3"]
["Singles\\Herman's Hermits - I'm Henry The Eighth I Am.mp3",true,0,{"$error":"#N/A"},"Singles\\Herman's Hermits - I'm Henry The Eighth I Am.mp3"]
["Singles\\Phil Collins - (Love Is Like A) Heatwave.mp3",false,0,{"$error":"#N/A"},"Singles\\Phil Collins - (Love Is Like A) Heatwave.mp3"]
["Singles\\Marlon Roudette - New Age.mp3",false,0,{"$error":"#N/A"},"Singles\\Marlon Roudette - New Age.mp3"]
["Singles\\Level 42 - It's Over.mp3",false,0,{"$error":"#N/A"},"Singles\\Level 42 - It's Over.mp3"]
["Singles\\Elvis Presley - Crying In The Chapel.mp3",true,0,{"$error":"#N/A"},"Singles\\Elvis Presley - Crying In The Chapel.mp3"]
["Singles\\Nathalie - My Love Won't Let You Down.mp3",false,0,{"$error":"#N/A"},"Singles\\Nathalie - My Love Won't Let You Down.mp3"]
["Singles\\Kim Wilde - View From A Bridge.mp3",false,0,{"$error":"#N/A"},"Singles\\Kim Wilde - View From A Bridge.mp3"]
["Singles\\Talk Talk - Living In Another World.mp3",false,0,{"$error":"#N/A"},"Singles\\Talk Talk - Living In Another World.mp3"]
["Singles\\Eva De Roovere -  Fantastig Toch.mp3",false,0,{"$error":"#N/A"},"Singles\\Eva De Roovere -  Fantastig Toch.mp3"]
["Singles\\Culture Club - The War Song.mp3",true,0,{"$error":"#N/A"},"Singles\\Culture Club - The War Song.mp3"]
["Singles\\Mildred Douglas - One More Night.mp3",false,0,{"$error":"#N/A"},"Singles\\Mildred Douglas - One More Night.mp3"]
["Singles\\The Cats - Times Were When.mp3",true,0,"Singles\\The Cats - ","Singles\\\\Cats, The - Times Were When.mp3"]
["Singles\\Adele - Hometown Glory.mp3",false,0,{"$error":"#N/A"},"Singles\\Adele - Hometown Glory.mp3"]
["Singles\\James Bay - Hold Back The River.mp3",true,0,{"$error":"#N/A"},"Singles\\James Bay - Hold Back The River.mp3"]
["Singles\\Boney M - Rivers Of Babylon.mp3",false,0,{"$error":"#N/A"},"Singles\\Boney M - Rivers Of Babylon.mp3"]
["Singles\\Leonard Cohen - Suzanne.mp3",false,0,{"$error":"#N/A"},"Singles\\Leonard Cohen - Suzanne.mp3"]
["Singles\\Cilla Black - Anyone Who Had A Heart.mp3",false,0,{"$error":"#N/A"},"Singles\\Cilla Black - Anyone Who Had A Heart.mp3"]
["Singles\\Avicii - Fade Into Darkness.mp3",false,0,{"$error":"#N/A"},"Singles\\Avicii - Fade Into Darkness.mp3"]
["Singles\\Katie Melua - If The Lights Go Out.mp3",true,0,{"$error":"#N/A"},"Singles\\Katie Melua - If The Lights Go Out.mp3"]
["Singles\\Amen Corner - Gin House Blues.mp3",false,0,{"$error":"#N/A"},"Singles\\Amen Corner - Gin House Blues.mp3"]
["Singles\\Miss Montreal - Wish I Could.mp3",false,0,{"$error":"#N/A"},"Singles\\Miss Montreal - Wish I Could.mp3"]
["Singles\\Ugly Kid Joe - Everything About You.mp3",false,0,{"$error":"#N/A"},"Singles\\Ugly Kid Joe - Everything About You.mp3"]
["Singles\\Marco Borsato & Trijntje Oosterhuis - Een Wereld Zonder Jou.mp3",false,0,{"$error":"#N/A"},"Singles\\Marco Borsato & Trijntje Oosterhuis - Een Wereld Zonder Jou.mp3"]
["Singles\\Celine Dion - Falling Into You.mp3",false,0,{"$error":"#N/A"},"Singles\\Celine Dion - Falling Into You.mp3"]
["Singles\\Ricky Nelson - Tell Laura I Love Her.mp3",false,0,{"$error":"#N/A"},"Singles\\Ricky Nelson - Tell Laura I Love Her.mp3"]
["Singles\\Suzan & Freek - Blauwe Dag.mp3",false,0,{"$error":"#N/A"},"Singles\\Suzan & Freek - Blauwe Dag.mp3"]
["Singles\\Sheena Easton - You Could Have Been With Me.mp3",false,0,{"$error":"#N/A"},"Singles\\Sheena Easton - You Could Have Been With Me.mp3"]
["Singles\\Laura Jansen - Queen Of Elba.mp3",false,0,{"$error":"#N/A"},"Singles\\Laura Jansen - Queen Of Elba.mp3"]
["Singles\\BJ Thomas - (Hey Won't You Play) Another Somebody Done Somebody Wrong Song.mp3",false,0,{"$error":"#N/A"},"Singles\\BJ Thomas - (Hey Won't You Play) Another Somebody Done Somebody Wrong Song.mp3"]
["Singles\\Manhattans - Kiss And Say Goodbye.mp3",false,0,{"$error":"#N/A"},"Singles\\Manhattans - Kiss And Say Goodbye.mp3"]
["Singles\\Jarcha - Libertad Sin Ira.mp3",false,0,{"$error":"#N/A"},"Singles\\Jarcha - Libertad Sin Ira.mp3"]
["Singles\\Doris D & The Pins - Shine Up.mp3",true,0,{"$error":"#N/A"},"Singles\\Doris D & The Pins - Shine Up.mp3"]
["Singles\\Major Lazer ft Justin Bieber & MO - Cold Water.mp3",false,0,{"$error":"#N/A"},"Singles\\Major Lazer ft Justin Bieber & MO - Cold Water.mp3"]
["Singles\\Bachman Turner Overdrive - Taking Care Of Business.mp3",false,0,{"$error":"#N/A"},"Singles\\Bachman Turner Overdrive - Taking Care Of Business.mp3"]
["Singles\\Rihanna - Don't Stop The Music.mp3",true,0,{"$error":"#N/A"},"Singles\\Rihanna - Don't Stop The Music.mp3"]
["Singles\\Wham - The Edge Of Heaven.mp3",true,0,{"$error":"#N/A"},"Singles\\Wham - The Edge Of Heaven.mp3"]
["Singles\\James Morrison - Undiscovered.mp3",false,0,{"$error":"#N/A"},"Singles\\James Morrison - Undiscovered.mp3"]
["Singles\\Davina Michelle - Better Now.mp3",false,0,{"$error":"#N/A"},"Singles\\Davina Michelle - Better Now.mp3"]
["Singles\\Andrea Bocelli & Laura Pausini - Vivo Per Lei.mp3",false,0,{"$error":"#N/A"},"Singles\\Andrea Bocelli & Laura Pausini - Vivo Per Lei.mp3"]
["Singles\\Shirley Bassey - Hey Big Spender.mp3",false,0,{"$error":"#N/A"},"Singles\\Shirley Bassey - Hey Big Spender.mp3"]
["Singles\\Paul Anka - Hello Jim.mp3",false,0,{"$error":"#N/A"},"Singles\\Paul Anka - Hello Jim.mp3"]
["Singles\\Marco Borsato - Je Hoeft Niet Naar Huis Vannacht.mp3",false,0,{"$error":"#N/A"},"Singles\\Marco Borsato - Je Hoeft Niet Naar Huis Vannacht.mp3"]
["Singles\\The Chainsmokers ft Halsey - Closer.mp3",true,0,"Singles\\The Chainsmokers ft Halsey - ","Singles\\\\Chainsmokers ft Halsey, The - Closer.mp3"]
["Singles\\Ben Saunders - Dry Your Eyes.mp3",false,0,{"$error":"#N/A"},"Singles\\Ben Saunders - Dry Your Eyes.mp3"]
["Singles\\Daniel - Julie.mp3",false,0,{"$error":"#N/A"},"Singles\\Daniel - Julie.mp3"]
["Singles\\Ziggy Marley - Tomorrow People.mp3",{"$f":"RegexTest(B$1,$A2627)","v":false},{"$f":"RegexCount(C$1,$A2627)","v":0},{"$f":"RegexFind(D$1,$A2627)","v":{"$error":"#N/A"}},{"$f":"RegexReplace(E$1,$A2627,F$1)","v":"Singles\\Ziggy Marley - Tomorrow People.mp3"}]
["Singles\\Bar-Kays - Soulfinger.mp3",false,0,{"$error":"#N/A"},"Singles\\Bar-Kays - Soulfinger.mp3"]
["Singles\\Lady GaGa - Just Dance.mp3",false,0,{"$error":"#N/A"},"Singles\\Lady GaGa - Just Dance.mp3"]
["Singles\\Sick Puppies - Maybe.mp3",false,0,{"$error":"#N/A"},"Singles\\Sick Puppies - Maybe.mp3"]
["Singles\\Aloe Blacc - The Man.mp3",true,0,{"$error":"#N/A"},"Singles\\Aloe Blacc - The Man.mp3"]
["Singles\\John Legend - Wake Up Everybody.mp3",false,0,{"$error":"#N/A"},"Singles\\John Legend - Wake Up Everybody.mp3"]
["Singles\\Elton John - Nikita.mp3",false,0,{"$error":"#N/A"},"Singles\\Elton John - Nikita.mp3"]
["Singles\\Ferrante & Teicher - Midnight Cowboy.mp3",false,0,{"$error":"#N/A"},"Singles\\Ferrante & Teicher - Midnight Cowboy.mp3"]
["Singles\\Rob De Nijs - Het Werd Zomer.mp3",false,0,{"$error":"#N/A"},"Singles\\Rob De Nijs - Het Werd Zomer.mp3"]
["Singles\\Ramses Shaffy - Sammy.mp3",false,0,{"$error":"#N/A"},"Singles\\Ramses Shaffy - Sammy.mp3"]
["Singles\\Del The Funky Homosapian - Mistadobalina (Mr Bob Dobolina).mp3",true,0,{"$error":"#N/A"},"Singles\\Del The Funky Homosapian - Mistadobalina (Mr Bob Dobolina).mp3"]
["Singles\\Guus Meeuwis & Vagant - Per Spoor (Kedeng Kedeng).mp3",false,0,{"$error":"#N/A"},"Singles\\Guus Meeuwis & Vagant - Per Spoor (Kedeng Kedeng).mp3"]
["Singles\\Sly & The Family Stone - Family Affair.mp3",true,0,{"$error":"#N/A"},"Singles\\Sly & The Family Stone - Family Affair.mp3"]
["Singles\\Kane - Shot Of A Gun.mp3",false,0,{"$error":"#N/A"},"Singles\\Kane - Shot Of A Gun.mp3"]
["Singles\\Andre Van Duin - Als Je Huilt.mp3",false,0,{"$error":"#N/A"},"Singles\\Andre Van Duin - Als Je Huilt.mp3"]
["Singles\\The Weeknd ft Daft Punk - I Feel It Coming.mp3",true,0,"Singles\\The Weeknd ft Daft Punk - ","Singles\\\\Weeknd ft Daft Punk, The - I Feel It Coming.mp3"]
["Singles\\Alan Parsons Project - I Robot.mp3",false,0,{"$error":"#N/A"},"Singles\\Alan Parsons Project - I Robot.mp3"]
["Singles\\Mac Kissoon - Lavender Blue.mp3",false,0,{"$error":"#N/A"},"Singles\\Mac Kissoon - Lavender Blue.mp3"]
["Singles\\Jaki Graham & David Grant - Mated.mp3",false,0,{"$error":"#N/A"},"Singles\\Jaki Graham & David Grant - Mated.mp3"]
["Singles\\Linda De Suza - Un Portugais.mp3",false,0,{"$error":"#N/A"},"Singles\\Linda De Suza - Un Portugais.mp3"]
["Singles\\Honeybus - I Can't Let Maggie Go.mp3",false,0,{"$error":"#N/A"},"Singles\\Honeybus - I Can't Let Maggie Go.mp3"]
["Singles\\Fox The Fox - Precious Little Diamond.mp3",true,0,{"$error":"#N/A"},"Singles\\Fox The Fox - Precious Little Diamond.mp3"]
["Singles\\Helen Reddy - You're My World.mp3",false,0,{"$error":"#N/A"},"Singles\\Helen Reddy - You're My World.mp3"]
["Singles\\Michael Jackson - Leave Me Alone.mp3",false,0,{"$error":"#N/A"},"Singles\\Michael Jackson - Leave Me Alone.mp3"]
["Singles\\Enrique Iglesias & Whitney Houston - Could I Have This Kiss Forever.mp3",false,0,{"$error":"#N/A"},"Singles\\Enrique Iglesias & Whitney Houston - Could I Have This Kiss Forever.mp3"]
["Singles\\Michael Jackson - One Day In Your Life.mp3",false,0,{"$error":"#N/A"},"Singles\\Michael Jackson - One Day In Your Life.mp3"]
["Singles\\World Of Oz - The Muffin Man.mp3",true,0,{"$error":"#N/A"},"Singles\\World Of Oz - The Muffin Man.mp3"]
["Singles\\Slade - Skweeze Me Pleeze Me.mp3",false,0,{"$error":"#N/A"},"Singles\\Slade - Skweeze Me Pleeze Me.mp3"]
["Singles\\Five For Figthing - Superman (It's Not Easy).mp3",false,0,{"$error":"#N/A"},"Singles\\Five For Figthing - Superman (It's Not Easy).mp3"]
["Singles\\Robbie Williams - Love My Life.mp3",false,0,{"$error":"#N/A"},"Singles\\Robbie Williams - Love My Life.mp3"]
["Singles\\Jim Croce - Time In A Bottle.mp3",false,0,{"$error":"#N/A"},"Singles\\Jim Croce - Time In A Bottle.mp3"]
["Singles\\Jules De Corte - Ik Zou Wel Eens Willen Weten.mp3",false,0,{"$error":"#N/A"},"Singles\\Jules De Corte - Ik Zou Wel Eens Willen Weten.mp3"]
["Singles\\Nat King Cole - When I Fall In Love.mp3",false,0,{"$error":"#N/A"},"Singles\\Nat King Cole - When I Fall In Love.mp3"]
["Singles\\Abc - The Night You Murdered Love.mp3",true,0,{"$error":"#N/A"},"Singles\\Abc - The Night You Murdered Love.mp3"]
["Singles\\Neil Diamond - Stargazer.mp3",false,0,{"$error":"#N/A"},"Singles\\Neil Diamond - Stargazer.mp3"]
["Singles\\Gerry & The Pacemakers - You'll Never Walk Alone.mp3",true,0,{"$error":"#N/A"},"Singles\\Gerry & The Pacemakers - You'll Never Walk Alone.mp3"]
["Singles\\Joshua Kadison - Jessie.mp3",false,0,{"$error":"#N/A"},"Singles\\Joshua Kadison - Jessie.mp3"]
["Singles\\Guys 'n' Dolls - You Don't Have To Say You Love Me.mp3",false,0,{"$error":"#N/A"},"Singles\\Guys 'n' Dolls - You Don't Have To Say You Love Me.mp3"]
["Singles\\Unheilig - Geboren Um Zu Leben (Der Graf).mp3",false,0,{"$error":"#N/A"},"Singles\\Unheilig - Geboren Um Zu Leben (Der Graf).mp3"]
["Singles\\Elvis Presley - Suspicious Minds.mp3",false,0,{"$error":"#N/A"},"Singles\\Elvis Presley - Suspicious Minds.mp3"]
["Singles\\Olivia Newton-John - A Little More Love.mp3",false,0,{"$error":"#N/A"},"Singles\\Olivia Newton-John - A Little More Love.mp3"]
["Singles\\Ace Of Base - Happy Nation.mp3",false,0,{"$error":"#N/A"},"Singles\\Ace Of Base - Happy Nation.mp3"]
["Singles\\Linda De Suza - Une Fille De Tous Les Pays.mp3",false,0,{"$error":"#N/A"},"Singles\\Linda De Suza - Une Fille De Tous Les Pays.mp3"]
["Singles\\Joe Jackson & Elaine Caswell - Happy Ending.mp3",false,0,{"$error":"#N/A"},"Singles\\Joe Jackson & Elaine Caswell - Happy Ending.mp3"]
["Singles\\Bryan Adams - All I Want Is You.mp3",false,0,{"$error":"#N/A"},"Singles\\Bryan Adams - All I Want Is You.mp3"]
["Singles\\Doobie Brothers - (Music Is) The Doctor.mp3",true,0,{"$error":"#N/A"},"Singles\\Doobie Brothers - (Music Is) The Doctor.mp3"]
["Singles\\Cliff Richard - All My Love.mp3",false,0,{"$error":"#N/A"},"Singles\\Cliff Richard - All My Love.mp3"]
["Singles\\Blue Mink - Melting Pot.mp3",false,0,{"$error":"#N/A"},"Singles\\Blue Mink - Melting Pot.mp3"]
["Singles\\Grandmaster Chicken & DJ Duck - Check Out The Chicken.mp3",true,0,{"$error":"#N/A"},"Singles\\Grandmaster Chicken & DJ Duck - Check Out The Chicken.mp3"]
["Singles\\Deco - A Room With A View.mp3",false,0,{"$error":"#N/A"},"Singles\\Deco - A Room With A View.mp3"]
["Singles\\Wally Tax - Miss Wonderful.mp3",false,0,{"$error":"#N/A"},"Singles\\Wally Tax - Miss Wonderful.mp3"]
["Singles\\Andy Williams - Battle Hymn Of The Republic.mp3",true,0,{"$error":"#N/A"},"Singles\\Andy Williams - Battle Hymn Of The Republic.mp3"]
["Singles\\Marco Borsato - This Moment.mp3",false,0,{"$error":"#N/A"},"Singles\\Marco Borsato - This Moment.mp3"]
["Singles\\Blood, Sweat & Tears - Hi-De-Ho.mp3",false,0,{"$error":"#N/A"},"Singles\\Blood, Sweat & Tears - Hi-De-Ho.mp3"]
["Singles\\Pearl Jam - Just Breathe.mp3",false,0,{"$error":"#N/A"},"Singles\\Pearl Jam - Just Breathe.mp3"]
["Singles\\Jimmy James & The Vagabonds - I'll Go Where Your Music Takes Me.mp3",true,0,{"$error":"#N/A"},"Singles\\Jimmy James & The Vagabonds - I'll Go Where Your Music Takes Me.mp3"]
["Singles\\Colin Blunstone - I Don't Believe In Miracles.mp3",false,0,{"$error":"#N/A"},"Singles\\Colin Blunstone - I Don't Believe In Miracles.mp3"]
["Singles\\Martin Garrix ft Bonn - High On Life.mp3",false,0,{"$error":"#N/A"},"Singles\\Martin Garrix ft Bonn - High On Life.mp3"]
["Singles\\Jack Jersey - In The Still Of The Night.mp3",true,0,{"$error":"#N/A"},"Singles\\Jack Jersey - In The Still Of The Night.mp3"]
["Singles\\The Hollies - Listen To Me (Do The Best You Can).mp3",true,0,"Singles\\The Hollies - ","Singles\\\\Hollies, The - Listen To Me (Do The Best You Can).mp3"]
["Singles\\The Doors - People Are Strange.mp3",true,0,"Singles\\The Doors - ","Singles\\\\Doors, The - People Are Strange.mp3"]
["Singles\\Lady GaGa - Bad Romance.mp3",false,0,{"$error":"#N/A"},"Singles\\Lady GaGa - Bad Romance.mp3"]
["Singles\\David Guetta ft Bebe Rexha & J Balvin - Say My Name.mp3",false,0,{"$error":"#N/A"},"Singles\\David Guetta ft Bebe Rexha & J Balvin - Say My Name.mp3"]
["Singles\\Judie Tzuke - Stay With Me Till Dawn.mp3",false,0,{"$error":"#N/A"},"Singles\\Judie Tzuke - Stay With Me Till Dawn.mp3"]
["Singles\\Marty Wilde - Abergavenny.mp3",{"$f":"RegexTest(B$1,$A2691)","v":false},{"$f":"RegexCount(C$1,$A2691)","v":0},{"$f":"RegexFind(D$1,$A2691)","v":{"$error":"#N/A"}},{"$f":"RegexReplace(E$1,$A2691,F$1)","v":"Singles\\Marty Wilde - Abergavenny.mp3"}]
["Singles\\Zayn ft Sia - Dusk Till Dawn.mp3",false,0,{"$error":"#N/A"},"Singles\\Zayn ft Sia - Dusk Till Dawn.mp3"]
["Singles\\Labrinth ft Emeli Sande - Beneath Your Beautiful.mp3",false,0,{"$error":"#N/A"},"Singles\\Labrinth ft Emeli Sande - Beneath Your Beautiful.mp3"]
["Singles\\Frank Sinatra - Let Me Try Again.mp3",false,0,{"$error":"#N/A"},"Singles\\Frank Sinatra - Let Me Try Again.mp3"]
["Singles\\Diana Ross & Lionel Richie - My Endless Love.mp3",false,0,{"$error":"#N/A"},"Singles\\Diana Ross & Lionel Richie - My Endless Love.mp3"]
["Singles\\Muse - Uprising.mp3",false,0,{"$error":"#N/A"},"Singles\\Muse - Uprising.mp3"]
["Singles\\Level 42 - Lessons In Love.mp3",false,0,{"$error":"#N/A"},"Singles\\Level 42 - Lessons In Love.mp3"]
["Singles\\The Beatles - Ticket To Ride.mp3",true,0,"Singles\\The Beatles - ","Singles\\\\Beatles, The - Ticket To Ride.mp3"]
["Singles\\The Scene - Blauw.mp3",true,0,"Singles\\The Scene - ","Singles\\\\Scene, The - Blauw.mp3"]
["Singles\\Edison Lighthouse - Love Grows (Where My Rosemary Goes).mp3",false,0,{"$error":"#N/A"},"Singles\\Edison Lighthouse - Love Grows (Where My Rosemary Goes).mp3"]
["Singles\\Frank Boeijen Groep - 1.000.000 Sterren.mp3",false,0,{"$error":"#N/A"},"Singles\\Frank Boeijen Groep - 1.000.000 Sterren.mp3"]
["Singles\\The Bee Gees - Secret Love.mp3",true,0,"Singles\\The Bee Gees - ","Singles\\\\Bee Gees, The - Secret Love.mp3"]
["Singles\\Adiemus - Adiemus.mp3",false,0,{"$error":"#N/A"},"Singles\\Adiemus - Adiemus.mp3"]
["Singles\\Emeli Sande - Read All About It.mp3",false,0,{"$error":"#N/A"},"Singles\\Emeli Sande - Read All About It.mp3"]
["Singles\\Johnny Kraaykamp & Rijk De Gooyer - De Bostella.mp3",false,0,{"$error":"#N/A"},"Singles\\Johnny Kraaykamp & Rijk De Gooyer - De Bostella.mp3"]
["Singles\\Elvis Presley - Always On My Mind.mp3",false,0,{"$error":"#N/A"},"Singles\\Elvis Presley - Always On My Mind.mp3"]
["Singles\\John Spencer - Een Meisje Voor Altijd.mp3",false,0,{"$error":"#N/A"},"Singles\\John Spencer - Een Meisje Voor Altijd.mp3"]
["Singles\\Mando Diao - Dance With Somebody.mp3",false,0,{"$error":"#N/A"},"Singles\\Mando Diao - Dance With Somebody.mp3"]
["Singles\\Smith - Baby It's You.mp3",false,0,{"$error":"#N/A"},"Singles\\Smith - Baby It's You.mp3"]
["Singles\\Axwell ft Ingrosso - More Than You Know.mp3",false,0,{"$error":"#N/A"},"Singles\\Axwell ft Ingrosso - More Than You Know.mp3"]
["Singles\\Doe Maar - Smoorverliefd.mp3",false,0,{"$error":"#N/A"},"Singles\\Doe Maar - Smoorverliefd.mp3"]
["Singles\\Five - Everybody Get Up.mp3",false,0,{"$error":"#N/A"},"Singles\\Five - Everybody Get Up.mp3"]
["Singles\\John Lamers - Ik Bewonder Jou.mp3",false,0,{"$error":"#N/A"},"Singles\\John Lamers - Ik Bewonder Jou.mp3"]
["Singles\\Los Payos - Maria Isabel.mp3",false,0,{"$error":"#N/A"},"Singles\\Los Payos - Maria Isabel.mp3"]
["Singles\\Wim Sonneveld - Aan De Amsterdamse Grachten.mp3",false,0,{"$error":"#N/A"},"Singles\\Wim Sonneveld - Aan De Amsterdamse Grachten.mp3"]
["Singles\\Coldplay - Every Teardrop Is A Waterfall.mp3",false,0,{"$error":"#N/A"},"Singles\\Coldplay - Every Teardrop Is A Waterfall.mp3"]
["Singles\\The Beatles - Girl.mp3",true,0,"Singles\\The Beatles - ","Singles\\\\Beatles, The - Girl.mp3"]
["Singles\\Jaap Reesema - Don't Stop Believin'.mp3",false,0,{"$error":"#N/A"},"Singles\\Jaap Reesema - Don't Stop Believin'.mp3"]
["Singles\\Johnny 'Guitar' Watson - A Real Mother For Ya.mp3",false,0,{"$error":"#N/A"},"Singles\\Johnny 'Guitar' Watson - A Real Mother For Ya.mp3"]
["Singles\\Taylor Swift ft Ed Sheeran - Everything Has Changed.mp3",false,0,{"$error":"#N/A"},"Singles\\Taylor Swift ft Ed Sheeran - Everything Has Changed.mp3"]
["Singles\\Jimmy Castor Bunch - King Kong.mp3",false,0,{"$error":"#N/A"},"Singles\\Jimmy Castor Bunch - King Kong.mp3"]
["Singles\\Rod Stewart, Sting & Bryan Adams - All For Love.mp3",false,0,{"$error":"#N/A"},"Singles\\Rod Stewart, Sting & Bryan Adams - All For Love.mp3"]
["Singles\\Pointer Sisters - Slow Hand.mp3",false,0,{"$error":"#N/A"},"Singles\\Pointer Sisters - Slow Hand.mp3"]
["Singles\\Sailor - La Cumbia.mp3",false,0,{"$error":"#N/A"},"Singles\\Sailor - La Cumbia.mp3"]
["Singles\\Tee Set - She Likes Weeds.mp3",false,0,{"$error":"#N/A"},"Singles\\Tee Set - She Likes Weeds.mp3"]
["Singles\\Solid Harmonie - I'll Be There For You.mp3",true,1,{"$error":"#N/A"},"Singles\\Solid Harmonie - I'll Be There For You.mp3"]
["Singles\\Rose Royce - Best Love.mp3",false,0,{"$error":"#N/A"},"Singles\\Rose Royce - Best Love.mp3"]
["Singles\\Benny Neyman - Ik Weet Niet Hoe.mp3",false,0,{"$error":"#N/A"},"Singles\\Benny Neyman - Ik Weet Niet Hoe.mp3"]
["Singles\\Amazing Stroopwafels - Ik Ga Naar Frankrijk.mp3",false,0,{"$error":"#N/A"},"Singles\\Amazing Stroopwafels - Ik Ga Naar Frankrijk.mp3"]
["Singles\\Michael Bolton - To  Love Somebody.mp3",false,0,{"$error":"#N/A"},"Singles\\Michael Bolton - To  Love Somebody.mp3"]
["Singles\\Hues Corporation - Rockin' Soul.mp3",false,0,{"$error":"#N/A"},"Singles\\Hues Corporation - Rockin' Soul.mp3"]
["Singles\\The Scene - Open.mp3",true,0,"Singles\\The Scene - ","Singles\\\\Scene, The - Open.mp3"]
["Singles\\John Mayer - Paper Doll.mp3",false,0,{"$error":"#N/A"},"Singles\\John Mayer - Paper Doll.mp3"]
["Singles\\The Christians - There You Go Again.mp3",true,1,"Singles\\The Christians - ","Singles\\\\Christians, The - There You Go Again.mp3"]
["Singles\\Alok & Bruno Martini ft Zeeba - Hear Me Now.mp3",false,0,{"$error":"#N/A"},"Singles\\Alok & Bruno Martini ft Zeeba - Hear Me Now.mp3"]
["Singles\\Long Tall Ernie & The Shakers - Golden Years Of Rock 'N Roll.mp3",true,0,{"$error":"#N/A"},"Singles\\Long Tall Ernie & The Shakers - Golden Years Of Rock 'N Roll.mp3"]
["Singles\\Frank Sinatra - That's Life.mp3",false,0,{"$error":"#N/A"},"Singles\\Frank Sinatra - That's Life.mp3"]
["Singles\\The Asteroids Galaxy Tour - Heart Attack.mp3",true,0,"Singles\\The Asteroids Galaxy Tour - ","Singles\\\\Asteroids Galaxy Tour, The - Heart Attack.mp3"]
["Singles\\Elvis Presley - Good Luck Charm.mp3",false,0,{"$error":"#N/A"},"Singles\\Elvis Presley - Good Luck Charm.mp3"]
["Singles\\Little River Band - Forever Blue.mp3",false,0,{"$error":"#N/A"},"Singles\\Little River Band - Forever Blue.mp3"]
["Singles\\Arjan Brass - Leonie.mp3",false,0,{"$error":"#N/A"},"Singles\\Arjan Brass - Leonie.mp3"]
["Singles\\Gerhard Wendland - Tanze Mit Mir In Den Morgen.mp3",false,0,{"$error":"#N/A"},"Singles\\Gerhard Wendland - Tanze Mit Mir In Den Morgen.mp3"]
["Singles\\Elton John - Blue Eyes.mp3",false,0,{"$error":"#N/A"},"Singles\\Elton John - Blue Eyes.mp3"]
["Singles\\Corinne Bailey Rae - Put Your Records On.mp3",false,0,{"$error":"#N/A"},"Singles\\Corinne Bailey Rae - Put Your Records On.mp3"]
["Singles\\Hotcha Trio - Galloping Comedians.mp3",false,0,{"$error":"#N/A"},"Singles\\Hotcha Trio - Galloping Comedians.mp3"]
["Singles\\Elvis Presley - Surrender.mp3",false,0,{"$error":"#N/A"},"Singles\\Elvis Presley - Surrender.mp3"]
["Singles\\Heather Nova - Walk This World.mp3",false,0,{"$error":"#N/A"},"Singles\\Heather Nova - Walk This World.mp3"]
["Singles\\Little Jimmy Osmond - Tweedle Dee.mp3",false,0,{"$error":"#N/A"},"Singles\\Little Jimmy Osmond - Tweedle Dee.mp3"]
["Singles\\Naughty Boy ft Beyonce & Arrow Benjamin - Runnin (Lose It All).mp3",false,0,{"$error":"#N/A"},"Singles\\Naughty Boy ft Beyonce & Arrow Benjamin - Runnin (Lose It All).mp3"]
["Singles\\Nicky Jam & Enrique Iglesias - El Perdon.mp3",false,0,{"$error":"#N/A"},"Singles\\Nicky Jam & Enrique Iglesias - El Perdon.mp3"]
["Singles\\The Commodores - Sail On.mp3",true,0,"Singles\\The Commodores - ","Singles\\\\Commodores, The - Sail On.mp3"]
["Singles\\Paco Paco - Taka Takata.mp3",false,0,{"$error":"#N/A"},"Singles\\Paco Paco - Taka Takata.mp3"]
["Singles\\Desmond Dekker - Israelites.mp3",false,0,{"$error":"#N/A"},"Singles\\Desmond Dekker - Israelites.mp3"]
["Singles\\Gavin DeGraw - Best I Ever Had.mp3",false,0,{"$error":"#N/A"},"Singles\\Gavin DeGraw - Best I Ever Had.mp3"]
["Singles\\Rob De Nijs - Zonder Jou.mp3",{"$f":"RegexTest(B$1,$A2755)","v":false},{"$f":"RegexCount(C$1,$A2755)","v":0},{"$f":"RegexFind(D$1,$A2755)","v":{"$error":"#N/A"}},{"$f":"RegexReplace(E$1,$A2755,F$1)","v":"Singles\\Rob De Nijs - Zonder Jou.mp3"}]
["Singles\\John Lennon - Instant Karma (We All Shine On).mp3",false,0,{"$error":"#N/A"},"Singles\\John Lennon - Instant Karma (We All Shine On).mp3"]
["Singles\\The Kinks - Autumn Almanac.mp3",true,0,"Singles\\The Kinks - ","Singles\\\\Kinks, The - Autumn Almanac.mp3"]
["Singles\\Liquido - Narcotic.mp3",false,0,{"$error":"#N/A"},"Singles\\Liquido - Narcotic.mp3"]
["Singles\\Neil Diamond - Skybird.mp3",false,0,{"$error":"#N/A"},"Singles\\Neil Diamond - Skybird.mp3"]
["Singles\\Abba - One Of Us.mp3",false,0,{"$error":"#N/A"},"Singles\\Abba - One Of Us.mp3"]
["Singles\\Spice Girls - Too Much.mp3",false,0,{"$error":"#N/A"},"Singles\\Spice Girls - Too Much.mp3"]
["Singles\\Gavin DeGraw - Fire.mp3",false,0,{"$error":"#N/A"},"Singles\\Gavin DeGraw - Fire.mp3"]
["Singles\\Enrique Iglesias ft Wisin - Duele El Corazon.mp3",false,0,{"$error":"#N/A"},"Singles\\Enrique Iglesias ft Wisin - Duele El Corazon.mp3"]
["Singles\\The Beat - The Tears Of A Clown.mp3",true,0,"Singles\\The Beat - ","Singles\\\\Beat, The - The Tears Of A Clown.mp3"]
["Singles\\Unit Gloria - Our Father.mp3",false,0,{"$error":"#N/A"},"Singles\\Unit Gloria - Our Father.mp3"]
["Singles\\Douwe Bob - Slow Down.mp3",false,0,{"$error":"#N/A"},"Singles\\Douwe Bob - Slow Down.mp3"]
["Singles\\Rene Froger - Nobody Else.mp3",false,0,{"$error":"#N/A"},"Singles\\Rene Froger - Nobody Else.mp3"]
["Singles\\Luv' - You're The Greatest Lover.mp3",true,0,{"$error":"#N/A"},"Singles\\Luv' - You're The Greatest Lover.mp3"]
["Singles\\Calum Scott - Dancing On My Own (Tiesto).mp3",false,0,{"$error":"#N/A"},"Singles\\Calum Scott - Dancing On My Own (Tiesto).mp3"]
["Singles\\George Benson - Lady Love Me (One More Time).mp3",false,0,{"$error":"#N/A"},"Singles\\George Benson - Lady Love Me (One More Time).mp3"]
["Singles\\Crash Test Dummies - Mmm Mmm Mmm Mmm.mp3",false,0,{"$error":"#N/A"},"Singles\\Crash Test Dummies - Mmm Mmm Mmm Mmm.mp3"]
["Singles\\Krystl - Undefeatable.mp3",false,0,{"$error":"#N/A"},"Singles\\Krystl - Undefeatable.mp3"]
["Singles\\The Allisons - Are You Sure.mp3",true,0,"Singles\\The Allisons - ","Singles\\\\Allisons, The - Are You Sure.mp3"]
["Singles\\Enrique Iglesias & Sean Garrett - Away.mp3",false,0,{"$error":"#N/A"},"Singles\\Enrique Iglesias & Sean Garrett - Away.mp3"]
["Singles\\Bruce Hornsby & The Range - The Valley Road.mp3",true,0,{"$error":"#N/A"},"Singles\\Bruce Hornsby & The Range - The Valley Road.mp3"]
["Singles\\Nana Mouskouri - Quad Tu Chantes.mp3",false,0,{"$error":"#N/A"},"Singles\\Nana Mouskouri - Quad Tu Chantes.mp3"]

{"sheet":"Filter","index":6,"n_rows":8,"n_cols":5,"rows_kept":8}
["Day","Time","DateTime","Integer","String"]
["2020-07-27","10:10:00","2020-07-27T10:10:00",3,"Alpha"]
["2020-01-01","10:10:10","2020-01-01T10:10:02",6,"Beta"]
["2020-05-03","23:59:59","2020-06-03T23:59:59",21,"Gamma"]
["1990-05-04","00:00:01","1990-05-04T00:00:01",-102,"Delta"]
["1990-05-04","00:00:02","1990-05-04T00:00:02",54.7,"Omega"]
["1990-05-03","12:00:00","1990-05-03T12:00:00",0,"Phi"]
["2011-10-06","07:00:00","2011-10-06T07:00:00",10,"Eta"]

{"sheet":"ExecTimes","index":7,"n_rows":100011,"n_cols":100,"rows_kept":4500,"cut":true,"bounds":{"rows_first":2000,"rows_last":500,"rows_between":2000,"halvings":0}}
["Code Snippet","Time [µSec]","Remark",0]
["Reading Cell Value:"]
["v = ActiveCell.Value",1,"Is fast but the select method takes long, see below"]
["v = Cells(1, 1)",2,"This seems the fastest way to read a cell's value"]
["v = Range(\"A1\")",3]
["v = Sheet8.Rows(1).Columns(1)",3]
["v = Sheet8.Range(\"A1\")",4,"Including sheet internal name adds additional execution time"]
["v = Range(\"A1:A1\")",4]
["v = Range(\"NamedRangeA1\")",4]
["v = Sheets(\"ExecTimes\").Cells(1, 1)",6,"Using the sheet tab name  adds additional execution time"]
["Range(\"A1\").Select\nv = ActiveCell.Value",30,"can increase >5x when ScreenUpdating = True",{"$nulls":7},0,1,2,3,4,5,6,7,8,9,10,11,12,13,14,15,16,17,18,19,20,21,22,23,24,25,26,27,28,29,30,31,32,33,34,35,36,37,38,39,40,41,42,43,44,45,46,47,48,49,50,51,52,53,54,55,56,57,58,59,60,61,62,63,64,65,66,67,68,69,70,71,72,73,74,75,76,77,78,79,80,81,82,83,84,85,86,87,88,89]
["Reading Cell property:",{"$nulls":9},100,101,102,103,104,105,106,107,108,109,110,111,112,113,114,115,116,117,118,119,120,121,122,123,124,125,126,127,128,129,130,131,132,133,134,135,136,137,138,139,140,141,142,143,144,145,146,147,148,149,150,151,152,153,154,155,156,157,158,159,160,161,162,163,164,165,166,167,168,169,170,171,172,173,174,175,176,177,178,179,180,181,182,183,184,185,186,187,188,189]
["v = Cells(1, 1).Interior.Color",6,"background color as an RGB value",{"$nulls":7},200,201,202,203,204,205,206,207,208,209,210,211,212,213,214,215,216,217,218,219,220,221,222,223,224,225,226,227,228,229,230,231,232,233,234,235,236,237,238,239,240,241,242,243,244,245,246,247,248,249,250,251,252,253,254,255,256,257,258,259,260,261,262,263,264,265,266,267,268,269,270,271,272,273,274,275,276,277,278,279,280,281,282,283,284,285,286,287,288,289]
["v = Cells(1, 1).Font.Color",5,"font color as RGB value",{"$nulls":7},300,301,302,303,304,305,306,307,308,309,310,311,312,313,314,315,316,317,318,319,320,321,322,323,324,325,326,327,328,329,330,331,332,333,334,335,336,337,338,339,340,341,342,343,344,345,346,347,348,349,350,351,352,353,354,355,356,357,358,359,360,361,362,363,364,365,366,367,368,369,370,371,372,373,374,375,376,377,378,379,380,381,382,383,384,385,386,387,388,389]
["v = Cells(1, 1).Font.Bold",5,"bold value as TRUE/FALSE",{"$nulls":7},400,401,402,403,404,405,406,407,408,409,410,411,412,413,414,415,416,417,418,419,420,421,422,423,424,425,426,427,428,429,430,431,432,433,434,435,436,437,438,439,440,441,442,443,444,445,446,447,448,449,450,451,452,453,454,455,456,457,458,459,460,461,462,463,464,465,466,467,468,469,470,471,472,473,474,475,476,477,478,479,480,481,482,483,484,485,486,487,488,489]
["v = Cells(1, 1).NumberFormat",5,"number format as string e.g. \"[$-F400]h:mm:ss AM/PM\"",{"$nulls":7},500,501,502,503,504,505,506,507,508,509,510,511,512,513,514,515,516,517,518,519,520,521,522,523,524,525,526,527,528,529,530,531,532,533,534,535,536,537,538,539,540,541,542,543,544,545,546,547,548,549,550,551,552,553,554,555,556,557,558,559,560,561,562,563,564,565,566,567,568,569,570,571,572,573,574,575,576,577,578,579,580,581,582,583,584,585,586,587,588,589]
["v = Cells(1, 1).ColumnWidth",5,{"$nulls":8},600,601,602,603,604,605,606,607,608,609,610,611,612,613,614,615,616,617,618,619,620,621,622,623,624,625,626,627,628,629,630,631,632,633,634,635,636,637,638,639,640,641,642,643,644,645,646,647,648,649,650,651,652,653,654,655,656,657,658,659,660,661,662,663,664,665,666,667,668,669,670,671,672,673,674,675,676,677,678,679,680,681,682,683,684,685,686,687,688,689]
["v = Cells(1, 1).RowHeight",5,{"$nulls":8},700,701,702,703,704,705,706,707,708,709,710,711,712,713,714,715,716,717,718,719,720,721,722,723,724,725,726,727,728,729,730,731,732,733,734,735,736,737,738,739,740,741,742,743,744,745,746,747,748,749,750,751,752,753,754,755,756,757,758,759,760,761,762,763,764,765,766,767,768,769,770,771,772,773,774,775,776,777,778,779,780,781,782,783,784,785,786,787,788,789]
["Writing Cell Value:",{"$nulls":9},800,801,802,803,804,805,806,807,808,809,810,811,812,813,814,815,816,817,818,819,820,821,822,823,824,825,826,827,828,829,830,831,832,833,834,835,836,837,838,839,840,841,842,843,844,845,846,847,848,849,850,851,852,853,854,855,856,857,858,859,860,861,862,863,864,865,866,867,868,869,870,871,872,873,874,875,876,877,878,879,880,881,882,883,884,885,886,887,888,889]
["Cells(1, 4) = \"\"",13,{"$nulls":8},900,901,902,903,904,905,906,907,908,909,910,911,912,913,914,915,916,917,918,919,920,921,922,923,924,925,926,927,928,929,930,931,932,933,934,935,936,937,938,939,940,941,942,943,944,945,946,947,948,949,950,951,952,953,954,955,956,957,958,959,960,961,962,963,964,965,966,967,968,969,970,971,972,973,974,975,976,977,978,979,980,981,982,983,984,985,986,987,988,989]
["Cells(1, 4) = 3",14,{"$nulls":8},1000,1001,1002,1003,1004,1005,1006,1007,1008,1009,1010,1011,1012,1013,1014,1015,1016,1017,1018,1019,1020,1021,1022,1023,1024,1025,1026,1027,1028,1029,1030,1031,1032,1033,1034,1035,1036,1037,1038,1039,1040,1041,1042,1043,1044,1045,1046,1047,1048,1049,1050,1051,1052,1053,1054,1055,1056,1057,1058,1059,1060,1061,1062,1063,1064,1065,1066,1067,1068,1069,1070,1071,1072,1073,1074,1075,1076,1077,1078,1079,1080,1081,1082,1083,1084,1085,1086,1087,1088,1089]
["Cells(1, 4) = \"test\"",14,{"$nulls":8},1100,1101,1102,1103,1104,1105,1106,1107,1108,1109,1110,1111,1112,1113,1114,1115,1116,1117,1118,1119,1120,1121,1122,1123,1124,1125,1126,1127,1128,1129,1130,1131,1132,1133,1134,1135,1136,1137,1138,1139,1140,1141,1142,1143,1144,1145,1146,1147,1148,1149,1150,1151,1152,1153,1154,1155,1156,1157,1158,1159,1160,1161,1162,1163,1164,1165,1166,1167,1168,1169,1170,1171,1172,1173,1174,1175,1176,1177,1178,1179,1180,1181,1182,1183,1184,1185,1186,1187,1188,1189]
["Cells(1, 4) = String(1000, \"h\")",19,"a very long string of 1000 chars takes only a bit longer",{"$nulls":7},1200,1201,1202,1203,1204,1205,1206,1207,1208,1209,1210,1211,1212,1213,1214,1215,1216,1217,1218,1219,1220,1221,1222,1223,1224,1225,1226,1227,1228,1229,1230,1231,1232,1233,1234,1235,1236,1237,1238,1239,1240,1241,1242,1243,1244,1245,1246,1247,1248,1249,1250,1251,1252,1253,1254,1255,1256,1257,1258,1259,1260,1261,1262,1263,1264,1265,1266,1267,1268,1269,1270,1271,1272,1273,1274,1275,1276,1277,1278,1279,1280,1281,1282,1283,1284,1285,1286,1287,1288,1289]
["Cells(1, 4) = True",14,{"$nulls":8},1300,1301,1302,1303,1304,1305,1306,1307,1308,1309,1310,1311,1312,1313,1314,1315,1316,1317,1318,1319,1320,1321,1322,1323,1324,1325,1326,1327,1328,1329,1330,1331,1332,1333,1334,1335,1336,1337,1338,1339,1340,1341,1342,1343,1344,1345,1346,1347,1348,1349,1350,1351,1352,1353,1354,1355,1356,1357,1358,1359,1360,1361,1362,1363,1364,1365,1366,1367,1368,1369,1370,1371,1372,1373,1374,1375,1376,1377,1378,1379,1380,1381,1382,1383,1384,1385,1386,1387,1388,1389]
["Cells(1, 4) = 1.23",14,{"$nulls":8},1400,1401,1402,1403,1404,1405,1406,1407,1408,1409,1410,1411,1412,1413,1414,1415,1416,1417,1418,1419,1420,1421,1422,1423,1424,1425,1426,1427,1428,1429,1430,1431,1432,1433,1434,1435,1436,1437,1438,1439,1440,1441,1442,1443,1444,1445,1446,1447,1448,1449,1450,1451,1452,1453,1454,1455,1456,1457,1458,1459,1460,1461,1462,1463,1464,1465,1466,1467,1468,1469,1470,1471,1472,1473,1474,1475,1476,1477,1478,1479,1480,1481,1482,1483,1484,1485,1486,1487,1488,1489]
["Range(\"D1\") = \"\"",19,"using Range(\"D1\") is slower than using Cells(1,4)",{"$nulls":7},1500,1501,1502,1503,1504,1505,1506,1507,1508,1509,1510,1511,1512,1513,1514,1515,1516,1517,1518,1519,1520,1521,1522,1523,1524,1525,1526,1527,1528,1529,1530,1531,1532,1533,1534,1535,1536,1537,1538,1539,1540,1541,1542,1543,1544,1545,1546,1547,1548,1549,1550,1551,1552,1553,1554,1555,1556,1557,1558,1559,1560,1561,1562,1563,1564,1565,1566,1567,1568,1569,1570,1571,1572,1573,1574,1575,1576,1577,1578,1579,1580,1581,1582,1583,1584,1585,1586,1587,1588,1589]
["Range(\"D1:D1\") = \"\"",20,{"$nulls":8},1600,1601,1602,1603,1604,1605,1606,1607,1608,1609,1610,1611,1612,1613,1614,1615,1616,1617,1618,1619,1620,1621,1622,1623,1624,1625,1626,1627,1628,1629,1630,1631,1632,1633,1634,1635,1636,1637,1638,1639,1640,1641,1642,1643,1644,1645,1646,1647,1648,1649,1650,1651,1652,1653,1654,1655,1656,1657,1658,1659,1660,1661,1662,1663,1664,1665,1666,1667,1668,1669,1670,1671,1672,1673,1674,1675,1676,1677,1678,1679,1680,1681,1682,1683,1684,1685,1686,1687,1688,1689]
["VBA Lookup functions:",{"$nulls":9},1700,1701,1702,1703,1704,1705,1706,1707,1708,1709,1710,1711,1712,1713,1714,1715,1716,1717,1718,1719,1720,1721,1722,1723,1724,1725,1726,1727,1728,1729,1730,1731,1732,1733,1734,1735,1736,1737,1738,1739,1740,1741,1742,1743,1744,1745,1746,1747,1748,1749,1750,1751,1752,1753,1754,1755,1756,1757,1758,1759,1760,1761,1762,1763,1764,1765,1766,1767,1768,1769,1770,1771,1772,1773,1774,1775,1776,1777,1778,1779,1780,1781,1782,1783,1784,1785,1786,1787,1788,1789]
["WorksheetFunction.XLookup(\"not found\", Sheet8.Range(\"B1:B10\"), Sheet8.Range(\"A1:A10\"))",12,{"$nulls":8},1800,1801,1802,1803,1804,1805,1806,1807,1808,1809,1810,1811,1812,1813,1814,1815,1816,1817,1818,1819,1820,1821,1822,1823,1824,1825,1826,1827,1828,1829,1830,1831,1832,1833,1834,1835,1836,1837,1838,1839,1840,1841,1842,1843,1844,1845,1846,1847,1848,1849,1850,1851,1852,1853,1854,1855,1856,1857,1858,1859,1860,1861,1862,1863,1864,1865,1866,1867,1868,1869,1870,1871,1872,1873,1874,1875,1876,1877,1878,1879,1880,1881,1882,1883,1884,1885,1886,1887,1888,1889]
["WorksheetFunction.XLookup(\"not found\", Sheet8.Range(\"B1:B100\"), Sheet8.Range(\"A1:A100\"))",14,"shorter if value found before end",{"$nulls":7},1900,1901,1902,1903,1904,1905,1906,1907,1908,1909,1910,1911,1912,1913,1914,1915,1916,1917,1918,1919,1920,1921,1922,1923,1924,1925,1926,1927,1928,1929,1930,1931,1932,1933,1934,1935,1936,1937,1938,1939,1940,1941,1942,1943,1944,1945,1946,1947,1948,1949,1950,1951,1952,1953,1954,1955,1956,1957,1958,1959,1960,1961,1962,1963,1964,1965,1966,1967,1968,1969,1970,1971,1972,1973,1974,1975,1976,1977,1978,1979,1980,1981,1982,1983,1984,1985,1986,1987,1988,1989]
["WorksheetFunction.XLookup(\"not found\", Sheet8.Range(\"B1:B1000\"), Sheet8.Range(\"A1:A1000\"))",24,"shorter if value found before end",{"$nulls":7},2000,2001,2002,2003,2004,2005,2006,2007,2008,2009,2010,2011,2012,2013,2014,2015,2016,2017,2018,2019,2020,2021,2022,2023,2024,2025,2026,2027,2028,2029,2030,2031,2032,2033,2034,2035,2036,2037,2038,2039,2040,2041,2042,2043,2044,2045,2046,2047,2048,2049,2050,2051,2052,2053,2054,2055,2056,2057,2058,2059,2060,2061,2062,2063,2064,2065,2066,2067,2068,2069,2070,2071,2072,2073,2074,2075,2076,2077,2078,2079,2080,2081,2082,2083,2084,2085,2086,2087,2088,2089]
["WorksheetFunction.XLookup(\"not found\", Sheet8.Range(\"B1:B10000\"), Sheet8.Range(\"A1:A10000\"))",120,"shorter if value found before end",{"$nulls":7},2100,2101,2102,2103,2104,2105,2106,2107,2108,2109,2110,2111,2112,2113,2114,2115,2116,2117,2118,2119,2120,2121,2122,2123,2124,2125,2126,2127,2128,2129,2130,2131,2132,2133,2134,2135,2136,2137,2138,2139,2140,2141,2142,2143,2144,2145,2146,2147,2148,2149,2150,2151,2152,2153,2154,2155,2156,2157,2158,2159,2160,2161,2162,2163,2164,2165,2166,2167,2168,2169,2170,2171,2172,2173,2174,2175,2176,2177,2178,2179,2180,2181,2182,2183,2184,2185,2186,2187,2188,2189]
["WorksheetFunction.XLookup(\"not found\", Sheet8.Range(\"B1:B100000\"), Sheet8.Range(\"A1:A100000\"))",1100,"shorter if value found, eg 24 uSec if found at pos 1000",{"$nulls":7},2200,2201,2202,2203,2204,2205,2206,2207,2208,2209,2210,2211,2212,2213,2214,2215,2216,2217,2218,2219,2220,2221,2222,2223,2224,2225,2226,2227,2228,2229,2230,2231,2232,2233,2234,2235,2236,2237,2238,2239,2240,2241,2242,2243,2244,2245,2246,2247,2248,2249,2250,2251,2252,2253,2254,2255,2256,2257,2258,2259,2260,2261,2262,2263,2264,2265,2266,2267,2268,2269,2270,2271,2272,2273,2274,2275,2276,2277,2278,2279,2280,2281,2282,2283,2284,2285,2286,2287,2288,2289]
["WorksheetFunction.Match(\"not found\", Sheet8.Range(\"B1:B10\"), 0)",5,"exact match",{"$nulls":7},2300,2301,2302,2303,2304,2305,2306,2307,2308,2309,2310,2311,2312,2313,2314,2315,2316,2317,2318,2319,2320,2321,2322,2323,2324,2325,2326,2327,2328,2329,2330,2331,2332,2333,2334,2335,2336,2337,2338,2339,2340,2341,2342,2343,2344,2345,2346,2347,2348,2349,2350,2351,2352,2353,2354,2355,2356,2357,2358,2359,2360,2361,2362,2363,2364,2365,2366,2367,2368,2369,2370,2371,2372,2373,2374,2375,2376,2377,2378,2379,2380,2381,2382,2383,2384,2385,2386,2387,2388,2389]
["WorksheetFunction.Match(\"not found\", Sheet8.Range(\"B1:B100\"), 0)",7,{"$nulls":8},2400,2401,2402,2403,2404,2405,2406,2407,2408,2409,2410,2411,2412,2413,2414,2415,2416,2417,2418,2419,2420,2421,2422,2423,2424,2425,2426,2427,2428,2429,2430,2431,2432,2433,2434,2435,2436,2437,2438,2439,2440,2441,2442,2443,2444,2445,2446,2447,2448,2449,2450,2451,2452,2453,2454,2455,2456,2457,2458,2459,2460,2461,2462,2463,2464,2465,2466,2467,2468,2469,2470,2471,2472,2473,2474,2475,2476,2477,2478,2479,2480,2481,2482,2483,2484,2485,2486,2487,2488,2489]
["WorksheetFunction.Match(\"not found\", Sheet8.Range(\"B1:B1000\"), 0)",10,"shorter if value found before end",{"$nulls":7},2500,2501,2502,2503,2504,2505,2506,2507,2508,2509,2510,2511,2512,2513,2514,2515,2516,2517,2518,2519,2520,2521,2522,2523,2524,2525,2526,2527,2528,2529,2530,2531,2532,2533,2534,2535,2536,2537,2538,2539,2540,2541,2542,2543,2544,2545,2546,2547,2548,2549,2550,2551,2552,2553,2554,2555,2556,2557,2558,2559,2560,2561,2562,2563,2564,2565,2566,2567,2568,2569,2570,2571,2572,2573,2574,2575,2576,2577,2578,2579,2580,2581,2582,2583,2584,2585,2586,2587,2588,2589]
["WorksheetFunction.Match(\"not found\", Sheet8.Range(\"B1:B10000\"), 0)",60,"shorter if value found before end",{"$nulls":7},2600,2601,2602,2603,2604,2605,2606,2607,2608,2609,2610,2611,2612,2613,2614,2615,2616,2617,2618,2619,2620,2621,2622,2623,2624,2625,2626,2627,2628,2629,2630,2631,2632,2633,2634,2635,2636,2637,2638,2639,2640,2641,2642,2643,2644,2645,2646,2647,2648,2649,2650,2651,2652,2653,2654,2655,2656,2657,2658,2659,2660,2661,2662,2663,2664,2665,2666,2667,2668,2669,2670,2671,2672,2673,2674,2675,2676,2677,2678,2679,2680,2681,2682,2683,2684,2685,2686,2687,2688,2689]
["WorksheetFunction.Match(\"not found\", Sheet8.Range(\"B1:B100000\"), 0)",500,"shorter if value found, eg 10 uSec if found at pos 1000",{"$nulls":7},2700,2701,2702,2703,2704,2705,2706,2707,2708,2709,2710,2711,2712,2713,2714,2715,2716,2717,2718,2719,2720,2721,2722,2723,2724,2725,2726,2727,2728,2729,2730,2731,2732,2733,2734,2735,2736,2737,2738,2739,2740,2741,2742,2743,2744,2745,2746,2747,2748,2749,2750,2751,2752,2753,2754,2755,2756,2757,2758,2759,2760,2761,2762,2763,2764,2765,2766,2767,2768,2769,2770,2771,2772,2773,2774,2775,2776,2777,2778,2779,2780,2781,2782,2783,2784,2785,2786,2787,2788,2789]
["WorksheetFunction.Index(Range(\"A1:A10\"), WorksheetFunction.Match(\"Row10\", Range(\"B1:B10\"), 0))",11,"about the same as equivalent XLookUp function",{"$nulls":7},2800,2801,2802,2803,2804,2805,2806,2807,2808,2809,2810,2811,2812,2813,2814,2815,2816,2817,2818,2819,2820,2821,2822,2823,2824,2825,2826,2827,2828,2829,2830,2831,2832,2833,2834,2835,2836,2837,2838,2839,2840,2841,2842,2843,2844,2845,2846,2847,2848,2849,2850,2851,2852,2853,2854,2855,2856,2857,2858,2859,2860,2861,2862,2863,2864,2865,2866,2867,2868,2869,2870,2871,2872,2873,2874,2875,2876,2877,2878,2879,2880,2881,2882,2883,2884,2885,2886,2887,2888,2889]
["WorksheetFunction.Index(Range(\"A1:A100\"), WorksheetFunction.Match(\"Row100\", Range(\"B1:B100\"), 0))",13,"shorter if value found before end",{"$nulls":7},2900,2901,2902,2903,2904,2905,2906,2907,2908,2909,2910,2911,2912,2913,2914,2915,2916,2917,2918,2919,2920,2921,2922,2923,2924,2925,2926,2927,2928,2929,2930,2931,2932,2933,2934,2935,2936,2937,2938,2939,2940,2941,2942,2943,2944,2945,2946,2947,2948,2949,2950,2951,2952,2953,2954,2955,2956,2957,2958,2959,2960,2961,2962,2963,2964,2965,2966,2967,2968,2969,2970,2971,2972,2973,2974,2975,2976,2977,2978,2979,2980,2981,2982,2983,2984,2985,2986,2987,2988,2989]
["WorksheetFunction.Index(Range(\"A1:A1000\"), WorksheetFunction.Match(\"Row1000\", Range(\"B1:B1000\"), 0))",17,"shorter if value found before end",{"$nulls":7},3000,3001,3002,3003,3004,3005,3006,3007,3008,3009,3010,3011,3012,3013,3014,3015,3016,3017,3018,3019,3020,3021,3022,3023,3024,3025,3026,3027,3028,3029,3030,3031,3032,3033,3034,3035,3036,3037,3038,3039,3040,3041,3042,3043,3044,3045,3046,3047,3048,3049,3050,3051,3052,3053,3054,3055,3056,3057,3058,3059,3060,3061,3062,3063,3064,3065,3066,3067,3068,3069,3070,3071,3072,3073,3074,3075,3076,3077,3078,3079,3080,3081,3082,3083,3084,3085,3086,3087,3088,3089]
["WorksheetFunction.Index(Range(\"A1:A10000\"), WorksheetFunction.Match(\"Row10000\", Range(\"B1:B10000\"), 0))",70,"shorter if value found before end",{"$nulls":7},3100,3101,3102,3103,3104,3105,3106,3107,3108,3109,3110,3111,3112,3113,3114,3115,3116,3117,3118,3119,3120,3121,3122,3123,3124,3125,3126,3127,3128,3129,3130,3131,3132,3133,3134,3135,3136,3137,3138,3139,3140,3141,3142,3143,3144,3145,3146,3147,3148,3149,3150,3151,3152,3153,3154,3155,3156,3157,3158,3159,3160,3161,3162,3163,3164,3165,3166,3167,3168,3169,3170,3171,3172,3173,3174,3175,3176,3177,3178,3179,3180,3181,3182,3183,3184,3185,3186,3187,3188,3189]
["WorksheetFunction.Index(Range(\"A1:A100000\"), WorksheetFunction.Match(\"Row100000\", Range(\"B1:B100000\"), 0))",500,"shorter if value found, eg 17 uSec if found at pos 1000\nfaster than equivalent XLookup for large ranges!",{"$nulls":7},3200,3201,3202,3203,3204,3205,3206,3207,3208,3209,3210,3211,3212,3213,3214,3215,3216,3217,3218,3219,3220,3221,3222,3223,3224,3225,3226,3227,3228,3229,3230,3231,3232,3233,3234,3235,3236,3237,3238,3239,3240,3241,3242,3243,3244,3245,3246,3247,3248,3249,3250,3251,3252,3253,3254,3255,3256,3257,3258,3259,3260,3261,3262,3263,3264,3265,3266,3267,3268,3269,3270,3271,3272,3273,3274,3275,3276,3277,3278,3279,3280,3281,3282,3283,3284,3285,3286,3287,3288,3289]
["For r = 1 To 100\n    If Cells(r, 2) = \"Row100\" Then Exit For\nNext r",250,"Slower than equivalent match function. Due to Cells() method",{"$nulls":7},3300,3301,3302,3303,3304,3305,3306,3307,3308,3309,3310,3311,3312,3313,3314,3315,3316,3317,3318,3319,3320,3321,3322,3323,3324,3325,3326,3327,3328,3329,3330,3331,3332,3333,3334,3335,3336,3337,3338,3339,3340,3341,3342,3343,3344,3345,3346,3347,3348,3349,3350,3351,3352,3353,3354,3355,3356,3357,3358,3359,3360,3361,3362,3363,3364,3365,3366,3367,3368,3369,3370,3371,3372,3373,3374,3375,3376,3377,3378,3379,3380,3381,3382,3383,3384,3385,3386,3387,3388,3389]
["VBA code:",{"$nulls":9},3400,3401,3402,3403,3404,3405,3406,3407,3408,3409,3410,3411,3412,3413,3414,3415,3416,3417,3418,3419,3420,3421,3422,3423,3424,3425,3426,3427,3428,3429,3430,3431,3432,3433,3434,3435,3436,3437,3438,3439,3440,3441,3442,3443,3444,3445,3446,3447,3448,3449,3450,3451,3452,3453,3454,3455,3456,3457,3458,3459,3460,3461,3462,3463,3464,3465,3466,3467,3468,3469,3470,3471,3472,3473,3474,3475,3476,3477,3478,3479,3480,3481,3482,3483,3484,3485,3486,3487,3488,3489]
["v = CStr(i)","0.05",{"$nulls":8},3500,3501,3502,3503,3504,3505,3506,3507,3508,3509,3510,3511,3512,3513,3514,3515,3516,3517,3518,3519,3520,3521,3522,3523,3524,3525,3526,3527,3528,3529,3530,3531,3532,3533,3534,3535,3536,3537,3538,3539,3540,3541,3542,3543,3544,3545,3546,3547,3548,3549,3550,3551,3552,3553,3554,3555,3556,3557,3558,3559,3560,3561,3562,3563,3564,3565,3566,3567,3568,3569,3570,3571,3572,3573,3574,3575,3576,3577,3578,3579,3580,3581,3582,3583,3584,3585,3586,3587,3588,3589]
["v = Format(i)","0.1","Very fast but slower than CStr()",{"$nulls":7},3600,3601,3602,3603,3604,3605,3606,3607,3608,3609,3610,3611,3612,3613,3614,3615,3616,3617,3618,3619,3620,3621,3622,3623,3624,3625,3626,3627,3628,3629,3630,3631,3632,3633,3634,3635,3636,3637,3638,3639,3640,3641,3642,3643,3644,3645,3646,3647,3648,3649,3650,3651,3652,3653,3654,3655,3656,3657,3658,3659,3660,3661,3662,3663,3664,3665,3666,3667,3668,3669,3670,3671,3672,3673,3674,3675,3676,3677,3678,3679,3680,3681,3682,3683,3684,3685,3686,3687,3688,3689]
["v = Format(i, \"0.0\")","0.2",{"$nulls":8},3700,3701,3702,3703,3704,3705,3706,3707,3708,3709,3710,3711,3712,3713,3714,3715,3716,3717,3718,3719,3720,3721,3722,3723,3724,3725,3726,3727,3728,3729,3730,3731,3732,3733,3734,3735,3736,3737,3738,3739,3740,3741,3742,3743,3744,3745,3746,3747,3748,3749,3750,3751,3752,3753,3754,3755,3756,3757,3758,3759,3760,3761,3762,3763,3764,3765,3766,3767,3768,3769,3770,3771,3772,3773,3774,3775,3776,3777,3778,3779,3780,3781,3782,3783,3784,3785,3786,3787,3788,3789]
["v = Instr(1,\"string of 10x a char long\",\"x\")","0.1",{"$nulls":8},3800,3801,3802,3803,3804,3805,3806,3807,3808,3809,3810,3811,3812,3813,3814,3815,3816,3817,3818,3819,3820,3821,3822,3823,3824,3825,3826,3827,3828,3829,3830,3831,3832,3833,3834,3835,3836,3837,3838,3839,3840,3841,3842,3843,3844,3845,3846,3847,3848,3849,3850,3851,3852,3853,3854,3855,3856,3857,3858,3859,3860,3861,3862,3863,3864,3865,3866,3867,3868,3869,3870,3871,3872,3873,3874,3875,3876,3877,3878,3879,3880,3881,3882,3883,3884,3885,3886,3887,3888,3889]
["v = Instr(1,\"string of 100x a char long\",\"x\")","0.3","0.2 when match found at pos 1",{"$nulls":7},3900,3901,3902,3903,3904,3905,3906,3907,3908,3909,3910,3911,3912,3913,3914,3915,3916,3917,3918,3919,3920,3921,3922,3923,3924,3925,3926,3927,3928,3929,3930,3931,3932,3933,3934,3935,3936,3937,3938,3939,3940,3941,3942,3943,3944,3945,3946,3947,3948,3949,3950,3951,3952,3953,3954,3955,3956,3957,3958,3959,3960,3961,3962,3963,3964,3965,3966,3967,3968,3969,3970,3971,3972,3973,3974,3975,3976,3977,3978,3979,3980,3981,3982,3983,3984,3985,3986,3987,3988,3989]
["v = Instr(1,\"string of 1000x a char long\",\"x\")","1.2","1.0 when match found at pos 1",{"$nulls":7},4000,4001,4002,4003,4004,4005,4006,4007,4008,4009,4010,4011,4012,4013,4014,4015,4016,4017,4018,4019,4020,4021,4022,4023,4024,4025,4026,4027,4028,4029,4030,4031,4032,4033,4034,4035,4036,4037,4038,4039,4040,4041,4042,4043,4044,4045,4046,4047,4048,4049,4050,4051,4052,4053,4054,4055,4056,4057,4058,4059,4060,4061,4062,4063,4064,4065,4066,4067,4068,4069,4070,4071,4072,4073,4074,4075,4076,4077,4078,4079,4080,4081,4082,4083,4084,4085,4086,4087,4088,4089]
["Set rng = Range(Cells(1, 1), Cells(10, 10))","2.0","size of range has little effect on execution time",{"$nulls":7},4100,4101,4102,4103,4104,4105,4106,4107,4108,4109,4110,4111,4112,4113,4114,4115,4116,4117,4118,4119,4120,4121,4122,4123,4124,4125,4126,4127,4128,4129,4130,4131,4132,4133,4134,4135,4136,4137,4138,4139,4140,4141,4142,4143,4144,4145,4146,4147,4148,4149,4150,4151,4152,4153,4154,4155,4156,4157,4158,4159,4160,4161,4162,4163,4164,4165,4166,4167,4168,4169,4170,4171,4172,4173,4174,4175,4176,4177,4178,4179,4180,4181,4182,4183,4184,4185,4186,4187,4188,4189]
["Set rng = Range(\"A1:CV100\")","2.0","size of range has little effect on execution time",{"$nulls":7},4200,4201,4202,4203,4204,4205,4206,4207,4208,4209,4210,4211,4212,4213,4214,4215,4216,4217,4218,4219,4220,4221,4222,4223,4224,4225,4226,4227,4228,4229,4230,4231,4232,4233,4234,4235,4236,4237,4238,4239,4240,4241,4242,4243,4244,4245,4246,4247,4248,4249,4250,4251,4252,4253,4254,4255,4256,4257,4258,4259,4260,4261,4262,4263,4264,4265,4266,4267,4268,4269,4270,4271,4272,4273,4274,4275,4276,4277,4278,4279,4280,4281,4282,4283,4284,4285,4286,4287,4288,4289]
["For r=1 to 1000 000\nNext r","0.002","exucuting an empty loop takes close to 0 sec",{"$nulls":7},4300,4301,4302,4303,4304,4305,4306,4307,4308,4309,4310,4311,4312,4313,4314,4315,4316,4317,4318,4319,4320,4321,4322,4323,4324,4325,4326,4327,4328,4329,4330,4331,4332,4333,4334,4335,4336,4337,4338,4339,4340,4341,4342,4343,4344,4345,4346,4347,4348,4349,4350,4351,4352,4353,4354,4355,4356,4357,4358,4359,4360,4361,4362,4363,4364,4365,4366,4367,4368,4369,4370,4371,4372,4373,4374,4375,4376,4377,4378,4379,4380,4381,4382,4383,4384,4385,4386,4387,4388,4389]
["Select Case i\n    Case 1\n    Case 2\n    Case 3\n    Case 4\n    Case 5\nEnd Select","0.02",{"$nulls":8},4400,4401,4402,4403,4404,4405,4406,4407,4408,4409,4410,4411,4412,4413,4414,4415,4416,4417,4418,4419,4420,4421,4422,4423,4424,4425,4426,4427,4428,4429,4430,4431,4432,4433,4434,4435,4436,4437,4438,4439,4440,4441,4442,4443,4444,4445,4446,4447,4448,4449,4450,4451,4452,4453,4454,4455,4456,4457,4458,4459,4460,4461,4462,4463,4464,4465,4466,4467,4468,4469,4470,4471,4472,4473,4474,4475,4476,4477,4478,4479,4480,4481,4482,4483,4484,4485,4486,4487,4488,4489]
["If i = 1 Then\n    ElseIf i = 2 Then\n    ElseIf i = 3 Then\n    ElseIf i = 4 Then\n    ElseIf i = 5 Then\nEnd If","0.016","This is only a little faster than the equivalent 'Select Case' statement but perhaps less elegant",{"$nulls":7},4500,4501,4502,4503,4504,4505,4506,4507,4508,4509,4510,4511,4512,4513,4514,4515,4516,4517,4518,4519,4520,4521,4522,4523,4524,4525,4526,4527,4528,4529,4530,4531,4532,4533,4534,4535,4536,4537,4538,4539,4540,4541,4542,4543,4544,4545,4546,4547,4548,4549,4550,4551,4552,4553,4554,4555,4556,4557,4558,4559,4560,4561,4562,4563,4564,4565,4566,4567,4568,4569,4570,4571,4572,4573,4574,4575,4576,4577,4578,4579,4580,4581,4582,4583,4584,4585,4586,4587,4588,4589]
["If Not Intersect(Target, Range(\"A58\")) Is Nothing Then\n    ' code to execute\nEnd If",6,"Execution time largely independent from range. ",{"$nulls":7},4600,4601,4602,4603,4604,4605,4606,4607,4608,4609,4610,4611,4612,4613,4614,4615,4616,4617,4618,4619,4620,4621,4622,4623,4624,4625,4626,4627,4628,4629,4630,4631,4632,4633,4634,4635,4636,4637,4638,4639,4640,4641,4642,4643,4644,4645,4646,4647,4648,4649,4650,4651,4652,4653,4654,4655,4656,4657,4658,4659,4660,4661,4662,4663,4664,4665,4666,4667,4668,4669,4670,4671,4672,4673,4674,4675,4676,4677,4678,4679,4680,4681,4682,4683,4684,4685,4686,4687,4688,4689]
["If (Target.Column = 1) And (Target.Row = 58) Then\n    ' code to execute\nEnd If",1,"Faster then intersect",{"$nulls":7},4700,4701,4702,4703,4704,4705,4706,4707,4708,4709,4710,4711,4712,4713,4714,4715,4716,4717,4718,4719,4720,4721,4722,4723,4724,4725,4726,4727,4728,4729,4730,4731,4732,4733,4734,4735,4736,4737,4738,4739,4740,4741,4742,4743,4744,4745,4746,4747,4748,4749,4750,4751,4752,4753,4754,4755,4756,4757,4758,4759,4760,4761,4762,4763,4764,4765,4766,4767,4768,4769,4770,4771,4772,4773,4774,4775,4776,4777,4778,4779,4780,4781,4782,4783,4784,4785,4786,4787,4788,4789]
["Code Snippet","Time [mSec]","Remark",{"$nulls":7},4800,4801,4802,4803,4804,4805,4806,4807,4808,4809,4810,4811,4812,4813,4814,4815,4816,4817,4818,4819,4820,4821,4822,4823,4824,4825,4826,4827,4828,4829,4830,4831,4832,4833,4834,4835,4836,4837,4838,4839,4840,4841,4842,4843,4844,4845,4846,4847,4848,4849,4850,4851,4852,4853,4854,4855,4856,4857,4858,4859,4860,4861,4862,4863,4864,4865,4866,4867,4868,4869,4870,4871,4872,4873,4874,4875,4876,4877,4878,4879,4880,4881,4882,4883,4884,4885,4886,4887,4888,4889]
["Reading Range:",{"$nulls":9},4900,4901,4902,4903,4904,4905,4906,4907,4908,4909,4910,4911,4912,4913,4914,4915,4916,4917,4918,4919,4920,4921,4922,4923,4924,4925,4926,4927,4928,4929,4930,4931,4932,4933,4934,4935,4936,4937,4938,4939,4940,4941,4942,4943,4944,4945,4946,4947,4948,4949,4950,4951,4952,4953,4954,4955,4956,4957,4958,4959,4960,4961,4962,4963,4964,4965,4966,4967,4968,4969,4970,4971,4972,4973,4974,4975,4976,4977,4978,4979,4980,4981,4982,4983,4984,4985,4986,4987,4988,4989]
["shArr = Sheet8.Range(Cells(1,1),Cells(100,100))","0.25","Dim shArr() as Variant",{"$nulls":7},5000,5001,5002,5003,5004,5005,5006,5007,5008,5009,5010,5011,5012,5013,5014,5015,5016,5017,5018,5019,5020,5021,5022,5023,5024,5025,5026,5027,5028,5029,5030,5031,5032,5033,5034,5035,5036,5037,5038,5039,5040,5041,5042,5043,5044,5045,5046,5047,5048,5049,5050,5051,5052,5053,5054,5055,5056,5057,5058,5059,5060,5061,5062,5063,5064,5065,5066,5067,5068,5069,5070,5071,5072,5073,5074,5075,5076,5077,5078,5079,5080,5081,5082,5083,5084,5085,5086,5087,5088,5089]
["    For r = 1 To 100\n        For c = 1 To 100\n            shArr(r, c) = Cells(r, c)\n        Next c\n    Next r",18,"Dim shArr(1 to 100, 1 to 100) as Variant",{"$nulls":7},5100,5101,5102,5103,5104,5105,5106,5107,5108,5109,5110,5111,5112,5113,5114,5115,5116,5117,5118,5119,5120,5121,5122,5123,5124,5125,5126,5127,5128,5129,5130,5131,5132,5133,5134,5135,5136,5137,5138,5139,5140,5141,5142,5143,5144,5145,5146,5147,5148,5149,5150,5151,5152,5153,5154,5155,5156,5157,5158,5159,5160,5161,5162,5163,5164,5165,5166,5167,5168,5169,5170,5171,5172,5173,5174,5175,5176,5177,5178,5179,5180,5181,5182,5183,5184,5185,5186,5187,5188,5189]
["shArr = Sheet8.Range(Cells(1,1),Cells(1000,1000))",30,"Dim shArr() as Variant",{"$nulls":7},5200,5201,5202,5203,5204,5205,5206,5207,5208,5209,5210,5211,5212,5213,5214,5215,5216,5217,5218,5219,5220,5221,5222,5223,5224,5225,5226,5227,5228,5229,5230,5231,5232,5233,5234,5235,5236,5237,5238,5239,5240,5241,5242,5243,5244,5245,5246,5247,5248,5249,5250,5251,5252,5253,5254,5255,5256,5257,5258,5259,5260,5261,5262,5263,5264,5265,5266,5267,5268,5269,5270,5271,5272,5273,5274,5275,5276,5277,5278,5279,5280,5281,5282,5283,5284,5285,5286,5287,5288,5289]
["    For r = 1 To 1000\n        For c = 1 To 1000\n            shArr(r, c) = Cells(r, c)\n        Next c\n    Next r",1700,"Dim shArr(1 to 1000, 1 to 1000) as Variant",{"$nulls":7},5300,5301,5302,5303,5304,5305,5306,5307,5308,5309,5310,5311,5312,5313,5314,5315,5316,5317,5318,5319,5320,5321,5322,5323,5324,5325,5326,5327,5328,5329,5330,5331,5332,5333,5334,5335,5336,5337,5338,5339,5340,5341,5342,5343,5344,5345,5346,5347,5348,5349,5350,5351,5352,5353,5354,5355,5356,5357,5358,5359,5360,5361,5362,5363,5364,5365,5366,5367,5368,5369,5370,5371,5372,5373,5374,5375,5376,5377,5378,5379,5380,5381,5382,5383,5384,5385,5386,5387,5388,5389]
["Writing Range:",{"$nulls":9},5400,5401,5402,5403,5404,5405,5406,5407,5408,5409,5410,5411,5412,5413,5414,5415,5416,5417,5418,5419,5420,5421,5422,5423,5424,5425,5426,5427,5428,5429,5430,5431,5432,5433,5434,5435,5436,5437,5438,5439,5440,5441,5442,5443,5444,5445,5446,5447,5448,5449,5450,5451,5452,5453,5454,5455,5456,5457,5458,5459,5460,5461,5462,5463,5464,5465,5466,5467,5468,5469,5470,5471,5472,5473,5474,5475,5476,5477,5478,5479,5480,5481,5482,5483,5484,5485,5486,5487,5488,5489]
["Range(Cells(1,1),Cells(100,100)).Value = shArr",4,"Dim shArr() as Variant.  shArr filled with numers 0 to 9999",{"$nulls":7},5500,5501,5502,5503,5504,5505,5506,5507,5508,5509,5510,5511,5512,5513,5514,5515,5516,5517,5518,5519,5520,5521,5522,5523,5524,5525,5526,5527,5528,5529,5530,5531,5532,5533,5534,5535,5536,5537,5538,5539,5540,5541,5542,5543,5544,5545,5546,5547,5548,5549,5550,5551,5552,5553,5554,5555,5556,5557,5558,5559,5560,5561,5562,5563,5564,5565,5566,5567,5568,5569,5570,5571,5572,5573,5574,5575,5576,5577,5578,5579,5580,5581,5582,5583,5584,5585,5586,5587,5588,5589]
["    For r = 1 To 100\n        For c = 1 To 100\n            Cells(r, c) = shArr(r, c)\n        Next c\n    Next r",130,"Dim shArr(1 to 100, 1 to 100) as Variant",{"$nulls":7},5600,5601,5602,5603,5604,5605,5606,5607,5608,5609,5610,5611,5612,5613,5614,5615,5616,5617,5618,5619,5620,5621,5622,5623,5624,5625,5626,5627,5628,5629,5630,5631,5632,5633,5634,5635,5636,5637,5638,5639,5640,5641,5642,5643,5644,5645,5646,5647,5648,5649,5650,5651,5652,5653,5654,5655,5656,5657,5658,5659,5660,5661,5662,5663,5664,5665,5666,5667,5668,5669,5670,5671,5672,5673,5674,5675,5676,5677,5678,5679,5680,5681,5682,5683,5684,5685,5686,5687,5688,5689]
["Range(Cells(1,1),Cells(1000,1000)).Value = shArr ",400,"Dim shArr() as Variant. shArr filled with numers 0 to 999999",{"$nulls":7},5700,5701,5702,5703,5704,5705,5706,5707,5708,5709,5710,5711,5712,5713,5714,5715,5716,5717,5718,5719,5720,5721,5722,5723,5724,5725,5726,5727,5728,5729,5730,5731,5732,5733,5734,5735,5736,5737,5738,5739,5740,5741,5742,5743,5744,5745,5746,5747,5748,5749,5750,5751,5752,5753,5754,5755,5756,5757,5758,5759,5760,5761,5762,5763,5764,5765,5766,5767,5768,5769,5770,5771,5772,5773,5774,5775,5776,5777,5778,5779,5780,5781,5782,5783,5784,5785,5786,5787,5788,5789]
["    For r = 1 To 1000\n        For c = 1 To 1000\n             Cells(r, c) = shArr(r, c)\n        Next c\n    Next r",12400,"Dim shArr(1 to 1000, 1 to 1000) as Variant",{"$nulls":7},5800,5801,5802,5803,5804,5805,5806,5807,5808,5809,5810,5811,5812,5813,5814,5815,5816,5817,5818,5819,5820,5821,5822,5823,5824,5825,5826,5827,5828,5829,5830,5831,5832,5833,5834,5835,5836,5837,5838,5839,5840,5841,5842,5843,5844,5845,5846,5847,5848,5849,5850,5851,5852,5853,5854,5855,5856,5857,5858,5859,5860,5861,5862,5863,5864,5865,5866,5867,5868,5869,5870,5871,5872,5873,5874,5875,5876,5877,5878,5879,5880,5881,5882,5883,5884,5885,5886,5887,5888,5889]
[{"$nulls":10},5900,5901,5902,5903,5904,5905,5906,5907,5908,5909,5910,5911,5912,5913,5914,5915,5916,5917,5918,5919,5920,5921,5922,5923,5924,5925,5926,5927,5928,5929,5930,5931,5932,5933,5934,5935,5936,5937,5938,5939,5940,5941,5942,5943,5944,5945,5946,5947,5948,5949,5950,5951,5952,5953,5954,5955,5956,5957,5958,5959,5960,5961,5962,5963,5964,5965,5966,5967,5968,5969,5970,5971,5972,5973,5974,5975,5976,5977,5978,5979,5980,5981,5982,5983,5984,5985,5986,5987,5988,5989]
[null,1,{"$nulls":8},6000,6001,6002,6003,6004,6005,6006,6007,6008,6009,6010,6011,6012,6013,6014,6015,6016,6017,6018,6019,6020,6021,6022,6023,6024,6025,6026,6027,6028,6029,6030,6031,6032,6033,6034,6035,6036,6037,6038,6039,6040,6041,6042,6043,6044,6045,6046,6047,6048,6049,6050,6051,6052,6053,6054,6055,6056,6057,6058,6059,6060,6061,6062,6063,6064,6065,6066,6067,6068,6069,6070,6071,6072,6073,6074,6075,6076,6077,6078,6079,6080,6081,6082,6083,6084,6085,6086,6087,6088,6089]
[null,1,{"$nulls":8},6100,6101,6102,6103,6104,6105,6106,6107,6108,6109,6110,6111,6112,6113,6114,6115,6116,6117,6118,6119,6120,6121,6122,6123,6124,6125,6126,6127,6128,6129,6130,6131,6132,6133,6134,6135,6136,6137,6138,6139,6140,6141,6142,6143,6144,6145,6146,6147,6148,6149,6150,6151,6152,6153,6154,6155,6156,6157,6158,6159,6160,6161,6162,6163,6164,6165,6166,6167,6168,6169,6170,6171,6172,6173,6174,6175,6176,6177,6178,6179,6180,6181,6182,6183,6184,6185,6186,6187,6188,6189]
[null,1,{"$nulls":8},6200,6201,6202,6203,6204,6205,6206,6207,6208,6209,6210,6211,6212,6213,6214,6215,6216,6217,6218,6219,6220,6221,6222,6223,6224,6225,6226,6227,6228,6229,6230,6231,6232,6233,6234,6235,6236,6237,6238,6239,6240,6241,6242,6243,6244,6245,6246,6247,6248,6249,6250,6251,6252,6253,6254,6255,6256,6257,6258,6259,6260,6261,6262,6263,6264,6265,6266,6267,6268,6269,6270,6271,6272,6273,6274,6275,6276,6277,6278,6279,6280,6281,6282,6283,6284,6285,6286,6287,6288,6289]
[null,1,{"$nulls":8},6300,6301,6302,6303,6304,6305,6306,6307,6308,6309,6310,6311,6312,6313,6314,6315,6316,6317,6318,6319,6320,6321,6322,6323,6324,6325,6326,6327,6328,6329,6330,6331,6332,6333,6334,6335,6336,6337,6338,6339,6340,6341,6342,6343,6344,6345,6346,6347,6348,6349,6350,6351,6352,6353,6354,6355,6356,6357,6358,6359,6360,6361,6362,6363,6364,6365,6366,6367,6368,6369,6370,6371,6372,6373,6374,6375,6376,6377,6378,6379,6380,6381,6382,6383,6384,6385,6386,6387,6388,6389]
[null,1,{"$nulls":8},6400,6401,6402,6403,6404,6405,6406,6407,6408,6409,6410,6411,6412,6413,6414,6415,6416,6417,6418,6419,6420,6421,6422,6423,6424,6425,6426,6427,6428,6429,6430,6431,6432,6433,6434,6435,6436,6437,6438,6439,6440,6441,6442,6443,6444,6445,6446,6447,6448,6449,6450,6451,6452,6453,6454,6455,6456,6457,6458,6459,6460,6461,6462,6463,6464,6465,6466,6467,6468,6469,6470,6471,6472,6473,6474,6475,6476,6477,6478,6479,6480,6481,6482,6483,6484,6485,6486,6487,6488,6489]
[null,1,{"$nulls":8},6500,6501,6502,6503,6504,6505,6506,6507,6508,6509,6510,6511,6512,6513,6514,6515,6516,6517,6518,6519,6520,6521,6522,6523,6524,6525,6526,6527,6528,6529,6530,6531,6532,6533,6534,6535,6536,6537,6538,6539,6540,6541,6542,6543,6544,6545,6546,6547,6548,6549,6550,6551,6552,6553,6554,6555,6556,6557,6558,6559,6560,6561,6562,6563,6564,6565,6566,6567,6568,6569,6570,6571,6572,6573,6574,6575,6576,6577,6578,6579,6580,6581,6582,6583,6584,6585,6586,6587,6588,6589]
[null,1,{"$nulls":8},6600,6601,6602,6603,6604,6605,6606,6607,6608,6609,6610,6611,6612,6613,6614,6615,6616,6617,6618,6619,6620,6621,6622,6623,6624,6625,6626,6627,6628,6629,6630,6631,6632,6633,6634,6635,6636,6637,6638,6639,6640,6641,6642,6643,6644,6645,6646,6647,6648,6649,6650,6651,6652,6653,6654,6655,6656,6657,6658,6659,6660,6661,6662,6663,6664,6665,6666,6667,6668,6669,6670,6671,6672,6673,6674,6675,6676,6677,6678,6679,6680,6681,6682,6683,6684,6685,6686,6687,6688,6689]
[null,1,{"$nulls":8},6700,6701,6702,6703,6704,6705,6706,6707,6708,6709,6710,6711,6712,6713,6714,6715,6716,6717,6718,6719,6720,6721,6722,6723,6724,6725,6726,6727,6728,6729,6730,6731,6732,6733,6734,6735,6736,6737,6738,6739,6740,6741,6742,6743,6744,6745,6746,6747,6748,6749,6750,6751,6752,6753,6754,6755,6756,6757,6758,6759,6760,6761,6762,6763,6764,6765,6766,6767,6768,6769,6770,6771,6772,6773,6774,6775,6776,6777,6778,6779,6780,6781,6782,6783,6784,6785,6786,6787,6788,6789]
[null,1,{"$nulls":8},6800,6801,6802,6803,6804,6805,6806,6807,6808,6809,6810,6811,6812,6813,6814,6815,6816,6817,6818,6819,6820,6821,6822,6823,6824,6825,6826,6827,6828,6829,6830,6831,6832,6833,6834,6835,6836,6837,6838,6839,6840,6841,6842,6843,6844,6845,6846,6847,6848,6849,6850,6851,6852,6853,6854,6855,6856,6857,6858,6859,6860,6861,6862,6863,6864,6865,6866,6867,6868,6869,6870,6871,6872,6873,6874,6875,6876,6877,6878,6879,6880,6881,6882,6883,6884,6885,6886,6887,6888,6889]
[null,1,{"$nulls":8},6900,6901,6902,6903,6904,6905,6906,6907,6908,6909,6910,6911,6912,6913,6914,6915,6916,6917,6918,6919,6920,6921,6922,6923,6924,6925,6926,6927,6928,6929,6930,6931,6932,6933,6934,6935,6936,6937,6938,6939,6940,6941,6942,6943,6944,6945,6946,6947,6948,6949,6950,6951,6952,6953,6954,6955,6956,6957,6958,6959,6960,6961,6962,6963,6964,6965,6966,6967,6968,6969,6970,6971,6972,6973,6974,6975,6976,6977,6978,6979,6980,6981,6982,6983,6984,6985,6986,6987,6988,6989]
[null,1,{"$nulls":8},7000,7001,7002,7003,7004,7005,7006,7007,7008,7009,7010,7011,7012,7013,7014,7015,7016,7017,7018,7019,7020,7021,7022,7023,7024,7025,7026,7027,7028,7029,7030,7031,7032,7033,7034,7035,7036,7037,7038,7039,7040,7041,7042,7043,7044,7045,7046,7047,7048,7049,7050,7051,7052,7053,7054,7055,7056,7057,7058,7059,7060,7061,7062,7063,7064,7065,7066,7067,7068,7069,7070,7071,7072,7073,7074,7075,7076,7077,7078,7079,7080,7081,7082,7083,7084,7085,7086,7087,7088,7089]
[null,1,{"$nulls":8},7100,7101,7102,7103,7104,7105,7106,7107,7108,7109,7110,7111,7112,7113,7114,7115,7116,7117,7118,7119,7120,7121,7122,7123,7124,7125,7126,7127,7128,7129,7130,7131,7132,7133,7134,7135,7136,7137,7138,7139,7140,7141,7142,7143,7144,7145,7146,7147,7148,7149,7150,7151,7152,7153,7154,7155,7156,7157,7158,7159,7160,7161,7162,7163,7164,7165,7166,7167,7168,7169,7170,7171,7172,7173,7174,7175,7176,7177,7178,7179,7180,7181,7182,7183,7184,7185,7186,7187,7188,7189]
[null,1,{"$nulls":8},7200,7201,7202,7203,7204,7205,7206,7207,7208,7209,7210,7211,7212,7213,7214,7215,7216,7217,7218,7219,7220,7221,7222,7223,7224,7225,7226,7227,7228,7229,7230,7231,7232,7233,7234,7235,7236,7237,7238,7239,7240,7241,7242,7243,7244,7245,7246,7247,7248,7249,7250,7251,7252,7253,7254,7255,7256,7257,7258,7259,7260,7261,7262,7263,7264,7265,7266,7267,7268,7269,7270,7271,7272,7273,7274,7275,7276,7277,7278,7279,7280,7281,7282,7283,7284,7285,7286,7287,7288,7289]
[null,1,{"$nulls":8},7300,7301,7302,7303,7304,7305,7306,7307,7308,7309,7310,7311,7312,7313,7314,7315,7316,7317,7318,7319,7320,7321,7322,7323,7324,7325,7326,7327,7328,7329,7330,7331,7332,7333,7334,7335,7336,7337,7338,7339,7340,7341,7342,7343,7344,7345,7346,7347,7348,7349,7350,7351,7352,7353,7354,7355,7356,7357,7358,7359,7360,7361,7362,7363,7364,7365,7366,7367,7368,7369,7370,7371,7372,7373,7374,7375,7376,7377,7378,7379,7380,7381,7382,7383,7384,7385,7386,7387,7388,7389]
[null,1,{"$nulls":8},7400,7401,7402,7403,7404,7405,7406,7407,7408,7409,7410,7411,7412,7413,7414,7415,7416,7417,7418,7419,7420,7421,7422,7423,7424,7425,7426,7427,7428,7429,7430,7431,7432,7433,7434,7435,7436,7437,7438,7439,7440,7441,7442,7443,7444,7445,7446,7447,7448,7449,7450,7451,7452,7453,7454,7455,7456,7457,7458,7459,7460,7461,7462,7463,7464,7465,7466,7467,7468,7469,7470,7471,7472,7473,7474,7475,7476,7477,7478,7479,7480,7481,7482,7483,7484,7485,7486,7487,7488,7489]
[null,1,{"$nulls":8},7500,7501,7502,7503,7504,7505,7506,7507,7508,7509,7510,7511,7512,7513,7514,7515,7516,7517,7518,7519,7520,7521,7522,7523,7524,7525,7526,7527,7528,7529,7530,7531,7532,7533,7534,7535,7536,7537,7538,7539,7540,7541,7542,7543,7544,7545,7546,7547,7548,7549,7550,7551,7552,7553,7554,7555,7556,7557,7558,7559,7560,7561,7562,7563,7564,7565,7566,7567,7568,7569,7570,7571,7572,7573,7574,7575,7576,7577,7578,7579,7580,7581,7582,7583,7584,7585,7586,7587,7588,7589]
[null,1,{"$nulls":8},7600,7601,7602,7603,7604,7605,7606,7607,7608,7609,7610,7611,7612,7613,7614,7615,7616,7617,7618,7619,7620,7621,7622,7623,7624,7625,7626,7627,7628,7629,7630,7631,7632,7633,7634,7635,7636,7637,7638,7639,7640,7641,7642,7643,7644,7645,7646,7647,7648,7649,7650,7651,7652,7653,7654,7655,7656,7657,7658,7659,7660,7661,7662,7663,7664,7665,7666,7667,7668,7669,7670,7671,7672,7673,7674,7675,7676,7677,7678,7679,7680,7681,7682,7683,7684,7685,7686,7687,7688,7689]
[null,1,{"$nulls":8},7700,7701,7702,7703,7704,7705,7706,7707,7708,7709,7710,7711,7712,7713,7714,7715,7716,7717,7718,7719,7720,7721,7722,7723,7724,7725,7726,7727,7728,7729,7730,7731,7732,7733,7734,7735,7736,7737,7738,7739,7740,7741,7742,7743,7744,7745,7746,7747,7748,7749,7750,7751,7752,7753,7754,7755,7756,7757,7758,7759,7760,7761,7762,7763,7764,7765,7766,7767,7768,7769,7770,7771,7772,7773,7774,7775,7776,7777,7778,7779,7780,7781,7782,7783,7784,7785,7786,7787,7788,7789]
[null,1,{"$nulls":8},7800,7801,7802,7803,7804,7805,7806,7807,7808,7809,7810,7811,7812,7813,7814,7815,7816,7817,7818,7819,7820,7821,7822,7823,7824,7825,7826,7827,7828,7829,7830,7831,7832,7833,7834,7835,7836,7837,7838,7839,7840,7841,7842,7843,7844,7845,7846,7847,7848,7849,7850,7851,7852,7853,7854,7855,7856,7857,7858,7859,7860,7861,7862,7863,7864,7865,7866,7867,7868,7869,7870,7871,7872,7873,7874,7875,7876,7877,7878,7879,7880,7881,7882,7883,7884,7885,7886,7887,7888,7889]
[null,1,{"$nulls":8},7900,7901,7902,7903,7904,7905,7906,7907,7908,7909,7910,7911,7912,7913,7914,7915,7916,7917,7918,7919,7920,7921,7922,7923,7924,7925,7926,7927,7928,7929,7930,7931,7932,7933,7934,7935,7936,7937,7938,7939,7940,7941,7942,7943,7944,7945,7946,7947,7948,7949,7950,7951,7952,7953,7954,7955,7956,7957,7958,7959,7960,7961,7962,7963,7964,7965,7966,7967,7968,7969,7970,7971,7972,7973,7974,7975,7976,7977,7978,7979,7980,7981,7982,7983,7984,7985,7986,7987,7988,7989]
[null,1,{"$nulls":8},8000,8001,8002,8003,8004,8005,8006,8007,8008,8009,8010,8011,8012,8013,8014,8015,8016,8017,8018,8019,8020,8021,8022,8023,8024,8025,8026,8027,8028,8029,8030,8031,8032,8033,8034,8035,8036,8037,8038,8039,8040,8041,8042,8043,8044,8045,8046,8047,8048,8049,8050,8051,8052,8053,8054,8055,8056,8057,8058,8059,8060,8061,8062,8063,8064,8065,8066,8067,8068,8069,8070,8071,8072,8073,8074,8075,8076,8077,8078,8079,8080,8081,8082,8083,8084,8085,8086,8087,8088,8089]
[null,1,{"$nulls":8},8100,8101,8102,8103,8104,8105,8106,8107,8108,8109,8110,8111,8112,8113,8114,8115,8116,8117,8118,8119,8120,8121,8122,8123,8124,8125,8126,8127,8128,8129,8130,8131,8132,8133,8134,8135,8136,8137,8138,8139,8140,8141,8142,8143,8144,8145,8146,8147,8148,8149,8150,8151,8152,8153,8154,8155,8156,8157,8158,8159,8160,8161,8162,8163,8164,8165,8166,8167,8168,8169,8170,8171,8172,8173,8174,8175,8176,8177,8178,8179,8180,8181,8182,8183,8184,8185,8186,8187,8188,8189]
[null,1,{"$nulls":8},8200,8201,8202,8203,8204,8205,8206,8207,8208,8209,8210,8211,8212,8213,8214,8215,8216,8217,8218,8219,8220,8221,8222,8223,8224,8225,8226,8227,8228,8229,8230,8231,8232,8233,8234,8235,8236,8237,8238,8239,8240,8241,8242,8243,8244,8245,8246,8247,8248,8249,8250,8251,8252,8253,8254,8255,8256,8257,8258,8259,8260,8261,8262,8263,8264,8265,8266,8267,8268,8269,8270,8271,8272,8273,8274,8275,8276,8277,8278,8279,8280,8281,8282,8283,8284,8285,8286,8287,8288,8289]
[null,1,{"$nulls":8},8300,8301,8302,8303,8304,8305,8306,8307,8308,8309,8310,8311,8312,8313,8314,8315,8316,8317,8318,8319,8320,8321,8322,8323,8324,8325,8326,8327,8328,8329,8330,8331,8332,8333,8334,8335,8336,8337,8338,8339,8340,8341,8342,8343,8344,8345,8346,8347,8348,8349,8350,8351,8352,8353,8354,8355,8356,8357,8358,8359,8360,8361,8362,8363,8364,8365,8366,8367,8368,8369,8370,8371,8372,8373,8374,8375,8376,8377,8378,8379,8380,8381,8382,8383,8384,8385,8386,8387,8388,8389]
[null,1,{"$nulls":8},8400,8401,8402,8403,8404,8405,8406,8407,8408,8409,8410,8411,8412,8413,8414,8415,8416,8417,8418,8419,8420,8421,8422,8423,8424,8425,8426,8427,8428,8429,8430,8431,8432,8433,8434,8435,8436,8437,8438,8439,8440,8441,8442,8443,8444,8445,8446,8447,8448,8449,8450,8451,8452,8453,8454,8455,8456,8457,8458,8459,8460,8461,8462,8463,8464,8465,8466,8467,8468,8469,8470,8471,8472,8473,8474,8475,8476,8477,8478,8479,8480,8481,8482,8483,8484,8485,8486,8487,8488,8489]
[null,1,{"$nulls":8},8500,8501,8502,8503,8504,8505,8506,8507,8508,8509,8510,8511,8512,8513,8514,8515,8516,8517,8518,8519,8520,8521,8522,8523,8524,8525,8526,8527,8528,8529,8530,8531,8532,8533,8534,8535,8536,8537,8538,8539,8540,8541,8542,8543,8544,8545,8546,8547,8548,8549,8550,8551,8552,8553,8554,8555,8556,8557,8558,8559,8560,8561,8562,8563,8564,8565,8566,8567,8568,8569,8570,8571,8572,8573,8574,8575,8576,8577,8578,8579,8580,8581,8582,8583,8584,8585,8586,8587,8588,8589]
[null,1,{"$nulls":8},8600,8601,8602,8603,8604,8605,8606,8607,8608,8609,8610,8611,8612,8613,8614,8615,8616,8617,8618,8619,8620,8621,8622,8623,8624,8625,8626,8627,8628,8629,8630,8631,8632,8633,8634,8635,8636,8637,8638,8639,8640,8641,8642,8643,8644,8645,8646,8647,8648,8649,8650,8651,8652,8653,8654,8655,8656,8657,8658,8659,8660,8661,8662,8663,8664,8665,8666,8667,8668,8669,8670,8671,8672,8673,8674,8675,8676,8677,8678,8679,8680,8681,8682,8683,8684,8685,8686,8687,8688,8689]
[null,1,{"$nulls":8},8700,8701,8702,8703,8704,8705,8706,8707,8708,8709,8710,8711,8712,8713,8714,8715,8716,8717,8718,8719,8720,8721,8722,8723,8724,8725,8726,8727,8728,8729,8730,8731,8732,8733,8734,8735,8736,8737,8738,8739,8740,8741,8742,8743,8744,8745,8746,8747,8748,8749,8750,8751,8752,8753,8754,8755,8756,8757,8758,8759,8760,8761,8762,8763,8764,8765,8766,8767,8768,8769,8770,8771,8772,8773,8774,8775,8776,8777,8778,8779,8780,8781,8782,8783,8784,8785,8786,8787,8788,8789]
[null,1,{"$nulls":8},8800,8801,8802,8803,8804,8805,8806,8807,8808,8809,8810,8811,8812,8813,8814,8815,8816,8817,8818,8819,8820,8821,8822,8823,8824,8825,8826,8827,8828,8829,8830,8831,8832,8833,8834,8835,8836,8837,8838,8839,8840,8841,8842,8843,8844,8845,8846,8847,8848,8849,8850,8851,8852,8853,8854,8855,8856,8857,8858,8859,8860,8861,8862,8863,8864,8865,8866,8867,8868,8869,8870,8871,8872,8873,8874,8875,8876,8877,8878,8879,8880,8881,8882,8883,8884,8885,8886,8887,8888,8889]
[null,1,{"$nulls":8},8900,8901,8902,8903,8904,8905,8906,8907,8908,8909,8910,8911,8912,8913,8914,8915,8916,8917,8918,8919,8920,8921,8922,8923,8924,8925,8926,8927,8928,8929,8930,8931,8932,8933,8934,8935,8936,8937,8938,8939,8940,8941,8942,8943,8944,8945,8946,8947,8948,8949,8950,8951,8952,8953,8954,8955,8956,8957,8958,8959,8960,8961,8962,8963,8964,8965,8966,8967,8968,8969,8970,8971,8972,8973,8974,8975,8976,8977,8978,8979,8980,8981,8982,8983,8984,8985,8986,8987,8988,8989]
[null,1]
[null,1]
[null,1]
[null,1]
[null,1]
[null,1]
[null,1]
[null,1]
[null,1]
[null,1]
["lookup 100","Row100"]
[null,1]
[null,1]
[null,1]
[null,1]
[null,1]
[null,1]
[null,1]
[null,1]
[null,1]
[null,1]
[null,1]
[null,1]
[null,1]
[null,1]
[null,1]
[null,1]
[null,1]
[null,1]
[null,1]
[null,1]
[null,1]
[null,1]
[null,1]
[null,1]
[null,1]
[null,1]
[null,1]
[null,1]
[null,1]
[null,1]
[null,1]
[null,1]
[null,1]
[null,1]
[null,1]
[null,1]
[null,1]
[null,1]
[null,1]
[null,1]
[null,1]
[null,1]
[null,1]
[null,1]
[null,1]
[null,1]
[null,1]
[null,1]
[null,1]
[null,1]
[null,1]
[null,1]
[null,1]
[null,1]
[null,1]
[null,1]
[null,1]
[null,1]
[null,1]
[null,1]
[null,1]
[null,1]
[null,1]
[null,1]
[null,1]
[null,1]
[null,1]
[null,1]
[null,1]
[null,1]
[null,1]
[null,1]
[null,1]
[null,1]
[null,1]
[null,1]
[null,1]
[null,1]
[null,1]
[null,1]
[null,1]
[null,1]
[null,1]
[null,1]
[null,1]
[null,1]
[null,1]
[null,1]
[null,1]
[null,1]
[null,1]
[null,1]
[null,1]
[null,1]
[null,1]
[null,1]
[null,1]
[null,1]
[null,1]
[null,1]
[null,1]
[null,1]
[null,1]
[null,1]
[null,1]
[null,1]
[null,1]
[null,1]
[null,1]
[null,1]
[null,1]
[null,1]
[null,1]
[null,1]
[null,1]
[null,1]
[null,1]
[null,1]
[null,1]
[null,1]
[null,1]
[null,1]
[null,1]
[null,1]
[null,1]
[null,1]
[null,1]
[null,1]
[null,1]
[null,1]
[null,1]
[null,1]
[null,1]
[null,1]
[null,1]
[null,1]
[null,1]
[null,1]
[null,1]
[null,1]
[null,1]
[null,1]
[null,1]
[null,1]
[null,1]
[null,1]
[null,1]
[null,1]
[null,1]
[null,1]
[null,1]
[null,1]
[null,1]
[null,1]
[null,1]
[null,1]
[null,1]
[null,1]
[null,1]
[null,1]
[null,1]
[null,1]
[null,1]
[null,1]
[null,1]
[null,1]
[null,1]
[null,1]
[null,1]
[null,1]
[null,1]
[null,1]
[null,1]
[null,1]
[null,1]
[null,1]
[null,1]
[null,1]
[null,1]
[null,1]
[null,1]
[null,1]
[null,1]
[null,1]
[null,1]
[null,1]
[null,1]
[null,1]
[null,1]
[null,1]
[null,1]
[null,1]
[null,1]
[null,1]
[null,1]
[null,1]
[null,1]
[null,1]
[null,1]
[null,1]
[null,1]
[null,1]
[null,1]
[null,1]
[null,1]
[null,1]
[null,1]
[null,1]
[null,1]
[null,1]
[null,1]
[null,1]
[null,1]
[null,1]
[null,1]
[null,1]
[null,1]
[null,1]
[null,1]
[null,1]
[null,1]
[null,1]
[null,1]
[null,1]
[null,1]
[null,1]
[null,1]
[null,1]
[null,1]
[null,1]
[null,1]
[null,1]
[null,1]
[null,1]
[null,1]
[null,1]
[null,1]
[null,1]
[null,1]
[null,1]
[null,1]
[null,1]
[null,1]
[null,1]
[null,1]
[null,1]
[null,1]
[null,1]
[null,1]
[null,1]
[null,1]
[null,1]
[null,1]
[null,1]
[null,1]
[null,1]
[null,1]
[null,1]
[null,1]
[null,1]
[null,1]
[null,1]
[null,1]
[null,1]
[null,1]
[null,1]
[null,1]
[null,1]
[null,1]
[null,1]
[null,1]
[null,1]
[null,1]
[null,1]
[null,1]
[null,1]
[null,1]
[null,1]
[null,1]
[null,1]
[null,1]
[null,1]
[null,1]
[null,1]
[null,1]
[null,1]
[null,1]
[null,1]
[null,1]
[null,1]
[null,1]
[null,1]
[null,1]
[null,1]
[null,1]
[null,1]
[null,1]
[null,1]
[null,1]
[null,1]
[null,1]
[null,1]
[null,1]
[null,1]
[null,1]
[null,1]
[null,1]
[null,1]
[null,1]
[null,1]
[null,1]
[null,1]
[null,1]
[null,1]
[null,1]
[null,1]
[null,1]
[null,1]
[null,1]
[null,1]
[null,1]
[null,1]
[null,1]
[null,1]
[null,1]
[null,1]
[null,1]
[null,1]
[null,1]
[null,1]
[null,1]
[null,1]
[null,1]
[null,1]
[null,1]
[null,1]
[null,1]
[null,1]
[null,1]
[null,1]
[null,1]
[null,1]
[null,1]
[null,1]
[null,1]
[null,1]
[null,1]
[null,1]
[null,1]
[null,1]
[null,1]
[null,1]
[null,1]
[null,1]
[null,1]
[null,1]
[null,1]
[null,1]
[null,1]
[null,1]
[null,1]
[null,1]
[null,1]
[null,1]
[null,1]
[null,1]
[null,1]
[null,1]
[null,1]
[null,1]
[null,1]
[null,1]
[null,1]
[null,1]
[null,1]
[null,1]
[null,1]
[null,1]
[null,1]
[null,1]
[null,1]
[null,1]
[null,1]
[null,1]
[null,1]
[null,1]
[null,1]
[null,1]
[null,1]
[null,1]
[null,1]
[null,1]
[null,1]
[null,1]
[null,1]
[null,1]
[null,1]
[null,1]
[null,1]
[null,1]
[null,1]
[null,1]
[null,1]
[null,1]
[null,1]
[null,1]
[null,1]
[null,1]
[null,1]
[null,1]
[null,1]
[null,1]
[null,1]
[null,1]
[null,1]
[null,1]
[null,1]
[null,1]
[null,1]
[null,1]
[null,1]
[null,1]
[null,1]
[null,1]
[null,1]
[null,1]
[null,1]
[null,1]
[null,1]
[null,1]
[null,1]
[null,1]
[null,1]
[null,1]
[null,1]
[null,1]
[null,1]
[null,1]
[null,1]
[null,1]
[null,1]
[null,1]
[null,1]
[null,1]
[null,1]
[null,1]
[null,1]
[null,1]
[null,1]
[null,1]
[null,1]
[null,1]
[null,1]
[null,1]
[null,1]
[null,1]
[null,1]
[null,1]
[null,1]
[null,1]
[null,1]
[null,1]
[null,1]
[null,1]
[null,1]
[null,1]
[null,1]
[null,1]
[null,1]
[null,1]
[null,1]
[null,1]
[null,1]
[null,1]
[null,1]
[null,1]
[null,1]
[null,1]
[null,1]
[null,1]
[null,1]
[null,1]
[null,1]
[null,1]
[null,1]
[null,1]
[null,1]
[null,1]
[null,1]
[null,1]
[null,1]
[null,1]
[null,1]
[null,1]
[null,1]
[null,1]
[null,1]
[null,1]
[null,1]
[null,1]
[null,1]
[null,1]
[null,1]
[null,1]
[null,1]
[null,1]
[null,1]
[null,1]
[null,1]
[null,1]
[null,1]
[null,1]
[null,1]
[null,1]
[null,1]
[null,1]
[null,1]
[null,1]
[null,1]
[null,1]
[null,1]
[null,1]
[null,1]
[null,1]
[null,1]
[null,1]
[null,1]
[null,1]
[null,1]
[null,1]
[null,1]
[null,1]
[null,1]
[null,1]
[null,1]
[null,1]
[null,1]
[null,1]
[null,1]
[null,1]
[null,1]
[null,1]
[null,1]
[null,1]
[null,1]
[null,1]
[null,1]
[null,1]
[null,1]
[null,1]
[null,1]
[null,1]
[null,1]
[null,1]
[null,1]
[null,1]
[null,1]
[null,1]
[null,1]
[null,1]
[null,1]
[null,1]
[null,1]
[null,1]
[null,1]
[null,1]
[null,1]
[null,1]
[null,1]
[null,1]
[null,1]
[null,1]
[null,1]
[null,1]
[null,1]
[null,1]
[null,1]
[null,1]
[null,1]
[null,1]
[null,1]
[null,1]
[null,1]
[null,1]
[null,1]
[null,1]
[null,1]
[null,1]
[null,1]
[null,1]
[null,1]
[null,1]
[null,1]
[null,1]
[null,1]
[null,1]
[null,1]
[null,1]
[null,1]
[null,1]
[null,1]
[null,1]
[null,1]
[null,1]
[null,1]
[null,1]
[null,1]
[null,1]
[null,1]
[null,1]
[null,1]
[null,1]
[null,1]
[null,1]
[null,1]
[null,1]
[null,1]
[null,1]
[null,1]
[null,1]
[null,1]
[null,1]
[null,1]
[null,1]
[null,1]
[null,1]
[null,1]
[null,1]
[null,1]
[null,1]
[null,1]
[null,1]
[null,1]
[null,1]
[null,1]
[null,1]
[null,1]
[null,1]
[null,1]
[null,1]
[null,1]
[null,1]
[null,1]
[null,1]
[null,1]
[null,1]
[null,1]
[null,1]
[null,1]
[null,1]
[null,1]
[null,1]
[null,1]
[null,1]
[null,1]
[null,1]
[null,1]
[null,1]
[null,1]
[null,1]
[null,1]
[null,1]
[null,1]
[null,1]
[null,1]
[null,1]
[null,1]
[null,1]
[null,1]
[null,1]
[null,1]
[null,1]
[null,1]
[null,1]
[null,1]
[null,1]
[null,1]
[null,1]
[null,1]
[null,1]
[null,1]
[null,1]
[null,1]
[null,1]
[null,1]
[null,1]
[null,1]
[null,1]
[null,1]
[null,1]
[null,1]
[null,1]
[null,1]
[null,1]
[null,1]
[null,1]
[null,1]
[null,1]
[null,1]
[null,1]
[null,1]
[null,1]
[null,1]
[null,1]
[null,1]
[null,1]
[null,1]
[null,1]
[null,1]
[null,1]
[null,1]
[null,1]
[null,1]
[null,1]
[null,1]
[null,1]
[null,1]
[null,1]
[null,1]
[null,1]
[null,1]
[null,1]
[null,1]
[null,1]
[null,1]
[null,1]
[null,1]
[null,1]
[null,1]
[null,1]
[null,1]
[null,1]
[null,1]
[null,1]
[null,1]
[null,1]
[null,1]
[null,1]
[null,1]
[null,1]
[null,1]
[null,1]
[null,1]
[null,1]
[null,1]
[null,1]
[null,1]
[null,1]
[null,1]
[null,1]
[null,1]
[null,1]
[null,1]
[null,1]
[null,1]
[null,1]
[null,1]
[null,1]
[null,1]
[null,1]
[null,1]
[null,1]
[null,1]
[null,1]
[null,1]
[null,1]
[null,1]
[null,1]
[null,1]
[null,1]
[null,1]
[null,1]
[null,1]
[null,1]
[null,1]
[null,1]
[null,1]
[null,1]
[null,1]
[null,1]
[null,1]
[null,1]
[null,1]
[null,1]
[null,1]
[null,1]
[null,1]
[null,1]
[null,1]
[null,1]
[null,1]
[null,1]
[null,1]
[null,1]
[null,1]
[null,1]
[null,1]
[null,1]
[null,1]
[null,1]
[null,1]
[null,1]
[null,1]
[null,1]
[null,1]
[null,1]
[null,1]
[null,1]
[null,1]
[null,1]
[null,1]
[null,1]
[null,1]
[null,1]
[null,1]
[null,1]
[null,1]
[null,1]
[null,1]
[null,1]
[null,1]
[null,1]
[null,1]
[null,1]
[null,1]
[null,1]
[null,1]
[null,1]
[null,1]
[null,1]
[null,1]
[null,1]
[null,1]
[null,1]
[null,1]
[null,1]
[null,1]
[null,1]
[null,1]
[null,1]
[null,1]
[null,1]
[null,1]
[null,1]
[null,1]
[null,1]
[null,1]
[null,1]
[null,1]
[null,1]
[null,1]
[null,1]
[null,1]
[null,1]
[null,1]
[null,1]
[null,1]
[null,1]
[null,1]
[null,1]
[null,1]
[null,1]
[null,1]
[null,1]
[null,1]
[null,1]
[null,1]
[null,1]
[null,1]
[null,1]
[null,1]
[null,1]
[null,1]
[null,1]
[null,1]
[null,1]
[null,1]
[null,1]
[null,1]
[null,1]
[null,1]
[null,1]
[null,1]
[null,1]
[null,1]
[null,1]
[null,1]
[null,1]
[null,1]
[null,1]
[null,1]
[null,1]
[null,1]
[null,1]
[null,1]
[null,1]
[null,1]
[null,1]
[null,1]
["lookup 1000","Row1000"]
[null,1]
[null,1]
[null,1]
[null,1]
["a value 12345",12345]
[null,1]
[null,1]
[null,1]
[null,1]
[null,1]
[null,1]
[null,2]
[null,1]
[null,1]
[null,1]
[null,1]
[null,1]
[null,1]
[null,1]
[null,1]
[null,1]
[null,1]
[null,1]
[null,1]
[null,1]
[null,1]
[null,1]
[null,1]
[null,1]
[null,1]
[null,1]
[null,1]
[null,1]
[null,1]
[null,1]
[null,1]
[null,1]
[null,1]
[null,1]
[null,1]
[null,1]
[null,1]
[null,1]
[null,1]
[null,1]
[null,1]
[null,1]
[null,1]
[null,1]
[null,1]
[null,1]
[null,1]
[null,1]
[null,1]
[null,1]
[null,1]
[null,1]
[null,1]
[null,1]
[null,1]
[null,1]
[null,1]
[null,1]
[null,1]
[null,1]
[null,1]
[null,1]
[null,1]
[null,1]
[null,1]
[null,1]
[null,1]
[null,1]
[null,1]
[null,1]
[null,1]
[null,1]
[null,1]
[null,1]
[null,1]
[null,1]
[null,1]
[null,1]
[null,1]
[null,1]
[null,1]
[null,1]
[null,1]
[null,1]
[null,1]
[null,1]
[null,1]
[null,1]
[null,1]
[null,1]
[null,1]
[null,1]
[null,1]
[null,1]
[null,1]
[null,1]
[null,1]
[null,1]
[null,1]
[null,1]
[null,1]
[null,1]
[null,1]
[null,1]
[null,1]
[null,1]
[null,1]
[null,1]
[null,1]
[null,1]
[null,1]
[null,1]
[null,1]
[null,1]
[null,1]
[null,1]
[null,1]
[null,1]
[null,1]
[null,1]
[null,1]
[null,1]
[null,1]
[null,1]
[null,1]
[null,1]
[null,1]
[null,1]
[null,1]
[null,1]
[null,1]
[null,1]
[null,1]
[null,1]
[null,1]
[null,1]
[null,1]
[null,1]
[null,1]
[null,1]
[null,1]
[null,1]
[null,1]
[null,1]
[null,1]
[null,1]
[null,1]
[null,1]
[null,1]
[null,1]
[null,1]
[null,1]
[null,1]
[null,1]
[null,1]
[null,1]
[null,1]
[null,1]
[null,1]
[null,1]
[null,1]
[null,1]
[null,1]
[null,1]
[null,1]
[null,1]
[null,1]
[null,1]
[null,1]
[null,1]
[null,1]
[null,1]
[null,1]
[null,1]
[null,1]
[null,1]
[null,1]
[null,1]
[null,1]
[null,1]
[null,1]
[null,1]
[null,1]
[null,1]
[null,1]
[null,1]
[null,1]
[null,1]
[null,1]
[null,1]
[null,1]
[null,1]
[null,1]
[null,1]
[null,1]
[null,1]
[null,1]
[null,1]
[null,1]
[null,1]
[null,1]
[null,1]
[null,1]
[null,1]
[null,1]
[null,1]
[null,1]
[null,1]
[null,1]
[null,1]
[null,1]
[null,1]
[null,1]
[null,1]
[null,1]
[null,1]
[null,1]
[null,1]
[null,1]
[null,1]
[null,1]
[null,1]
[null,1]
[null,1]
[null,1]
[null,1]
[null,1]
[null,1]
[null,1]
[null,1]
[null,1]
[null,1]
[null,1]
[null,1]
[null,1]
[null,1]
[null,1]
[null,1]
[null,1]
[null,1]
[null,1]
[null,1]
[null,1]
[null,1]
[null,1]
[null,1]
[null,1]
[null,1]
[null,1]
[null,1]
[null,1]
[null,1]
[null,1]
[null,1]
[null,1]
[null,1]
[null,1]
[null,1]
[null,1]
[null,1]
[null,1]
[null,1]
[null,1]
[null,1]
[null,1]
[null,1]
[null,1]
[null,1]
[null,1]
[null,1]
[null,1]
[null,1]
[null,1]
[null,1]
[null,1]
[null,1]
[null,1]
[null,1]
[null,1]
[null,1]
[null,1]
[null,1]
[null,1]
[null,1]
[null,1]
[null,1]
[null,1]
[null,1]
[null,1]
[null,1]
[null,1]
[null,1]
[null,1]
[null,1]
[null,1]
[null,1]
[null,1]
[null,1]
[null,1]
[null,1]
[null,1]
[null,1]
[null,1]
[null,1]
[null,1]
[null,1]
[null,1]
[null,1]
[null,1]
[null,1]
[null,1]
[null,1]
[null,1]
[null,1]
[null,1]
[null,1]
[null,1]
[null,1]
[null,1]
[null,1]
[null,1]
[null,1]
[null,1]
[null,1]
[null,1]
[null,1]
[null,1]
[null,1]
[null,1]
[null,1]
[null,1]
[null,1]
[null,1]
[null,1]
[null,1]
[null,1]
[null,1]
[null,1]
[null,1]
[null,1]
[null,1]
[null,1]
[null,1]
[null,1]
[null,1]
[null,1]
[null,1]
[null,1]
[null,1]
[null,1]
[null,1]
[null,1]
[null,1]
[null,1]
[null,1]
[null,1]
[null,1]
[null,1]
[null,1]
[null,1]
[null,1]
[null,1]
[null,1]
[null,1]
[null,1]
[null,1]
[null,1]
[null,1]
[null,1]
[null,1]
[null,1]
[null,1]
[null,1]
[null,1]
[null,1]
[null,1]
[null,1]
[null,1]
[null,1]
[null,1]
[null,1]
[null,1]
[null,1]
[null,1]
[null,1]
[null,1]
[null,1]
[null,1]
[null,1]
[null,1]
[null,1]
[null,1]
[null,1]
[null,1]
[null,1]
[null,1]
[null,1]
[null,1]
[null,1]
[null,1]
[null,1]
[null,1]
[null,1]
[null,1]
[null,1]
[null,1]
[null,1]
[null,1]
[null,1]
[null,1]
[null,1]
[null,1]
[null,1]
[null,1]
[null,1]
[null,1]
[null,1]
[null,1]
[null,1]
[null,1]
[null,1]
[null,1]
[null,1]
[null,1]
[null,1]
[null,1]
[null,1]
[null,1]
[null,1]
[null,1]
[null,1]
[null,1]
[null,1]
[null,1]
[null,1]
[null,1]
[null,1]
[null,1]
[null,1]
[null,1]
[null,1]
[null,1]
[null,1]
[null,1]
[null,1]
[null,1]
[null,1]
[null,1]
[null,1]
[null,1]
[null,1]
[null,1]
[null,1]
[null,1]
[null,1]
[null,1]
[null,1]
[null,1]
[null,1]
[null,1]
[null,1]
[null,1]
[null,1]
[null,1]
[null,1]
[null,1]
[null,1]
[null,1]
[null,1]
[null,1]
[null,1]
[null,1]
[null,1]
[null,1]
[null,1]
[null,1]
[null,1]
[null,1]
[null,1]
[null,1]
[null,1]
[null,1]
[null,1]
[null,1]
[null,1]
[null,1]
[null,1]
[null,1]
[null,1]
[null,1]
[null,1]
[null,1]
[null,1]
[null,1]
[null,1]
[null,1]
[null,1]
[null,1]
[null,1]
[null,1]
[null,1]
[null,1]
[null,1]
[null,1]
[null,1]
[null,1]
[null,1]
[null,1]
[null,1]
[null,1]
[null,1]
[null,1]
[null,1]
[null,1]
[null,1]
[null,1]
[null,1]
[null,1]
[null,1]
[null,1]
[null,1]
[null,1]
[null,1]
[null,1]
[null,1]
[null,1]
[null,1]
[null,1]
[null,1]
[null,1]
[null,1]
[null,1]
[null,1]
[null,1]
[null,1]
[null,1]
[null,1]
[null,1]
[null,1]
[null,1]
[null,1]
[null,1]
[null,1]
[null,1]
[null,1]
[null,1]
[null,1]
[null,1]
[null,1]
[null,1]
[null,1]
[null,1]
[null,1]
[null,1]
[null,1]
[null,1]
[null,1]
[null,1]
[null,1]
[null,1]
[null,1]
[null,1]
[null,1]
[null,1]
[null,1]
[null,1]
[null,1]
[null,1]
[null,1]
[null,1]
[null,1]
[null,1]
[null,1]
[null,1]
[null,1]
[null,1]
[null,1]
[null,1]
[null,1]
[null,1]
[null,1]
[null,1]
[null,1]
[null,1]
[null,1]
[null,1]
[null,1]
[null,1]
[null,1]
[null,1]
[null,1]
[null,1]
[null,1]
[null,1]
[null,1]
[null,1]
[null,1]
[null,1]
[null,1]
[null,1]
[null,1]
[null,1]
[null,1]
[null,1]
[null,1]
[null,1]
[null,1]
[null,1]
[null,1]
[null,1]
[null,1]
[null,1]
[null,1]
[null,1]
[null,1]
[null,1]
[null,1]
[null,1]
[null,1]
[null,1]
[null,1]
[null,1]
[null,1]
[null,1]
[null,1]
[null,1]
[null,1]
[null,1]
[null,1]
[null,1]
[null,1]
[null,1]
[null,1]
[null,1]
[null,1]
[null,1]
[null,1]
[null,1]
[null,1]
[null,1]
[null,1]
[null,1]
[null,1]
[null,1]
[null,1]
[null,1]
[null,1]
[null,1]
[null,1]
[null,1]
[null,1]
[null,1]
[null,1]
[null,1]
[null,1]
[null,1]
[null,1]
[null,1]
[null,1]
[null,1]
[null,1]
[null,1]
[null,1]
[null,1]
[null,1]
[null,1]
[null,1]
[null,1]
[null,1]
[null,1]
[null,1]
[null,1]
[null,1]
[null,1]
[null,1]
[null,1]
[null,1]
[null,1]
[null,1]
[null,1]
[null,1]
[null,1]
[null,1]
[null,1]
[null,1]
[null,1]
[null,1]
[null,1]
[null,1]
[null,1]
[null,1]
[null,1]
[null,1]
[null,1]
[null,1]
[null,1]
[null,1]
[null,1]
[null,1]
[null,1]
[null,1]
[null,1]
[null,1]
[null,1]
[null,1]
[null,1]
[null,1]
[null,1]
[null,1]
[null,1]
[null,1]
[null,1]
[null,1]
[null,1]
[null,1]
[null,1]
[null,1]
[null,1]
[null,1]
[null,1]
[null,1]
[null,1]
[null,1]
[null,1]
[null,1]
[null,1]
[null,1]
[null,1]
[null,1]
[null,1]
[null,1]
[null,1]
[null,1]
[null,1]
[null,1]
[null,1]
[null,1]
[null,1]
[null,1]
[null,1]
[null,1]
[null,1]
[null,1]
[null,1]
[null,1]
[null,1]
[null,1]
[null,1]
[null,1]
[null,1]
[null,1]
[null,1]
[null,1]
[null,1]
[null,1]
[null,1]
[null,1]
[null,1]
[null,1]
[null,1]
[null,1]
[null,1]
[null,1]
[null,1]
[null,1]
[null,1]
[null,1]
[null,1]
[null,1]
[null,1]
[null,1]
[null,1]
[null,1]
[null,1]
[null,1]
[null,1]
[null,1]
[null,1]
[null,1]
[null,1]
[null,1]
[null,1]
[null,1]
[null,1]
[null,1]
[null,1]
[null,1]
[null,1]
[null,1]
[null,1]
[null,1]
[null,1]
[null,1]
[null,1]
[null,1]
[null,1]
[null,1]
[null,1]
[null,1]
[null,1]
[null,1]
[null,1]
[null,1]
[null,1]
[null,1]
[null,1]
[null,1]
[null,1]
[null,1]
[null,1]
[null,1]
[null,1]
[null,1]
[null,1]
[null,1]
[null,1]
[null,1]
[null,1]
[null,1]
[null,1]
[null,1]
[null,1]
[null,1]
[null,1]
[null,1]
[null,1]
[null,1]
[null,1]
[null,1]
[null,1]
[null,1]
[null,1]
[null,1]
[null,1]
[null,1]
[null,1]
[null,1]
[null,1]
[null,1]
[null,1]
[null,1]
[null,1]
[null,1]
[null,1]
[null,1]
[null,1]
[null,1]
[null,1]
[null,1]
[null,1]
[null,1]
[null,1]
[null,1]
[null,1]
[null,1]
[null,1]
[null,1]
[null,1]
[null,1]
[null,1]
[null,1]
[null,1]
[null,1]
[null,1]
[null,1]
[null,1]
[null,1]
[null,1]
[null,1]
[null,1]
[null,1]
[null,1]
[null,1]
[null,1]
[null,1]
[null,1]
[null,1]
[null,1]
[null,1]
[null,1]
[null,1]
[null,1]
[null,1]
[null,1]
[null,1]
[null,1]
[null,1]
[null,1]
[null,1]
[null,1]
[null,1]
[null,1]
[null,1]
[null,1]
[null,1]
[null,1]
[null,1]
[null,1]
[null,1]
[null,1]
[null,1]
[null,1]
[null,1]
[null,1]
[null,1]
[null,1]
[null,1]
[null,1]
[null,1]
[null,1]
[null,1]
[null,1]
[null,1]
[null,1]
[null,1]
[null,1]
[null,1]
[null,1]
[null,1]
[null,1]
[null,1]
[null,1]
[null,1]
[null,1]
[null,1]
[null,1]
[null,1]
[null,1]
[null,1]
[null,1]
[null,1]
[null,1]
[null,1]
[null,1]
[null,1]
[null,1]
[null,1]
[null,1]
[null,1]
[null,1]
[null,1]
[null,1]
[null,1]
[null,1]
[null,1]
[null,1]
[null,1]
[null,1]
[null,1]
[null,1]
[null,1]
[null,1]
[null,1]
[null,1]
[null,1]
[null,1]
[null,1]
[null,1]
[null,1]
[null,1]
[null,1]
[null,1]
[null,1]
[null,1]
[null,1]
[null,1]
[null,1]
[null,1]
[null,1]
[null,1]
[null,1]
[null,1]
[null,1]
[null,1]
[null,1]
[null,1]
[null,1]
[null,1]
[null,1]
[null,1]
[null,1]
[null,1]
[null,1]
[null,1]
[null,1]
[null,1]
[null,1]
[null,1]
[null,1]
[null,1]
[null,1]
[null,1]
[null,1]
[null,1]
[null,1]
[null,1]
[null,1]
[null,1]
[null,1]
[null,1]
[null,1]
[null,1]
[null,1]
[null,1]
[null,1]
[null,1]
[null,1]
[null,1]
[null,1]
[null,1]
[null,1]
[null,1]
[null,1]
[null,1]
[null,1]
[null,1]
[null,1]
[null,1]
[null,1]
[null,1]
[null,1]
[null,1]
[null,1]
[null,1]
[null,1]
[null,1]
[null,1]
[null,1]
[null,1]
[null,1]
[null,1]
[null,1]
[null,1]
[null,1]
[null,1]
[null,1]
[null,1]
[null,1]
[null,1]
[null,1]
[null,1]
[null,1]
[null,1]
[null,1]
[null,1]
[null,1]
[null,1]
[null,1]
[null,1]
[null,1]
[null,1]
[null,1]
[null,1]
[null,1]
[null,1]
[null,1]
[null,1]
[null,1]
[null,1]
[null,1]
[null,1]
[null,1]
[null,1]
[null,1]
[null,1]
[null,1]
[null,1]
[null,1]
[null,1]
[null,1]
[null,1]
[null,1]
[null,1]
[null,1]
[null,1]
[null,1]
[null,1]
[null,1]
[null,1]
[null,1]
[null,1]
[null,1]
[null,1]
[null,1]
[null,1]
[null,1]
[null,1]
[null,1]
[null,1]
[null,1]
[null,1]
[null,1]
[null,1]
[null,1]
[null,1]
[null,1]
[null,1]
[null,1]
[null,1]
[null,1]
[null,1]
[null,1]
[null,1]
[null,1]
[null,1]
[null,1]
[null,1]
[null,1]
[null,1]
[null,1]
[null,1]
[null,1]
[null,1]
[null,1]
[null,1]
[null,1]
[null,1]
[null,1]
[null,1]
[null,1]
[null,1]
[null,1]
[null,1]
[null,1]
[null,1]
[null,1]
[null,1]
[null,1]
[null,1]
[null,1]
[null,1]
[null,1]
[null,1]
[null,1]
[null,1]
[null,1]
[null,1]
[null,1]
[null,1]
[null,1]
[null,1]
[null,1]
[null,1]
[null,1]
[null,1]
[null,1]
[null,1]
[null,1]
[null,1]
[null,1]
[null,1]
[null,1]
[null,1]
[null,1]
[null,1]
[null,1]
[null,1]
[null,1]
[null,1]
[null,1]
[null,1]
[null,1]
[null,1]
[null,1]
[null,1]
[null,1]
[null,1]
[null,1]
[null,1]
[null,1]
[null,1]
[null,1]
[null,1]
[null,1]
[null,1]
[null,1]
[null,1]
[null,1]
[null,1]
[null,1]
[null,1]
[null,1]
[null,1]
[null,1]
[null,1]
[null,1]
[null,1]
[null,1]
[null,1]
[null,1]
[null,1]
[null,1]
[null,1]
[null,1]
[null,1]
[null,1]
[null,1]
[null,1]
[null,1]
[null,1]
[null,1]
[null,1]
[null,1]
[null,1]
[null,1]
[null,1]
[null,1]
[null,1]
[null,1]
[null,1]
[null,1]
[null,1]
[null,1]
[null,1]
[null,1]
[null,1]
[null,1]
[null,1]
[null,1]
[null,1]
[null,1]
[null,1]
[null,1]
[null,1]
[null,1]
[null,1]
[null,1]
[null,1]
[null,1]
[null,1]
[null,1]
[null,1]
[null,1]
[null,1]
[null,1]
[null,1]
[null,1]
[null,1]
[null,1]
[null,1]
[null,1]
[null,1]
[null,1]
[null,1]
[null,1]
[null,1]
[null,1]
[null,1]
[null,1]
[null,1]
[null,1]
[null,1]
[null,1]
[null,1]
[null,1]
[null,1]
[null,1]
[null,1]
[null,1]
[null,1]
[null,1]
[null,1]
[null,1]
[null,1]
[null,1]
[null,1]
[null,1]
[null,1]
[null,1]
[null,1]
[null,1]
[null,1]
[null,1]
[null,1]
[null,1]
[null,1]
[null,1]
[null,1]
[null,1]
[null,1]
[null,1]
[null,1]
[null,1]
[null,1]
[null,1]
[null,1]
[null,1]
[null,1]
[null,1]
[null,1]
[null,1]
[null,1]
[null,1]
[null,1]
[null,1]
[null,1]
[null,1]
[null,1]
[null,1]
[null,1]
[null,1]
[null,1]
[null,1]
[null,1]
[null,1]
[null,1]
[null,1]
[null,1]
[null,1]
[null,1]
[null,1]
[null,1]
[null,1]
[null,1]
[null,1]
[null,1]
[null,1]
[null,1]
[null,1]
[null,1]
[null,1]
[null,1]
[null,1]
[null,1]
[null,1]
[null,1]
[null,1]
[null,1]
[null,1]
[null,1]
[null,1]
[null,1]
[null,1]
[null,1]
[null,1]
[null,1]
[null,1]
[null,1]
[null,1]
[null,1]
[null,1]
[null,1]
[null,1]
[null,1]
[null,1]
[null,1]
[null,1]
[null,1]
[null,1]
[null,1]
[null,1]
[null,1]
[null,1]
[null,1]
[null,1]
[null,1]
[null,1]
[null,1]
[null,1]
[null,1]
[null,1]
[null,1]
[null,1]
[null,1]
[null,1]
[null,1]
[null,1]
[null,1]
[null,1]
[null,1]
[null,1]
[null,1]
[null,1]
[null,1]
[null,1]
[null,1]
[null,1]
[null,1]
[null,1]
[null,1]
[null,1]
[null,1]
[null,1]
[null,1]
[null,1]
[null,1]
[null,1]
[null,1]
[null,1]
[null,1]
[null,1]
[null,1]
[null,1]
[null,1]
[null,1]
[null,1]
[null,1]
[null,1]
[null,1]
[null,1]
[null,1]
[null,1]
[null,1]
[null,1]
[null,1]
[null,1]
[null,1]
[null,1]
[null,1]
[null,1]
[null,1]
[null,1]
[null,1]
[null,1]
[null,1]
[null,1]
[null,1]
[null,1]
[null,1]
[null,1]
[null,1]
[null,1]
[null,1]
[null,1]
[null,1]
[null,1]
[null,1]
[null,1]
[null,1]
[null,1]
[null,1]
[null,1]
[null,1]
[null,1]
[null,1]
[null,1]
[null,1]
[null,1]
[null,1]
[null,1]
[null,1]
[null,1]
[null,1]
[null,1]
[null,1]
[null,1]
[null,1]
[null,1]
[null,1]
[null,1]
[null,1]
[null,1]
[null,1]
[null,1]
[null,1]
[null,1]
[null,1]
[null,1]
[null,1]
[null,1]
[null,1]
[null,1]
[null,1]
[null,1]
[null,1]
[null,1]
[null,1]
[null,1]
[null,1]
[null,1]
[null,1]
[null,1]
[null,1]
[null,1]
[null,1]
[null,1]
[null,1]
[null,1]
[null,1]
[null,1]
[null,1]
[null,1]
[null,1]
[null,1]
[null,1]
[null,1]
[null,1]
[null,1]
[null,1]
[null,1]
[null,1]
[null,1]
[null,1]
[null,1]
[null,1]
[null,1]
[null,1]
[null,1]
[null,1]
[null,1]
[null,1]
[null,1]
[null,1]
[null,1]
[null,1]
[null,1]
[null,1]
[null,1]
[null,1]
[null,1]
[null,1]
[null,1]
[null,1]
[null,1]
[null,1]
[null,1]
[null,1]
[null,1]
[null,1]
[null,1]
[null,1]
[null,1]
[null,1]
[null,1]
[null,1]
[null,1]
[null,1]
[null,1]
[null,1]
[null,1]
[null,1]
[null,1]
[null,1]
[null,1]
[null,1]
[null,1]
[null,1]
[null,1]
[null,1]
[null,1]
[null,1]
[null,1]
[null,1]
[null,1]
[null,1]
[null,1]
[null,1]
[null,1]
[null,1]
[null,1]
[null,1]
[null,1]
[null,1]
[null,1]
[null,1]
[null,1]
[null,1]
[null,1]
[null,1]
[null,1]
[null,1]
[null,1]
[null,1]
[null,1]
[null,1]
[null,1]
[null,1]
[null,1]
[null,1]
[null,1]
[null,1]
[null,1]
[null,1]
[null,1]
[null,1]
[null,1]
[null,1]
[null,1]
[null,1]
[null,1]
[null,1]
[null,1]
[null,1]
[null,1]
[null,1]
[null,1]
[null,1]
[null,1]
[null,1]
[null,1]
[null,1]
[null,1]
[null,1]
[null,1]
[null,1]
[null,1]
[null,1]
[null,1]
[null,1]
[null,1]
[null,1]
[null,1]
[null,1]
[null,1]
[null,1]
[null,1]
[null,1]
[null,1]
[null,1]
[null,1]
[null,1]
[null,1]
[null,1]
[null,1]
[null,1]
[null,1]
[null,1]
[null,1]
[null,1]
[null,1]
[null,1]
[null,1]
[null,1]
[null,1]
[null,1]
[null,1]
[null,1]
[null,1]
[null,1]
[null,1]
[null,1]
[null,1]
[null,1]
[null,1]
[null,1]
[null,1]
[null,1]
[null,1]
[null,1]
[null,1]
[null,1]
[null,1]
[null,1]
[null,1]
[null,1]
[null,1]
[null,1]
[null,1]
[null,1]
[null,1]
[null,1]
[null,1]
[null,1]
[null,1]
[null,1]
[null,1]
[null,1]
[null,1]
[null,1]
[null,1]
[null,1]
[null,1]
[null,1]
[null,1]
[null,1]
[null,1]
[null,1]
[null,1]
[null,1]
[null,1]
[null,1]
[null,1]
[null,1]
[null,1]
[null,1]
[null,1]
[null,1]
[null,1]
[null,1]
[null,1]
[null,1]
[null,1]
[null,1]
[null,1]
[null,1]
[null,1]
[null,1]
[null,1]
[null,1]
[null,1]
[null,1]
[null,1]
[null,1]
[null,1]
[null,1]
[null,1]
[null,1]
[null,1]
[null,1]
[null,1]
[null,1]
[null,1]
[null,1]
[null,1]
[null,1]
[null,1]
[null,1]
[null,1]
[null,1]
[null,1]
[null,1]
[null,1]
[null,1]
[null,1]
[null,1]
[null,1]
[null,1]
[null,1]
[null,1]
[null,1]
[null,1]
[null,1]
[null,1]
[null,1]
[null,1]
[null,1]
[null,1]
[null,1]
[null,1]
[null,1]
[null,1]
[null,1]
[null,1]
[null,1]
[null,1]
[null,1]
[null,1]
[null,1]
[null,1]
[null,1]
[null,1]
[null,1]
[null,1]
[null,1]
[null,1]
[null,1]
[null,1]
[null,1]
[null,1]
[null,1]
[null,1]
[null,1]
[null,1]
[null,1]
[null,1]
[null,1]
[null,1]
[null,1]
[null,1]
[null,1]
[null,1]
[null,1]
[null,1]
[null,1]
[null,1]
[null,1]
[null,1]
[null,1]
[null,1]
[null,1]
[null,1]
[null,1]
[null,1]
[null,1]
[null,1]
[null,1]
[null,1]
[null,1]
[null,1]
[null,1]
[null,1]
[null,1]
[null,1]
[null,1]
[null,1]
[null,1]
[null,1]
[null,1]
[null,1]
[null,1]
[null,1]
[null,1]
[null,1]
[null,1]
[null,1]
[null,1]
[null,1]
[null,1]
[null,1]
[null,1]
[null,1]
[null,1]
[null,1]
[null,1]
[null,1]
[null,1]
[null,1]
[null,1]
[null,1]
[null,1]
[null,1]
[null,1]
[null,1]
[null,1]
[null,1]
[null,1]
[null,1]
[null,1]
[null,1]
[null,1]
[null,1]
[null,1]
[null,1]
[null,1]
[null,1]
[null,1]
[null,1]
[null,1]
[null,1]
[null,1]
[null,1]
[null,1]
[null,1]
[null,1]
[null,1]
[null,1]
[null,1]
[null,1]
[null,1]
[null,1]
[null,1]
[null,1]
[null,1]
[null,1]
[null,1]
[null,1]
[null,1]
[null,1]
[null,1]
[null,1]
[null,1]
[null,1]
[null,1]
[null,1]
[null,1]
[null,1]
[null,1]
[null,1]
[null,1]
[null,1]
[null,1]
[null,1]
[null,1]
[null,1]
[null,1]
[null,1]
[null,1]
[null,1]
[null,1]
[null,1]
[null,1]
[null,1]
[null,1]
[null,1]
[null,1]
[null,1]
[null,1]
[null,1]
[null,1]
[null,1]
[null,1]
[null,1]
[null,1]
[null,1]
[null,1]
[null,1]
[null,1]
[null,1]
[null,1]
[null,1]
[null,1]
[null,1]
[null,1]
[null,1]
[null,1]
[null,1]
[null,1]
[null,1]
[null,1]
[null,1]
[null,1]
[null,1]
[null,1]
[null,1]
[null,1]
[null,1]
[null,1]
[null,1]
[null,1]
[null,1]
[null,1]
[null,1]
[null,1]
[null,1]
[null,1]
[null,1]
[null,1]
[null,1]
[null,1]
[null,1]
[null,1]
[null,1]
[null,1]
[null,1]
[null,1]
[null,1]
[null,1]
[null,1]
[null,1]
[null,1]
[null,1]
[null,1]
[null,1]
[null,1]
[null,1]
[null,1]
[null,1]
[null,1]
[null,1]
[null,1]
[null,1]
[null,1]
[null,1]
[null,1]
[null,1]
[null,1]
[null,1]
[null,1]
[null,1]
[null,1]
[null,1]
[null,1]
[null,1]
[null,1]
[null,1]
[null,1]
[null,1]
[null,1]
[null,1]
[null,1]
[null,1]
[null,1]
[null,1]
[null,1]
[null,1]
[null,1]
[null,1]
[null,1]
[null,1]
[null,1]
[null,1]
[null,1]
[null,1]
[null,1]
[null,1]
[null,1]
[null,1]
[null,1]
[null,1]
[null,1]
[null,1]
[null,1]
[null,1]
[null,1]
[null,1]
[null,1]
[null,1]
[null,1]
[null,1]
[null,1]
[null,1]
[null,1]
[null,1]
[null,1]
[null,1]
[null,1]
[null,1]
[null,1]
[null,1]
[null,1]
[null,1]
[null,1]
[null,1]
[null,1]
[null,1]
[null,1]
[null,1]
[null,1]
[null,1]
[null,1]
[null,1]
[null,1]
[null,1]
[null,1]
[null,1]
[null,1]
[null,1]
[null,1]
[null,1]
[null,1]
[null,1]
[null,1]
[null,1]
[null,1]
[null,1]
[null,1]
[null,1]
[null,1]
[null,1]
[null,1]
[null,1]
[null,1]
[null,1]
[null,1]
[null,1]
[null,1]
[null,1]
[null,1]
[null,1]
[null,1]
[null,1]
[null,1]
[null,1]
[null,1]
[null,1]
[null,1]
[null,1]
[null,1]
[null,1]
[null,1]
[null,1]
[null,1]
[null,1]
[null,1]
[null,1]
[null,1]
[null,1]
[null,1]
[null,1]
[null,1]
[null,1]
[null,1]
[null,1]
[null,1]
[null,1]
[null,1]
[null,1]
[null,1]
[null,1]
[null,1]
[null,1]
[null,1]
[null,1]
[null,1]
[null,1]
[null,1]
[null,1]
[null,1]
[null,1]
[null,1]
[null,1]
[null,1]
[null,1]
[null,1]
[null,1]
[null,1]
[null,1]
[null,1]
[null,1]
[null,1]
[null,1]
[null,1]
[null,1]
[null,1]
[null,1]
[null,1]
[null,1]
[null,1]
[null,1]
[null,1]
[null,1]
[null,1]
[null,1]
[null,1]
[null,1]
[null,1]
[null,1]
[null,1]
[null,1]
[null,1]
[null,1]
[null,1]
[null,1]
[null,1]
[null,1]
[null,1]
[null,1]
[null,1]
[null,1]
[null,1]
[null,1]
[null,1]
[null,1]
[null,1]
[null,1]
[null,1]
[null,1]
[null,1]
[null,1]
[null,1]
[null,1]
[null,1]
[null,1]
[null,1]
[null,1]
[null,1]
[null,1]
[null,1]
[null,1]
[null,1]
[null,1]
[null,1]
[null,1]
[null,1]
[null,1]
[null,1]
[null,1]
[null,1]
[null,1]
[null,1]
[null,1]
[null,1]
[null,1]
[null,1]
[null,1]
[null,1]
[null,1]
[null,1]
[null,1]
[null,1]
[null,1]
[null,1]
[null,1]
[null,1]
[null,1]
[null,1]
[null,1]
[null,1]
[null,1]
[null,1]
[null,1]
[null,1]
[null,1]
[null,1]
[null,1]
[null,1]
[null,1]
[null,1]
[null,1]
[null,1]
[null,1]
[null,1]
[null,1]
[null,1]
[null,1]
[null,1]
[null,1]
[null,1]
[null,1]
[null,1]
[null,1]
[null,1]
[null,1]
[null,1]
[null,1]
[null,1]
[null,1]
[null,1]
[null,1]
[null,1]
[null,1]
[null,1]
[null,1]
[null,1]
[null,1]
[null,1]
[null,1]
[null,1]
[null,1]
[null,1]
[null,1]
[null,1]
[null,1]
[null,1]
[null,1]
[null,1]
[null,1]
[null,1]
[null,1]
[null,1]
[null,1]
[null,1]
[null,1]
[null,1]
[null,1]
[null,1]
[null,1]
[null,1]
[null,1]
[null,1]
[null,1]
[null,1]
[null,1]
[null,1]
[null,1]
[null,1]
[null,1]
[null,1]
[null,1]
[null,1]
[null,1]
[null,1]
[null,1]
[null,1]
[null,1]
[null,1]
[null,1]
[null,1]
[null,1]
[null,1]
[null,1]
[null,1]
[null,1]
[null,1]
[null,1]
[null,1]
[null,1]
[null,1]
[null,1]
[null,1]
[null,1]
[null,1]
[null,1]
[null,1]
[null,1]
[null,1]
[null,1]
[null,1]
[null,1]
[null,1]
[null,1]
[null,1]
[null,1]
[null,1]
[null,1]
[null,1]
[null,1]
[null,1]
[null,1]
[null,1]
[null,1]
[null,1]
[null,1]
[null,1]
[null,1]
[null,1]
[null,1]
[null,1]
[null,1]
[null,1]
[null,1]
[null,1]
[null,1]
[null,1]
[null,1]
[null,1]
[null,1]
[null,1]
[null,1]
[null,1]
[null,1]
[null,1]
[null,1]
[null,1]
[null,1]
[null,1]
[null,1]
[null,1]
[null,1]
[null,1]
[null,1]
[null,1]
[null,1]
[null,1]
[null,1]
[null,1]
[null,1]
[null,1]
[null,1]
[null,1]
[null,1]
[null,1]
[null,1]
[null,1]
[null,1]
[null,1]
[null,1]
[null,1]
[null,1]
[null,1]
[null,1]
[null,1]
[null,1]
[null,1]
[null,1]
[null,1]
[null,1]
[null,1]
[null,1]
[null,1]
[null,1]
[null,1]
[null,1]
[null,1]
[null,1]
[null,1]
[null,1]
[null,1]
[null,1]
[null,1]
[null,1]
[null,1]
[null,1]
[null,1]
[null,1]
[null,1]
[null,1]
[null,1]
[null,1]
[null,1]
[null,1]
[null,1]
[null,1]
[null,1]
[null,1]
[null,1]
[null,1]
[null,1]
[null,1]
[null,1]
[null,1]
[null,1]
[null,1]
[null,1]
[null,1]
[null,1]
[null,1]
[null,1]
[null,1]
[null,1]
[null,1]
[null,1]
[null,1]
[null,1]
[null,1]
[null,1]
[null,1]
[null,1]
[null,1]
[null,1]
[null,1]
[null,1]
[null,1]
[null,1]
[null,1]
[null,1]
[null,1]
[null,1]
[null,1]
[null,1]
[null,1]
[null,1]
[null,1]
[null,1]
[null,1]
[null,1]
[null,1]
[null,1]
[null,1]
[null,1]
[null,1]
[null,1]
[null,1]
[null,1]
[null,1]
[null,1]
[null,1]
[null,1]
[null,1]
[null,1]
[null,1]
[null,1]
[null,1]
[null,1]
[null,1]
[null,1]
[null,1]
[null,1]
[null,1]
[null,1]
[null,1]
[null,1]
[null,1]
[null,1]
[null,1]
[null,1]
[null,1]
[null,1]
[null,1]
[null,1]
[null,1]
[null,1]
[null,1]
[null,1]
[null,1]
[null,1]
[null,1]
[null,1]
[null,1]
[null,1]
[null,1]
[null,1]
[null,1]
[null,1]
[null,1]
[null,1]
[null,1]
[null,1]
[null,1]
[null,1]
[null,1]
[null,1]
[null,1]
[null,1]
[null,1]
[null,1]
[null,1]
[null,1]
[null,1]
[null,1]
[null,1]
[null,1]
[null,1]
[null,1]
[null,1]
[null,1]
[null,1]
[null,1]
[null,1]
[null,1]
[null,1]
[null,1]
[null,1]
[null,1]
[null,1]
[null,1]
[null,1]
[null,1]
[null,1]
[null,1]
[null,1]
[null,1]
[null,1]
[null,1]
[null,1]
[null,1]
[null,1]
[null,1]
[null,1]
[null,1]
[null,1]
[null,1]
[null,1]
[null,1]
[null,1]
[null,1]
[null,1]
[null,1]
[null,1]
[null,1]
[null,1]
[null,1]
[null,1]
[null,1]
[null,1]
[null,1]
[null,1]
[null,1]
[null,1]
[null,1]
[null,1]
[null,1]
[null,1]
[null,1]
[null,1]
[null,1]
[null,1]
[null,1]
[null,1]
[null,1]
[null,1]
[null,1]
[null,1]
[null,1]
[null,1]
[null,1]
[null,1]
[null,1]
[null,1]
[null,1]
[null,1]
[null,1]
[null,1]
[null,1]
[null,1]
[null,1]
[null,1]
[null,1]
[null,1]
[null,1]
[null,1]
[null,1]
[null,1]
[null,1]
[null,1]
[null,1]
[null,1]
[null,1]
[null,1]
[null,1]
[null,1]
[null,1]
[null,1]
[null,1]
[null,1]
[null,1]
[null,1]
[null,1]
[null,1]
[null,1]
[null,1]
[null,1]
[null,1]
[null,1]
[null,1]
[null,1]
[null,1]
[null,1]
[null,1]
[null,1]
[null,1]
[null,1]
[null,1]
[null,1]
[null,1]
[null,1]
[null,1]
[null,1]
[null,1]
[null,1]
[null,1]
[null,1]
[null,1]
[null,1]
[null,1]
[null,1]
[null,1]
[null,1]
[null,1]
[null,1]
[null,1]
[null,1]
[null,1]
[null,1]
[null,1]
[null,1]
[null,1]
[null,1]
[null,1]
[null,1]
[null,1]
[null,1]
[null,1]
[null,1]
[null,1]
[null,1]
[null,1]
[null,1]
[null,1]
[null,1]
[null,1]
[null,1]
[null,1]
[null,1]
[null,1]
[null,1]
[null,1]
[null,1]
[null,1]
[null,1]
[null,1]
[null,1]
[null,1]
[null,1]
[null,1]
[null,1]
[null,1]
[null,1]
[null,1]
[null,1]
[null,1]
[null,1]
[null,1]
[null,1]
[null,1]
[null,1]
[null,1]
[null,1]
[null,1]
[null,1]
[null,1]
[null,1]
[null,1]
[null,1]
[null,1]
[null,1]
[null,1]
[null,1]
[null,1]
[null,1]
[null,1]
[null,1]
[null,1]
[null,1]
[null,1]
[null,1]
[null,1]
[null,1]
[null,1]
[null,1]
[null,1]
[null,1]
[null,1]
[null,1]
[null,1]
[null,1]
[null,1]
[null,1]
[null,1]
[null,1]
[null,1]
[null,1]
[null,1]
[null,1]
[null,1]
[null,1]
[null,1]
[null,1]
[null,1]
[null,1]
[null,1]
[null,1]
[null,1]
[null,1]
[null,1]
[null,1]
[null,1]
[null,1]
[null,1]
[null,1]
[null,1]
[null,1]
[null,1]
[null,1]
[null,1]
[null,1]
[null,1]
[null,1]
[null,1]
[null,1]
[null,1]
[null,1]
[null,1]
[null,1]
[null,1]
[null,1]
[null,1]
[null,1]
[null,1]
[null,1]
[null,1]
[null,1]
[null,1]
[null,1]
[null,1]
[null,1]
[null,1]
[null,1]
[null,1]
[null,1]
[null,1]
[null,1]
[null,1]
[null,1]
[null,1]
[null,1]
[null,1]
[null,1]
[null,1]
[null,1]
[null,1]
[null,1]
[null,1]
[null,1]
[null,1]
[null,1]
[null,1]
[null,1]
[null,1]
[null,1]
[null,1]
[null,1]
[null,1]
[null,1]
[null,1]
[null,1]
[null,1]
[null,1]
[null,1]
[null,1]
[null,1]
[null,1]
[null,1]
[null,1]
[null,1]
[null,1]
[null,1]
[null,1]
[null,1]
[null,1]
[null,1]
[null,1]
[null,1]
[null,1]
[null,1]
[null,1]
[null,1]
[null,1]
[null,1]
[null,1]
[null,1]
[null,1]
[null,1]
[null,1]
[null,1]
[null,1]
[null,1]
[null,1]
[null,1]
[null,1]
[null,1]
[null,1]
[null,1]
[null,1]
[null,1]
[null,1]
[null,1]
[null,1]
[null,1]
[null,1]
[null,1]
[null,1]
[null,1]
[null,1]
[null,1]
[null,1]
[null,1]
[null,1]
[null,1]
[null,1]
[null,1]
[null,1]
[null,1]
[null,1]
[null,1]
[null,1]
[null,1]
[null,1]
[null,1]
[null,1]
[null,1]
[null,1]
[null,1]
[null,1]
[null,1]
[null,1]
[null,1]
[null,1]
[null,1]
[null,1]
[null,1]
[null,1]
[null,1]
[null,1]
[null,1]
[null,1]
[null,1]
[null,1]
[null,1]
[null,1]
[null,1]
[null,1]
[null,1]
[null,1]
[null,1]
[null,1]
[null,1]
[null,1]
[null,1]
[null,1]
[null,1]
[null,1]
[null,1]
[null,1]
[null,1]
[null,1]
[null,1]
[null,1]
[null,1]
[null,1]
[null,1]
[null,1]
[null,1]
[null,1]
[null,1]
[null,1]
[null,1]
[null,1]
[null,1]
[null,1]
[null,1]
[null,1]
[null,1]
[null,1]
[null,1]
[null,1]
[null,1]
[null,1]
[null,1]
[null,1]
[null,1]
[null,1]
[null,1]
[null,1]
[null,1]
[null,1]
[null,1]
[null,1]
[null,1]
[null,1]
[null,1]
[null,1]
[null,1]
[null,1]
[null,1]
[null,1]
[null,1]
[null,1]
[null,1]
[null,1]
[null,1]
[null,1]
[null,1]
[null,1]
[null,1]
[null,1]
[null,1]
[null,1]
[null,1]
[null,1]
[null,1]
[null,1]
[null,1]
[null,1]
[null,1]
[null,1]
[null,1]
[null,1]
[null,1]
[null,1]
[null,1]
[null,1]
[null,1]
[null,1]
[null,1]
[null,1]
[null,1]
[null,1]
[null,1]
[null,1]
[null,1]
[null,1]
[null,1]
[null,1]
[null,1]
[null,1]
[null,1]
[null,1]
[null,1]
[null,1]
[null,1]
[null,1]
[null,1]
[null,1]
[null,1]
[null,1]
[null,1]
[null,1]
[null,1]
[null,1]
[null,1]
[null,1]
[null,1]
[null,1]
[null,1]
[null,1]
[null,1]
[null,1]
[null,1]
[null,1]
[null,1]
[null,1]
[null,1]
[null,1]
[null,1]
[null,1]
[null,1]
[null,1]
[null,1]
[null,1]
[null,1]
[null,1]
[null,1]
[null,1]
[null,1]
[null,1]
[null,1]
[null,1]
[null,1]
[null,1]
[null,1]
[null,1]
[null,1]
[null,1]
[null,1]
[null,1]
[null,1]
[null,1]
[null,1]
[null,1]
[null,1]
[null,1]
[null,1]
[null,1]
[null,1]
[null,1]
[null,1]
[null,1]
[null,1]
[null,1]
[null,1]
[null,1]
[null,1]
[null,1]
[null,1]
[null,1]
[null,1]
[null,1]
[null,1]
[null,1]
[null,1]
[null,1]
[null,1]
[null,1]
[null,1]
[null,1]
[null,1]
[null,1]
[null,1]
[null,1]
[null,1]
[null,1]
[null,1]
[null,1]
[null,1]
[null,1]
[null,1]
[null,1]
[null,1]
[null,1]
[null,1]
[null,1]
[null,1]
[null,1]
[null,1]
[null,1]
[null,1]
[null,1]
[null,1]
[null,1]
[null,1]
[null,1]
[null,1]
[null,1]
[null,1]
[null,1]
[null,1]
[null,1]
[null,1]
[null,1]
[null,1]
[null,1]
[null,1]
[null,1]
[null,1]
[null,1]
[null,1]
[null,1]
[null,1]
[null,1]
[null,1]
[null,1]
[null,1]
[null,1]
[null,1]
[null,1]
[null,1]
[null,1]
[null,1]
[null,1]
[null,1]
[null,1]
[null,1]
[null,1]
[null,1]
[null,1]
[null,1]
[null,1]
[null,1]
[null,1]
[null,1]
[null,1]
[null,1]
[null,1]
[null,1]
[null,1]
[null,1]
[null,1]
[null,1]
[null,1]
[null,1]
[null,1]
[null,1]
[null,1]
[null,1]
[null,1]
[null,1]
[null,1]
[null,1]
[null,1]
[null,1]
[null,1]
[null,1]
[null,1]
[null,1]
[null,1]
[null,1]
[null,1]
[null,1]
[null,1]
[null,1]
[null,1]
[null,1]
[null,1]
[null,1]
[null,1]
[null,1]
[null,1]
[null,1]
[null,1]
[null,1]
[null,1]
[null,1]
[null,1]
[null,1]
[null,1]
[null,1]
[null,1]
[null,1]
[null,1]
[null,1]
[null,1]
[null,1]
[null,1]
[null,1]
[null,1]
[null,1]
[null,1]
[null,1]
[null,1]
[null,1]
[null,1]
[null,1]
[null,1]
[null,1]
[null,1]
[null,1]
[null,1]
[null,1]
[null,1]
[null,1]
[null,1]
[null,1]
[null,1]
[null,1]
[null,1]
[null,1]
[null,1]
[null,1]
[null,1]
[null,1]
[null,1]
[null,1]
[null,1]
[null,1]
[null,1]
[null,1]
[null,1]
[null,1]
[null,1]
[null,1]
[null,1]
[null,1]
[null,1]
[null,1]
[null,1]
[null,1]
[null,1]
[null,1]
[null,1]
[null,1]
[null,1]
[null,1]
[null,1]
[null,1]
[null,1]
[null,1]
[null,1]
[null,1]
[null,1]
[null,1]
[null,1]
[null,1]
[null,1]
[null,1]
[null,1]
[null,1]
[null,1]
[null,1]
[null,1]
[null,1]
[null,1]
[null,1]
[null,1]
[null,1]
[null,1]
[null,1]
[null,1]
[null,1]
[null,1]
[null,1]
[null,1]
[null,1]
[null,1]
[null,1]
[null,1]
[null,1]
[null,1]
[null,1]
[null,1]
[null,1]
[null,1]
[null,1]
[null,1]
[null,1]
[null,1]
[null,1]
[null,1]
[null,1]
[null,1]
[null,1]
[null,1]
[null,1]
[null,1]
[null,1]
[null,1]
[null,1]
[null,1]
[null,1]
[null,1]
[null,1]
[null,1]
[null,1]
[null,1]
[null,1]
[null,1]
[null,1]
[null,1]
[null,1]
[null,1]
[null,1]
[null,1]
[null,1]
[null,1]
[null,1]
[null,1]
[null,1]
[null,1]
[null,1]
[null,1]
[null,1]
[null,1]
[null,1]
[null,1]
[null,1]
[null,1]
[null,1]
[null,1]
[null,1]
[null,1]
[null,1]
[null,1]
[null,1]
[null,1]
[null,1]
[null,1]
[null,1]
[null,1]
[null,1]
[null,1]
[null,1]
[null,1]
[null,1]
[null,1]
[null,1]
[null,1]
[null,1]
[null,1]
[null,1]
[null,1]
[null,1]
[null,1]
[null,1]
[null,1]
[null,1]
[null,1]
[null,1]
[null,1]
[null,1]
[null,1]
[null,1]
[null,1]
[null,1]
[null,1]
[null,1]
[null,1]
[null,1]
[null,1]
[null,1]
[null,1]
[null,1]
[null,1]
[null,1]
[null,1]
[null,1]
[null,1]
[null,1]
[null,1]
[null,1]
[null,1]
[null,1]
[null,1]
[null,1]
[null,1]
[null,1]
[null,1]
[null,1]
[null,1]
[null,1]
[null,1]
[null,1]
[null,1]
[null,1]
[null,1]
[null,1]
[null,1]
[null,1]
[null,1]
[null,1]
[null,1]
[null,1]
[null,1]
[null,1]
[null,1]
[null,1]
[null,1]
[null,1]
[null,1]
[null,1]
[null,1]
[null,1]
[null,1]
[null,1]
[null,1]
[null,1]
[null,1]
[null,1]
[null,1]
[null,1]
[null,1]
[null,1]
[null,1]
[null,1]
[null,1]
[null,1]
[null,1]
[null,1]
[null,1]
[null,1]
[null,1]
[null,1]
[null,1]
[null,1]
[null,1]
[null,1]
[null,1]
[null,1]
[null,1]
[null,1]
[null,1]
[null,1]
[null,1]
[null,1]
[null,1]
[null,1]
[null,1]
[null,1]
[null,1]
[null,1]
[null,1]
[null,1]
[null,1]
[null,1]
[null,1]
[null,1]
[null,1]
[null,1]
[null,1]
[null,1]
[null,1]
[null,1]
[null,1]
[null,1]
[null,1]
[null,1]
[null,1]
[null,1]
[null,1]
[null,1]
[null,1]
[null,1]
[null,1]
[null,1]
[null,1]
[null,1]
[null,1]
[null,1]
[null,1]
[null,1]
[null,1]
[null,1]
[null,1]
[null,1]
[null,1]
[null,1]
[null,1]
[null,1]
[null,1]
[null,1]
[null,1]
[null,1]
[null,1]
[null,1]
[null,1]
[null,1]
[null,1]
[null,1]
[null,1]
[null,1]
[null,1]
[null,1]
[null,1]
[null,1]
[null,1]
[null,1]
[null,1]
[null,1]
[null,1]
[null,1]
[null,1]
[null,1]
[null,1]
[null,1]
[null,1]
[null,1]
[null,1]
[null,1]
[null,1]
[null,1]
[null,1]
[null,1]
[null,1]
[null,1]
[null,1]
[null,1]
[null,1]
[null,1]
[null,1]
[null,1]
[null,1]
[null,1]
[null,1]
[null,1]
[null,1]
[null,1]
[null,1]
[null,1]
[null,1]
[null,1]
[null,1]
[null,1]
[null,1]
[null,1]
["Lookup 100000","Row100000"]